Workbook

Sheet Lighting Project Tool
B2: 2026 FOCUS ON ENERGY® Lighting Savings Tool | AT2: CFL | AU2: HID | AV2: Linear Lamp | AW2: Linear Fixture | AX2: Data Validation Formula
AC3: Measures | AD3: Sectors | AE3: Measure Tables | AT3: Fixture List Selection Formula
J4: Color Coding Legend: | L4: PLEASE READ | AC4: L5459: LED, ≤43W, 1x4 or 2X4 product replacing 1- or 2-lamp T8 or T12 troffer | AD4: Schools & Gov - Interior | AF4: 1099:1134 | AU4: =IF(AND(COUNTIF(D20,"*HID")=1,($F$9=Lookups!$B$9),C20=$AD$24),Table83[HIDSGINT],IF(AND(COUNTIF(D20,"*HID")=1,($F$9=Lookups!$B$9),C20=$AD$25),Table83[HIDSGINT],IF(AND(COUNTIF(D20,"*HID")=1,($F$9=Lookups!$B$7),C20=$AD$24),Table83[HIDSGINT],IF(AND(COUNTIF(D20,"*HID")=1,($F$9=Lookups!$B$7),C20=$AD$25),Table82[HIDSGEXT],IF(AND(COUNTIF(D20,"*HID")=1,($F$9=Lookups!$B$5),C20=$AD$24),Table83[HIDSGINT],IF(AND(COUNTIF(D20,"*HID")=1,($F$9=Lookups!$B$5),C20=$AD$25),Table82[HIDSGEXT],IF(AND(COUNTIF(D20,"*HID")=1,($F$9=Lookups!$B$3),C20=$AD$24),Table79[HIDAGINT],IF(AND(COUNTIF(D20,"*HID")=1,($F$9=Lookups!$B$3),C20=$AD$25),Table78[HIDAGEXT],IF(AND(COUNTIF(D20,"*HID")=1,($F$9=Lookups!$B$9),C20=$AD$24),Table83[HIDSGINT],IF(AND(COUNTIF(D20,"*HID")=1,($F$9=Lookups!$B$9),C20=$AD$25),Table82[HIDSGEXT],IF(AND(COUNTIF(D20,"*HID")=1,($F$9=Lookups!$B$7),C20=$AD$24),Table83[HIDSGINT],IF(AND(COUNTIF(D20,"*HID")=1,($F$9=Lookups!$B$7),C20=$AD$25),Table82[HIDSGEXT],IF(AND(COUNTIF(D20,"*HID")=1,($F$9=Lookups!$B$5),C20=$AD$24),Table83[HIDSGINT],IF(AND(COUNTIF(D20,"*HID")=1,($F$9=Lookups!$B$5),C20=$AD$25),Table82[HIDSGEXT],IF(AND(COUNTIF(D20,"*HID")=1,($F$9=Lookups!$B$3),C20=$AD$24),Table79[HIDAGINT],IF(AND(COUNTIF(D20,"*HID")=1,($F$9=Lookups!$B$3),C20=$AD$25),Table78[HIDAGEXT],IF(AND(COUNTIF(D20,"*HID")=1,($F$9=Lookups!$B$10),C20=$AD$24),Table81[HIDSGNCINT],IF(AND(COUNTIF(D20,"*HID")=1,($F$9=Lookups!$B$10),C20=$AD$25),Table80[HIDSGNCEXT],IF(AND(COUNTIF(D20,"*HID")=1,($F$9=Lookups!$B$8),C20=$AD$24),Table81[HIDSGNCINT],IF(AND(COUNTIF(D20,"*HID")=1,($F$9=Lookups!$B$8),C20=$AD$25),Table80[HIDSGNCEXT],IF(AND(COUNTIF(D20,"*HID")=1,($F$9=Lookups!$B$6),C20=$AD$24),Table81[HIDSGNCINT],IF(AND(COUNTIF(D20,"*HID")=1,($F$9=Lookups!$B$6),C20=$AD$25),Table80[HIDSGNCEXT],IF(AND(COUNTIF(D20,"*HID")=1,($F$9=Lookups!$B$4),C20=$AD$24),Table77[HIDAGNCINT],IF(AND(COUNTIF(D20,"*HID")=1,($F$9=Lookups!$B$4),C20=$AD$25),Table76[HIDAGNCEXT],"ERROR")))))))))))))))))))))))) -> ERROR | AV4: =IF(AND(COUNTIF(D20,"*Lamp")=1,($F$9=Lookups!$B$9),C20=$AD$24),Table84[FLSGINT],IF(AND(COUNTIF(D20,"*Lamp")=1,($F$9=Lookups!$B$9),C20=$AD$25),Table85[FLSGEXT],IF(AND(COUNTIF(D20,"*HID")=1,($F$9=Lookups!$B$7),C20=$AD$24),Table86[FLSGNCINT],IF(AND(COUNTIF(D20,"*Lamp")=1,($F$9=Lookups!$B$7),C20=$AD$25),Table87[FLSGNCEXT],IF(AND(COUNTIF(D20,"*Lamp")=1,($F$9=Lookups!$B$5),C20=$AD$24),Table86[FLSGNCINT],IF(AND(COUNTIF(D20,"*Lamp")=1,($F$9=Lookups!$B$5),C20=$AD$25),Table87[FLSGNCEXT],IF(AND(COUNTIF(D20,"*Lamp")=1,($F$9=Lookups!$B$3),C20=$AD$24),Table88[FLAGINT],IF(AND(COUNTIF(D20,"*Lamp")=1,($F$9=Lookups!$B$3),C20=$AD$25),Table89[FLAGEXT],IF(AND(COUNTIF(D20,"*Lamp")=1,($F$9=Lookups!$B$9),C20=$AD$24),Table86[FLSGNCINT],IF(AND(COUNTIF(D20,"*Lamp")=1,($F$9=Lookups!$B$9),C20=$AD$25),Table87[FLSGNCEXT],IF(AND(COUNTIF(D20,"*Lamp")=1,($F$9=Lookups!$B$7),C20=$AD$24),Table86[FLSGNCINT],IF(AND(COUNTIF(D20,"*Lamp")=1,($F$9=Lookups!$B$7),C20=$AD$25),Table87[FLSGNCEXT],IF(AND(COUNTIF(D20,"*Lamp")=1,($F$9=Lookups!$B$5),C20=$AD$24),Table86[FLSGNCINT],IF(AND(COUNTIF(D20,"*Lamp")=1,($F$9=Lookups!$B$5),C20=$AD$25),Table87[FLSGNCEXT],IF(AND(COUNTIF(D20,"*HID")=1,($F$9=Lookups!$B$3),C20=$AD$24),Table88[FLAGINT],IF(AND(COUNTIF(D20,"*Lamp")=1,($F$9=Lookups!$B$3),C20=$AD$25),Table89[FLAGEXT],IF(AND(COUNTIF(D20,"*Lamp")=1,($F$9=Lookups!$B$10),C20=$AD$24),Table86[FLSGNCINT],IF(AND(COUNTIF(D20,"*Lamp")=1,($F$9=Lookups!$B$10),C20=$AD$25),Table87[FLSGNCEXT],IF(AND(COUNTIF(D20,"*Lamp")=1,($F$9=Lookups!$B$8),C20=$AD$24),Table86[FLSGNCINT],IF(AND(COUNTIF(D20,"*Lamp")=1,($F$9=Lookups!$B$8),C20=$AD$25),Table87[FLSGNCEXT],IF(AND(COUNTIF(D20,"*Lamp")=1,($F$9=Lookups!$B$6),C20=$AD$24),Table86[FLSGNCINT],IF(AND(COUNTIF(D20,"*Lamp")=1,($F$9=Lookups!$B$6),C20=$AD$25),Table87[FLSGNCEXT],IF(AND(COUNTIF(D20,"*Lamp")=1,($F$9=Lookups!$B$4),C20=$AD$24),Table91[FLAGNCINT],IF(AND(COUNTIF(D20,"*Lamp")=1,($F$9=Lookups!$B$4),C20=$AD$25),Table92[FLAGNCEXT],"ERROR")))))))))))))))))))))))) -> ERROR | AW4: =IF(AND(COUNTIF(D20,"*Fixture")=1,($F$9=Lookups!$B$9),C20=$AD$24),Table100[T8SGINT], IF(AND(COUNTIF(D20,"*Fixture")=1,($F$9=Lookups!$B$9),C20=$AD$25),Table100[T8SGINT], IF(AND(COUNTIF(D20,"*Fixture")=1,($F$9=Lookups!$B$7),C20=$AD$24),Table100[T8SGINT], IF(AND(COUNTIF(D20,"*Fixture")=1,($F$9=Lookups!$B$7),C20=$AD$25),Table99[T8SGEXT], IF(AND(COUNTIF(D20,"*Fixture")=1,($F$9=Lookups!$B$5),C20=$AD$24),Table100[T8SGINT], IF(AND(COUNTIF(D20,"*Fixture")=1,($F$9=Lookups!$B$5),C20=$AD$25),Table99[T8SGEXT], IF(AND(COUNTIF(D20,"*Fixture")=1,($F$9=Lookups!$B$3),C20=$AD$24),Table96[T8AGINT], IF(AND(COUNTIF(D20,"*Fixture")=1,($F$9=Lookups!$B$3),C20=$AD$25),Table95[T8AGEXT], IF(AND(COUNTIF(D20,"*Fixture")=1,($F$9=Lookups!$B$9),C20=$AD$24),Table100[T8SGINT], IF(AND(COUNTIF(D20,"*Fixture")=1,($F$9=Lookups!$B$9),C20=$AD$25),Table99[T8SGEXT], IF(AND(COUNTIF(D20,"*Fixture")=1,($F$9=Lookups!$B$7),C20=$AD$24),Table100[T8SGINT], IF(AND(COUNTIF(D20,"*Fixture")=1,($F$9=Lookups!$B$7),C20=$AD$25),Table99[T8SGEXT], IF(AND(COUNTIF(D20,"*Fixture")=1,($F$9=Lookups!$B$5),C20=$AD$24),Table100[T8SGINT], IF(AND(COUNTIF(D20,"*Fixture")=1,($F$9=Lookups!$B$5),C20=$AD$25),Table99[T8SGEXT],IF(AND(COUNTIF(D20,"*Fixture")=1,($F$9=Lookups!$B$3),C20=$AD$24),Table96[T8AGINT], IF(AND(COUNTIF(D20,"*Fixture")=1,($F$9=Lookups!$B$3),C20=$AD$25),Table95[T8AGEXT],IF(AND(COUNTIF(D20,"*Fixture")=1,($F$9=Lookups!$B$10),C20=$AD$24),Table98[T8SGNCINT], IF(AND(COUNTIF(D20,"*Fixture")=1,($F$9=Lookups!$B$10),C20=$AD$25),Table97[T8SGNCEXT], IF(AND(COUNTIF(D20,"*Fixture")=1,($F$9=Lookups!$B$8),C20=$AD$24),Table98[T8SGNCINT], IF(AND(COUNTIF(D20,"*Fixture")=1,($F$9=Lookups!$B$8),C20=$AD$25),Table97[T8SGNCEXT], IF(AND(COUNTIF(D20,"*Fixture")=1,($F$9=Lookups!$B$6),C20=$AD$24),Table98[T8SGNCINT], IF(AND(COUNTIF(D20,"*Fixture")=1,($F$9=Lookups!$B$6),C20=$AD$25),Table97[T8SGNCEXT],IF(AND(COUNTIF(D20,"*Fixture")=1,($F$9=Lookups!$B$4),C20=$AD$24),Table94[T8AGNCINT], IF(AND(COUNTIF(D20,"*Fixture")=1,($F$9=Lookups!$B$4),C20=$AD$25),Table2[T8AGNCEXT],"ERROR")))))))))))))))))))))))) -> ERROR | AX4: =IF(COUNTIF(D20,"*CFL")=1, $AT$5:$AT$28, IF(COUNTIF(D20,"*HID")=1,$AU$4:$AU$28,IF(COUNTIF(D20,"*Lamp")=1,$AV$4:$AV$28,IF(COUNTIF(D20,"*Fixture")=1,$AW$4:$AW$28,"ERROR")))) -> ERROR
E5: Project Information | J5: User Input (Required) | L5: THESE ARE ESTIMATES AND MAY NOT REFLECT ACTUAL SAVINGS | AC5: L3111: LED, ≤55W, 2X4 product replacing 3- or 4-lamp T8 or T12 troffer | AD5: Schools & Gov - NC - Interior | AF5: 1155:1168 | AI5: 0 | AT5: =IF(AND(COUNTIF(D20,"*CFL")=1,($F$9=Lookups!$B$9),C20=$AD$24),Table101[CFLSGINT], IF(AND(COUNTIF(D20,"*CFL")=1,($F$9=Lookups!$B$9),C20=$AD$25),Table69[CFLSGEXT], IF(AND(COUNTIF(D20,"*CFL")=1,($F$9=Lookups!$B$7),C20=$AD$24),Table101[CFLSGINT], IF(AND(COUNTIF(D20,"*CFL")=1,($F$9=Lookups!$B$7),C20=$AD$25),Table69[CFLSGEXT], IF(AND(COUNTIF(D20,"*CFL")=1,($F$9=Lookups!$B$5),C20=$AD$24),Table101[CFLSGINT], IF(AND(COUNTIF(D20,"*CFL")=1,($F$9=Lookups!$B$5),C20=$AD$25),Table69[CFLSGEXT],IF(AND(COUNTIF(D20,"*CFL")=1,($F$9=Lookups!$B$3),C20=$AD$24),Table72[CFLAGINT], IF(AND(COUNTIF(D20,"*CFL")=1,($F$9=Lookups!$B$3),C20=$AD$25),Table73[CFLAGEXT], IF(AND(COUNTIF(D20,"*CFL")=1,($F$9=Lookups!$B$9),C20=$AD$24),Table101[CFLSGINT], IF(AND(COUNTIF(D20,"*CFL")=1,($F$9=Lookups!$B$9),C20=$AD$25),Table69[CFLSGEXT], IF(AND(COUNTIF(D20,"*CFL")=1,($F$9=Lookups!$B$7),C20=$AD$24),Table101[CFLSGINT], IF(AND(COUNTIF(D20,"*CFL")=1,($F$9=Lookups!$B$7),C20=$AD$25),Table69[CFLSGEXT], IF(AND(COUNTIF(D20,"*CFL")=1,($F$9=Lookups!$B$5),C20=$AD$24),Table101[CFLSGINT], IF(AND(COUNTIF(D20,"*CFL")=1,($F$9=Lookups!$B$5),C20=$AD$25),Table69[CFLSGEXT],IF(AND(COUNTIF(D20,"*CFL")=1,($F$9=Lookups!$B$3),C20=$AD$24),Table72[CFLAGINT], IF(AND(COUNTIF(D20,"*CFL")=1,($F$9=Lookups!$B$3),C20=$AD$25),Table73[CFLAGEXT],IF(AND(COUNTIF(D20,"*CFL")=1,($F$9=Lookups!$B$10),C20=$AD$24),Table70[CFLSGNCINT], IF(AND(COUNTIF(D20,"*CFL")=1,($F$9=Lookups!$B$10),C20=$AD$25),Table71[CFLSGNCEXT], IF(AND(COUNTIF(D20,"*CFL")=1,($F$9=Lookups!$B$8),C20=$AD$24),Table70[CFLSGNCINT], IF(AND(COUNTIF(D20,"*CFL")=1,($F$9=Lookups!$B$8),C20=$AD$25),Table71[CFLSGNCEXT], IF(AND(COUNTIF(D20,"*CFL")=1,($F$9=Lookups!$B$6),C20=$AD$24),Table70[CFLSGNCINT], IF(AND(COUNTIF(D20,"*CFL")=1,($F$9=Lookups!$B$6),C20=$AD$25),Table71[CFLSGNCEXT],IF(AND(COUNTIF(D20,"*CFL")=1,($F$9=Lookups!$B$4),C20=$AD$24),Table74[CFLAGNCINT], IF(AND(COUNTIF(D20,"*CFL")=1,($F$9=Lookups!$B$4),C20=$AD$25),Table75[CFLAGNCEXT],"ERROR")))))))))))))))))))))))) -> ERROR
E6: Customer Name: | J6: User Input (Optional) | L6: Contact your local Energy Advisor to learn about rebate opportunities for updating your lighting. Non 1 for 1 lighting replacement projects will either qualify for Wattage Reduction/Fixture Elimination or Custom measures. | AC6: L3400: 2X2 LED, ≤39W, replacing Fixture with 2 or more T8 or T12 Lamps | AD6: Ag - Interior | AF6: 1181:1204 | AI6: 0
E7: Facility Name: | J7: Calc Output | AC7: L3401: 2X2 LED, ≤85W, replacing Fixture with 2 or more 2G11 base Lamps | AD7: Ag - NC - Interior | AF7: 1216:1230 | AI7: 0
I8: Project Totals | AC8: L10281: 1’ to 3’ LED Linear Ambient Fixture, Interior | AD8: Schools & Gov - Exterior | AF8: 1142:1154 | AI8: 0
E9: Sector: | G9: Used for Annual Run Hours & Controls Saving Fraction | I9: Annual kWh Savings | J9: =K45 -> 0 | L9: For L3903 and L3904 - Instead of Existing Quantity, Enter Proposed Installed Wattage | AC9: L10282: 4' LED Linear Ambient Fixture, Interior | AD9: Schools & Gov - NC - Exterior | AF9: 1168:1180 | AI9: 0
E10: Annual Run Hours: | F10: Default Sector Hours | I10: Rebate | J10: =L45 -> 0 | L10: For (N)L4813, instead of fixture quantity, enter in total watts reduced for project. | AC10: L10283: 8' LED Linear Ambient Fixture, Interior | AD10: Ag - Exterior | AF10: 1205:1215 | AI10: 0
E11: Sector for Utility Rates: | I11: Annual Utility Savings | J11: =M45 -> 0 | L11: For Flourescent T8, T12 Lamp replacement - Manually enter in Existing bulb wattage (L5451, L5452,L5453, L5454, L5456, L5458) | AC11: L10028: LED Downlight Fixtures replacing or instead of Incandescent, CFL, or HID fixture | AD11: Ag - NC - Exterior | AF11: 1231:1238 | AI11: 0
E12: Interior or 24/7 (On-Peak) Utility Rate: | F12: =IFERROR(VLOOKUP(F11,L51:M53,2,FALSE),"Select Sector for Utilty Rates") -> Select Sector for Utilty Rates | G12: Actual, if known. | I12: Payback (Years) | J12: =(G45-J10)/J11 ->  | AC12: L4813: LED Track/Mono/Accent fixtures replacing incandescent, CFL, or HID fixture | AI12: 0
C13: =IF(AND(F9="Schools & Gov",E20="Interior"),Table5_1[Column1.1],IF(AND(F9="Schools & Gov",E20="Exterior"),Table7_1[Column1.1],IF(AND(F9="AG",E20="Interior"),'Ag Measures'!A2:A25:'Ag Measures'!A27:'Ag Measures'!A42:A49:'Ag Measures'!A67:A71,IF(AND(F9="AG",E20="Exterior"),'Ag Measures'!A28:A41:'Ag Measures'!A50:A66,"")))) ->  | E13: Exterior (Off-Peak) Utility Rate: | F13: =M53 -> $0.0800 | G13: Actual, if known. | L13: Energy Savings are calculated for by using Existing and Proposed Wattages for fixtures/lamp types. Entering actual project values with give more accurate savings. | AC13: L3091: ≤ 155W LED High Bay/Low Bay, replacing or instead of 250W HID | AI13: 0
AC14: L3092: ≤ 250W LED High Bay/Low Bay, instead of 320-399W HID | AD14: B&I | AI14: 0
L15: Project Payback is calculated using estimated project costs, entering the actual project cost will give a more accurate payback. | AC15: L3093: ≤ 250W LED High Bay/Low Bay, replacing 400W HID | AD15: B&I-NC | AI15: 0
AC16: L3094: ≤ 365W LED High Bay/Low Bay, replacing 400W HID
C17: Last Updated: | D17: =MAX($G$115:$G$132) -> 2026-02-18 | AC17: L3095: ≤ 500W LED High Bay/Low Bay, replacing or instead of 1000W HID | AD17: Large Industrial | AI17: 0 | AP17: Data Validation for Cell F
B18: LIGHTING PROJECT INFORMATION | AC18: L3096: ≤ 800W LED High Bay/Low Bay, replacing or instead of 1000W HID | AD18: Large Industrial-NC | AG18: CFL Interior | AH18: HID Interior | AI18: Lamp Interior | AJ18: Fixture Interior | AK18: =IF(AND($F$9=$AD$19,C20=$AD$24), $AD$4, IF(AND($F$9=$AD$19,C20=$AD$25), $AD$8, IF(AND($F$9=$AD$20,C20=$AD$24), $AD$5, IF(AND($F$9=$AD$20,C20=$AD$25), $AD$9, IF(AND($F$9=$AD$21,C20=$AD$24), $AD$6, IF(AND($F$9=$AD$21,C20=$AD$25), $AD$10, IF(AND($F$9=$AD$22,C20=$AD$24), $AD$7, IF(AND($F$9=$AD$22,C20=$AD$25), $AD$11, "ERROR")))))))) -> ERROR | AL18: =IF($AK$18=$AD$4,$AD$8, IF($AK$18=$AD$5, $AD$9, IF($AK$18=$AD$6, $AD10, IF($AK$18=$AD$7, $AD$11, IF($AK$18=$AD$8,$AD$4, IF($AK$18=$AD$9, $AD$5, IF($AK$18=$AD$10, $AD6, IF($AK$18=$AD$11, $AD$7, "ERROR")))))))) -> ERROR | AN18: DV Interior | AP18: 1 | AQ18: =AP18+1 -> 2 | AR18: =AQ18+1 -> 3 | AS18: 4 | AT18: 5 | AU18: 6 | AV18: 7 | AW18: 8 | AX18: 9 | AY18: 10 | AZ18: 11 | BA18: 12 | BB18: 13 | BC18: 14 | BD18: 15 | BE18: 16 | BF18: 17 | BG18: 18 | BH18: 19 | BI18: 20 | BJ18: 21 | BK18: 22 | BL18: 23 | BM18: 24 | BN18: 25
B19: Line # | C19: Interior or Exterior? | D19: Existing Lighting Fixture/Lamp | E19: Quantity | F19: Proposed Lighting Technology | G19: Project Cost (Default Industry Standard Cost) (Can be Overidden) | H19: Exisiting Wattage (Can be overridden) | I19: Proposed Wattage (Manual Entry) | J19: =IF(F10="Default Sector Hours", "Annual Run Hours (Sector Default)", "Annual Run Hours '(Manual Entry)") -> Annual Run Hours (Sector Default) | K19: Annual kWh Savings | L19: Rebate | M19: Annual Utility Savings | N19: Project Payback (Years) | O19: Measure Rebate Cap | AC19: L5460: ≤ 85W LED High Bay/Low Bay, replacing 4 Lamp 4' or 2 Lamp 8' T8 or T12 | AD19: Schools & Government | AG19: =IF(AND(OR($F$9=$AD$14,$F$9=$AD$17,$F$9=$AD$19),C20=$AD$24,COUNTIF(D20,"*CFL")=0),Table101[CFLSGINT],IF(AND(OR($F$9=$AD$15,$F$9=$AD$18,$F$9=$AD$20),C20=$AD$24,COUNTIF(D20,"*CFL")=0),Table70[CFLSGNCINT],IF(AND(OR($F$9=$AD$14,$F$9=$AD$17,$F$9=$AD$19),C20=$AD$24,COUNTIF(D20,"*CFL")=1),Table101[CFLSGINT],IF(AND(OR($F$9=$AD$15,$F$9=$AD$18,$F$9=$AD$20),C20=$AD$24,COUNTIF(D20,"*CFL")=1),Table70[CFLSGNCINT],IF(AND($F$9=$AD$21,C20=$AD$24),Table72[CFLAGINT],IF(AND($F$9=$AD$22,C20=$AD$24),Table74[CFLAGNCINT],IF(AND(OR($F$9=$AD$14,$F$9=$AD$17,$F$9=$AD$19),C20=$AD$25,COUNTIF(D20,"*CFL")=0),Table101[CFLSGINT],IF(AND(OR($F$9=$AD$15,$F$9=$AD$18,$F$9=$AD$20),C20=$AD$25,COUNTIF(D20,"*CFL")=0),Table70[CFLSGNCINT],IF(AND(OR($F$9=$AD$14,$F$9=$AD$17,$F$9=$AD$19),C20=$AD$25,COUNTIF(D20,"*CFL")=1),Table101[CFLSGINT],IF(AND(OR($F$9=$AD$15,$F$9=$AD$18,$F$9=$AD$20),C20=$AD$25,COUNTIF(D20,"*CFL")=1),Table70[CFLSGNCINT],IF(AND($F$9=$AD$21,C20=$AD$25),Table72[CFLAGINT],IF(AND($F$9=$AD$22,C20=$AD$25),Table74[CFLAGNCINT],"ERROR")))))))))))) -> ERROR | AH19: =IF(AND(OR($F$9=$AD$14,$F$9=$AD$17,$F$9=$AD$19),C20=$AD$24,COUNTIF(D20,"*HID")=0),Table83[HIDSGINT],IF(AND(OR($F$9=$AD$15,$F$9=$AD$18,$F$9=$AD$20),C20=$AD$24,COUNTIF(D20,"*HID")=0),Table81[HIDSGNCINT],IF(AND(OR($F$9=$AD$14,$F$9=$AD$17,$F$9=$AD$19),C20=$AD$24,COUNTIF(D20,"*HID")=1),Table83[HIDSGINT],IF(AND(OR($F$9=$AD$15,$F$9=$AD$18,$F$9=$AD$20),C20=$AD$24,COUNTIF(D20,"*HID")=1),Table81[HIDSGNCINT],IF(AND($F$9=$AD$21,C20=$AD$24),Table79[HIDAGINT],IF(AND($F$9=$AD$22,C20=$AD$24),Table77[HIDAGNCINT],IF(AND(OR($F$9=$AD$14,$F$9=$AD$17,$F$9=$AD$19),C20=$AD$25,COUNTIF(D20,"*HID")=0),Table83[HIDSGINT],IF(AND(OR($F$9=$AD$15,$F$9=$AD$18,$F$9=$AD$20),C20=$AD$25,COUNTIF(D20,"*HID")=0),Table81[HIDSGNCINT],IF(AND(OR($F$9=$AD$14,$F$9=$AD$17,$F$9=$AD$19),C20=$AD$25,COUNTIF(D20,"*HID")=1),Table83[HIDSGINT],IF(AND(OR($F$9=$AD$15,$F$9=$AD$18,$F$9=$AD$20),C20=$AD$25,COUNTIF(D20,"*HID")=1),Table81[HIDSGNCINT],IF(AND($F$9=$AD$21,C20=$AD$25),Table79[HIDAGINT],IF(AND($F$9=$AD$22,C20=$AD$25),Table77[HIDAGNCINT],"ERROR")))))))))))) -> ERROR | AI19: =IF(AND(OR($F$9=$AD$14,$F$9=$AD$17,$F$9=$AD$19),C20=$AD$24,COUNTIF(D20,"*LAMP")=0),Table84[FLSGINT],IF(AND(OR($F$9=$AD$15,$F$9=$AD$18,$F$9=$AD$20),C20=$AD$24,COUNTIF(D20,"*LAMP")=0),Table86[FLSGNCINT],IF(AND(OR($F$9=$AD$14,$F$9=$AD$17,$F$9=$AD$19),C20=$AD$24,COUNTIF(D20,"*LAMP")=1),Table84[FLSGINT],IF(AND(OR($F$9=$AD$15,$F$9=$AD$18,$F$9=$AD$20),C20=$AD$24,COUNTIF(D20,"*LAMP")=1),Table86[FLSGNCINT],IF(AND($F$9=$AD$21,C20=$AD$24),Table88[FLAGINT],IF(AND($F$9=$AD$22,C20=$AD$24),Table91[FLAGNCINT],IF(AND(OR($F$9=$AD$14,$F$9=$AD$17,$F$9=$AD$19),C20=$AD$25,COUNTIF(D20,"*LAMP")=0),Table84[FLSGINT],IF(AND(OR($F$9=$AD$15,$F$9=$AD$18,$F$9=$AD$20),C20=$AD$25,COUNTIF(D20,"*LAMP")=0),Table86[FLSGNCINT],IF(AND(OR($F$9=$AD$14,$F$9=$AD$17,$F$9=$AD$19),C20=$AD$25,COUNTIF(D20,"*LAMP")=1),Table84[FLSGINT],IF(AND(OR($F$9=$AD$15,$F$9=$AD$18,$F$9=$AD$20),C20=$AD$25,COUNTIF(D20,"*LAMP")=1),Table86[FLSGNCINT],IF(AND($F$9=$AD$21,C20=$AD$25),Table88[FLAGINT],IF(AND($F$9=$AD$22,C20=$AD$25),Table91[FLAGNCINT],"ERROR")))))))))))) -> ERROR | AJ19: =IF(AND(OR($F$9=$AD$14,$F$9=$AD$17,$F$9=$AD$19),C20=$AD$24,COUNTIF(D20,"*FIXTURE")=0),Table100[T8SGINT],IF(AND(OR($F$9=$AD$15,$F$9=$AD$18,$F$9=$AD$20),C20=$AD$24,COUNTIF(D20,"*FIXTURE")=0),Table98[T8SGNCINT],IF(AND(OR($F$9=$AD$14,$F$9=$AD$17,$F$9=$AD$19),C20=$AD$24,COUNTIF(D20,"*FIXTURE")=1),Table100[T8SGINT],IF(AND(OR($F$9=$AD$15,$F$9=$AD$18,$F$9=$AD$20),C20=$AD$24,COUNTIF(D20,"*FIXTURE")=1),Table98[T8SGNCINT],IF(AND($F$9=$AD$21,C20=$AD$24),Table96[T8AGINT],IF(AND($F$9=$AD$22,C20=$AD$24),Table94[T8AGNCINT],IF(AND(OR($F$9=$AD$14,$F$9=$AD$17,$F$9=$AD$19),C20=$AD$25,COUNTIF(D20,"*FIXTURE")=0),Table100[T8SGINT],IF(AND(OR($F$9=$AD$15,$F$9=$AD$18,$F$9=$AD$20),C20=$AD$25,COUNTIF(D20,"*FIXTURE")=0),Table98[T8SGNCINT],IF(AND(OR($F$9=$AD$14,$F$9=$AD$17,$F$9=$AD$19),C20=$AD$25,COUNTIF(D20,"*FIXTURE")=1),Table100[T8SGINT],IF(AND(OR($F$9=$AD$15,$F$9=$AD$18,$F$9=$AD$20),C20=$AD$25,COUNTIF(D20,"*FIXTURE")=1),Table98[T8SGNCINT],IF(AND($F$9=$AD$21,C20=$AD$25),Table96[T8AGINT],IF(AND($F$9=$AD$22,C20=$AD$25),Table94[T8AGNCINT],"ERROR")))))))))))) -> ERROR | AK19: =IF($AK$18=$AD$4,$AC$4:$AC$31, IF($AK$18=$AD$5,$AC$4:$AC$30, IF( $AK$18=$AD$6,$AC$4:$AC$31, IF($AK$18=$AD$7, $AC$4:$AC$30,"ERROR")))) -> ERROR | AL19: =IF($AL$18=$AD$8,$AC$41:$AC$44,IF($AL$18=$AD$9,$AC$32:$AC$44,IF($AL$18=$AD$10,$AC$78:$AC$92,IF($AL$18=$AD$11,$AC$80:$AC$91,"Error")))) -> Error | AN19: =IF(COUNTIF(D20,"*CFL")=1,_xlfn.ANCHORARRAY( $AG$19), IF(COUNTIF(D20,"*HID")=1,_xlfn.ANCHORARRAY($AH$19), IF(COUNTIF(D20,"*LAMP")=1,_xlfn.ANCHORARRAY($AI$19),IF(COUNTIF(D20,"*FIXTURE")=1,_xlfn.ANCHORARRAY($AJ$19), "ERROR")))) -> ERROR | AP19: =IF(C20=$AD$24, _xlfn.IFS(COUNTIF(D20,"*CFL")=1,_xlfn.ANCHORARRAY( $AG$19),COUNTIF(D20,"*HID")=1,_xlfn.ANCHORARRAY($AH$19), COUNTIF(D20,"*LAMP")=1,_xlfn.ANCHORARRAY($AI$19),COUNTIF(D20,"*FIXTURE")=1,_xlfn.ANCHORARRAY($AJ$19)), IF(C20=$AD$25, _xlfn.IFS(COUNTIF(D20,"*CFL")=1,_xlfn.ANCHORARRAY( $AG$41), COUNTIF(D20,"*HID")=1,_xlfn.ANCHORARRAY($AH$41), COUNTIF(D20,"*LAMP")=1,_xlfn.ANCHORARRAY($AI$41),COUNTIF(D20,"*FIXTURE")=1,_xlfn.ANCHORARRAY($AJ$41)), "ERROR")) -> ERROR | AQ19: =IF(C21=$AD$24, _xlfn.IFS(COUNTIF(D21,"*CFL")=1,_xlfn.ANCHORARRAY($AG$19),COUNTIF(D21,"*HID")=1,_xlfn.ANCHORARRAY($AH$19), COUNTIF(D21,"*LAMP")=1,_xlfn.ANCHORARRAY($AI$19),COUNTIF(D21,"*FIXTURE")=1,_xlfn.ANCHORARRAY($AJ$19)),IF(C21=$AD$25,_xlfn.IFS(COUNTIF(D21,"*CFL")=1,_xlfn.ANCHORARRAY($AG$41),COUNTIF(D21,"*HID")=1,_xlfn.ANCHORARRAY($AH$41),COUNTIF(D21,"*LAMP")=1,_xlfn.ANCHORARRAY($AI$41),COUNTIF(D21,"*FIXTURE")=1,_xlfn.ANCHORARRAY($AJ$41)), "ERROR")) -> ERROR | AR19: =IF(C22=$AD$24, _xlfn.IFS(COUNTIF(D22,"*CFL")=1,_xlfn.ANCHORARRAY($AG$19),COUNTIF(D22,"*HID")=1,_xlfn.ANCHORARRAY($AH$19), COUNTIF(D22,"*LAMP")=1,_xlfn.ANCHORARRAY($AI$19),COUNTIF(D22,"*FIXTURE")=1,_xlfn.ANCHORARRAY($AJ$19)),IF(C22=$AD$25,_xlfn.IFS(COUNTIF(D22,"*CFL")=1,_xlfn.ANCHORARRAY($AG$41),COUNTIF(D22,"*HID")=1,_xlfn.ANCHORARRAY($AH$41),COUNTIF(D22,"*LAMP")=1,_xlfn.ANCHORARRAY($AI$41),COUNTIF(D22,"*FIXTURE")=1,_xlfn.ANCHORARRAY($AJ$41)), "ERROR")) -> ERROR | AS19: =IF(C23=$AD$24, _xlfn.IFS(COUNTIF(D23,"*CFL")=1,_xlfn.ANCHORARRAY($AG$19),COUNTIF(D23,"*HID")=1,_xlfn.ANCHORARRAY($AH$19), COUNTIF(D23,"*LAMP")=1,_xlfn.ANCHORARRAY($AI$19),COUNTIF(D23,"*FIXTURE")=1,_xlfn.ANCHORARRAY($AJ$19)),IF(C23=$AD$25,_xlfn.IFS(COUNTIF(D23,"*CFL")=1,_xlfn.ANCHORARRAY($AG$41),COUNTIF(D23,"*HID")=1,_xlfn.ANCHORARRAY($AH$41),COUNTIF(D23,"*LAMP")=1,_xlfn.ANCHORARRAY($AI$41),COUNTIF(D23,"*FIXTURE")=1,_xlfn.ANCHORARRAY($AJ$41)), "ERROR")) -> ERROR | AT19: =IF(C24=$AD$24, _xlfn.IFS(COUNTIF(D24,"*CFL")=1,_xlfn.ANCHORARRAY($AG$19),COUNTIF(D24,"*HID")=1,_xlfn.ANCHORARRAY($AH$19), COUNTIF(D24,"*LAMP")=1,_xlfn.ANCHORARRAY($AI$19),COUNTIF(D24,"*FIXTURE")=1,_xlfn.ANCHORARRAY($AJ$19)),IF(C24=$AD$25,_xlfn.IFS(COUNTIF(D24,"*CFL")=1,_xlfn.ANCHORARRAY($AG$41),COUNTIF(D24,"*HID")=1,_xlfn.ANCHORARRAY($AH$41),COUNTIF(D24,"*LAMP")=1,_xlfn.ANCHORARRAY($AI$41),COUNTIF(D24,"*FIXTURE")=1,_xlfn.ANCHORARRAY($AJ$41)), "ERROR")) -> ERROR | AU19: =IF(C25=$AD$24, _xlfn.IFS(COUNTIF(D25,"*CFL")=1,_xlfn.ANCHORARRAY($AG$19),COUNTIF(D25,"*HID")=1,_xlfn.ANCHORARRAY($AH$19), COUNTIF(D25,"*LAMP")=1,_xlfn.ANCHORARRAY($AI$19),COUNTIF(D25,"*FIXTURE")=1,_xlfn.ANCHORARRAY($AJ$19)),IF(C25=$AD$25,_xlfn.IFS(COUNTIF(D25,"*CFL")=1,_xlfn.ANCHORARRAY($AG$41),COUNTIF(D25,"*HID")=1,_xlfn.ANCHORARRAY($AH$41),COUNTIF(D25,"*LAMP")=1,_xlfn.ANCHORARRAY($AI$41),COUNTIF(D25,"*FIXTURE")=1,_xlfn.ANCHORARRAY($AJ$41)), "ERROR")) -> ERROR | AV19: =IF(C26=$AD$24, _xlfn.IFS(COUNTIF(D26,"*CFL")=1,_xlfn.ANCHORARRAY($AG$19),COUNTIF(D26,"*HID")=1,_xlfn.ANCHORARRAY($AH$19), COUNTIF(D26,"*LAMP")=1,_xlfn.ANCHORARRAY($AI$19),COUNTIF(D26,"*FIXTURE")=1,_xlfn.ANCHORARRAY($AJ$19)),IF(C26=$AD$25,_xlfn.IFS(COUNTIF(D26,"*CFL")=1,_xlfn.ANCHORARRAY($AG$41),COUNTIF(D26,"*HID")=1,_xlfn.ANCHORARRAY($AH$41),COUNTIF(D26,"*LAMP")=1,_xlfn.ANCHORARRAY($AI$41),COUNTIF(D26,"*FIXTURE")=1,_xlfn.ANCHORARRAY($AJ$41)), "ERROR")) -> ERROR | AW19: =IF(C27=$AD$24, _xlfn.IFS(COUNTIF(D27,"*CFL")=1,_xlfn.ANCHORARRAY($AG$19),COUNTIF(D27,"*HID")=1,_xlfn.ANCHORARRAY($AH$19), COUNTIF(D27,"*LAMP")=1,_xlfn.ANCHORARRAY($AI$19),COUNTIF(D27,"*FIXTURE")=1,_xlfn.ANCHORARRAY($AJ$19)),IF(C27=$AD$25,_xlfn.IFS(COUNTIF(D27,"*CFL")=1,_xlfn.ANCHORARRAY($AG$41),COUNTIF(D27,"*HID")=1,_xlfn.ANCHORARRAY($AH$41),COUNTIF(D27,"*LAMP")=1,_xlfn.ANCHORARRAY($AI$41),COUNTIF(D27,"*FIXTURE")=1,_xlfn.ANCHORARRAY($AJ$41)), "ERROR")) -> ERROR | AX19: =IF(C28=$AD$24, _xlfn.IFS(COUNTIF(D28,"*CFL")=1,_xlfn.ANCHORARRAY($AG$19),COUNTIF(D28,"*HID")=1,_xlfn.ANCHORARRAY($AH$19), COUNTIF(D28,"*LAMP")=1,_xlfn.ANCHORARRAY($AI$19),COUNTIF(D28,"*FIXTURE")=1,_xlfn.ANCHORARRAY($AJ$19)),IF(C28=$AD$25,_xlfn.IFS(COUNTIF(D28,"*CFL")=1,_xlfn.ANCHORARRAY($AG$41),COUNTIF(D28,"*HID")=1,_xlfn.ANCHORARRAY($AH$41),COUNTIF(D28,"*LAMP")=1,_xlfn.ANCHORARRAY($AI$41),COUNTIF(D28,"*FIXTURE")=1,_xlfn.ANCHORARRAY($AJ$41)), "ERROR")) -> ERROR | AY19: =IF(C29=$AD$24, _xlfn.IFS(COUNTIF(D29,"*CFL")=1,_xlfn.ANCHORARRAY($AG$19),COUNTIF(D29,"*HID")=1,_xlfn.ANCHORARRAY($AH$19), COUNTIF(D29,"*LAMP")=1,_xlfn.ANCHORARRAY($AI$19),COUNTIF(D29,"*FIXTURE")=1,_xlfn.ANCHORARRAY($AJ$19)),IF(C29=$AD$25,_xlfn.IFS(COUNTIF(D29,"*CFL")=1,_xlfn.ANCHORARRAY($AG$41),COUNTIF(D29,"*HID")=1,_xlfn.ANCHORARRAY($AH$41),COUNTIF(D29,"*LAMP")=1,_xlfn.ANCHORARRAY($AI$41),COUNTIF(D29,"*FIXTURE")=1,_xlfn.ANCHORARRAY($AJ$41)), "ERROR")) -> ERROR | AZ19: =IF(C30=$AD$24, _xlfn.IFS(COUNTIF(D30,"*CFL")=1,_xlfn.ANCHORARRAY($AG$19),COUNTIF(D30,"*HID")=1,_xlfn.ANCHORARRAY($AH$19), COUNTIF(D30,"*LAMP")=1,_xlfn.ANCHORARRAY($AI$19),COUNTIF(D30,"*FIXTURE")=1,_xlfn.ANCHORARRAY($AJ$19)),IF(C30=$AD$25,_xlfn.IFS(COUNTIF(D30,"*CFL")=1,_xlfn.ANCHORARRAY($AG$41),COUNTIF(D30,"*HID")=1,_xlfn.ANCHORARRAY($AH$41),COUNTIF(D30,"*LAMP")=1,_xlfn.ANCHORARRAY($AI$41),COUNTIF(D30,"*FIXTURE")=1,_xlfn.ANCHORARRAY($AJ$41)), "ERROR")) -> ERROR | BA19: =IF(C31=$AD$24, _xlfn.IFS(COUNTIF(D31,"*CFL")=1,_xlfn.ANCHORARRAY($AG$19),COUNTIF(D31,"*HID")=1,_xlfn.ANCHORARRAY($AH$19), COUNTIF(D31,"*LAMP")=1,_xlfn.ANCHORARRAY($AI$19),COUNTIF(D31,"*FIXTURE")=1,_xlfn.ANCHORARRAY($AJ$19)),IF(C31=$AD$25,_xlfn.IFS(COUNTIF(D31,"*CFL")=1,_xlfn.ANCHORARRAY($AG$41),COUNTIF(D31,"*HID")=1,_xlfn.ANCHORARRAY($AH$41),COUNTIF(D31,"*LAMP")=1,_xlfn.ANCHORARRAY($AI$41),COUNTIF(D31,"*FIXTURE")=1,_xlfn.ANCHORARRAY($AJ$41)), "ERROR")) -> ERROR | BB19: =IF(C32=$AD$24, _xlfn.IFS(COUNTIF(D32,"*CFL")=1,_xlfn.ANCHORARRAY($AG$19),COUNTIF(D32,"*HID")=1,_xlfn.ANCHORARRAY($AH$19), COUNTIF(D32,"*LAMP")=1,_xlfn.ANCHORARRAY($AI$19),COUNTIF(D32,"*FIXTURE")=1,_xlfn.ANCHORARRAY($AJ$19)),IF(C32=$AD$25,_xlfn.IFS(COUNTIF(D32,"*CFL")=1,_xlfn.ANCHORARRAY($AG$41),COUNTIF(D32,"*HID")=1,_xlfn.ANCHORARRAY($AH$41),COUNTIF(D32,"*LAMP")=1,_xlfn.ANCHORARRAY($AI$41),COUNTIF(D32,"*FIXTURE")=1,_xlfn.ANCHORARRAY($AJ$41)), "ERROR")) -> ERROR | BC19: =IF(C33=$AD$24, _xlfn.IFS(COUNTIF(D33,"*CFL")=1,_xlfn.ANCHORARRAY($AG$19),COUNTIF(D33,"*HID")=1,_xlfn.ANCHORARRAY($AH$19), COUNTIF(D33,"*LAMP")=1,_xlfn.ANCHORARRAY($AI$19),COUNTIF(D33,"*FIXTURE")=1,_xlfn.ANCHORARRAY($AJ$19)),IF(C33=$AD$25,_xlfn.IFS(COUNTIF(D33,"*CFL")=1,_xlfn.ANCHORARRAY($AG$41),COUNTIF(D33,"*HID")=1,_xlfn.ANCHORARRAY($AH$41),COUNTIF(D33,"*LAMP")=1,_xlfn.ANCHORARRAY($AI$41),COUNTIF(D33,"*FIXTURE")=1,_xlfn.ANCHORARRAY($AJ$41)), "ERROR")) -> ERROR | BD19: =IF(C34=$AD$24, _xlfn.IFS(COUNTIF(D34,"*CFL")=1,_xlfn.ANCHORARRAY($AG$19),COUNTIF(D34,"*HID")=1,_xlfn.ANCHORARRAY($AH$19), COUNTIF(D34,"*LAMP")=1,_xlfn.ANCHORARRAY($AI$19),COUNTIF(D34,"*FIXTURE")=1,_xlfn.ANCHORARRAY($AJ$19)),IF(C34=$AD$25,_xlfn.IFS(COUNTIF(D34,"*CFL")=1,_xlfn.ANCHORARRAY($AG$41),COUNTIF(D34,"*HID")=1,_xlfn.ANCHORARRAY($AH$41),COUNTIF(D34,"*LAMP")=1,_xlfn.ANCHORARRAY($AI$41),COUNTIF(D34,"*FIXTURE")=1,_xlfn.ANCHORARRAY($AJ$41)), "ERROR")) -> ERROR | BE19: =IF(C35=$AD$24, _xlfn.IFS(COUNTIF(D35,"*CFL")=1,_xlfn.ANCHORARRAY($AG$19),COUNTIF(D35,"*HID")=1,_xlfn.ANCHORARRAY($AH$19), COUNTIF(D35,"*LAMP")=1,_xlfn.ANCHORARRAY($AI$19),COUNTIF(D35,"*FIXTURE")=1,_xlfn.ANCHORARRAY($AJ$19)),IF(C35=$AD$25,_xlfn.IFS(COUNTIF(D35,"*CFL")=1,_xlfn.ANCHORARRAY($AG$41),COUNTIF(D35,"*HID")=1,_xlfn.ANCHORARRAY($AH$41),COUNTIF(D35,"*LAMP")=1,_xlfn.ANCHORARRAY($AI$41),COUNTIF(D35,"*FIXTURE")=1,_xlfn.ANCHORARRAY($AJ$41)), "ERROR")) -> ERROR | BF19: =IF(C36=$AD$24, _xlfn.IFS(COUNTIF(D36,"*CFL")=1,_xlfn.ANCHORARRAY($AG$19),COUNTIF(D36,"*HID")=1,_xlfn.ANCHORARRAY($AH$19), COUNTIF(D36,"*LAMP")=1,_xlfn.ANCHORARRAY($AI$19),COUNTIF(D36,"*FIXTURE")=1,_xlfn.ANCHORARRAY($AJ$19)),IF(C36=$AD$25,_xlfn.IFS(COUNTIF(D36,"*CFL")=1,_xlfn.ANCHORARRAY($AG$41),COUNTIF(D36,"*HID")=1,_xlfn.ANCHORARRAY($AH$41),COUNTIF(D36,"*LAMP")=1,_xlfn.ANCHORARRAY($AI$41),COUNTIF(D36,"*FIXTURE")=1,_xlfn.ANCHORARRAY($AJ$41)), "ERROR")) -> ERROR | BG19: =IF(C37=$AD$24, _xlfn.IFS(COUNTIF(D37,"*CFL")=1,_xlfn.ANCHORARRAY($AG$19),COUNTIF(D37,"*HID")=1,_xlfn.ANCHORARRAY($AH$19), COUNTIF(D37,"*LAMP")=1,_xlfn.ANCHORARRAY($AI$19),COUNTIF(D37,"*FIXTURE")=1,_xlfn.ANCHORARRAY($AJ$19)),IF(C37=$AD$25,_xlfn.IFS(COUNTIF(D37,"*CFL")=1,_xlfn.ANCHORARRAY($AG$41),COUNTIF(D37,"*HID")=1,_xlfn.ANCHORARRAY($AH$41),COUNTIF(D37,"*LAMP")=1,_xlfn.ANCHORARRAY($AI$41),COUNTIF(D37,"*FIXTURE")=1,_xlfn.ANCHORARRAY($AJ$41)), "ERROR")) -> ERROR | BH19: =IF(C38=$AD$24, _xlfn.IFS(COUNTIF(D38,"*CFL")=1,_xlfn.ANCHORARRAY($AG$19),COUNTIF(D38,"*HID")=1,_xlfn.ANCHORARRAY($AH$19), COUNTIF(D38,"*LAMP")=1,_xlfn.ANCHORARRAY($AI$19),COUNTIF(D38,"*FIXTURE")=1,_xlfn.ANCHORARRAY($AJ$19)),IF(C38=$AD$25,_xlfn.IFS(COUNTIF(D38,"*CFL")=1,_xlfn.ANCHORARRAY($AG$41),COUNTIF(D38,"*HID")=1,_xlfn.ANCHORARRAY($AH$41),COUNTIF(D38,"*LAMP")=1,_xlfn.ANCHORARRAY($AI$41),COUNTIF(D38,"*FIXTURE")=1,_xlfn.ANCHORARRAY($AJ$41)), "ERROR")) -> ERROR | BI19: =IF(C39=$AD$24, _xlfn.IFS(COUNTIF(D39,"*CFL")=1,_xlfn.ANCHORARRAY($AG$19),COUNTIF(D39,"*HID")=1,_xlfn.ANCHORARRAY($AH$19), COUNTIF(D39,"*LAMP")=1,_xlfn.ANCHORARRAY($AI$19),COUNTIF(D39,"*FIXTURE")=1,_xlfn.ANCHORARRAY($AJ$19)),IF(C39=$AD$25,_xlfn.IFS(COUNTIF(D39,"*CFL")=1,_xlfn.ANCHORARRAY($AG$41),COUNTIF(D39,"*HID")=1,_xlfn.ANCHORARRAY($AH$41),COUNTIF(D39,"*LAMP")=1,_xlfn.ANCHORARRAY($AI$41),COUNTIF(D39,"*FIXTURE")=1,_xlfn.ANCHORARRAY($AJ$41)), "ERROR")) -> ERROR | BJ19: =IF(C40=$AD$24, _xlfn.IFS(COUNTIF(D40,"*CFL")=1,_xlfn.ANCHORARRAY($AG$19),COUNTIF(D40,"*HID")=1,_xlfn.ANCHORARRAY($AH$19), COUNTIF(D40,"*LAMP")=1,_xlfn.ANCHORARRAY($AI$19),COUNTIF(D40,"*FIXTURE")=1,_xlfn.ANCHORARRAY($AJ$19)),IF(C40=$AD$25,_xlfn.IFS(COUNTIF(D40,"*CFL")=1,_xlfn.ANCHORARRAY($AG$41),COUNTIF(D40,"*HID")=1,_xlfn.ANCHORARRAY($AH$41),COUNTIF(D40,"*LAMP")=1,_xlfn.ANCHORARRAY($AI$41),COUNTIF(D40,"*FIXTURE")=1,_xlfn.ANCHORARRAY($AJ$41)), "ERROR")) -> ERROR | BK19: =IF(C41=$AD$24, _xlfn.IFS(COUNTIF(D41,"*CFL")=1,_xlfn.ANCHORARRAY($AG$19),COUNTIF(D41,"*HID")=1,_xlfn.ANCHORARRAY($AH$19), COUNTIF(D41,"*LAMP")=1,_xlfn.ANCHORARRAY($AI$19),COUNTIF(D41,"*FIXTURE")=1,_xlfn.ANCHORARRAY($AJ$19)),IF(C41=$AD$25,_xlfn.IFS(COUNTIF(D41,"*CFL")=1,_xlfn.ANCHORARRAY($AG$41),COUNTIF(D41,"*HID")=1,_xlfn.ANCHORARRAY($AH$41),COUNTIF(D41,"*LAMP")=1,_xlfn.ANCHORARRAY($AI$41),COUNTIF(D41,"*FIXTURE")=1,_xlfn.ANCHORARRAY($AJ$41)), "ERROR")) -> ERROR | BL19: =IF(C42=$AD$24, _xlfn.IFS(COUNTIF(D42,"*CFL")=1,_xlfn.ANCHORARRAY($AG$19),COUNTIF(D42,"*HID")=1,_xlfn.ANCHORARRAY($AH$19), COUNTIF(D42,"*LAMP")=1,_xlfn.ANCHORARRAY($AI$19),COUNTIF(D42,"*FIXTURE")=1,_xlfn.ANCHORARRAY($AJ$19)),IF(C42=$AD$25,_xlfn.IFS(COUNTIF(D42,"*CFL")=1,_xlfn.ANCHORARRAY($AG$41),COUNTIF(D42,"*HID")=1,_xlfn.ANCHORARRAY($AH$41),COUNTIF(D42,"*LAMP")=1,_xlfn.ANCHORARRAY($AI$41),COUNTIF(D42,"*FIXTURE")=1,_xlfn.ANCHORARRAY($AJ$41)), "ERROR")) -> ERROR | BM19: =IF(C43=$AD$24, _xlfn.IFS(COUNTIF(D43,"*CFL")=1,_xlfn.ANCHORARRAY($AG$19),COUNTIF(D43,"*HID")=1,_xlfn.ANCHORARRAY($AH$19), COUNTIF(D43,"*LAMP")=1,_xlfn.ANCHORARRAY($AI$19),COUNTIF(D43,"*FIXTURE")=1,_xlfn.ANCHORARRAY($AJ$19)),IF(C43=$AD$25,_xlfn.IFS(COUNTIF(D43,"*CFL")=1,_xlfn.ANCHORARRAY($AG$41),COUNTIF(D43,"*HID")=1,_xlfn.ANCHORARRAY($AH$41),COUNTIF(D43,"*LAMP")=1,_xlfn.ANCHORARRAY($AI$41),COUNTIF(D43,"*FIXTURE")=1,_xlfn.ANCHORARRAY($AJ$41)), "ERROR")) -> ERROR | BN19: =IF(C44=$AD$24, _xlfn.IFS(COUNTIF(D44,"*CFL")=1,_xlfn.ANCHORARRAY($AG$19),COUNTIF(D44,"*HID")=1,_xlfn.ANCHORARRAY($AH$19), COUNTIF(D44,"*LAMP")=1,_xlfn.ANCHORARRAY($AI$19),COUNTIF(D44,"*FIXTURE")=1,_xlfn.ANCHORARRAY($AJ$19)),IF(C44=$AD$25,_xlfn.IFS(COUNTIF(D44,"*CFL")=1,_xlfn.ANCHORARRAY($AG$41),COUNTIF(D44,"*HID")=1,_xlfn.ANCHORARRAY($AH$41),COUNTIF(D44,"*LAMP")=1,_xlfn.ANCHORARRAY($AI$41),COUNTIF(D44,"*FIXTURE")=1,_xlfn.ANCHORARRAY($AJ$41)), "ERROR")) -> ERROR
B20: 1 | G20: =IF(ISBLANK(F20),"",E20*(_xlfn.XLOOKUP(F20,'Industry Std Cost'!$E$4:$E$44,'Industry Std Cost'!$G$4:$G$44,"NOT FOUND",0,1))) ->  | H20: =IF(OR(ISBLANK(F20),ISBLANK(E20)),"",_xlfn.XLOOKUP(D20,'2025 Default Wattage Guide'!$B$67:$B$131, '2025 Default Wattage Guide'!$C$67:$C$131, "NOT FOUND",0,1)) ->  | J20: =IF($F$10="Manual Input", "Manual Input",IF(C20="Interior", _xlfn.XLOOKUP($F$9,$W$52:$W$59,$X$52:$X$59, "NOT FOUND",0,1), IF(C20="Exterior",$X$60,""))) ->  | K20: =IF(ISBLANK(F20),"",IF(ISBLANK(I20),"Enter Proposed Watts",(E20*((H20-I20)*J20/1000)))) ->  | L20: =IF(ISBLANK(F20),"",IF(G20<=E20*IF(LEFT(F20,6)="L4813:",Criteria!$V$21,IF(LEFT(F20,6)="NL4813",Criteria!$Z$21,IF(LEFT(F20,6)="L3903:",Criteria!$V$22,IF(LEFT(F20,6)="L3904:",Criteria!$V$23, IF(OR($F$9=$AD$14,$F$9=$AD$17,$F$9=$AD$19),_xlfn.XLOOKUP(LEFT(F20,6),Criteria!$A$5:$A$333,Criteria!$V$5:$V$333,"NOT FOUND",-1,1),IF(OR($F$9=$AD$15,$F$9=$AD$18,$F$9=$AD$20),_xlfn.XLOOKUP(LEFT(F20,6),Criteria!$C$5:$C$333,Criteria!$Z$5:$Z$333,"NOT FOUND",-1,1),IF(OR($F$9=$AD$21),_xlfn.XLOOKUP(LEFT(F20,6),Criteria!$B$5:$B$333,Criteria!$X$5:$X$333,"NOT FOUND",-1,1),IF($F$9=$AD$22,_xlfn.XLOOKUP(LEFT(F20,6),Criteria!$B$5:$B$333,Criteria!$X$5:$X$333,"NOT FOUND",-1,1),"ERROR")))))))),G20, E20*IF(LEFT(F20,6)="L4813:",Criteria!$V$21,IF(LEFT(F20,6)="NL4813",Criteria!$Z$21,IF(LEFT(F20,6)="L3903:",Criteria!$V$22,IF(LEFT(F20,6)="L3904:",Criteria!$V$23,IF(OR($F$9=$AD$14,$F$9=$AD$17,$F$9=$AD$19),_xlfn.XLOOKUP(LEFT(F20,6),Criteria!$A$5:$A$333,Criteria!$V$5:$V$333,"NOT FOUND",-1,1),IF(OR($F$9=$AD$15,$F$9=$AD$18,$F$9=$AD$20),_xlfn.XLOOKUP(LEFT(F20,6),Criteria!$C$5:$C$333,Criteria!$Z$5:$Z$333,"NOT FOUND",-1,1),IF($F$9=$AD$21,_xlfn.XLOOKUP(LEFT(F20,6),Criteria!$B$5:$B$333,Criteria!$X$5:$X$333,"NOT FOUND",-1,1), IF($F$9=$AD$22, _xlfn.XLOOKUP(LEFT(F20,6),Criteria!$C$5:$C$333,Criteria!$Z$5:$Z$333,"NOT FOUND",-1,1),"ERROR")))))))))) ->  | M20: =IF(ISBLANK(F20),"",IF(C20=$AD$24,K20*$F$12, K20*$F$13)) ->  | N20: =IF(ISBLANK(F20),"",IF(C20=$AD$24,(G20-L20)/(M20),IF(C20=$AD$25,(G20-L20)/M20,"Enter in Estimated Cost"))) ->  | O20: =IFERROR(IF(F20=VLOOKUP(F20, Criteria!$E$37:$E$46, 1, FALSE), "This measure Incentive will be capped at 50% project cost.", ""), "") ->  | AC20: L5461: ≤ 125W LED High Bay/Low Bay, replacing 4 Lamp 4' or 2 Lamp 8' T12HO | AD20: Schools & Government-NC
B21: 2 | G21: =IF(ISBLANK(F21),"",E21*(_xlfn.XLOOKUP(F21,'Industry Std Cost'!$E$4:$E$44,'Industry Std Cost'!$G$4:$G$44,"NOT FOUND",0,1))) ->  | H21: =IF(OR(ISBLANK(F21),ISBLANK(E21)),"",_xlfn.XLOOKUP(D21,'2025 Default Wattage Guide'!$B$67:$B$131, '2025 Default Wattage Guide'!$C$67:$C$131, "NOT FOUND",0,1)) ->  | K21: =IF(ISBLANK(F21),"",IF(ISBLANK(I21),"Enter Proposed Watts",(E21*((H21-I21)*J21/1000)))) ->  | L21: =IF(ISBLANK(F21),"",IF(G21<=E21*IF(LEFT(F21,6)="L4813:",Criteria!$V$21,IF(LEFT(F21,6)="NL4813",Criteria!$Z$21,IF(LEFT(F21,6)="L3903:",Criteria!$V$22,IF(LEFT(F21,6)="L3904:",Criteria!$V$23, IF(OR($F$9=$AD$14,$F$9=$AD$17,$F$9=$AD$19),_xlfn.XLOOKUP(LEFT(F21,6),Criteria!$A$5:$A$333,Criteria!$V$5:$V$333,"NOT FOUND",-1,1),IF(OR($F$9=$AD$15,$F$9=$AD$18,$F$9=$AD$20),_xlfn.XLOOKUP(LEFT(F21,6),Criteria!$C$5:$C$333,Criteria!$Z$5:$Z$333,"NOT FOUND",-1,1),IF(OR($F$9=$AD$21),_xlfn.XLOOKUP(LEFT(F21,6),Criteria!$B$5:$B$333,Criteria!$X$5:$X$333,"NOT FOUND",-1,1),IF($F$9=$AD$22,_xlfn.XLOOKUP(LEFT(F21,6),Criteria!$B$5:$B$333,Criteria!$X$5:$X$333,"NOT FOUND",-1,1),"ERROR")))))))),G21, E21*IF(LEFT(F21,6)="L4813:",Criteria!$V$21,IF(LEFT(F21,6)="NL4813",Criteria!$Z$21,IF(LEFT(F21,6)="L3903:",Criteria!$V$22,IF(LEFT(F21,6)="L3904:",Criteria!$V$23,IF(OR($F$9=$AD$14,$F$9=$AD$17,$F$9=$AD$19),_xlfn.XLOOKUP(LEFT(F21,6),Criteria!$A$5:$A$333,Criteria!$V$5:$V$333,"NOT FOUND",-1,1),IF(OR($F$9=$AD$15,$F$9=$AD$18,$F$9=$AD$20),_xlfn.XLOOKUP(LEFT(F21,6),Criteria!$C$5:$C$333,Criteria!$Z$5:$Z$333,"NOT FOUND",-1,1),IF($F$9=$AD$21,_xlfn.XLOOKUP(LEFT(F21,6),Criteria!$B$5:$B$333,Criteria!$X$5:$X$333,"NOT FOUND",-1,1), IF($F$9=$AD$22, _xlfn.XLOOKUP(LEFT(F21,6),Criteria!$C$5:$C$333,Criteria!$Z$5:$Z$333,"NOT FOUND",-1,1),"ERROR")))))))))) ->  | O21: =IFERROR(IF(F21=VLOOKUP(F21, Criteria!$E$37:$E$46, 1, FALSE), "This measure Incentive will be capped at 50% project cost.", ""), "") ->  | AC21: L3393: ≤ 180W LED High Bay/Low Bay, replacing or instead of 6L T8 or 4L T5HO | AD21: Agribusiness | AF21: =1141-1109 -> 32
B22: 3 | G22: =IF(ISBLANK(F22),"",E22*(_xlfn.XLOOKUP(F22,'Industry Std Cost'!$E$4:$E$44,'Industry Std Cost'!$G$4:$G$44,"NOT FOUND",0,1))) ->  | H22: =IF(OR(ISBLANK(F22),ISBLANK(E22)),"",_xlfn.XLOOKUP(D22,'2025 Default Wattage Guide'!$B$67:$B$131, '2025 Default Wattage Guide'!$C$67:$C$131, "NOT FOUND",0,1)) ->  | L22: =IF(ISBLANK(F22),"",IF(G22<=E22*IF(LEFT(F22,6)="L4813:",Criteria!$V$17,IF(LEFT(F22,6)="NL4813:",Criteria!$Z$17,IF(LEFT(F22,6)="L3903:",Criteria!$V$18,IF(LEFT(F22,6)="L3904:",Criteria!$V$19, IF(OR($F$9=$AD$14,$F$9=$AD$17,$F$9=$AD$19),_xlfn.XLOOKUP(LEFT(F22,6),Criteria!$A$5:$A$333,Criteria!$V$5:$V$333,"NOT FOUND",-1,1),IF(OR($F$9=$AD$15,$F$9=$AD$18,$F$9=$AD$20),_xlfn.XLOOKUP(LEFT(F22,6),Criteria!$C$5:$C$333,Criteria!$Z$5:$Z$333,"NOT FOUND",-1,1),IF(OR($F$9=$AD$21),_xlfn.XLOOKUP(LEFT(F22,6),Criteria!$B$5:$B$333,Criteria!$X$5:$X$333,"NOT FOUND",-1,1),IF($F$9=$AD$22,_xlfn.XLOOKUP(LEFT(F22,6),Criteria!$B$5:$B$333,Criteria!$X$5:$X$333,"NOT FOUND",-1,1),"ERROR")))))))),G22, E22*IF(LEFT(F22,6)="L4813:",Criteria!$V$21,IF(LEFT(F22,6)="NL4813",Criteria!$Z$21,IF(LEFT(F22,6)="L3903:",Criteria!$V$22,IF(LEFT(F22,6)="L3904:",Criteria!$V$23,IF(OR($F$9=$AD$14,$F$9=$AD$17,$F$9=$AD$19),_xlfn.XLOOKUP(LEFT(F22,6),Criteria!$A$5:$A$333,Criteria!$V$5:$V$333,"NOT FOUND",-1,1),IF(OR($F$9=$AD$15,$F$9=$AD$18,$F$9=$AD$20),_xlfn.XLOOKUP(LEFT(F22,6),Criteria!$C$5:$C$333,Criteria!$Z$5:$Z$333,"NOT FOUND",-1,1),IF($F$9=$AD$21,_xlfn.XLOOKUP(LEFT(F22,6),Criteria!$B$5:$B$333,Criteria!$X$5:$X$333,"NOT FOUND",-1,1), IF($F$9=$AD$22, _xlfn.XLOOKUP(LEFT(F22,6),Criteria!$C$5:$C$333,Criteria!$Z$5:$Z$333,"NOT FOUND",-1,1),"ERROR")))))))))) ->  | O22: =IFERROR(IF(F22=VLOOKUP(F22, Criteria!$E$37:$E$46, 1, FALSE), "This measure Incentive will be capped at 50% project cost.", ""), "") ->  | AC22: L4347: ≤ 250W LED High Bay/Low Bay, replacing or instead of 8L T8 or 6L T5HO | AD22: Agribusiness-NC | AF22: =1168-1155 -> 13
B23: 4 | G23: =IF(ISBLANK(F23),"",E23*(_xlfn.XLOOKUP(F23,'Industry Std Cost'!$E$4:$E$44,'Industry Std Cost'!$G$4:$G$44,"NOT FOUND",0,1))) ->  | H23: =IF(OR(ISBLANK(F23),ISBLANK(E23)),"",_xlfn.XLOOKUP(D23,'2025 Default Wattage Guide'!$B$67:$B$131, '2025 Default Wattage Guide'!$C$67:$C$131, "NOT FOUND",0,1)) ->  | L23: =IF(ISBLANK(F23),"",IF(G23<=E23*IF(LEFT(F23,6)="L4813:",Criteria!$V$21,IF(LEFT(F23,6)="NL4813",Criteria!$Z$21,IF(LEFT(F23,6)="L3903:",Criteria!$V$22,IF(LEFT(F23,6)="L3904:",Criteria!$V$23, IF(OR($F$9=$AD$14,$F$9=$AD$17,$F$9=$AD$19),_xlfn.XLOOKUP(LEFT(F23,6),Criteria!$A$5:$A$333,Criteria!$V$5:$V$333,"NOT FOUND",-1,1),IF(OR($F$9=$AD$15,$F$9=$AD$18,$F$9=$AD$20),_xlfn.XLOOKUP(LEFT(F23,6),Criteria!$C$5:$C$333,Criteria!$Z$5:$Z$333,"NOT FOUND",-1,1),IF(OR($F$9=$AD$21),_xlfn.XLOOKUP(LEFT(F23,6),Criteria!$B$5:$B$333,Criteria!$X$5:$X$333,"NOT FOUND",-1,1),IF($F$9=$AD$22,_xlfn.XLOOKUP(LEFT(F23,6),Criteria!$B$5:$B$333,Criteria!$X$5:$X$333,"NOT FOUND",-1,1),"ERROR")))))))),G23, E23*IF(LEFT(F23,6)="L4813:",Criteria!$V$21,IF(LEFT(F23,6)="NL4813",Criteria!$Z$21,IF(LEFT(F23,6)="L3903:",Criteria!$V$22,IF(LEFT(F23,6)="L3904:",Criteria!$V$23,IF(OR($F$9=$AD$14,$F$9=$AD$17,$F$9=$AD$19),_xlfn.XLOOKUP(LEFT(F23,6),Criteria!$A$5:$A$333,Criteria!$V$5:$V$333,"NOT FOUND",-1,1),IF(OR($F$9=$AD$15,$F$9=$AD$18,$F$9=$AD$20),_xlfn.XLOOKUP(LEFT(F23,6),Criteria!$C$5:$C$333,Criteria!$Z$5:$Z$333,"NOT FOUND",-1,1),IF($F$9=$AD$21,_xlfn.XLOOKUP(LEFT(F23,6),Criteria!$B$5:$B$333,Criteria!$X$5:$X$333,"NOT FOUND",-1,1), IF($F$9=$AD$22, _xlfn.XLOOKUP(LEFT(F23,6),Criteria!$C$5:$C$333,Criteria!$Z$5:$Z$333,"NOT FOUND",-1,1),"ERROR")))))))))) ->  | O23: =IFERROR(IF(F23=VLOOKUP(F23, Criteria!$E$37:$E$46, 1, FALSE), "This measure Incentive will be capped at 50% project cost.", ""), "") ->  | AC23: L4795: ≤ 300W LED High Bay/Low Bay, replacing or instead of 10L T8 or 8L T5HO | AF23: =1204-1181 -> 23
B24: 5 | G24: =IF(ISBLANK(F24),"",E24*(_xlfn.XLOOKUP(F24,'Industry Std Cost'!$E$4:$E$44,'Industry Std Cost'!$G$4:$G$44,"NOT FOUND",0,1))) ->  | H24: =IF(OR(ISBLANK(F24),ISBLANK(E24)),"",_xlfn.XLOOKUP(D24,'2025 Default Wattage Guide'!$B$67:$B$131, '2025 Default Wattage Guide'!$C$67:$C$131, "NOT FOUND",0,1)) ->  | L24: =IF(ISBLANK(F24),"",IF(G24<=E24*IF(LEFT(F24,6)="L4813:",Criteria!$V$21,IF(LEFT(F24,6)="NL4813",Criteria!$Z$21,IF(LEFT(F24,6)="L3903:",Criteria!$V$22,IF(LEFT(F24,6)="L3904:",Criteria!$V$23, IF(OR($F$9=$AD$14,$F$9=$AD$17,$F$9=$AD$19),_xlfn.XLOOKUP(LEFT(F24,6),Criteria!$A$5:$A$333,Criteria!$V$5:$V$333,"NOT FOUND",-1,1),IF(OR($F$9=$AD$15,$F$9=$AD$18,$F$9=$AD$20),_xlfn.XLOOKUP(LEFT(F24,6),Criteria!$C$5:$C$333,Criteria!$Z$5:$Z$333,"NOT FOUND",-1,1),IF(OR($F$9=$AD$21),_xlfn.XLOOKUP(LEFT(F24,6),Criteria!$B$5:$B$333,Criteria!$X$5:$X$333,"NOT FOUND",-1,1),IF($F$9=$AD$22,_xlfn.XLOOKUP(LEFT(F24,6),Criteria!$B$5:$B$333,Criteria!$X$5:$X$333,"NOT FOUND",-1,1),"ERROR")))))))),G24, E24*IF(LEFT(F24,6)="L4813:",Criteria!$V$21,IF(LEFT(F24,6)="NL4813",Criteria!$Z$21,IF(LEFT(F24,6)="L3903:",Criteria!$V$22,IF(LEFT(F24,6)="L3904:",Criteria!$V$23,IF(OR($F$9=$AD$14,$F$9=$AD$17,$F$9=$AD$19),_xlfn.XLOOKUP(LEFT(F24,6),Criteria!$A$5:$A$333,Criteria!$V$5:$V$333,"NOT FOUND",-1,1),IF(OR($F$9=$AD$15,$F$9=$AD$18,$F$9=$AD$20),_xlfn.XLOOKUP(LEFT(F24,6),Criteria!$C$5:$C$333,Criteria!$Z$5:$Z$333,"NOT FOUND",-1,1),IF($F$9=$AD$21,_xlfn.XLOOKUP(LEFT(F24,6),Criteria!$B$5:$B$333,Criteria!$X$5:$X$333,"NOT FOUND",-1,1), IF($F$9=$AD$22, _xlfn.XLOOKUP(LEFT(F24,6),Criteria!$C$5:$C$333,Criteria!$Z$5:$Z$333,"NOT FOUND",-1,1),"ERROR")))))))))) ->  | O24: =IFERROR(IF(F24=VLOOKUP(F24, Criteria!$E$37:$E$46, 1, FALSE), "This measure Incentive will be capped at 50% project cost.", ""), "") ->  | AC24: L4796: ≤ 350W LED High Bay/Low Bay, replacing or instead of 12L T8 or 10L T5HO | AD24: Interior | AF24: =1230-1216 -> 14
B25: 6 | G25: =IF(ISBLANK(F25),"",E25*(_xlfn.XLOOKUP(F25,'Industry Std Cost'!$E$4:$E$44,'Industry Std Cost'!$G$4:$G$44,"NOT FOUND",0,1))) ->  | H25: =IF(OR(ISBLANK(F25),ISBLANK(E25)),"",_xlfn.XLOOKUP(D25,'2025 Default Wattage Guide'!$B$67:$B$131, '2025 Default Wattage Guide'!$C$67:$C$131, "NOT FOUND",0,1)) ->  | L25: =IF(ISBLANK(F25),"",IF(G25<=E25*IF(LEFT(F25,6)="L4813:",Criteria!$V$21,IF(LEFT(F25,6)="NL4813",Criteria!$Z$21,IF(LEFT(F25,6)="L3903:",Criteria!$V$22,IF(LEFT(F25,6)="L3904:",Criteria!$V$23, IF(OR($F$9=$AD$14,$F$9=$AD$17,$F$9=$AD$19),_xlfn.XLOOKUP(LEFT(F25,6),Criteria!$A$5:$A$333,Criteria!$V$5:$V$333,"NOT FOUND",-1,1),IF(OR($F$9=$AD$15,$F$9=$AD$18,$F$9=$AD$20),_xlfn.XLOOKUP(LEFT(F25,6),Criteria!$C$5:$C$333,Criteria!$Z$5:$Z$333,"NOT FOUND",-1,1),IF(OR($F$9=$AD$21),_xlfn.XLOOKUP(LEFT(F25,6),Criteria!$B$5:$B$333,Criteria!$X$5:$X$333,"NOT FOUND",-1,1),IF($F$9=$AD$22,_xlfn.XLOOKUP(LEFT(F25,6),Criteria!$B$5:$B$333,Criteria!$X$5:$X$333,"NOT FOUND",-1,1),"ERROR")))))))),G25, E25*IF(LEFT(F25,6)="L4813:",Criteria!$V$21,IF(LEFT(F25,6)="NL4813",Criteria!$Z$21,IF(LEFT(F25,6)="L3903:",Criteria!$V$22,IF(LEFT(F25,6)="L3904:",Criteria!$V$23,IF(OR($F$9=$AD$14,$F$9=$AD$17,$F$9=$AD$19),_xlfn.XLOOKUP(LEFT(F25,6),Criteria!$A$5:$A$333,Criteria!$V$5:$V$333,"NOT FOUND",-1,1),IF(OR($F$9=$AD$15,$F$9=$AD$18,$F$9=$AD$20),_xlfn.XLOOKUP(LEFT(F25,6),Criteria!$C$5:$C$333,Criteria!$Z$5:$Z$333,"NOT FOUND",-1,1),IF($F$9=$AD$21,_xlfn.XLOOKUP(LEFT(F25,6),Criteria!$B$5:$B$333,Criteria!$X$5:$X$333,"NOT FOUND",-1,1), IF($F$9=$AD$22, _xlfn.XLOOKUP(LEFT(F25,6),Criteria!$C$5:$C$333,Criteria!$Z$5:$Z$333,"NOT FOUND",-1,1),"ERROR")))))))))) ->  | O25: =IFERROR(IF(F25=VLOOKUP(F25, Criteria!$E$37:$E$46, 1, FALSE), "This measure Incentive will be capped at 50% project cost.", ""), "") ->  | AC25: L10042: DLC listed, Mogul Screw-Base (E39) LED lamp replacing HID | AD25: Exterior | AF25: =1154-1142 -> 12
B26: 7 | G26: =IF(ISBLANK(F26),"",E26*(_xlfn.XLOOKUP(F26,'Industry Std Cost'!$E$4:$E$44,'Industry Std Cost'!$G$4:$G$44,"NOT FOUND",0,1))) ->  | H26: =IF(OR(ISBLANK(F26),ISBLANK(E26)),"",_xlfn.XLOOKUP(D26,'2025 Default Wattage Guide'!$B$67:$B$131, '2025 Default Wattage Guide'!$C$67:$C$131, "NOT FOUND",0,1)) ->  | L26: =IF(ISBLANK(F26),"",IF(G26<=E26*IF(LEFT(F26,6)="L4813:",Criteria!$V$21,IF(LEFT(F26,6)="NL4813",Criteria!$Z$21,IF(LEFT(F26,6)="L3903:",Criteria!$V$22,IF(LEFT(F26,6)="L3904:",Criteria!$V$23, IF(OR($F$9=$AD$14,$F$9=$AD$17,$F$9=$AD$19),_xlfn.XLOOKUP(LEFT(F26,6),Criteria!$A$5:$A$333,Criteria!$V$5:$V$333,"NOT FOUND",-1,1),IF(OR($F$9=$AD$15,$F$9=$AD$18,$F$9=$AD$20),_xlfn.XLOOKUP(LEFT(F26,6),Criteria!$C$5:$C$333,Criteria!$Z$5:$Z$333,"NOT FOUND",-1,1),IF(OR($F$9=$AD$21),_xlfn.XLOOKUP(LEFT(F26,6),Criteria!$B$5:$B$333,Criteria!$X$5:$X$333,"NOT FOUND",-1,1),IF($F$9=$AD$22,_xlfn.XLOOKUP(LEFT(F26,6),Criteria!$B$5:$B$333,Criteria!$X$5:$X$333,"NOT FOUND",-1,1),"ERROR")))))))),G26, E26*IF(LEFT(F26,6)="L4813:",Criteria!$V$21,IF(LEFT(F26,6)="NL4813",Criteria!$Z$21,IF(LEFT(F26,6)="L3903:",Criteria!$V$22,IF(LEFT(F26,6)="L3904:",Criteria!$V$23,IF(OR($F$9=$AD$14,$F$9=$AD$17,$F$9=$AD$19),_xlfn.XLOOKUP(LEFT(F26,6),Criteria!$A$5:$A$333,Criteria!$V$5:$V$333,"NOT FOUND",-1,1),IF(OR($F$9=$AD$15,$F$9=$AD$18,$F$9=$AD$20),_xlfn.XLOOKUP(LEFT(F26,6),Criteria!$C$5:$C$333,Criteria!$Z$5:$Z$333,"NOT FOUND",-1,1),IF($F$9=$AD$21,_xlfn.XLOOKUP(LEFT(F26,6),Criteria!$B$5:$B$333,Criteria!$X$5:$X$333,"NOT FOUND",-1,1), IF($F$9=$AD$22, _xlfn.XLOOKUP(LEFT(F26,6),Criteria!$C$5:$C$333,Criteria!$Z$5:$Z$333,"NOT FOUND",-1,1),"ERROR")))))))))) ->  | O26: =IFERROR(IF(F26=VLOOKUP(F26, Criteria!$E$37:$E$46, 1, FALSE), "This measure Incentive will be capped at 50% project cost.", ""), "") ->  | AC26: L10039: Four-pin base LED Lamp Replacing CFL | AF26: =1180-1168 -> 12
B27: 8 | G27: =IF(ISBLANK(F27),"",E27*(_xlfn.XLOOKUP(F27,'Industry Std Cost'!$E$4:$E$44,'Industry Std Cost'!$G$4:$G$44,"NOT FOUND",0,1))) ->  | H27: =IF(OR(ISBLANK(F27),ISBLANK(E27)),"",_xlfn.XLOOKUP(D27,'2025 Default Wattage Guide'!$B$67:$B$131, '2025 Default Wattage Guide'!$C$67:$C$131, "NOT FOUND",0,1)) ->  | L27: =IF(ISBLANK(F27),"",IF(G27<=E27*IF(LEFT(F27,6)="L4813:",Criteria!$V$21,IF(LEFT(F27,6)="NL4813",Criteria!$Z$21,IF(LEFT(F27,6)="L3903:",Criteria!$V$22,IF(LEFT(F27,6)="L3904:",Criteria!$V$23, IF(OR($F$9=$AD$14,$F$9=$AD$17,$F$9=$AD$19),_xlfn.XLOOKUP(LEFT(F27,6),Criteria!$A$5:$A$333,Criteria!$V$5:$V$333,"NOT FOUND",-1,1),IF(OR($F$9=$AD$15,$F$9=$AD$18,$F$9=$AD$20),_xlfn.XLOOKUP(LEFT(F27,6),Criteria!$C$5:$C$333,Criteria!$Z$5:$Z$333,"NOT FOUND",-1,1),IF(OR($F$9=$AD$21),_xlfn.XLOOKUP(LEFT(F27,6),Criteria!$B$5:$B$333,Criteria!$X$5:$X$333,"NOT FOUND",-1,1),IF($F$9=$AD$22,_xlfn.XLOOKUP(LEFT(F27,6),Criteria!$B$5:$B$333,Criteria!$X$5:$X$333,"NOT FOUND",-1,1),"ERROR")))))))),G27, E27*IF(LEFT(F27,6)="L4813:",Criteria!$V$21,IF(LEFT(F27,6)="NL4813",Criteria!$Z$21,IF(LEFT(F27,6)="L3903:",Criteria!$V$22,IF(LEFT(F27,6)="L3904:",Criteria!$V$23,IF(OR($F$9=$AD$14,$F$9=$AD$17,$F$9=$AD$19),_xlfn.XLOOKUP(LEFT(F27,6),Criteria!$A$5:$A$333,Criteria!$V$5:$V$333,"NOT FOUND",-1,1),IF(OR($F$9=$AD$15,$F$9=$AD$18,$F$9=$AD$20),_xlfn.XLOOKUP(LEFT(F27,6),Criteria!$C$5:$C$333,Criteria!$Z$5:$Z$333,"NOT FOUND",-1,1),IF($F$9=$AD$21,_xlfn.XLOOKUP(LEFT(F27,6),Criteria!$B$5:$B$333,Criteria!$X$5:$X$333,"NOT FOUND",-1,1), IF($F$9=$AD$22, _xlfn.XLOOKUP(LEFT(F27,6),Criteria!$C$5:$C$333,Criteria!$Z$5:$Z$333,"NOT FOUND",-1,1),"ERROR")))))))))) ->  | O27: =IFERROR(IF(F27=VLOOKUP(F27, Criteria!$E$37:$E$46, 1, FALSE), "This measure Incentive will be capped at 50% project cost.", ""), "") ->  | AC27: L5451: 4' or U-Bend TLED, ≤24W, replacing 4' or U-Bend T5, T8, or T12 Lamp | AF27: =1215-1205 -> 10
B28: 9 | G28: =IF(ISBLANK(F28),"",E28*(_xlfn.XLOOKUP(F28,'Industry Std Cost'!$E$4:$E$44,'Industry Std Cost'!$G$4:$G$44,"NOT FOUND",0,1))) ->  | H28: =IF(OR(ISBLANK(F28),ISBLANK(E28)),"",_xlfn.XLOOKUP(D28,'2025 Default Wattage Guide'!$B$67:$B$131, '2025 Default Wattage Guide'!$C$67:$C$131, "NOT FOUND",0,1)) ->  | L28: =IF(ISBLANK(F28),"",IF(G28<=E28*IF(LEFT(F28,6)="L4813:",Criteria!$V$21,IF(LEFT(F28,6)="NL4813",Criteria!$Z$21,IF(LEFT(F28,6)="L3903:",Criteria!$V$22,IF(LEFT(F28,6)="L3904:",Criteria!$V$23, IF(OR($F$9=$AD$14,$F$9=$AD$17,$F$9=$AD$19),_xlfn.XLOOKUP(LEFT(F28,6),Criteria!$A$5:$A$333,Criteria!$V$5:$V$333,"NOT FOUND",-1,1),IF(OR($F$9=$AD$15,$F$9=$AD$18,$F$9=$AD$20),_xlfn.XLOOKUP(LEFT(F28,6),Criteria!$C$5:$C$333,Criteria!$Z$5:$Z$333,"NOT FOUND",-1,1),IF(OR($F$9=$AD$21),_xlfn.XLOOKUP(LEFT(F28,6),Criteria!$B$5:$B$333,Criteria!$X$5:$X$333,"NOT FOUND",-1,1),IF($F$9=$AD$22,_xlfn.XLOOKUP(LEFT(F28,6),Criteria!$B$5:$B$333,Criteria!$X$5:$X$333,"NOT FOUND",-1,1),"ERROR")))))))),G28, E28*IF(LEFT(F28,6)="L4813:",Criteria!$V$21,IF(LEFT(F28,6)="NL4813",Criteria!$Z$21,IF(LEFT(F28,6)="L3903:",Criteria!$V$22,IF(LEFT(F28,6)="L3904:",Criteria!$V$23,IF(OR($F$9=$AD$14,$F$9=$AD$17,$F$9=$AD$19),_xlfn.XLOOKUP(LEFT(F28,6),Criteria!$A$5:$A$333,Criteria!$V$5:$V$333,"NOT FOUND",-1,1),IF(OR($F$9=$AD$15,$F$9=$AD$18,$F$9=$AD$20),_xlfn.XLOOKUP(LEFT(F28,6),Criteria!$C$5:$C$333,Criteria!$Z$5:$Z$333,"NOT FOUND",-1,1),IF($F$9=$AD$21,_xlfn.XLOOKUP(LEFT(F28,6),Criteria!$B$5:$B$333,Criteria!$X$5:$X$333,"NOT FOUND",-1,1), IF($F$9=$AD$22, _xlfn.XLOOKUP(LEFT(F28,6),Criteria!$C$5:$C$333,Criteria!$Z$5:$Z$333,"NOT FOUND",-1,1),"ERROR")))))))))) ->  | O28: =IFERROR(IF(F28=VLOOKUP(F28, Criteria!$E$37:$E$46, 1, FALSE), "This measure Incentive will be capped at 50% project cost.", ""), "") ->  | AC28: L5452: 4' TLED, replacing 4' T5HO Lamp | AF28: =1238-1231 -> 7
B29: 10 | G29: =IF(ISBLANK(F29),"",E29*(_xlfn.XLOOKUP(F29,'Industry Std Cost'!$E$4:$E$44,'Industry Std Cost'!$G$4:$G$44,"NOT FOUND",0,1))) ->  | H29: =IF(OR(ISBLANK(F29),ISBLANK(E29)),"",_xlfn.XLOOKUP(D29,'2025 Default Wattage Guide'!$B$67:$B$131, '2025 Default Wattage Guide'!$C$67:$C$131, "NOT FOUND",0,1)) ->  | L29: =IF(ISBLANK(F29),"",IF(G29<=E29*IF(LEFT(F29,6)="L4813:",Criteria!$V$21,IF(LEFT(F29,6)="NL4813",Criteria!$Z$21,IF(LEFT(F29,6)="L3903:",Criteria!$V$22,IF(LEFT(F29,6)="L3904:",Criteria!$V$23, IF(OR($F$9=$AD$14,$F$9=$AD$17,$F$9=$AD$19),_xlfn.XLOOKUP(LEFT(F29,6),Criteria!$A$5:$A$333,Criteria!$V$5:$V$333,"NOT FOUND",-1,1),IF(OR($F$9=$AD$15,$F$9=$AD$18,$F$9=$AD$20),_xlfn.XLOOKUP(LEFT(F29,6),Criteria!$C$5:$C$333,Criteria!$Z$5:$Z$333,"NOT FOUND",-1,1),IF(OR($F$9=$AD$21),_xlfn.XLOOKUP(LEFT(F29,6),Criteria!$B$5:$B$333,Criteria!$X$5:$X$333,"NOT FOUND",-1,1),IF($F$9=$AD$22,_xlfn.XLOOKUP(LEFT(F29,6),Criteria!$B$5:$B$333,Criteria!$X$5:$X$333,"NOT FOUND",-1,1),"ERROR")))))))),G29, E29*IF(LEFT(F29,6)="L4813:",Criteria!$V$21,IF(LEFT(F29,6)="NL4813",Criteria!$Z$21,IF(LEFT(F29,6)="L3903:",Criteria!$V$22,IF(LEFT(F29,6)="L3904:",Criteria!$V$23,IF(OR($F$9=$AD$14,$F$9=$AD$17,$F$9=$AD$19),_xlfn.XLOOKUP(LEFT(F29,6),Criteria!$A$5:$A$333,Criteria!$V$5:$V$333,"NOT FOUND",-1,1),IF(OR($F$9=$AD$15,$F$9=$AD$18,$F$9=$AD$20),_xlfn.XLOOKUP(LEFT(F29,6),Criteria!$C$5:$C$333,Criteria!$Z$5:$Z$333,"NOT FOUND",-1,1),IF($F$9=$AD$21,_xlfn.XLOOKUP(LEFT(F29,6),Criteria!$B$5:$B$333,Criteria!$X$5:$X$333,"NOT FOUND",-1,1), IF($F$9=$AD$22, _xlfn.XLOOKUP(LEFT(F29,6),Criteria!$C$5:$C$333,Criteria!$Z$5:$Z$333,"NOT FOUND",-1,1),"ERROR")))))))))) ->  | O29: =IFERROR(IF(F29=VLOOKUP(F29, Criteria!$E$37:$E$46, 1, FALSE), "This measure Incentive will be capped at 50% project cost.", ""), "") ->  | AC29: L4797: 2' or 3' TLED, replacing 2' or 3' T8 or T12 Lamp
B30: 11 | G30: =IF(ISBLANK(F30),"",E30*(_xlfn.XLOOKUP(F30,'Industry Std Cost'!$E$4:$E$44,'Industry Std Cost'!$G$4:$G$44,"NOT FOUND",0,1))) ->  | H30: =IF(OR(ISBLANK(F30),ISBLANK(E30)),"",_xlfn.XLOOKUP(D30,'2025 Default Wattage Guide'!$B$67:$B$131, '2025 Default Wattage Guide'!$C$67:$C$131, "NOT FOUND",0,1)) ->  | L30: =IF(ISBLANK(F30),"",IF(G30<=E30*IF(LEFT(F30,6)="L4813:",Criteria!$V$21,IF(LEFT(F30,6)="NL4813",Criteria!$Z$21,IF(LEFT(F30,6)="L3903:",Criteria!$V$22,IF(LEFT(F30,6)="L3904:",Criteria!$V$23, IF(OR($F$9=$AD$14,$F$9=$AD$17,$F$9=$AD$19),_xlfn.XLOOKUP(LEFT(F30,6),Criteria!$A$5:$A$333,Criteria!$V$5:$V$333,"NOT FOUND",-1,1),IF(OR($F$9=$AD$15,$F$9=$AD$18,$F$9=$AD$20),_xlfn.XLOOKUP(LEFT(F30,6),Criteria!$C$5:$C$333,Criteria!$Z$5:$Z$333,"NOT FOUND",-1,1),IF(OR($F$9=$AD$21),_xlfn.XLOOKUP(LEFT(F30,6),Criteria!$B$5:$B$333,Criteria!$X$5:$X$333,"NOT FOUND",-1,1),IF($F$9=$AD$22,_xlfn.XLOOKUP(LEFT(F30,6),Criteria!$B$5:$B$333,Criteria!$X$5:$X$333,"NOT FOUND",-1,1),"ERROR")))))))),G30, E30*IF(LEFT(F30,6)="L4813:",Criteria!$V$21,IF(LEFT(F30,6)="NL4813",Criteria!$Z$21,IF(LEFT(F30,6)="L3903:",Criteria!$V$22,IF(LEFT(F30,6)="L3904:",Criteria!$V$23,IF(OR($F$9=$AD$14,$F$9=$AD$17,$F$9=$AD$19),_xlfn.XLOOKUP(LEFT(F30,6),Criteria!$A$5:$A$333,Criteria!$V$5:$V$333,"NOT FOUND",-1,1),IF(OR($F$9=$AD$15,$F$9=$AD$18,$F$9=$AD$20),_xlfn.XLOOKUP(LEFT(F30,6),Criteria!$C$5:$C$333,Criteria!$Z$5:$Z$333,"NOT FOUND",-1,1),IF($F$9=$AD$21,_xlfn.XLOOKUP(LEFT(F30,6),Criteria!$B$5:$B$333,Criteria!$X$5:$X$333,"NOT FOUND",-1,1), IF($F$9=$AD$22, _xlfn.XLOOKUP(LEFT(F30,6),Criteria!$C$5:$C$333,Criteria!$Z$5:$Z$333,"NOT FOUND",-1,1),"ERROR")))))))))) ->  | O30: =IFERROR(IF(F30=VLOOKUP(F30, Criteria!$E$37:$E$46, 1, FALSE), "This measure Incentive will be capped at 50% project cost.", ""), "") ->  | AC30: L4809: 8' TLED, replacing 8' T8 or T12 Lamp
B31: 12 | G31: =IF(ISBLANK(F31),"",E31*(_xlfn.XLOOKUP(F31,'Industry Std Cost'!$E$4:$E$44,'Industry Std Cost'!$G$4:$G$44,"NOT FOUND",0,1))) ->  | H31: =IF(OR(ISBLANK(F31),ISBLANK(E31)),"",_xlfn.XLOOKUP(D31,'2025 Default Wattage Guide'!$B$67:$B$131, '2025 Default Wattage Guide'!$C$67:$C$131, "NOT FOUND",0,1)) ->  | L31: =IF(ISBLANK(F31),"",IF(G31<=E31*IF(LEFT(F31,6)="L4813:",Criteria!$V$21,IF(LEFT(F31,6)="NL4813",Criteria!$Z$21,IF(LEFT(F31,6)="L3903:",Criteria!$V$22,IF(LEFT(F31,6)="L3904:",Criteria!$V$23, IF(OR($F$9=$AD$14,$F$9=$AD$17,$F$9=$AD$19),_xlfn.XLOOKUP(LEFT(F31,6),Criteria!$A$5:$A$333,Criteria!$V$5:$V$333,"NOT FOUND",-1,1),IF(OR($F$9=$AD$15,$F$9=$AD$18,$F$9=$AD$20),_xlfn.XLOOKUP(LEFT(F31,6),Criteria!$C$5:$C$333,Criteria!$Z$5:$Z$333,"NOT FOUND",-1,1),IF(OR($F$9=$AD$21),_xlfn.XLOOKUP(LEFT(F31,6),Criteria!$B$5:$B$333,Criteria!$X$5:$X$333,"NOT FOUND",-1,1),IF($F$9=$AD$22,_xlfn.XLOOKUP(LEFT(F31,6),Criteria!$B$5:$B$333,Criteria!$X$5:$X$333,"NOT FOUND",-1,1),"ERROR")))))))),G31, E31*IF(LEFT(F31,6)="L4813:",Criteria!$V$21,IF(LEFT(F31,6)="NL4813",Criteria!$Z$21,IF(LEFT(F31,6)="L3903:",Criteria!$V$22,IF(LEFT(F31,6)="L3904:",Criteria!$V$23,IF(OR($F$9=$AD$14,$F$9=$AD$17,$F$9=$AD$19),_xlfn.XLOOKUP(LEFT(F31,6),Criteria!$A$5:$A$333,Criteria!$V$5:$V$333,"NOT FOUND",-1,1),IF(OR($F$9=$AD$15,$F$9=$AD$18,$F$9=$AD$20),_xlfn.XLOOKUP(LEFT(F31,6),Criteria!$C$5:$C$333,Criteria!$Z$5:$Z$333,"NOT FOUND",-1,1),IF($F$9=$AD$21,_xlfn.XLOOKUP(LEFT(F31,6),Criteria!$B$5:$B$333,Criteria!$X$5:$X$333,"NOT FOUND",-1,1), IF($F$9=$AD$22, _xlfn.XLOOKUP(LEFT(F31,6),Criteria!$C$5:$C$333,Criteria!$Z$5:$Z$333,"NOT FOUND",-1,1),"ERROR")))))))))) ->  | O31: =IFERROR(IF(F31=VLOOKUP(F31, Criteria!$E$37:$E$46, 1, FALSE), "This measure Incentive will be capped at 50% project cost.", ""), "") ->  | AC31: L3903: Interior LED Signage
B32: 13 | G32: =IF(ISBLANK(F32),"",E32*(_xlfn.XLOOKUP(F32,'Industry Std Cost'!$E$4:$E$44,'Industry Std Cost'!$G$4:$G$44,"NOT FOUND",0,1))) ->  | H32: =IF(OR(ISBLANK(F32),ISBLANK(E32)),"",_xlfn.XLOOKUP(D32,'2025 Default Wattage Guide'!$B$67:$B$131, '2025 Default Wattage Guide'!$C$67:$C$131, "NOT FOUND",0,1)) ->  | L32: =IF(ISBLANK(F32),"",IF(G32<=E32*IF(LEFT(F32,6)="L4813:",Criteria!$V$21,IF(LEFT(F32,6)="NL4813",Criteria!$Z$21,IF(LEFT(F32,6)="L3903:",Criteria!$V$22,IF(LEFT(F32,6)="L3904:",Criteria!$V$23, IF(OR($F$9=$AD$14,$F$9=$AD$17,$F$9=$AD$19),_xlfn.XLOOKUP(LEFT(F32,6),Criteria!$A$5:$A$333,Criteria!$V$5:$V$333,"NOT FOUND",-1,1),IF(OR($F$9=$AD$15,$F$9=$AD$18,$F$9=$AD$20),_xlfn.XLOOKUP(LEFT(F32,6),Criteria!$C$5:$C$333,Criteria!$Z$5:$Z$333,"NOT FOUND",-1,1),IF(OR($F$9=$AD$21),_xlfn.XLOOKUP(LEFT(F32,6),Criteria!$B$5:$B$333,Criteria!$X$5:$X$333,"NOT FOUND",-1,1),IF($F$9=$AD$22,_xlfn.XLOOKUP(LEFT(F32,6),Criteria!$B$5:$B$333,Criteria!$X$5:$X$333,"NOT FOUND",-1,1),"ERROR")))))))),G32, E32*IF(LEFT(F32,6)="L4813:",Criteria!$V$21,IF(LEFT(F32,6)="NL4813",Criteria!$Z$21,IF(LEFT(F32,6)="L3903:",Criteria!$V$22,IF(LEFT(F32,6)="L3904:",Criteria!$V$23,IF(OR($F$9=$AD$14,$F$9=$AD$17,$F$9=$AD$19),_xlfn.XLOOKUP(LEFT(F32,6),Criteria!$A$5:$A$333,Criteria!$V$5:$V$333,"NOT FOUND",-1,1),IF(OR($F$9=$AD$15,$F$9=$AD$18,$F$9=$AD$20),_xlfn.XLOOKUP(LEFT(F32,6),Criteria!$C$5:$C$333,Criteria!$Z$5:$Z$333,"NOT FOUND",-1,1),IF($F$9=$AD$21,_xlfn.XLOOKUP(LEFT(F32,6),Criteria!$B$5:$B$333,Criteria!$X$5:$X$333,"NOT FOUND",-1,1), IF($F$9=$AD$22, _xlfn.XLOOKUP(LEFT(F32,6),Criteria!$C$5:$C$333,Criteria!$Z$5:$Z$333,"NOT FOUND",-1,1),"ERROR")))))))))) ->  | O32: =IFERROR(IF(F32=VLOOKUP(F32, Criteria!$E$37:$E$46, 1, FALSE), "This measure Incentive will be capped at 50% project cost.", ""), "") ->  | AC32: L10284: 1’ to 3’ LED Linear Ambient Fixture, Exterior
B33: 14 | G33: =IF(ISBLANK(F33),"",E33*(_xlfn.XLOOKUP(F33,'Industry Std Cost'!$E$4:$E$44,'Industry Std Cost'!$G$4:$G$44,"NOT FOUND",0,1))) ->  | H33: =IF(OR(ISBLANK(F33),ISBLANK(E33)),"",_xlfn.XLOOKUP(D33,'2025 Default Wattage Guide'!$B$67:$B$131, '2025 Default Wattage Guide'!$C$67:$C$131, "NOT FOUND",0,1)) ->  | L33: =IF(ISBLANK(F33),"",IF(G33<=E33*IF(LEFT(F33,6)="L4813:",Criteria!$V$21,IF(LEFT(F33,6)="NL4813",Criteria!$Z$21,IF(LEFT(F33,6)="L3903:",Criteria!$V$22,IF(LEFT(F33,6)="L3904:",Criteria!$V$23, IF(OR($F$9=$AD$14,$F$9=$AD$17,$F$9=$AD$19),_xlfn.XLOOKUP(LEFT(F33,6),Criteria!$A$5:$A$333,Criteria!$V$5:$V$333,"NOT FOUND",-1,1),IF(OR($F$9=$AD$15,$F$9=$AD$18,$F$9=$AD$20),_xlfn.XLOOKUP(LEFT(F33,6),Criteria!$C$5:$C$333,Criteria!$Z$5:$Z$333,"NOT FOUND",-1,1),IF(OR($F$9=$AD$21),_xlfn.XLOOKUP(LEFT(F33,6),Criteria!$B$5:$B$333,Criteria!$X$5:$X$333,"NOT FOUND",-1,1),IF($F$9=$AD$22,_xlfn.XLOOKUP(LEFT(F33,6),Criteria!$B$5:$B$333,Criteria!$X$5:$X$333,"NOT FOUND",-1,1),"ERROR")))))))),G33, E33*IF(LEFT(F33,6)="L4813:",Criteria!$V$21,IF(LEFT(F33,6)="NL4813",Criteria!$Z$21,IF(LEFT(F33,6)="L3903:",Criteria!$V$22,IF(LEFT(F33,6)="L3904:",Criteria!$V$23,IF(OR($F$9=$AD$14,$F$9=$AD$17,$F$9=$AD$19),_xlfn.XLOOKUP(LEFT(F33,6),Criteria!$A$5:$A$333,Criteria!$V$5:$V$333,"NOT FOUND",-1,1),IF(OR($F$9=$AD$15,$F$9=$AD$18,$F$9=$AD$20),_xlfn.XLOOKUP(LEFT(F33,6),Criteria!$C$5:$C$333,Criteria!$Z$5:$Z$333,"NOT FOUND",-1,1),IF($F$9=$AD$21,_xlfn.XLOOKUP(LEFT(F33,6),Criteria!$B$5:$B$333,Criteria!$X$5:$X$333,"NOT FOUND",-1,1), IF($F$9=$AD$22, _xlfn.XLOOKUP(LEFT(F33,6),Criteria!$C$5:$C$333,Criteria!$Z$5:$Z$333,"NOT FOUND",-1,1),"ERROR")))))))))) ->  | O33: =IFERROR(IF(F33=VLOOKUP(F33, Criteria!$E$37:$E$46, 1, FALSE), "This measure Incentive will be capped at 50% project cost.", ""), "") ->  | AC33: L10285: 4' LED Linear Ambient Fixture, Exterior
B34: 15 | G34: =IF(ISBLANK(F34),"",E34*(_xlfn.XLOOKUP(F34,'Industry Std Cost'!$E$4:$E$44,'Industry Std Cost'!$G$4:$G$44,"NOT FOUND",0,1))) ->  | H34: =IF(OR(ISBLANK(F34),ISBLANK(E34)),"",_xlfn.XLOOKUP(D34,'2025 Default Wattage Guide'!$B$67:$B$131, '2025 Default Wattage Guide'!$C$67:$C$131, "NOT FOUND",0,1)) ->  | L34: =IF(ISBLANK(F34),"",IF(G34<=E34*IF(LEFT(F34,6)="L4813:",Criteria!$V$21,IF(LEFT(F34,6)="NL4813",Criteria!$Z$21,IF(LEFT(F34,6)="L3903:",Criteria!$V$22,IF(LEFT(F34,6)="L3904:",Criteria!$V$23, IF(OR($F$9=$AD$14,$F$9=$AD$17,$F$9=$AD$19),_xlfn.XLOOKUP(LEFT(F34,6),Criteria!$A$5:$A$333,Criteria!$V$5:$V$333,"NOT FOUND",-1,1),IF(OR($F$9=$AD$15,$F$9=$AD$18,$F$9=$AD$20),_xlfn.XLOOKUP(LEFT(F34,6),Criteria!$C$5:$C$333,Criteria!$Z$5:$Z$333,"NOT FOUND",-1,1),IF(OR($F$9=$AD$21),_xlfn.XLOOKUP(LEFT(F34,6),Criteria!$B$5:$B$333,Criteria!$X$5:$X$333,"NOT FOUND",-1,1),IF($F$9=$AD$22,_xlfn.XLOOKUP(LEFT(F34,6),Criteria!$B$5:$B$333,Criteria!$X$5:$X$333,"NOT FOUND",-1,1),"ERROR")))))))),G34, E34*IF(LEFT(F34,6)="L4813:",Criteria!$V$21,IF(LEFT(F34,6)="NL4813",Criteria!$Z$21,IF(LEFT(F34,6)="L3903:",Criteria!$V$22,IF(LEFT(F34,6)="L3904:",Criteria!$V$23,IF(OR($F$9=$AD$14,$F$9=$AD$17,$F$9=$AD$19),_xlfn.XLOOKUP(LEFT(F34,6),Criteria!$A$5:$A$333,Criteria!$V$5:$V$333,"NOT FOUND",-1,1),IF(OR($F$9=$AD$15,$F$9=$AD$18,$F$9=$AD$20),_xlfn.XLOOKUP(LEFT(F34,6),Criteria!$C$5:$C$333,Criteria!$Z$5:$Z$333,"NOT FOUND",-1,1),IF($F$9=$AD$21,_xlfn.XLOOKUP(LEFT(F34,6),Criteria!$B$5:$B$333,Criteria!$X$5:$X$333,"NOT FOUND",-1,1), IF($F$9=$AD$22, _xlfn.XLOOKUP(LEFT(F34,6),Criteria!$C$5:$C$333,Criteria!$Z$5:$Z$333,"NOT FOUND",-1,1),"ERROR")))))))))) ->  | O34: =IFERROR(IF(F34=VLOOKUP(F34, Criteria!$E$37:$E$46, 1, FALSE), "This measure Incentive will be capped at 50% project cost.", ""), "") ->  | AC34: L10286: 8' LED Linear Ambient Fixture, Exterior
B35: 16 | G35: =IF(ISBLANK(F35),"",E35*(_xlfn.XLOOKUP(F35,'Industry Std Cost'!$E$4:$E$44,'Industry Std Cost'!$G$4:$G$44,"NOT FOUND",0,1))) ->  | H35: =IF(OR(ISBLANK(F35),ISBLANK(E35)),"",_xlfn.XLOOKUP(D35,'2025 Default Wattage Guide'!$B$67:$B$131, '2025 Default Wattage Guide'!$C$67:$C$131, "NOT FOUND",0,1)) ->  | L35: =IF(ISBLANK(F35),"",IF(G35<=E35*IF(LEFT(F35,6)="L4813:",Criteria!$V$21,IF(LEFT(F35,6)="NL4813",Criteria!$Z$21,IF(LEFT(F35,6)="L3903:",Criteria!$V$22,IF(LEFT(F35,6)="L3904:",Criteria!$V$23, IF(OR($F$9=$AD$14,$F$9=$AD$17,$F$9=$AD$19),_xlfn.XLOOKUP(LEFT(F35,6),Criteria!$A$5:$A$333,Criteria!$V$5:$V$333,"NOT FOUND",-1,1),IF(OR($F$9=$AD$15,$F$9=$AD$18,$F$9=$AD$20),_xlfn.XLOOKUP(LEFT(F35,6),Criteria!$C$5:$C$333,Criteria!$Z$5:$Z$333,"NOT FOUND",-1,1),IF(OR($F$9=$AD$21),_xlfn.XLOOKUP(LEFT(F35,6),Criteria!$B$5:$B$333,Criteria!$X$5:$X$333,"NOT FOUND",-1,1),IF($F$9=$AD$22,_xlfn.XLOOKUP(LEFT(F35,6),Criteria!$B$5:$B$333,Criteria!$X$5:$X$333,"NOT FOUND",-1,1),"ERROR")))))))),G35, E35*IF(LEFT(F35,6)="L4813:",Criteria!$V$21,IF(LEFT(F35,6)="NL4813",Criteria!$Z$21,IF(LEFT(F35,6)="L3903:",Criteria!$V$22,IF(LEFT(F35,6)="L3904:",Criteria!$V$23,IF(OR($F$9=$AD$14,$F$9=$AD$17,$F$9=$AD$19),_xlfn.XLOOKUP(LEFT(F35,6),Criteria!$A$5:$A$333,Criteria!$V$5:$V$333,"NOT FOUND",-1,1),IF(OR($F$9=$AD$15,$F$9=$AD$18,$F$9=$AD$20),_xlfn.XLOOKUP(LEFT(F35,6),Criteria!$C$5:$C$333,Criteria!$Z$5:$Z$333,"NOT FOUND",-1,1),IF($F$9=$AD$21,_xlfn.XLOOKUP(LEFT(F35,6),Criteria!$B$5:$B$333,Criteria!$X$5:$X$333,"NOT FOUND",-1,1), IF($F$9=$AD$22, _xlfn.XLOOKUP(LEFT(F35,6),Criteria!$C$5:$C$333,Criteria!$Z$5:$Z$333,"NOT FOUND",-1,1),"ERROR")))))))))) ->  | O35: =IFERROR(IF(F35=VLOOKUP(F35, Criteria!$E$37:$E$46, 1, FALSE), "This measure Incentive will be capped at 50% project cost.", ""), "") ->  | AC35: L10029: LED Downlight Fixtures replacing or instead of Incandescent, CFL or HID fixture, Exterior
B36: 17 | G36: =IF(ISBLANK(F36),"",E36*(_xlfn.XLOOKUP(F36,'Industry Std Cost'!$E$4:$E$44,'Industry Std Cost'!$G$4:$G$44,"NOT FOUND",0,1))) ->  | H36: =IF(OR(ISBLANK(F36),ISBLANK(E36)),"",_xlfn.XLOOKUP(D36,'2025 Default Wattage Guide'!$B$67:$B$131, '2025 Default Wattage Guide'!$C$67:$C$131, "NOT FOUND",0,1)) ->  | L36: =IF(ISBLANK(F36),"",IF(G36<=E36*IF(LEFT(F36,6)="L4813:",Criteria!$V$21,IF(LEFT(F36,6)="NL4813",Criteria!$Z$21,IF(LEFT(F36,6)="L3903:",Criteria!$V$22,IF(LEFT(F36,6)="L3904:",Criteria!$V$23, IF(OR($F$9=$AD$14,$F$9=$AD$17,$F$9=$AD$19),_xlfn.XLOOKUP(LEFT(F36,6),Criteria!$A$5:$A$333,Criteria!$V$5:$V$333,"NOT FOUND",-1,1),IF(OR($F$9=$AD$15,$F$9=$AD$18,$F$9=$AD$20),_xlfn.XLOOKUP(LEFT(F36,6),Criteria!$C$5:$C$333,Criteria!$Z$5:$Z$333,"NOT FOUND",-1,1),IF(OR($F$9=$AD$21),_xlfn.XLOOKUP(LEFT(F36,6),Criteria!$B$5:$B$333,Criteria!$X$5:$X$333,"NOT FOUND",-1,1),IF($F$9=$AD$22,_xlfn.XLOOKUP(LEFT(F36,6),Criteria!$B$5:$B$333,Criteria!$X$5:$X$333,"NOT FOUND",-1,1),"ERROR")))))))),G36, E36*IF(LEFT(F36,6)="L4813:",Criteria!$V$21,IF(LEFT(F36,6)="NL4813",Criteria!$Z$21,IF(LEFT(F36,6)="L3903:",Criteria!$V$22,IF(LEFT(F36,6)="L3904:",Criteria!$V$23,IF(OR($F$9=$AD$14,$F$9=$AD$17,$F$9=$AD$19),_xlfn.XLOOKUP(LEFT(F36,6),Criteria!$A$5:$A$333,Criteria!$V$5:$V$333,"NOT FOUND",-1,1),IF(OR($F$9=$AD$15,$F$9=$AD$18,$F$9=$AD$20),_xlfn.XLOOKUP(LEFT(F36,6),Criteria!$C$5:$C$333,Criteria!$Z$5:$Z$333,"NOT FOUND",-1,1),IF($F$9=$AD$21,_xlfn.XLOOKUP(LEFT(F36,6),Criteria!$B$5:$B$333,Criteria!$X$5:$X$333,"NOT FOUND",-1,1), IF($F$9=$AD$22, _xlfn.XLOOKUP(LEFT(F36,6),Criteria!$C$5:$C$333,Criteria!$Z$5:$Z$333,"NOT FOUND",-1,1),"ERROR")))))))))) ->  | O36: =IFERROR(IF(F36=VLOOKUP(F36, Criteria!$E$37:$E$46, 1, FALSE), "This measure Incentive will be capped at 50% project cost.", ""), "") ->  | AC36: L3904: Exterior LED Signage
B37: 18 | G37: =IF(ISBLANK(F37),"",E37*(_xlfn.XLOOKUP(F37,'Industry Std Cost'!$E$4:$E$44,'Industry Std Cost'!$G$4:$G$44,"NOT FOUND",0,1))) ->  | H37: =IF(OR(ISBLANK(F37),ISBLANK(E37)),"",_xlfn.XLOOKUP(D37,'2025 Default Wattage Guide'!$B$67:$B$131, '2025 Default Wattage Guide'!$C$67:$C$131, "NOT FOUND",0,1)) ->  | L37: =IF(ISBLANK(F37),"",IF(G37<=E37*IF(LEFT(F37,6)="L4813:",Criteria!$V$21,IF(LEFT(F37,6)="NL4813",Criteria!$Z$21,IF(LEFT(F37,6)="L3903:",Criteria!$V$22,IF(LEFT(F37,6)="L3904:",Criteria!$V$23, IF(OR($F$9=$AD$14,$F$9=$AD$17,$F$9=$AD$19),_xlfn.XLOOKUP(LEFT(F37,6),Criteria!$A$5:$A$333,Criteria!$V$5:$V$333,"NOT FOUND",-1,1),IF(OR($F$9=$AD$15,$F$9=$AD$18,$F$9=$AD$20),_xlfn.XLOOKUP(LEFT(F37,6),Criteria!$C$5:$C$333,Criteria!$Z$5:$Z$333,"NOT FOUND",-1,1),IF(OR($F$9=$AD$21),_xlfn.XLOOKUP(LEFT(F37,6),Criteria!$B$5:$B$333,Criteria!$X$5:$X$333,"NOT FOUND",-1,1),IF($F$9=$AD$22,_xlfn.XLOOKUP(LEFT(F37,6),Criteria!$B$5:$B$333,Criteria!$X$5:$X$333,"NOT FOUND",-1,1),"ERROR")))))))),G37, E37*IF(LEFT(F37,6)="L4813:",Criteria!$V$21,IF(LEFT(F37,6)="NL4813",Criteria!$Z$21,IF(LEFT(F37,6)="L3903:",Criteria!$V$22,IF(LEFT(F37,6)="L3904:",Criteria!$V$23,IF(OR($F$9=$AD$14,$F$9=$AD$17,$F$9=$AD$19),_xlfn.XLOOKUP(LEFT(F37,6),Criteria!$A$5:$A$333,Criteria!$V$5:$V$333,"NOT FOUND",-1,1),IF(OR($F$9=$AD$15,$F$9=$AD$18,$F$9=$AD$20),_xlfn.XLOOKUP(LEFT(F37,6),Criteria!$C$5:$C$333,Criteria!$Z$5:$Z$333,"NOT FOUND",-1,1),IF($F$9=$AD$21,_xlfn.XLOOKUP(LEFT(F37,6),Criteria!$B$5:$B$333,Criteria!$X$5:$X$333,"NOT FOUND",-1,1), IF($F$9=$AD$22, _xlfn.XLOOKUP(LEFT(F37,6),Criteria!$C$5:$C$333,Criteria!$Z$5:$Z$333,"NOT FOUND",-1,1),"ERROR")))))))))) ->  | O37: =IFERROR(IF(F37=VLOOKUP(F37, Criteria!$E$37:$E$46, 1, FALSE), "This measure Incentive will be capped at 50% project cost.", ""), "") ->  | AC37: L4280: Outdoor LED Fixture or Retrofit Kit – Low Output ≤4,999 lumens
B38: 19 | G38: =IF(ISBLANK(F38),"",E38*(_xlfn.XLOOKUP(F38,'Industry Std Cost'!$E$4:$E$44,'Industry Std Cost'!$G$4:$G$44,"NOT FOUND",0,1))) ->  | H38: =IF(OR(ISBLANK(F38),ISBLANK(E38)),"",_xlfn.XLOOKUP(D38,'2025 Default Wattage Guide'!$B$67:$B$131, '2025 Default Wattage Guide'!$C$67:$C$131, "NOT FOUND",0,1)) ->  | L38: =IF(ISBLANK(F38),"",IF(G38<=E38*IF(LEFT(F38,6)="L4813:",Criteria!$V$21,IF(LEFT(F38,6)="NL4813",Criteria!$Z$21,IF(LEFT(F38,6)="L3903:",Criteria!$V$22,IF(LEFT(F38,6)="L3904:",Criteria!$V$23, IF(OR($F$9=$AD$14,$F$9=$AD$17,$F$9=$AD$19),_xlfn.XLOOKUP(LEFT(F38,6),Criteria!$A$5:$A$333,Criteria!$V$5:$V$333,"NOT FOUND",-1,1),IF(OR($F$9=$AD$15,$F$9=$AD$18,$F$9=$AD$20),_xlfn.XLOOKUP(LEFT(F38,6),Criteria!$C$5:$C$333,Criteria!$Z$5:$Z$333,"NOT FOUND",-1,1),IF(OR($F$9=$AD$21),_xlfn.XLOOKUP(LEFT(F38,6),Criteria!$B$5:$B$333,Criteria!$X$5:$X$333,"NOT FOUND",-1,1),IF($F$9=$AD$22,_xlfn.XLOOKUP(LEFT(F38,6),Criteria!$B$5:$B$333,Criteria!$X$5:$X$333,"NOT FOUND",-1,1),"ERROR")))))))),G38, E38*IF(LEFT(F38,6)="L4813:",Criteria!$V$21,IF(LEFT(F38,6)="NL4813",Criteria!$Z$21,IF(LEFT(F38,6)="L3903:",Criteria!$V$22,IF(LEFT(F38,6)="L3904:",Criteria!$V$23,IF(OR($F$9=$AD$14,$F$9=$AD$17,$F$9=$AD$19),_xlfn.XLOOKUP(LEFT(F38,6),Criteria!$A$5:$A$333,Criteria!$V$5:$V$333,"NOT FOUND",-1,1),IF(OR($F$9=$AD$15,$F$9=$AD$18,$F$9=$AD$20),_xlfn.XLOOKUP(LEFT(F38,6),Criteria!$C$5:$C$333,Criteria!$Z$5:$Z$333,"NOT FOUND",-1,1),IF($F$9=$AD$21,_xlfn.XLOOKUP(LEFT(F38,6),Criteria!$B$5:$B$333,Criteria!$X$5:$X$333,"NOT FOUND",-1,1), IF($F$9=$AD$22, _xlfn.XLOOKUP(LEFT(F38,6),Criteria!$C$5:$C$333,Criteria!$Z$5:$Z$333,"NOT FOUND",-1,1),"ERROR")))))))))) ->  | O38: =IFERROR(IF(F38=VLOOKUP(F38, Criteria!$E$37:$E$46, 1, FALSE), "This measure Incentive will be capped at 50% project cost.", ""), "") ->  | AC38: L4281: Outdoor LED Fixture or Retrofit Kit – Mid Output 5,000 – 9,999 lumens
B39: 20 | G39: =IF(ISBLANK(F39),"",E39*(_xlfn.XLOOKUP(F39,'Industry Std Cost'!$E$4:$E$44,'Industry Std Cost'!$G$4:$G$44,"NOT FOUND",0,1))) ->  | H39: =IF(OR(ISBLANK(F39),ISBLANK(E39)),"",_xlfn.XLOOKUP(D39,'2025 Default Wattage Guide'!$B$67:$B$131, '2025 Default Wattage Guide'!$C$67:$C$131, "NOT FOUND",0,1)) ->  | L39: =IF(ISBLANK(F39),"",IF(G39<=E39*IF(LEFT(F39,6)="L4813:",Criteria!$V$21,IF(LEFT(F39,6)="NL4813",Criteria!$Z$21,IF(LEFT(F39,6)="L3903:",Criteria!$V$22,IF(LEFT(F39,6)="L3904:",Criteria!$V$23, IF(OR($F$9=$AD$14,$F$9=$AD$17,$F$9=$AD$19),_xlfn.XLOOKUP(LEFT(F39,6),Criteria!$A$5:$A$333,Criteria!$V$5:$V$333,"NOT FOUND",-1,1),IF(OR($F$9=$AD$15,$F$9=$AD$18,$F$9=$AD$20),_xlfn.XLOOKUP(LEFT(F39,6),Criteria!$C$5:$C$333,Criteria!$Z$5:$Z$333,"NOT FOUND",-1,1),IF(OR($F$9=$AD$21),_xlfn.XLOOKUP(LEFT(F39,6),Criteria!$B$5:$B$333,Criteria!$X$5:$X$333,"NOT FOUND",-1,1),IF($F$9=$AD$22,_xlfn.XLOOKUP(LEFT(F39,6),Criteria!$B$5:$B$333,Criteria!$X$5:$X$333,"NOT FOUND",-1,1),"ERROR")))))))),G39, E39*IF(LEFT(F39,6)="L4813:",Criteria!$V$21,IF(LEFT(F39,6)="NL4813",Criteria!$Z$21,IF(LEFT(F39,6)="L3903:",Criteria!$V$22,IF(LEFT(F39,6)="L3904:",Criteria!$V$23,IF(OR($F$9=$AD$14,$F$9=$AD$17,$F$9=$AD$19),_xlfn.XLOOKUP(LEFT(F39,6),Criteria!$A$5:$A$333,Criteria!$V$5:$V$333,"NOT FOUND",-1,1),IF(OR($F$9=$AD$15,$F$9=$AD$18,$F$9=$AD$20),_xlfn.XLOOKUP(LEFT(F39,6),Criteria!$C$5:$C$333,Criteria!$Z$5:$Z$333,"NOT FOUND",-1,1),IF($F$9=$AD$21,_xlfn.XLOOKUP(LEFT(F39,6),Criteria!$B$5:$B$333,Criteria!$X$5:$X$333,"NOT FOUND",-1,1), IF($F$9=$AD$22, _xlfn.XLOOKUP(LEFT(F39,6),Criteria!$C$5:$C$333,Criteria!$Z$5:$Z$333,"NOT FOUND",-1,1),"ERROR")))))))))) ->  | O39: =IFERROR(IF(F39=VLOOKUP(F39, Criteria!$E$37:$E$46, 1, FALSE), "This measure Incentive will be capped at 50% project cost.", ""), "") ->  | AC39: L4282: Outdoor LED Fixture or Retrofit Kit – High Output 10,000 – 29,999 lumens
B40: 21 | G40: =IF(ISBLANK(F40),"",E40*(_xlfn.XLOOKUP(F40,'Industry Std Cost'!$E$4:$E$44,'Industry Std Cost'!$G$4:$G$44,"NOT FOUND",0,1))) ->  | H40: =IF(OR(ISBLANK(F40),ISBLANK(E40)),"",_xlfn.XLOOKUP(D40,'2025 Default Wattage Guide'!$B$67:$B$131, '2025 Default Wattage Guide'!$C$67:$C$131, "NOT FOUND",0,1)) ->  | L40: =IF(ISBLANK(F40),"",IF(G40<=E40*IF(LEFT(F40,6)="L4813:",Criteria!$V$21,IF(LEFT(F40,6)="NL4813",Criteria!$Z$21,IF(LEFT(F40,6)="L3903:",Criteria!$V$22,IF(LEFT(F40,6)="L3904:",Criteria!$V$23, IF(OR($F$9=$AD$14,$F$9=$AD$17,$F$9=$AD$19),_xlfn.XLOOKUP(LEFT(F40,6),Criteria!$A$5:$A$333,Criteria!$V$5:$V$333,"NOT FOUND",-1,1),IF(OR($F$9=$AD$15,$F$9=$AD$18,$F$9=$AD$20),_xlfn.XLOOKUP(LEFT(F40,6),Criteria!$C$5:$C$333,Criteria!$Z$5:$Z$333,"NOT FOUND",-1,1),IF(OR($F$9=$AD$21),_xlfn.XLOOKUP(LEFT(F40,6),Criteria!$B$5:$B$333,Criteria!$X$5:$X$333,"NOT FOUND",-1,1),IF($F$9=$AD$22,_xlfn.XLOOKUP(LEFT(F40,6),Criteria!$B$5:$B$333,Criteria!$X$5:$X$333,"NOT FOUND",-1,1),"ERROR")))))))),G40, E40*IF(LEFT(F40,6)="L4813:",Criteria!$V$21,IF(LEFT(F40,6)="NL4813",Criteria!$Z$21,IF(LEFT(F40,6)="L3903:",Criteria!$V$22,IF(LEFT(F40,6)="L3904:",Criteria!$V$23,IF(OR($F$9=$AD$14,$F$9=$AD$17,$F$9=$AD$19),_xlfn.XLOOKUP(LEFT(F40,6),Criteria!$A$5:$A$333,Criteria!$V$5:$V$333,"NOT FOUND",-1,1),IF(OR($F$9=$AD$15,$F$9=$AD$18,$F$9=$AD$20),_xlfn.XLOOKUP(LEFT(F40,6),Criteria!$C$5:$C$333,Criteria!$Z$5:$Z$333,"NOT FOUND",-1,1),IF($F$9=$AD$21,_xlfn.XLOOKUP(LEFT(F40,6),Criteria!$B$5:$B$333,Criteria!$X$5:$X$333,"NOT FOUND",-1,1), IF($F$9=$AD$22, _xlfn.XLOOKUP(LEFT(F40,6),Criteria!$C$5:$C$333,Criteria!$Z$5:$Z$333,"NOT FOUND",-1,1),"ERROR")))))))))) ->  | O40: =IFERROR(IF(F40=VLOOKUP(F40, Criteria!$E$37:$E$46, 1, FALSE), "This measure Incentive will be capped at 50% project cost.", ""), "") ->  | AC40: L4283: Outdoor LED Fixture or Retrofit Kit – Very High Output ≥30,000 lumens | AG40: CFL Exterior | AH40: HID Exterior | AI40: Lamp Exterior | AJ40: Fixture Exterior | AN40: DV Exterior
B41: 22 | G41: =IF(ISBLANK(F41),"",E41*(_xlfn.XLOOKUP(F41,'Industry Std Cost'!$E$4:$E$44,'Industry Std Cost'!$G$4:$G$44,"NOT FOUND",0,1))) ->  | H41: =IF(OR(ISBLANK(F41),ISBLANK(E41)),"",_xlfn.XLOOKUP(D41,'2025 Default Wattage Guide'!$B$67:$B$131, '2025 Default Wattage Guide'!$C$67:$C$131, "NOT FOUND",0,1)) ->  | L41: =IF(ISBLANK(F41),"",IF(G41<=E41*IF(LEFT(F41,6)="L4813:",Criteria!$V$21,IF(LEFT(F41,6)="NL4813",Criteria!$Z$21,IF(LEFT(F41,6)="L3903:",Criteria!$V$22,IF(LEFT(F41,6)="L3904:",Criteria!$V$23, IF(OR($F$9=$AD$14,$F$9=$AD$17,$F$9=$AD$19),_xlfn.XLOOKUP(LEFT(F41,6),Criteria!$A$5:$A$333,Criteria!$V$5:$V$333,"NOT FOUND",-1,1),IF(OR($F$9=$AD$15,$F$9=$AD$18,$F$9=$AD$20),_xlfn.XLOOKUP(LEFT(F41,6),Criteria!$C$5:$C$333,Criteria!$Z$5:$Z$333,"NOT FOUND",-1,1),IF(OR($F$9=$AD$21),_xlfn.XLOOKUP(LEFT(F41,6),Criteria!$B$5:$B$333,Criteria!$X$5:$X$333,"NOT FOUND",-1,1),IF($F$9=$AD$22,_xlfn.XLOOKUP(LEFT(F41,6),Criteria!$B$5:$B$333,Criteria!$X$5:$X$333,"NOT FOUND",-1,1),"ERROR")))))))),G41, E41*IF(LEFT(F41,6)="L4813:",Criteria!$V$21,IF(LEFT(F41,6)="NL4813",Criteria!$Z$21,IF(LEFT(F41,6)="L3903:",Criteria!$V$22,IF(LEFT(F41,6)="L3904:",Criteria!$V$23,IF(OR($F$9=$AD$14,$F$9=$AD$17,$F$9=$AD$19),_xlfn.XLOOKUP(LEFT(F41,6),Criteria!$A$5:$A$333,Criteria!$V$5:$V$333,"NOT FOUND",-1,1),IF(OR($F$9=$AD$15,$F$9=$AD$18,$F$9=$AD$20),_xlfn.XLOOKUP(LEFT(F41,6),Criteria!$C$5:$C$333,Criteria!$Z$5:$Z$333,"NOT FOUND",-1,1),IF($F$9=$AD$21,_xlfn.XLOOKUP(LEFT(F41,6),Criteria!$B$5:$B$333,Criteria!$X$5:$X$333,"NOT FOUND",-1,1), IF($F$9=$AD$22, _xlfn.XLOOKUP(LEFT(F41,6),Criteria!$C$5:$C$333,Criteria!$Z$5:$Z$333,"NOT FOUND",-1,1),"ERROR")))))))))) ->  | O41: =IFERROR(IF(F41=VLOOKUP(F41, Criteria!$E$37:$E$46, 1, FALSE), "This measure Incentive will be capped at 50% project cost.", ""), "") ->  | AC41: L10043: DLC listed, Mogul Screw-Base (E39) lamp replacing HID, Exterior | AG41: =IF(AND(OR($F$9=$AD$14,$F$9=$AD$17,$F$9=$AD$19),C20=$AD$25,COUNTIF(D20,"*CFL")=0),Table69[CFLSGEXT],IF(AND(OR($F$9=$AD$15,$F$9=$AD$18,$F$9=$AD$20),C20=$AD$25,COUNTIF(D20,"*CFL")=0),Table71[CFLSGNCEXT],IF(AND(OR($F$9=$AD$14,$F$9=$AD$17,$F$9=$AD$19),C20=$AD$25,COUNTIF(D20,"*CFL")=1),Table69[CFLSGEXT],IF(AND(OR($F$9=$AD$15,$F$9=$AD$18,$F$9=$AD$20),C20=$AD$25,COUNTIF(D20,"*CFL")=1),Table71[CFLSGNCEXT],IF(AND($F$9=$AD$21,C20=$AD$25),Table73[CFLAGEXT],IF(AND($F$9=$AD$22,C20=$AD$25),Table75[CFLAGNCEXT],IF(AND(OR($F$9=$AD$14,$F$9=$AD$17,$F$9=$AD$19),C20=$AD$24,COUNTIF(D20,"*CFL")=0),Table69[CFLSGEXT],IF(AND(OR($F$9=$AD$15,$F$9=$AD$18,$F$9=$AD$20),C20=$AD$24,COUNTIF(D20,"*CFL")=0),Table71[CFLSGNCEXT],IF(AND(OR($F$9=$AD$14,$F$9=$AD$17,$F$9=$AD$19),C20=$AD$24,COUNTIF(D20,"*CFL")=1),Table69[CFLSGEXT],IF(AND(OR($F$9=$AD$15,$F$9=$AD$18,$F$9=$AD$20),C20=$AD$24,COUNTIF(D20,"*CFL")=1),Table71[CFLSGNCEXT],IF(AND($F$9=$AD$21,C20=$AD$24),Table73[CFLAGEXT],IF(AND($F$9=$AD$22,C20=$AD$24),Table75[CFLAGNCEXT],"ERROR")))))))))))) -> ERROR | AH41: =IF(AND(OR($F$9=$AD$14,$F$9=$AD$17,$F$9=$AD$19),C20=$AD$25,COUNTIF(D20,"*HID")=0),Table82[HIDSGEXT],IF(AND(OR($F$9=$AD$15,$F$9=$AD$18,$F$9=$AD$20),C20=$AD$25,COUNTIF(D20,"*HID")=0),Table80[HIDSGNCEXT],IF(AND(OR($F$9=$AD$14,$F$9=$AD$17,$F$9=$AD$19),C20=$AD$25,COUNTIF(D20,"*HID")=1),Table82[HIDSGEXT],IF(AND(OR($F$9=$AD$15,$F$9=$AD$18,$F$9=$AD$20),C20=$AD$25,COUNTIF(D20,"*HID")=1),Table80[HIDSGNCEXT],IF(AND($F$9=$AD$21,C20=$AD$25),Table78[HIDAGEXT],IF(AND($F$9=$AD$22,C20=$AD$25),Table76[HIDAGNCEXT],IF(AND(OR($F$9=$AD$14,$F$9=$AD$17,$F$9=$AD$19),C20=$AD$24,COUNTIF(D20,"*HID")=0),Table82[HIDSGEXT],IF(AND(OR($F$9=$AD$15,$F$9=$AD$18,$F$9=$AD$20),C20=$AD$24,COUNTIF(D20,"*HID")=0),Table80[HIDSGNCEXT],IF(AND(OR($F$9=$AD$14,$F$9=$AD$17,$F$9=$AD$19),C20=$AD$24,COUNTIF(D20,"*HID")=1),Table82[HIDSGEXT],IF(AND(OR($F$9=$AD$15,$F$9=$AD$18,$F$9=$AD$20),C20=$AD$24,COUNTIF(D20,"*HID")=1),Table80[HIDSGNCEXT],IF(AND($F$9=$AD$21,C20=$AD$24),Table78[HIDAGEXT],IF(AND($F$9=$AD$22,C20=$AD$24),Table76[HIDAGNCEXT],"ERROR")))))))))))) -> ERROR | AI41: =IF(AND(OR($F$9=$AD$14,$F$9=$AD$17,$F$9=$AD$19),C20=$AD$25,COUNTIF(D20,"*LAMP")=0),Table85[FLSGEXT],IF(AND(OR($F$9=$AD$15,$F$9=$AD$18,$F$9=$AD$20),C20=$AD$25,COUNTIF(D20,"*LAMP")=0),Table87[FLSGNCEXT],IF(AND(OR($F$9=$AD$14,$F$9=$AD$17,$F$9=$AD$19),C20=$AD$25,COUNTIF(D20,"*LAMP")=1),Table85[FLSGEXT],IF(AND(OR($F$9=$AD$15,$F$9=$AD$18,$F$9=$AD$20),C20=$AD$25,COUNTIF(D20,"*LAMP")=1),Table87[FLSGNCEXT],IF(AND($F$9=$AD$21,C20=$AD$25),Table89[FLAGEXT],IF(AND($F$9=$AD$22,C20=$AD$25),Table92[FLAGNCEXT],IF(AND(OR($F$9=$AD$14,$F$9=$AD$17,$F$9=$AD$19),C20=$AD$24,COUNTIF(D20,"*LAMP")=0),Table85[FLSGEXT],IF(AND(OR($F$9=$AD$15,$F$9=$AD$18,$F$9=$AD$20),C20=$AD$24,COUNTIF(D20,"*LAMP")=0),Table87[FLSGNCEXT],IF(AND(OR($F$9=$AD$14,$F$9=$AD$17,$F$9=$AD$19),C20=$AD$24,COUNTIF(D20,"*LAMP")=1),Table85[FLSGEXT],IF(AND(OR($F$9=$AD$15,$F$9=$AD$18,$F$9=$AD$20),C20=$AD$24,COUNTIF(D20,"*LAMP")=1),Table87[FLSGNCEXT],IF(AND($F$9=$AD$21,C20=$AD$24),Table89[FLAGEXT],IF(AND($F$9=$AD$22,C20=$AD$24),Table92[FLAGNCEXT],"ERROR")))))))))))) -> ERROR | AJ41: =IF(AND(OR($F$9=$AD$14,$F$9=$AD$17,$F$9=$AD$19),C20=$AD$25,COUNTIF(D20,"*FIXTURE")=0),Table99[T8SGEXT],IF(AND(OR($F$9=$AD$15,$F$9=$AD$18,$F$9=$AD$20),C20=$AD$25,COUNTIF(D20,"*FIXTURE")=0),Table97[T8SGNCEXT],IF(AND(OR($F$9=$AD$14,$F$9=$AD$17,$F$9=$AD$19),C20=$AD$25,COUNTIF(D20,"*FIXTURE")=1),Table99[T8SGEXT],IF(AND(OR($F$9=$AD$15,$F$9=$AD$18,$F$9=$AD$20),C20=$AD$25,COUNTIF(D20,"*FIXTURE")=1),Table97[T8SGNCEXT],IF(AND($F$9=$AD$21,C20=$AD$25),Table95[T8AGEXT],IF(AND($F$9=$AD$22,C20=$AD$25),Table2[T8AGNCEXT],IF(AND(OR($F$9=$AD$14,$F$9=$AD$17,$F$9=$AD$19),C20=$AD$24,COUNTIF(D20,"*FIXTURE")=0),Table99[T8SGEXT],IF(AND(OR($F$9=$AD$15,$F$9=$AD$18,$F$9=$AD$20),C20=$AD$24,COUNTIF(D20,"*FIXTURE")=0),Table97[T8SGNCEXT],IF(AND(OR($F$9=$AD$14,$F$9=$AD$17,$F$9=$AD$19),C20=$AD$24,COUNTIF(D20,"*FIXTURE")=1),Table99[T8SGEXT],IF(AND(OR($F$9=$AD$15,$F$9=$AD$18,$F$9=$AD$20),C20=$AD$24,COUNTIF(D20,"*FIXTURE")=1),Table97[T8SGNCEXT],IF(AND($F$9=$AD$21,C20=$AD$24),Table95[T8AGEXT],IF(AND($F$9=$AD$22,C20=$AD$24),Table2[T8AGNCEXT],"ERROR")))))))))))) -> ERROR | AN41: =IF(COUNTIF(D20,"*CFL")=1,_xlfn.ANCHORARRAY( $AG$41), IF(COUNTIF(D20,"*HID")=1,_xlfn.ANCHORARRAY($AH$41), IF(COUNTIF(D20,"*LAMP")=1,_xlfn.ANCHORARRAY($AI$41),IF(COUNTIF(D20,"*FIXTURE")=1,_xlfn.ANCHORARRAY($AJ$41), "ERROR")))) -> ERROR
B42: 23 | G42: =IF(ISBLANK(F42),"",E42*(_xlfn.XLOOKUP(F42,'Industry Std Cost'!$E$4:$E$44,'Industry Std Cost'!$G$4:$G$44,"NOT FOUND",0,1))) ->  | H42: =IF(OR(ISBLANK(F42),ISBLANK(E42)),"",_xlfn.XLOOKUP(D42,'2025 Default Wattage Guide'!$B$67:$B$131, '2025 Default Wattage Guide'!$C$67:$C$131, "NOT FOUND",0,1)) ->  | L42: =IF(ISBLANK(F42),"",IF(G42<=E42*IF(LEFT(F42,6)="L4813:",Criteria!$V$21,IF(LEFT(F42,6)="NL4813",Criteria!$Z$21,IF(LEFT(F42,6)="L3903:",Criteria!$V$22,IF(LEFT(F42,6)="L3904:",Criteria!$V$23, IF(OR($F$9=$AD$14,$F$9=$AD$17,$F$9=$AD$19),_xlfn.XLOOKUP(LEFT(F42,6),Criteria!$A$5:$A$333,Criteria!$V$5:$V$333,"NOT FOUND",-1,1),IF(OR($F$9=$AD$15,$F$9=$AD$18,$F$9=$AD$20),_xlfn.XLOOKUP(LEFT(F42,6),Criteria!$C$5:$C$333,Criteria!$Z$5:$Z$333,"NOT FOUND",-1,1),IF(OR($F$9=$AD$21),_xlfn.XLOOKUP(LEFT(F42,6),Criteria!$B$5:$B$333,Criteria!$X$5:$X$333,"NOT FOUND",-1,1),IF($F$9=$AD$22,_xlfn.XLOOKUP(LEFT(F42,6),Criteria!$B$5:$B$333,Criteria!$X$5:$X$333,"NOT FOUND",-1,1),"ERROR")))))))),G42, E42*IF(LEFT(F42,6)="L4813:",Criteria!$V$21,IF(LEFT(F42,6)="NL4813",Criteria!$Z$21,IF(LEFT(F42,6)="L3903:",Criteria!$V$22,IF(LEFT(F42,6)="L3904:",Criteria!$V$23,IF(OR($F$9=$AD$14,$F$9=$AD$17,$F$9=$AD$19),_xlfn.XLOOKUP(LEFT(F42,6),Criteria!$A$5:$A$333,Criteria!$V$5:$V$333,"NOT FOUND",-1,1),IF(OR($F$9=$AD$15,$F$9=$AD$18,$F$9=$AD$20),_xlfn.XLOOKUP(LEFT(F42,6),Criteria!$C$5:$C$333,Criteria!$Z$5:$Z$333,"NOT FOUND",-1,1),IF($F$9=$AD$21,_xlfn.XLOOKUP(LEFT(F42,6),Criteria!$B$5:$B$333,Criteria!$X$5:$X$333,"NOT FOUND",-1,1), IF($F$9=$AD$22, _xlfn.XLOOKUP(LEFT(F42,6),Criteria!$C$5:$C$333,Criteria!$Z$5:$Z$333,"NOT FOUND",-1,1),"ERROR")))))))))) ->  | O42: =IFERROR(IF(F42=VLOOKUP(F42, Criteria!$E$37:$E$46, 1, FALSE), "This measure Incentive will be capped at 50% project cost.", ""), "") ->  | AC42: L10040: Four-pin base LED Lamp Replacing CFL, Exterior
B43: 24 | G43: =IF(ISBLANK(F43),"",E43*(_xlfn.XLOOKUP(F43,'Industry Std Cost'!$E$4:$E$44,'Industry Std Cost'!$G$4:$G$44,"NOT FOUND",0,1))) ->  | H43: =IF(OR(ISBLANK(F43),ISBLANK(E43)),"",_xlfn.XLOOKUP(D43,'2025 Default Wattage Guide'!$B$67:$B$131, '2025 Default Wattage Guide'!$C$67:$C$131, "NOT FOUND",0,1)) ->  | L43: =IF(ISBLANK(F43),"",IF(G43<=E43*IF(LEFT(F43,6)="L4813:",Criteria!$V$21,IF(LEFT(F43,6)="NL4813",Criteria!$Z$21,IF(LEFT(F43,6)="L3903:",Criteria!$V$22,IF(LEFT(F43,6)="L3904:",Criteria!$V$23, IF(OR($F$9=$AD$14,$F$9=$AD$17,$F$9=$AD$19),_xlfn.XLOOKUP(LEFT(F43,6),Criteria!$A$5:$A$333,Criteria!$V$5:$V$333,"NOT FOUND",-1,1),IF(OR($F$9=$AD$15,$F$9=$AD$18,$F$9=$AD$20),_xlfn.XLOOKUP(LEFT(F43,6),Criteria!$C$5:$C$333,Criteria!$Z$5:$Z$333,"NOT FOUND",-1,1),IF(OR($F$9=$AD$21),_xlfn.XLOOKUP(LEFT(F43,6),Criteria!$B$5:$B$333,Criteria!$X$5:$X$333,"NOT FOUND",-1,1),IF($F$9=$AD$22,_xlfn.XLOOKUP(LEFT(F43,6),Criteria!$B$5:$B$333,Criteria!$X$5:$X$333,"NOT FOUND",-1,1),"ERROR")))))))),G43, E43*IF(LEFT(F43,6)="L4813:",Criteria!$V$21,IF(LEFT(F43,6)="NL4813",Criteria!$Z$21,IF(LEFT(F43,6)="L3903:",Criteria!$V$22,IF(LEFT(F43,6)="L3904:",Criteria!$V$23,IF(OR($F$9=$AD$14,$F$9=$AD$17,$F$9=$AD$19),_xlfn.XLOOKUP(LEFT(F43,6),Criteria!$A$5:$A$333,Criteria!$V$5:$V$333,"NOT FOUND",-1,1),IF(OR($F$9=$AD$15,$F$9=$AD$18,$F$9=$AD$20),_xlfn.XLOOKUP(LEFT(F43,6),Criteria!$C$5:$C$333,Criteria!$Z$5:$Z$333,"NOT FOUND",-1,1),IF($F$9=$AD$21,_xlfn.XLOOKUP(LEFT(F43,6),Criteria!$B$5:$B$333,Criteria!$X$5:$X$333,"NOT FOUND",-1,1), IF($F$9=$AD$22, _xlfn.XLOOKUP(LEFT(F43,6),Criteria!$C$5:$C$333,Criteria!$Z$5:$Z$333,"NOT FOUND",-1,1),"ERROR")))))))))) ->  | O43: =IFERROR(IF(F43=VLOOKUP(F43, Criteria!$E$37:$E$46, 1, FALSE), "This measure Incentive will be capped at 50% project cost.", ""), "") ->  | AC43: L5456: 4' or U-Bend TLED ≤24W, replacing 4' or U-Bend T5, T8 or T12 Lamp, Dusk to Dawn, Exterior
B44: 25 | G44: =IF(ISBLANK(F44),"",E44*(_xlfn.XLOOKUP(F44,'Industry Std Cost'!$E$4:$E$44,'Industry Std Cost'!$G$4:$G$44,"NOT FOUND",0,1))) ->  | H44: =IF(OR(ISBLANK(F44),ISBLANK(E44)),"",_xlfn.XLOOKUP(D44,'2025 Default Wattage Guide'!$B$67:$B$131, '2025 Default Wattage Guide'!$C$67:$C$131, "NOT FOUND",0,1)) ->  | L44: =IF(ISBLANK(F44),"",IF(G44<=E44*IF(LEFT(F44,6)="L4813:",Criteria!$V$21,IF(LEFT(F44,6)="NL4813",Criteria!$Z$21,IF(LEFT(F44,6)="L3903:",Criteria!$V$22,IF(LEFT(F44,6)="L3904:",Criteria!$V$23, IF(OR($F$9=$AD$14,$F$9=$AD$17,$F$9=$AD$19),_xlfn.XLOOKUP(LEFT(F44,6),Criteria!$A$5:$A$333,Criteria!$V$5:$V$333,"NOT FOUND",-1,1),IF(OR($F$9=$AD$15,$F$9=$AD$18,$F$9=$AD$20),_xlfn.XLOOKUP(LEFT(F44,6),Criteria!$C$5:$C$333,Criteria!$Z$5:$Z$333,"NOT FOUND",-1,1),IF(OR($F$9=$AD$21),_xlfn.XLOOKUP(LEFT(F44,6),Criteria!$B$5:$B$333,Criteria!$X$5:$X$333,"NOT FOUND",-1,1),IF($F$9=$AD$22,_xlfn.XLOOKUP(LEFT(F44,6),Criteria!$B$5:$B$333,Criteria!$X$5:$X$333,"NOT FOUND",-1,1),"ERROR")))))))),G44, E44*IF(LEFT(F44,6)="L4813:",Criteria!$V$21,IF(LEFT(F44,6)="NL4813",Criteria!$Z$21,IF(LEFT(F44,6)="L3903:",Criteria!$V$22,IF(LEFT(F44,6)="L3904:",Criteria!$V$23,IF(OR($F$9=$AD$14,$F$9=$AD$17,$F$9=$AD$19),_xlfn.XLOOKUP(LEFT(F44,6),Criteria!$A$5:$A$333,Criteria!$V$5:$V$333,"NOT FOUND",-1,1),IF(OR($F$9=$AD$15,$F$9=$AD$18,$F$9=$AD$20),_xlfn.XLOOKUP(LEFT(F44,6),Criteria!$C$5:$C$333,Criteria!$Z$5:$Z$333,"NOT FOUND",-1,1),IF($F$9=$AD$21,_xlfn.XLOOKUP(LEFT(F44,6),Criteria!$B$5:$B$333,Criteria!$X$5:$X$333,"NOT FOUND",-1,1), IF($F$9=$AD$22, _xlfn.XLOOKUP(LEFT(F44,6),Criteria!$C$5:$C$333,Criteria!$Z$5:$Z$333,"NOT FOUND",-1,1),"ERROR")))))))))) ->  | O44: =IFERROR(IF(F44=VLOOKUP(F44, Criteria!$E$37:$E$46, 1, FALSE), "This measure Incentive will be capped at 50% project cost.", ""), "") ->  | AC44: L5458: 8' TLED, replacing 8' T8 or T12 Lamp, Dusk to Dawn, Exterior
F45: Project Totals | G45: =SUM(IFERROR(G20:G44, 0)) -> 0 | K45: =SUM(IFERROR(K20:K44, 0)) -> 0 | L45: =SUM(IFERROR(L20:L44, 0)) -> 0 | M45: =SUM(IFERROR(M20:M44, 0)) -> 0 | N45: =(G45-L45)/M45 ->  | AC45: L5459: 1X4 or 2X4 LED, ≤43W, replacing 1- or 2-lamp T8 or T12 troffer | AD45: AG Starts Here
AC46: L3111: 2X4 LED, ≤55W, replacing 3- or 4-lamp T8 or T12 troffer
AC47: L3400: 2X2 LED, ≤39W, replacing Fixture with 2 or more T8 or T12 Lamps
AC48: L3401: 2X2 LED, ≤85W, replacing Fixture with 2 or more 2G11 base Lamps
L49: Default Utility Rates | AC49: L10028: LED Downlight Fixtures replacing Incandescent, CFL, or HID fixture
L50: Sector | M50: $/kWh | AC50: L10281: 1’ to 3’ LED Linear Ambient Fixture, Interior
L51: Commercial / Schools & Government / Agriculture | M51: $0.1287 | W51: Sector | X51: HOU | Y51: CF | Z51: NLC SF | AA51: SF by Sector Column Index | AC51: L10282: 4' LED Linear Ambient Fixture, Interior
L52: Industrial | M52: $0.0872 | W52: Agribusiness | X52: 4698 | Y52: 0.67 | Z52: 0.45 | AC52: L10283: 8' LED Linear Ambient Fixture, Interior
L53: Exterior(Off Peak) | M53: $0.0800 | W53: Agribusiness-NC | X53: 4698 | Y53: 0.67 | Z53: 0.45 | AC53: AG4695: LED Fixture, ≤155 Watts, Replacing 250 Watt HID, High Bay, Agriculture
W54: B&I | X54: 3730 | Y54: 0.77 | Z54: 0.56 | AC54: AG4696: LED Fixture, ≤250 Watts, Replacing 320-399 Watt HID, High Bay, Agriculture
W55: B&I-NC | X55: 3730 | Y55: 0.77 | Z55: 0.56 | AC55: AG4697: LED Fixture, ≤250 Watts, Replacing 400 Watt HID, High Bay, Agriculture
W56: Large Industrial | X56: 4745 | Y56: 0.77 | Z56: 0.49 | AC56: AG4698: LED Fixture, ≤365 Watts, Replacing 400 Watt HID, High Bay, Agriculture
W57: Large Industrial-NC | X57: 4745 | Y57: 0.77 | Z57: 0.49 | AC57: AG4701: LED Fixture, ≤180W LED, replacing 6L T8 or 4L T5HO, High Bay, Agriculture
W58: Schools & Government | X58: 3239 | Y58: 0.64 | Z58: 0.41 | AC58: AG4702: LED Fixture, ≤250W LED, replacing 8LT8 or 6LT5HO, High Bay, Agriculture
W59: Schools & Government-NC | X59: 3239 | Y59: 0.64 | Z59: 0.41 | AC59: AG4699: LED Fixture, ≤500 Watts, Replacing 1000 Watt HID, High Bay, Agriculture
W60: Exterior | X60: 4,380 | Y60: 0 | Z60: 0.5 | AC60: AG4698: LED Fixture, ≤365 Watts, Replacing 400 Watt HID, High Bay, Agriculture
AC61: AG4701: LED Fixture, ≤180W LED, replacing 6L T8 or 4L T5HO, High Bay, Agriculture
AC62: AG4702: LED Fixture, ≤250W LED, replacing 8LT8 or 6LT5HO, High Bay, Agriculture
AC63: L10042: DLC listed, Mogul Screw-Base (E39) LED lamp replacing existing E39 base lamp
AC64: L5451: 4' or U-Bend TLED, ≤24W, replacing 4' or U-Bend T5, T8, or T12 Lamp
AC65: L5452: 4' TLED, replacing 4' T5HO Lamp
AC66: L5453: 2' or 3' TLED, replacing 2' or 3' T8 or T12 Lamp
AC67: L5454: 8' TLED, replacing 8' T8 or T12 Lamp
AC68: AG5024: Horticultural Lighting, Non-stacked Indoor, <700W LED, replacing 1000W HID, Agriculture
AC69: AG5025: Horticultural Lighting, Non-stacked Indoor, <400W LED, replacing 600W HID, Agriculture
AC70: AG5026: Horticultural Lighting, Supplemented Greenhouse, <700W LED, replacing 1000W HID, Agriculture
AC71: AG5027: Horticultural Lighting, Supplemented Greenhouse, <400W LED, replacing 600W HID, Agriculture
AC72: AG5028: Horticultural Lighting, Supplemented Greenhouse, <250W LED, replacing 400W HID, Agriculture
K73: Exterior | AC73: N-AG5024: Horticultural Lighting, Non-stacked Indoor, <700W LED, replacing 1000W HID, Agriculture
K74: Interior | AC74: N-AG5025: Horticultural Lighting, Non-stacked Indoor, <400W LED, replacing 600W HID, Agriculture
AC75: N-AG5026: Horticultural Lighting, Supplemented Greenhouse, <700W LED, replacing 1000W HID, Agriculture
AC76: N-AG5027: Horticultural Lighting, Supplemented Greenhouse, <400W LED, replacing 600W HID, Agriculture
AC77: N-AG5028: Horticultural Lighting, Supplemented Greenhouse, <250W LED, replacing 400W HID, Agriculture
AC78: L5456: 4' or U-Bend TLED ≤24W, replacing 4' or U-Bend T5, T8 or T12 Lamp, Dusk to Dawn, Exterior
AC79: L5458: 8' TLED, replacing 8' T8 or T12 Lamp, Dusk to Dawn, Exterior
AC80: L10029: LED Downlight Fixtures replacing or instead of Incandescent, CFL or HID fixture, Exterior
AC81: L10284: 1’ to 3’ LED Linear Ambient Fixture, Exterior
AC82: L10285: 4' LED Linear Ambient Fixture, Exterior
AC83: L10286: 8' LED Linear Ambient Fixture, Exterior
AC84: L4280: Outdoor LED Fixture or Retrofit Kit – Low Output
AC85: L4281: Outdoor LED Fixture or Retrofit Kit – Mid Output
AC86: L4282: Outdoor LED Fixture or Retrofit Kit – High Output
AC87: L4283: Outdoor LED Fixture or Retrofit Kit – Very High Output
AC88: N-L4280: Outdoor LED Fixture or Retrofit Kit – Low Output
AC89: N-L4281: Outdoor LED Fixture or Retrofit Kit – Mid Output
AC90: N-L4282: Outdoor LED Fixture or Retrofit Kit – High Output
AC91: N-L4283: Outdoor LED Fixture or Retrofit Kit – Very High Output
AC92: L10043: Mogul Screw-in Base (E39) replacing existing E39 base lamp, Exterior
AC93: L5456: 4' or U-Bend TLED ≤24W, replacing 4' or U-Bend T5, T8 or T12 Lamp, Dusk to Dawn, Exterior
AC94: L5458: 8' TLED, replacing 8' T8 or T12 Lamp, Dusk to Dawn, Exterior
F113: Version History
F114: Program Year | G114: Date of Revision | H114: Description of Changes | I114: Updated By:
F115: 2025 | G115: 2024-12-16 | H115: Still Creating Initial Tool | I115: Evan Croft
F116: 2025 | G116: 2025-01-16 | H116: Editing Existing and proposed fixutre options, will add in deemed savings for proposed, and ISC for project costs | I116: Evan Croft
F117: 2025 | G117: 2025-02-19 | H117: Added in input tables for S&G, B&I, Commercial, Ag measures with breakdowns for existing fixture type. | I117: Evan Croft
F118: 2025 | G118: 2025-02-26 | H118: Added in Deemed Savings Formulas | I118: Evan Croft
F119: 2025 | G119: 2025-02-27 | H119: Added Payback Formula | I119: Evan Croft
F120: 2025 | G120: 2025-03-11 | H120: Added in remaining ISC from SPECTRUM | I120: Evan Croft
F121: 2025 | G121: 2025-07-22 | H121: Made multiple edits: added in new kwh savings formula(removing deemed savings formula), Made multiple other small, clerical edits. | I121: Evan Croft
F122: 2025 | G122: 2025-08-05 | H122: Removed extra tables and formulas that are from the shell calc we used to create the tool. | I122: Evan Croft
F123: 2026 | G123: 2026-02-18 | H123: Updated for 2026, changed incentive rates, measure lists, ISC, etc. | I123: Evan Croft

Sheet Input Tables (hidden)
A2: Default Wattage | D2: Matching Measure
A3: Select Fixture/Lamp
A4: *******FOR CFL DOWNLIGHTS******* | B4: Wattage | D4: CFLSGINT | E4: CFLSGEXT | F4: CFLSGNCINT | G4: CFLSGNCEXT | H4: CFLAGINT | I4: CFLAGEXT | J4: CFLAGNCINT | K4: CFLAGNCEXT
A5: (1) 13W CFL | B5: 16 | D5: L10028: LED Downlight Fixtures replacing or instead of Incandescent, CFL, or HID fixture | E5: L10029: LED Downlight Fixtures replacing or instead of Incandescent, CFL or HID fixture, Exterior | F5: NL10028: LED Downlight Fixtures replacing or instead of Incandescent, CFL, or HID fixture | G5: NL10029: LED Downlight Fixtures replacing or instead of Incandescent, CFL or HID fixture, Exterior | H5: L10028: LED Downlight Fixtures replacing or instead of Incandescent, CFL, or HID fixture | I5: L10029: LED Downlight Fixtures replacing or instead of Incandescent, CFL or HID fixture, Exterior | J5: NL10028: LED Downlight Fixtures replacing or instead of Incandescent, CFL, or HID fixture | K5: NL10029: LED Downlight Fixtures replacing or instead of Incandescent, CFL or HID fixture, Exterior
A6: (1) 18W CFL | B6: 23 | D6: L4813: LED Track/Mono/Accent fixtures replacing incandescent, CFL, or HID fixture | E6: L10040: Four-pin base LED Lamp Replacing CFL, Exterior | F6: NL4813: LED Track/Mono/Accent fixtures replacing incandescent, CFL, or HID fixture | G6: NL4280: Outdoor LED Fixture or Retrofit Kit – Low Output ≤4,999 lumens | H6: L4813: LED Track/Mono/Accent fixtures replacing incandescent, CFL, or HID fixture | I6: L10040: Four-pin base LED Lamp Replacing CFL, Exterior | J6: NL4813: LED Track/Mono/Accent fixtures replacing incandescent, CFL, or HID fixture | K6: NL4280: Outdoor LED Fixture or Retrofit Kit – Low Output ≤4,999 lumens
A7: (1) 26W CFL | B7: 31 | D7: L10039: Four-pin base LED Lamp Replacing CFL | E7: L4280: Outdoor LED Fixture or Retrofit Kit – Low Output ≤4,999 lumens | G7: NL4281: Outdoor LED Fixture or Retrofit Kit – Mid Output 5,000 – 9,999 lumens | H7: L10039: Four-pin base LED Lamp Replacing CFL | I7: L4280: Outdoor LED Fixture or Retrofit Kit – Low Output ≤4,999 lumens | K7: NL4281: Outdoor LED Fixture or Retrofit Kit – Mid Output 5,000 – 9,999 lumens
A8: (1) 32W CFL | B8: 35 | D8: L3903: Interior LED Signage | E8: L4281: Outdoor LED Fixture or Retrofit Kit – Mid Output 5,000 – 9,999 lumens | G8: NL4282: Outdoor LED Fixture or Retrofit Kit – High Output 10,000 – 29,999 lumens | H8: L3903: Interior LED Signage | I8: L4281: Outdoor LED Fixture or Retrofit Kit – Mid Output 5,000 – 9,999 lumens | K8: NL4282: Outdoor LED Fixture or Retrofit Kit – High Output 10,000 – 29,999 lumens
A9: (1) 42W CFL | B9: 46 | E9: L4282: Outdoor LED Fixture or Retrofit Kit – High Output 10,000 – 29,999 lumens | G9: NL4283: Outdoor LED Fixture or Retrofit Kit – Very High Output ≥30,000 lumens | I9: L4282: Outdoor LED Fixture or Retrofit Kit – High Output 10,000 – 29,999 lumens | K9: NL4283: Outdoor LED Fixture or Retrofit Kit – Very High Output ≥30,000 lumens
A10: (1) 36/39W 2G11 CFL | B10: 51 | E10: L4283: Outdoor LED Fixture or Retrofit Kit – Very High Output ≥30,000 lumens | G10: NL5065: Outdoor LED Fixture or Retrofit Kit – Low Output ≤4,999 lumens, with NLC | I10: L4283: Outdoor LED Fixture or Retrofit Kit – Very High Output ≥30,000 lumens | K10: NL5065: Outdoor LED Fixture or Retrofit Kit – Low Output ≤4,999 lumens, with NLC
A11: (1) 40W 2G11 CFL | B11: 48 | E11: L3904: Exterior LED Signage | G11: NL5066: Outdoor LED Fixture or Retrofit Kit – Mid Output 5,000 – 9,999 lumens, with NLC | I11: L3904: Exterior LED Signage | K11: NL5066: Outdoor LED Fixture or Retrofit Kit – Mid Output 5,000 – 9,999 lumens, with NLC
A12: (1) 55W 2G11 CFL | B12: 58 | G12: NL5067: Outdoor LED Fixture or Retrofit Kit – High Output 10,000 – 29,999 lumens, with NLC | K12: NL5067: Outdoor LED Fixture or Retrofit Kit – High Output 10,000 – 29,999 lumens, with NLC
A13: (2) 13W CFL | B13: 32 | G13: NL5068: Outdoor LED Fixture or Retrofit Kit – Very High Output ≥30,000 lumens, with NLC | K13: NL5068: Outdoor LED Fixture or Retrofit Kit – Very High Output ≥30,000 lumens, with NLC
A14: (2) 18 W CFL | B14: 46
A15: (2) 26W CFL | B15: 62
A16: (2) 32W CFL | B16: 70
A25: *******FOR HID SYSTEMS******* | D25: HIDSGINT | E25: HIDSGEXT | F25: HIDSGNCINT | G25: HIDSGNCEXT | H25: HIDAGINT | I25: HIDAGEXT | J25: HIDAGNCINT | K25: HIDAGNCEXT
A26: 50W HID | B26: 65 | D26: L10028: LED Downlight Fixtures replacing or instead of Incandescent, CFL, or HID fixture | E26: L10029: LED Downlight Fixtures replacing or instead of Incandescent, CFL or HID fixture, Exterior | F26: NL10028: LED Downlight Fixtures replacing or instead of Incandescent, CFL, or HID fixture | G26: NL10029: LED Downlight Fixtures replacing or instead of Incandescent, CFL or HID fixture, Exterior | H26: L10028: LED Downlight Fixtures replacing Incandescent, CFL, or HID fixture | I26: L10029: LED Downlight Fixtures replacing or instead of Incandescent, CFL or HID fixture, Exterior | J26: NL10028: LED Downlight Fixtures replacing or instead of Incandescent, CFL, or HID fixture | K26: NL10029: LED Downlight Fixtures replacing or instead of Incandescent, CFL or HID fixture, Exterior
A27: 70W HID | B27: 94 | D27: L4813: LED Track/Mono/Accent fixtures replacing incandescent, CFL, or HID fixture | E27: L10043: DLC listed, Mogul Screw-Base (E39) lamp replacing HID, Exterior | F27: NL4813: LED Track/Mono/Accent fixtures replacing incandescent, CFL, or HID fixture | G27: NL4280: Outdoor LED Fixture or Retrofit Kit – Low Output ≤4,999 lumens | H27: AG4695: LED Fixture, ≤155 Watts, Replacing 250 Watt HID, High Bay, Agriculture | I27: L3903: Interior LED Signage | J27: NL4813: LED Track/Mono/Accent fixtures replacing incandescent, CFL, or HID fixture | K27: NL4280: Outdoor LED Fixture or Retrofit Kit – Low Output ≤4,999 lumens
A28: 100W HID | B28: 126 | D28: L3091: ≤ 155W LED High Bay/Low Bay, replacing or instead of 250W HID | E28: L4280: Outdoor LED Fixture or Retrofit Kit – Low Output ≤4,999 lumens | G28: NL4281: Outdoor LED Fixture or Retrofit Kit – Mid Output 5,000 – 9,999 lumens | H28: AG4696: LED Fixture, ≤250 Watts, Replacing 320-399 Watt HID, High Bay, Agriculture | I28: L4280: Outdoor LED Fixture or Retrofit Kit – Low Output ≤4,999 lumens | K28: NL4281: Outdoor LED Fixture or Retrofit Kit – Mid Output 5,000 – 9,999 lumens
A29: 125W HID | B29: 146 | D29: L3092: ≤ 250W LED High Bay/Low Bay, instead of 320-399W HID | E29: L4281: Outdoor LED Fixture or Retrofit Kit – Mid Output 5,000 – 9,999 lumens | G29: NL4282: Outdoor LED Fixture or Retrofit Kit – High Output 10,000 – 29,999 lumens | H29: AG4697: LED Fixture, ≤250 Watts, Replacing 400 Watt HID, High Bay, Agriculture | I29: L4281: Outdoor LED Fixture or Retrofit Kit – Mid Output 5,000 – 9,999 lumens | K29: NL4282: Outdoor LED Fixture or Retrofit Kit – High Output 10,000 – 29,999 lumens
A30: 150W HID | B30: 179 | D30: L3093: ≤ 250W LED High Bay/Low Bay, replacing 400W HID | E30: L4282: Outdoor LED Fixture or Retrofit Kit – High Output 10,000 – 29,999 lumens | G30: NL4283: Outdoor LED Fixture or Retrofit Kit – Very High Output ≥30,000 lumens | H30: AG4698: LED Fixture, ≤365 Watts, Replacing 400 Watt HID, High Bay, Agriculture | I30: L4282: Outdoor LED Fixture or Retrofit Kit – High Output 10,000 – 29,999 lumens | K30: NL4283: Outdoor LED Fixture or Retrofit Kit – Very High Output ≥30,000 lumens
A31: 175W HID | B31: 210 | D31: L3094: ≤ 365W LED High Bay/Low Bay, replacing 400W HID | E31: L4283: Outdoor LED Fixture or Retrofit Kit – Very High Output ≥30,000 lumens | G31: NL5065: Outdoor LED Fixture or Retrofit Kit – Low Output ≤4,999 lumens, with NLC | H31: AG5024: Horticultural Lighting, Non-stacked Indoor, <700W LED, replacing 1000W HID, Agriculture | I31: L4283: Outdoor LED Fixture or Retrofit Kit – Very High Output ≥30,000 lumens | K31: NL5065: Outdoor LED Fixture or Retrofit Kit – Low Output ≤4,999 lumens, with NLC
A32: 200W HID | B32: 232 | D32: L3095: ≤ 500W LED High Bay/Low Bay, replacing or instead of 1000W HID | E32: L3904: Exterior LED Signage | G32: NL5066: Outdoor LED Fixture or Retrofit Kit – Mid Output 5,000 – 9,999 lumens, with NLC | H32: AG5025: Horticultural Lighting, Non-stacked Indoor, <400W LED, replacing 600W HID, Agriculture | I32: L3904: Exterior LED Signage | K32: NL5066: Outdoor LED Fixture or Retrofit Kit – Mid Output 5,000 – 9,999 lumens, with NLC
A33: 250W HID | B33: 293 | D33: L3096: ≤ 800W LED High Bay/Low Bay, replacing or instead of 1000W HID | G33: NL5067: Outdoor LED Fixture or Retrofit Kit – High Output 10,000 – 29,999 lumens, with NLC | H33: AG5026: Horticultural Lighting, Supplemented Greenhouse, <700W LED, replacing 1000W HID, Agriculture | K33: NL5067: Outdoor LED Fixture or Retrofit Kit – High Output 10,000 – 29,999 lumens, with NLC
A34: 320W HID | B34: 356 | D34: L10215: ≤ 155W LED High Bay/Low Bay, replacing or instead of 250W HID, w/LLLC | G34: NL5068: Outdoor LED Fixture or Retrofit Kit – Very High Output ≥30,000 lumens, with NLC | H34: AG5027: Horticultural Lighting, Supplemented Greenhouse, <400W LED, replacing 600W HID, Agriculture | K34: NL5068: Outdoor LED Fixture or Retrofit Kit – Very High Output ≥30,000 lumens, with NLC
A35: 400W HID | B35: 455 | D35: L10216: ≤ 250W LED High Bay/Low Bay, replacing 400W HID, w/LLLC | H35: AG5028: Horticultural Lighting, Supplemented Greenhouse, <250W LED, replacing 400W HID, Agriculture
A36: 750W HID | B36: 812 | D36: L10042: DLC listed, Mogul Screw-Base (E39) LED lamp replacing HID
A37: 1,000W HID | B37: 1,079 | D37: L3903: Interior LED Signage
D47: FLSGINT | E47: FLSGEXT | F47: FLSGNCINT | G47: FLSGNCEXT | H47: FLAGINT | I47: FLAGEXT | J47: FLAGNCINT | K47: FLAGNCEXT
A48: *******FOR LINEAR FLUORESCENT SYSTEMS******* | D48: L5451: 4' or U-Bend TLED, ≤24W, replacing 4' or U-Bend T5, T8, or T12 Lamp | E48: L5456: 4' or U-Bend TLED ≤24W, replacing 4' or U-Bend T5, T8 or T12 Lamp, Dusk to Dawn, Exterior | F48: No Lamp S&G NC Interior Measures | G48: NL4280: Outdoor LED Fixture or Retrofit Kit – Low Output ≤4,999 lumens | H48: L5451: 4' or U-Bend TLED, ≤24W, replacing 4' or U-Bend T5, T8, or T12 Lamp | I48: L5456: 4' or U-Bend TLED ≤24W, replacing 4' or U-Bend T5, T8 or T12 Lamp, Dusk to Dawn, Exterior | J48: No Lamp AG NC Interior Measures | K48: NL4280: Outdoor LED Fixture or Retrofit Kit – Low Output ≤4,999 lumens
A49: *******Linear Replacement Lamps******** | D49: L5452: 4' TLED, replacing 4' T5HO Lamp | E49: L5458: 8' TLED, replacing 8' T8 or T12 Lamp, Dusk to Dawn, Exterior | G49: NL4281: Outdoor LED Fixture or Retrofit Kit – Mid Output 5,000 – 9,999 lumens | H49: L5452: 4' TLED, replacing 4' T5HO Lamp | I49: L4280: Outdoor LED Fixture or Retrofit Kit – Low Output ≤4,999 lumens | K49: NL4281: Outdoor LED Fixture or Retrofit Kit – Mid Output 5,000 – 9,999 lumens
A50: 4' or U-Bend T5, T8, or T12 Lamp | D50: L5453: 2' or 3' TLED, replacing 2' or 3' T8 or T12 Lamp | E50: L4280: Outdoor LED Fixture or Retrofit Kit – Low Output ≤4,999 lumens | G50: NL4282: Outdoor LED Fixture or Retrofit Kit – High Output 10,000 – 29,999 lumens | H50: L5453: 2' or 3' TLED, replacing 2' or 3' T8 or T12 Lamp | I50: L4281: Outdoor LED Fixture or Retrofit Kit – Mid Output 5,000 – 9,999 lumens | K50: NL4282: Outdoor LED Fixture or Retrofit Kit – High Output 10,000 – 29,999 lumens
A51: 4' T5HO Lamp | D51: L5454: 8' TLED, replacing 8' T8 or T12 Lamp | E51: L4281: Outdoor LED Fixture or Retrofit Kit – Mid Output 5,000 – 9,999 lumens | G51: NL4283: Outdoor LED Fixture or Retrofit Kit – Very High Output ≥30,000 lumens | H51: L5454: 8' TLED, replacing 8' T8 or T12 Lamp | I51: L4282: Outdoor LED Fixture or Retrofit Kit – High Output 10,000 – 29,999 lumens | K51: NL4283: Outdoor LED Fixture or Retrofit Kit – Very High Output ≥30,000 lumens
A52: 2' or 3' T8 or T12 Lamp | D52: L3903: Interior LED Signage | E52: L4282: Outdoor LED Fixture or Retrofit Kit – High Output 10,000 – 29,999 lumens | G52: NL5065: Outdoor LED Fixture or Retrofit Kit – Low Output ≤4,999 lumens, with NLC | H52: L3903: Interior LED Signage | I52: L4283: Outdoor LED Fixture or Retrofit Kit – Very High Output ≥30,000 lumens | K52: NL5065: Outdoor LED Fixture or Retrofit Kit – Low Output ≤4,999 lumens, with NLC
A53: 8' T8 or T12 Lamp | E53: L4283: Outdoor LED Fixture or Retrofit Kit – Very High Output ≥30,000 lumens | G53: NL5066: Outdoor LED Fixture or Retrofit Kit – Mid Output 5,000 – 9,999 lumens, with NLC | I53: L3904: Exterior LED Signage | K53: NL5066: Outdoor LED Fixture or Retrofit Kit – Mid Output 5,000 – 9,999 lumens, with NLC
E54: L3904: Exterior LED Signage | G54: NL5067: Outdoor LED Fixture or Retrofit Kit – High Output 10,000 – 29,999 lumens, with NLC | I54: L5458: 8' TLED, replacing 8' T8 or T12 Lamp, Dusk to Dawn, Exterior | K54: NL5067: Outdoor LED Fixture or Retrofit Kit – High Output 10,000 – 29,999 lumens, with NLC
G55: NL5068: Outdoor LED Fixture or Retrofit Kit – Very High Output ≥30,000 lumens, with NLC | K55: NL5068: Outdoor LED Fixture or Retrofit Kit – Very High Output ≥30,000 lumens, with NLC
A64: *******4-Foot Fixtures******* | D64: T8SGINT | E64: T8SGEXT | F64: T8SGNCINT | G64: T8SGNCEXT | H64: T8AGINT | I64: T8AGEXT | J64: T8AGNCINT | K64: T8AGNCEXT
A65: 1L F32 T8 Normal BF Fixture | B65: 33 | D65: L5459: LED, ≤43W, 1x4 or 2X4 product replacing 1- or 2-lamp T8 or T12 troffer | E65: L10284: 1’ to 3’ LED Linear Ambient Fixture, Exterior | F65: NL5459: LED, ≤43W, 1x4 or 2X4 product replacing 1- or 2-lamp T8 or T12 troffer | G65: NL10284: 1’ to 3’ LED Linear Ambient Fixture, Exterior | H65: L5459: LED, ≤43W, 1x4 or 2X4 product replacing 1- or 2-lamp T8 or T12 troffer | I65: L10285: 4' LED Linear Ambient Fixture, Exterior | J65: NL5459: LED, ≤43W, 1x4 or 2X4 product replacing 1- or 2-lamp T8 or T12 troffer | K65: NL10284: 1’ to 3’ LED Linear Ambient Fixture, Exterior
A66: 1L F34 T12 Fixture | B66: 39 | D66: L3111: LED, ≤55W, 2X4 product replacing 3- or 4-lamp T8 or T12 troffer | E66: L10285: 4' LED Linear Ambient Fixture, Exterior | F66: NL3111: LED, ≤55W, 2X4 product replacing 3- or 4-lamp T8 or T12 troffer | G66: NL10285: 4' LED Linear Ambient Fixture, Exterior | H66: L3111: LED, ≤55W, 2X4 product replacing 3- or 4-lamp T8 or T12 troffer | I66: L10286: 8' LED Linear Ambient Fixture, Exterior | J66: NL3111: LED, ≤55W, 2X4 product replacing 3- or 4-lamp T8 or T12 troffer | K66: NL10285: 4' LED Linear Ambient Fixture, Exterior
A67: 1L F40 T12 Fixture | B67: 39 | D67: L3400: 2X2 LED, ≤39W, replacing Fixture with 2 or more T8 or T12 Lamps | E67: L10286: 8' LED Linear Ambient Fixture, Exterior | F67: NL3400: 2X2 LED, ≤39W, replacing Fixture with 2 or more T8 or T12 Lamps | G67: NL10286: 8' LED Linear Ambient Fixture, Exterior | H67: L3400: 2X2 LED, ≤39W, replacing Fixture with 2 or more T8 or T12 Lamps | I67: L5458: 8' TLED, replacing 8' T8 or T12 Lamp, Dusk to Dawn, Exterior | J67: NL3400: 2X2 LED, ≤39W, replacing Fixture with 2 or more T8 or T12 Lamps | K67: NL10286: 8' LED Linear Ambient Fixture, Exterior
A68: 1L F54 T5HO Fixture | B68: 62 | D68: L3401: 2X2 LED, ≤85W, replacing Fixture with 2 or more 2G11 base Lamps | E68: L4280: Outdoor LED Fixture or Retrofit Kit – Low Output ≤4,999 lumens | F68: NL3401: 2X2 LED, ≤85W, replacing Fixture with 2 or more 2G11 base Lamps | G68: NL4280: Outdoor LED Fixture or Retrofit Kit – Low Output ≤4,999 lumens | H68: L3401: 2X2 LED, ≤85W, replacing Fixture with 2 or more 2G11 base Lamps | I68: L4280: Outdoor LED Fixture or Retrofit Kit – Low Output ≤4,999 lumens | J68: NL3401: 2X2 LED, ≤85W, replacing Fixture with 2 or more 2G11 base Lamps | K68: NL4280: Outdoor LED Fixture or Retrofit Kit – Low Output ≤4,999 lumens
A69: 2L F32 T8 Normal BF Fixture | B69: 61 | D69: L10214: LED, ≤43W, 1x4 or 2X4 product replacing 1- or 2-lamp T8 or T12 troffer, w/LLLC | E69: L4281: Outdoor LED Fixture or Retrofit Kit – Mid Output 5,000 – 9,999 lumens | F69: NL10281: 1’ to 3’ LED Linear Ambient Fixture, Interior | G69: NL4281: Outdoor LED Fixture or Retrofit Kit – Mid Output 5,000 – 9,999 lumens | H69: L10281: 1’ to 3’ LED Linear Ambient Fixture, Interior | I69: L4281: Outdoor LED Fixture or Retrofit Kit – Mid Output 5,000 – 9,999 lumens | J69: NL10281: 1’ to 3’ LED Linear Ambient Fixture, Interior | K69: NL4281: Outdoor LED Fixture or Retrofit Kit – Mid Output 5,000 – 9,999 lumens
A70: 2L FU32T8/6 Fixture | B70: 55 | D70: L10213: LED, ≤55W, 2X4 product replacing 3- or 4-lamp T8 or T12 troffer, w/LLLC | E70: L4282: Outdoor LED Fixture or Retrofit Kit – High Output 10,000 – 29,999 lumens | F70: NL10282: 4' LED Linear Ambient Fixture, Interior | G70: NL4282: Outdoor LED Fixture or Retrofit Kit – High Output 10,000 – 29,999 lumens | H70: L10282: 4' LED Linear Ambient Fixture, Interior | I70: L4282: Outdoor LED Fixture or Retrofit Kit – High Output 10,000 – 29,999 lumens | J70: NL10282: 4' LED Linear Ambient Fixture, Interior | K70: NL4282: Outdoor LED Fixture or Retrofit Kit – High Output 10,000 – 29,999 lumens
A71: 2L F34 T12 Fixture | B71: 66 | D71: L10211: 2X2 LED, ≤39W, replacing Fixture with 2 or more T8 or T12 Lamps, w/LLLC | E71: L4283: Outdoor LED Fixture or Retrofit Kit – Very High Output ≥30,000 lumens | F71: NL10283: 8' LED Linear Ambient Fixture, Interior | G71: NL4283: Outdoor LED Fixture or Retrofit Kit – Very High Output ≥30,000 lumens | H71: L10283: 8' LED Linear Ambient Fixture, Interior | I71: L4283: Outdoor LED Fixture or Retrofit Kit – Very High Output ≥30,000 lumens | J71: NL10283: 8' LED Linear Ambient Fixture, Interior | K71: NL4283: Outdoor LED Fixture or Retrofit Kit – Very High Output ≥30,000 lumens
A72: 2L F40 T12 Fixture | B72: 79 | D72: L10212: 2X2 LED, ≤85W, replacing Fixture with 2 or more 2G11 base Lamps, w/LLLC | E72: L3904: Exterior LED Signage | F72: NL5460: ≤ 85W LED High Bay/Low Bay, replacing 4 Lamp 4' or 2 Lamp 8' T8 or T12 | G72: NL5065: Outdoor LED Fixture or Retrofit Kit – Low Output ≤4,999 lumens, with NLC | H72: L10284: 1’ to 3’ LED Linear Ambient Fixture, Exterior | I72: L3904: Exterior LED Signage | J72: NL5460: ≤ 85W LED High Bay/Low Bay, replacing 4 Lamp 4' or 2 Lamp 8' T8 or T12 | K72: NL5065: Outdoor LED Fixture or Retrofit Kit – Low Output ≤4,999 lumens, with NLC
A73: 2L FU40T12 Fixture | B73: 72 | D73: L10281: 1’ to 3’ LED Linear Ambient Fixture, Interior | F73: NL3393: ≤ 180W LED High Bay/Low Bay, replacing or instead of 6L T8 or 4L T5HO | G73: NL5066: Outdoor LED Fixture or Retrofit Kit – Mid Output 5,000 – 9,999 lumens, with NLC | H73: L3903: Interior LED Signage | J73: NL3393: ≤ 180W LED High Bay/Low Bay, replacing or instead of 6L T8 or 4L T5HO | K73: NL5066: Outdoor LED Fixture or Retrofit Kit – Mid Output 5,000 – 9,999 lumens, with NLC
A74: 2L F54 T5HO Fixture | B74: 117 | D74: L10282: 4' LED Linear Ambient Fixture, Interior | F74: NL4347: ≤ 250W LED High Bay/Low Bay, replacing or instead of 8L T8 or 6L T5HO | G74: NL5067: Outdoor LED Fixture or Retrofit Kit – High Output 10,000 – 29,999 lumens, with NLC | H74: L5460: ≤ 85W LED High Bay/Low Bay, replacing 4 Lamp 4' or 2 Lamp 8' T8 or T12 | J74: NL4347: ≤ 250W LED High Bay/Low Bay, replacing or instead of 8L T8 or 6L T5HO | K74: NL5067: Outdoor LED Fixture or Retrofit Kit – High Output 10,000 – 29,999 lumens, with NLC
A75: 3L F32 T8 Normal BF Fixture | B75: 91 | D75: L10283: 8' LED Linear Ambient Fixture, Interior | F75: NL4795: ≤ 300W LED High Bay/Low Bay, replacing or instead of 10L T8 or 8L T5HO | G75: NL5068: Outdoor LED Fixture or Retrofit Kit – Very High Output ≥30,000 lumens, with NLC | H75: L5461: ≤ 125W LED High Bay/Low Bay, replacing 4 Lamp 4' or 2 Lamp 8' T12HO | J75: NL4795: ≤ 300W LED High Bay/Low Bay, replacing or instead of 10L T8 or 8L T5HO | K75: NL5068: Outdoor LED Fixture or Retrofit Kit – Very High Output ≥30,000 lumens, with NLC
A76: 3L F34 T12 Fixture | B76: 103 | D76: L5460: ≤ 85W LED High Bay/Low Bay, replacing 4 Lamp 4' or 2 Lamp 8' T8 or T12 | F76: NL4796: ≤ 350W LED High Bay/Low Bay, replacing or instead of 12L T8 or 10L T5HO | H76: L3393: ≤ 180W LED High Bay/Low Bay, replacing or instead of 6L T8 or 4L T5HO | J76: NL4796: ≤ 350W LED High Bay/Low Bay, replacing or instead of 12L T8 or 10L T5HO
A77: 3L F40 T12 Fixture | B77: 124 | D77: L5461: ≤ 125W LED High Bay/Low Bay, replacing 4 Lamp 4' or 2 Lamp 8' T12HO | H77: L4347: ≤ 250W LED High Bay/Low Bay, replacing or instead of 8L T8 or 6L T5HO | J77: NL5460: ≤ 85W LED High Bay/Low Bay, replacing 4 Lamp 4' or 2 Lamp 8' T8 or T12
A78: 4L F54 T5HO Fixture | B78: 234 | D78: L3393: ≤ 180W LED High Bay/Low Bay, replacing or instead of 6L T8 or 4L T5HO | H78: L4795: ≤ 300W LED High Bay/Low Bay, replacing or instead of 10L T8 or 8L T5HO | J78: NL3393: ≤ 180W LED High Bay/Low Bay, replacing or instead of 6L T8 or 4L T5HO
A79: 4L F32 T8 Normal BF Fixture | B79: 120 | D79: L4347: ≤ 250W LED High Bay/Low Bay, replacing or instead of 8L T8 or 6L T5HO | H79: L4796: ≤ 350W LED High Bay/Low Bay, replacing or instead of 12L T8 or 10L T5HO | J79: NL4347: ≤ 250W LED High Bay/Low Bay, replacing or instead of 8L T8 or 6L T5HO
A80: 4L F32 T8 High BF Fixture | B80: 151 | D80: L4795: ≤ 300W LED High Bay/Low Bay, replacing or instead of 10L T8 or 8L T5HO | H80: L10217: ≤ 180W LED High Bay/Low Bay, replacing or instead of 6L T8 or 4L T5HO, w/LLLC | J80: NL4795: ≤ 300W LED High Bay/Low Bay, replacing or instead of 10L T8 or 8L T5HO
A81: 4L F34 T12 Fixture | B81: 136 | D81: L4796: ≤ 350W LED High Bay/Low Bay, replacing or instead of 12L T8 or 10L T5HO | H81: L10218: ≤ 250W LED High Bay/Low Bay, replacing or instead of 8L T8 or 6L T5HO, w/LLLC | J81: NL4796: ≤ 350W LED High Bay/Low Bay, replacing or instead of 12L T8 or 10L T5HO
A82: 4L F40 T12 Fixture | B82: 153 | D82: L10217: ≤ 180W LED High Bay/Low Bay, replacing or instead of 6L T8 or 4L T5HO, w/LLLC | H82: AG4697: LED Fixture, ≤250 Watts, Replacing 400 Watt HID, High Bay, Agriculture
A83: 6L F54 T5HO Fixture | B83: 355 | D83: L10218: ≤ 250W LED High Bay/Low Bay, replacing or instead of 8L T8 or 6L T5HO, w/LLLC | H83: AG4698: LED Fixture, ≤365 Watts, Replacing 400 Watt HID, High Bay, Agriculture
A84: 6L F32 T8 High BF Fixture | B84: 224 | D84: L3903: Interior LED Signage | H84: AG4701: LED Fixture, ≤180W LED, replacing 6L T8 or 4L T5HO, High Bay, Agriculture
A85: 8L F54 T5HO Fixture | B85: 468 | H85: AG4702: LED Fixture, ≤250W LED, replacing 8LT8 or 6LT5HO, High Bay, Agriculture
A86: 8L F32 T8 High BF Fixture | B86: 291
A87: 10L F54 T5HO Fixture | B87: 585
A88: 10L F32 T8 High BF Fixture | B88: 368
A89: 12L F32 T8 High BF Fixture | B89: 442
A90: *******8-Foot Fixtures*******
A91: 1L F96T8 Fixture | B91: 61
A92: 2L F96T8 Fixture | B92: 107
A93: 1L F96T12 Fixture | B93: 69
A94: 1L F96T12/HO Fixture | B94: 115
A95: 2L F96T12 Fixture | B95: 109
A96: 2L F96T12/HO Fixture | B96: 190
A97: Other Fixture(Non DLC/ES Listed, different end use appliaction, not listed) | B97: Manual Input
A100: Measures | B100: Measure Selection | C100: Measure Tables | G100: Fixture List Specification | J100: Fixture List Specification
A101: L5459: LED, ≤43W, 1x4 or 2X4 product replacing 1- or 2-lamp T8 or T12 troffer | B101: Schools & Government - Interior | D101: 69:104 | E101: =IF(AND('Lighting Project Tool'!$F$9='Input Tables'!$B$118,'Lighting Project Tool'!C20='Input Tables'!$B$127),$B$101,IF(AND('Lighting Project Tool'!$F$9='Input Tables'!$B$118,'Lighting Project Tool'!C20='Input Tables'!$B$128),$B$109,IF(AND('Lighting Project Tool'!$F$9='Input Tables'!$B$119,'Lighting Project Tool'!C20='Input Tables'!$B$127),$B$102,IF(AND('Lighting Project Tool'!$F$9='Input Tables'!$B$119,'Lighting Project Tool'!C20='Input Tables'!$B$128),$B$110,IF(AND('Lighting Project Tool'!$F$9='Input Tables'!$B$120,'Lighting Project Tool'!C20='Input Tables'!$B$127),$B$103,IF(AND('Lighting Project Tool'!$F$9='Input Tables'!$B$120,'Lighting Project Tool'!C20='Input Tables'!$B$128),$B$111,IF(AND('Lighting Project Tool'!$F$9='Input Tables'!$B$121,'Lighting Project Tool'!C20='Input Tables'!$B$127),$B$104,IF(AND('Lighting Project Tool'!$F$9='Input Tables'!$B$121,'Lighting Project Tool'!C20='Input Tables'!$B$128),$B$112,IF(AND('Lighting Project Tool'!$F$9='Input Tables'!$B$122,'Lighting Project Tool'!C20='Input Tables'!$B$127),$B$105, IF(AND('Lighting Project Tool'!$F$9='Input Tables'!$B$122,'Lighting Project Tool'!C20='Input Tables'!$B$128),$B$113, IF(AND('Lighting Project Tool'!$F$9='Input Tables'!$B$123,'Lighting Project Tool'!C20='Input Tables'!$B$127),$B$106, IF(AND('Lighting Project Tool'!$F$9='Input Tables'!$B$123,'Lighting Project Tool'!C20='Input Tables'!$B$128),$B$114, IF(AND('Lighting Project Tool'!$F$9='Input Tables'!$B$124,'Lighting Project Tool'!C20='Input Tables'!$B$127),$B$107, IF(AND('Lighting Project Tool'!$F$9='Input Tables'!$B$124,'Lighting Project Tool'!C20='Input Tables'!$B$128),$B$115, IF(AND('Lighting Project Tool'!$F$9='Input Tables'!$B$125,'Lighting Project Tool'!C20='Input Tables'!$B$127),$B$108, IF(AND('Lighting Project Tool'!$F$9='Input Tables'!$B$125,'Lighting Project Tool'!C20='Input Tables'!$B$128),$B$116,"PLEASE SELECT SECTOR OR INTERIOR/EXTERIOR")))))))))))))))) -> PLEASE SELECT SECTOR OR INTERIOR/EXTERIOR | F101: =IF($E$101=$B$101,$A$101:$A$136, IF($E$101=$B$102, $A$150:$A$163, IF($E$101=$B$103,$A$176:$A$203, IF($E$101=$B$104, $A$217:$A$232, IF($E$101=$B$109,$A$137:$A$149, IF($E$101 = $B$110, $A$164:$A$175, IF($E$101=$B$111,$A$204:$A$216, IF($E$101=$B$112,$A$233:$A$244,IF($E$101=$B$105,$A$101:$A$136, IF($E$101=$B$106,$A$150:$A$163,IF($E$101=$B$107,$A$101:$A$136, IF($E$101=$B$108,$A$150:$A$163,IF($E$101=$B$113,$A$137:$A$149, IF($E$101=$B$114,$A$164:$A$175,IF($E$101=$B$115,$A$137:$A$149, IF($E$101=$B$116,$A$164:$A$175,"PLEASE SELECT SECTOR OR INTERIOR/EXTERIOR")))))))))))))))) -> PLEASE SELECT SECTOR OR INTERIOR/EXTERIOR | H101: =IF($E$101=$B$101,$B$109,IF($E$101=$B$102,$B$110,IF($E$101=$B$103,$B$111,IF($E$101=$B$104,$B$112,IF($E$101=$B$109,$B$101,IF($E$101=$B$110,$B$102,IF($E$101=$B$111,$B$103,IF($E$101=$B$112,$B$104,IF($E$101 = $B$105, $B$113, IF($E$101=$B$106, $B$114, IF($E$101=$B$107,$B$115, IF($E$101=$B$108, $B$116, IF($E$101 = $B$113, $B$105, IF($E$101=$B$114, $B$106, IF($E$101 = $B$115, $B$107, IF($E$101=$B$116, $B$108, "PLEASE SELECT SECTOR OR INTERIOR/EXTERIOR")))))))))))))))) -> PLEASE SELECT SECTOR OR INTERIOR/EXTERIOR | I101: =IF($H$101=$B$101,$A$101:$A$136, IF($H$101=$B$102, $A$150:$A$163, IF($H$101=$B$103,$A$176:$A$203, IF($H$101=$B$104, $A$217:$A$232, IF($H$101=$B$109,$A$137:$A$149, IF($H$101 = $B$110, $A$164:$A$175, IF($H$101=$B$111,$A$204:$A$216, IF($H$101=$B$112,$A$233:$A$244,IF($H$101=$B$105,$A$101:$A$136, IF($H$101=$B$106,$A$150:$A$163,IF($H$101=$B$107,$A$101:$A$136, IF($H$101=$B$108,$A$150:$A$163,IF($H$101=$B$113,$A$137:$A$149, IF($H$101=$B$114,$A$164:$A$175,IF($H$101=$B$115,$A$137:$A$149, IF($H$101=$B$116,$A$164:$A$175,"PLEASE SELECT SECTOR OR INTERIOR/EXTERIOR")))))))))))))))) -> PLEASE SELECT SECTOR OR INTERIOR/EXTERIOR
A102: L3111: LED, ≤55W, 2X4 product replacing 3- or 4-lamp T8 or T12 troffer | B102: Schools & Government - NC - Interior | D102: 118:131 | H102: 0
A103: L3400: 2X2 LED, ≤39W, replacing Fixture with 2 or more T8 or T12 Lamps | B103: Agribusiness - Interior | D103: 144:171 | H103: 0
A104: L3401: 2X2 LED, ≤85W, replacing Fixture with 2 or more 2G11 base Lamps | B104: Agribusiness - NC - Interior | D104: 185:200 | H104: 0
A105: L10214: LED, ≤43W, 1x4 or 2X4 product replacing 1- or 2-lamp T8 or T12 troffer, w/LLLC | B105: B&I - Interior | D105: 69:104 | H105: 0
A106: L10213: LED, ≤55W, 2X4 product replacing 3- or 4-lamp T8 or T12 troffer, w/LLLC | B106: B&I - NC - Interior | D106: 118:131 | H106: 0
A107: L10211: 2X2 LED, ≤39W, replacing Fixture with 2 or more T8 or T12 Lamps, w/LLLC | B107: Large Industrial - Interior | D107: 69:104 | H107: 0
A108: L10212: 2X2 LED, ≤85W, replacing Fixture with 2 or more 2G11 base Lamps, w/LLLC | B108: Large Industrial - NC - Interior | D108: 118:131 | H108: 0
A109: L10281: 1’ to 3’ LED Linear Ambient Fixture, Interior | B109: Schools & Government - Exterior | D109: 105:117 | H109: 0
A110: L10282: 4' LED Linear Ambient Fixture, Interior | B110: Schools & Government - NC - Exterior | D110: 132:143 | H110: 0
A111: L10283: 8' LED Linear Ambient Fixture, Interior | B111: Agribusiness - Exterior | D111: 172:184 | H111: 0
A112: L10028: LED Downlight Fixtures replacing or instead of Incandescent, CFL, or HID fixture | B112: Agribusiness - NC - Exterior | D112: 201:212 | H112: 0
A113: L4813: LED Track/Mono/Accent fixtures replacing incandescent, CFL, or HID fixture | B113: B&I - Exterior | D113: 105:117 | H113: 0
A114: L3903: Interior LED Signage | B114: B&I - NC - Exterior | D114: 132:143 | H114: 0
A115: L3091: ≤ 155W LED High Bay/Low Bay, replacing or instead of 250W HID | B115: Large Industrial - Exterior | D115: 105:117 | H115: 0
A116: L3092: ≤ 250W LED High Bay/Low Bay, instead of 320-399W HID | B116: Large Industrial - NC - Exterior | D116: 132:143 | H116: 0
A117: L3093: ≤ 250W LED High Bay/Low Bay, replacing 400W HID | H117: 0
A118: L3094: ≤ 365W LED High Bay/Low Bay, replacing 400W HID | B118: Schools & Government | H118: 0
A119: L3095: ≤ 500W LED High Bay/Low Bay, replacing or instead of 1000W HID | B119: Schools & Government-NC | H119: 0
A120: L3096: ≤ 800W LED High Bay/Low Bay, replacing or instead of 1000W HID | B120: Agribusiness | H120: 0
A121: L5460: ≤ 85W LED High Bay/Low Bay, replacing 4 Lamp 4' or 2 Lamp 8' T8 or T12 | B121: Agribusiness-NC | H121: 0
A122: L5461: ≤ 125W LED High Bay/Low Bay, replacing 4 Lamp 4' or 2 Lamp 8' T12HO | B122: B&I | H122: 0
A123: L3393: ≤ 180W LED High Bay/Low Bay, replacing or instead of 6L T8 or 4L T5HO | B123: B&I-NC | H123: 0
A124: L4347: ≤ 250W LED High Bay/Low Bay, replacing or instead of 8L T8 or 6L T5HO | B124: Large Industrial | H124: 0
A125: L4795: ≤ 300W LED High Bay/Low Bay, replacing or instead of 10L T8 or 8L T5HO | B125: Large Industrial-NC | H125: 0
A126: L4796: ≤ 350W LED High Bay/Low Bay, replacing or instead of 12L T8 or 10L T5HO | H126: 0
A127: L10215: ≤ 155W LED High Bay/Low Bay, replacing or instead of 250W HID, w/LLLC | B127: Interior | H127: 0
A128: L10216: ≤ 250W LED High Bay/Low Bay, replacing 400W HID, w/LLLC | B128: Exterior | H128: 0
A129: L10217: ≤ 180W LED High Bay/Low Bay, replacing or instead of 6L T8 or 4L T5HO, w/LLLC | H129: 0
A130: L10218: ≤ 250W LED High Bay/Low Bay, replacing or instead of 8L T8 or 6L T5HO, w/LLLC | H130: 0
A131: L10042: DLC listed, Mogul Screw-Base (E39) LED lamp replacing HID | H131: 0
A132: L10039: Four-pin base LED Lamp Replacing CFL | H132: 0
A133: L5451: 4' or U-Bend TLED, ≤24W, replacing 4' or U-Bend T5, T8, or T12 Lamp | H133: 0
A134: L5452: 4' TLED, replacing 4' T5HO Lamp | H134: 0
A135: L5453: 2' or 3' TLED, replacing 2' or 3' T8 or T12 Lamp | H135: 0
A136: L5454: 8' TLED, replacing 8' T8 or T12 Lamp | H136: 0
A137: L10284: 1’ to 3’ LED Linear Ambient Fixture, Exterior | H137: 0
A138: L10285: 4' LED Linear Ambient Fixture, Exterior | H138: 0
A139: L10286: 8' LED Linear Ambient Fixture, Exterior | H139: 0
A140: L10029: LED Downlight Fixtures replacing or instead of Incandescent, CFL or HID fixture, Exterior | H140: 0
A141: L3904: Exterior LED Signage | H141: 0
A142: L4280: Outdoor LED Fixture or Retrofit Kit – Low Output ≤4,999 lumens | H142: 0
A143: L4281: Outdoor LED Fixture or Retrofit Kit – Mid Output 5,000 – 9,999 lumens
A144: L4282: Outdoor LED Fixture or Retrofit Kit – High Output 10,000 – 29,999 lumens
A145: L4283: Outdoor LED Fixture or Retrofit Kit – Very High Output ≥30,000 lumens
A146: L10043: DLC listed, Mogul Screw-Base (E39) lamp replacing HID, Exterior
A147: L10040: Four-pin base LED Lamp Replacing CFL, Exterior
A148: L5456: 4' or U-Bend TLED ≤24W, replacing 4' or U-Bend T5, T8 or T12 Lamp, Dusk to Dawn, Exterior
A149: L5458: 8' TLED, replacing 8' T8 or T12 Lamp, Dusk to Dawn, Exterior
A150: NL5459: LED, ≤43W, 1x4 or 2X4 product replacing 1- or 2-lamp T8 or T12 troffer
A151: NL3111: LED, ≤55W, 2X4 product replacing 3- or 4-lamp T8 or T12 troffer
A152: NL3400: 2X2 LED, ≤39W, replacing Fixture with 2 or more T8 or T12 Lamps
A153: NL3401: 2X2 LED, ≤85W, replacing Fixture with 2 or more 2G11 base Lamps
A154: NL10281: 1’ to 3’ LED Linear Ambient Fixture, Interior
A155: NL10282: 4' LED Linear Ambient Fixture, Interior
A156: NL10283: 8' LED Linear Ambient Fixture, Interior
A157: NL10028: LED Downlight Fixtures replacing or instead of Incandescent, CFL, or HID fixture
A158: NL4813: LED Track/Mono/Accent fixtures replacing incandescent, CFL, or HID fixture
A159: NL5460: ≤ 85W LED High Bay/Low Bay, replacing 4 Lamp 4' or 2 Lamp 8' T8 or T12
A160: NL3393: ≤ 180W LED High Bay/Low Bay, replacing or instead of 6L T8 or 4L T5HO
A161: NL4347: ≤ 250W LED High Bay/Low Bay, replacing or instead of 8L T8 or 6L T5HO
A162: NL4795: ≤ 300W LED High Bay/Low Bay, replacing or instead of 10L T8 or 8L T5HO
A163: NL4796: ≤ 350W LED High Bay/Low Bay, replacing or instead of 12L T8 or 10L T5HO
A164: NL10284: 1’ to 3’ LED Linear Ambient Fixture, Exterior
A165: NL10285: 4' LED Linear Ambient Fixture, Exterior
A166: NL10286: 8' LED Linear Ambient Fixture, Exterior
A167: NL10029: LED Downlight Fixtures replacing or instead of Incandescent, CFL or HID fixture, Exterior
A168: NL4280: Outdoor LED Fixture or Retrofit Kit – Low Output ≤4,999 lumens
A169: NL4281: Outdoor LED Fixture or Retrofit Kit – Mid Output 5,000 – 9,999 lumens
A170: NL4282: Outdoor LED Fixture or Retrofit Kit – High Output 10,000 – 29,999 lumens
A171: NL4283: Outdoor LED Fixture or Retrofit Kit – Very High Output ≥30,000 lumens
A172: NL5065: Outdoor LED Fixture or Retrofit Kit – Low Output ≤4,999 lumens, with NLC
A173: NL5066: Outdoor LED Fixture or Retrofit Kit – Mid Output 5,000 – 9,999 lumens, with NLC
A174: NL5067: Outdoor LED Fixture or Retrofit Kit – High Output 10,000 – 29,999 lumens, with NLC
A175: NL5068: Outdoor LED Fixture or Retrofit Kit – Very High Output ≥30,000 lumens, with NLC
A176: L5459: 1X4 or 2X4 LED, ≤43W, replacing 1- or 2-lamp T8 or T12 troffer
A177: L3111: 2X4 LED, ≤55W, replacing 3- or 4-lamp T8 or T12 troffer
A178: L3400: 2X2 LED, ≤39W, replacing Fixture with 2 or more T8 or T12 Lamps
A179: L3401: 2X2 LED, ≤85W, replacing Fixture with 2 or more 2G11 base Lamps
A180: L10028: LED Downlight Fixtures replacing Incandescent, CFL, or HID fixture
A181: L10281: 1’ to 3’ LED Linear Ambient Fixture, Interior
A182: L10282: 4' LED Linear Ambient Fixture, Interior
A183: L10283: 8' LED Linear Ambient Fixture, Interior
A184: AG4695: LED Fixture, ≤155 Watts, Replacing 250 Watt HID, High Bay, Agriculture
A185: AG4696: LED Fixture, ≤250 Watts, Replacing 320-399 Watt HID, High Bay, Agriculture
A186: AG4697: LED Fixture, ≤250 Watts, Replacing 400 Watt HID, High Bay, Agriculture
A187: AG4698: LED Fixture, ≤365 Watts, Replacing 400 Watt HID, High Bay, Agriculture
A188: AG4701: LED Fixture, ≤180W LED, replacing 6L T8 or 4L T5HO, High Bay, Agriculture
A189: AG4702: LED Fixture, ≤250W LED, replacing 8LT8 or 6LT5HO, High Bay, Agriculture
A190: L10042: DLC listed, Mogul Screw-Base (E39) LED lamp replacing existing E39 base lamp
A191: L5451: 4' or U-Bend TLED, ≤24W, replacing 4' or U-Bend T5, T8, or T12 Lamp
A192: L5452: 4' TLED, replacing 4' T5HO Lamp
A193: L5453: 2' or 3' TLED, replacing 2' or 3' T8 or T12 Lamp
A194: L5454: 8' TLED, replacing 8' T8 or T12 Lamp
A195: AG5024: Horticultural Lighting, Non-stacked Indoor, <700W LED, replacing 1000W HID, Agriculture
A196: AG5025: Horticultural Lighting, Non-stacked Indoor, <400W LED, replacing 600W HID, Agriculture
A197: AG5026: Horticultural Lighting, Supplemented Greenhouse, <700W LED, replacing 1000W HID, Agriculture
A198: AG5027: Horticultural Lighting, Supplemented Greenhouse, <400W LED, replacing 600W HID, Agriculture
A199: AG5028: Horticultural Lighting, Supplemented Greenhouse, <250W LED, replacing 400W HID, Agriculture
A200: AG5032: Horticultural Lighting, Non-stacked Indoor, Grow Light System, Agriculture
A201: AG5033: Horticultural Lighting, Supplemented Greenhouse, Grow Light System, Agriculture
A202: L10289: Fixture Elimination, Interior
A203: L10287: General Wattage Reduction, Interior
A204: L10029: LED Downlight Fixtures replacing or instead of Incandescent, CFL or HID fixture, Exterior
A205: L10284: 1’ to 3’ LED Linear Ambient Fixture, Exterior
A206: L10285: 4' LED Linear Ambient Fixture, Exterior
A207: L10286: 8' LED Linear Ambient Fixture, Exterior
A208: L4280: Outdoor LED Fixture or Retrofit Kit – Low Output
A209: L4281: Outdoor LED Fixture or Retrofit Kit – Mid Output
A210: L4282: Outdoor LED Fixture or Retrofit Kit – High Output
A211: L4283: Outdoor LED Fixture or Retrofit Kit – Very High Output
A212: L10043: Mogul Screw-in Base (E39) replacing existing E39 base lamp, Exterior
A213: L5456: 4' or U-Bend TLED ≤24W, replacing 4' or U-Bend T5, T8 or T12 Lamp, Dusk to Dawn, Exterior
A214: L5458: 8' TLED, replacing 8' T8 or T12 Lamp, Dusk to Dawn, Exterior
A215: L10290: Fixture Elimination, Exterior
A216: L10288: General Wattage Reduction, Exterior
A217: NL5459: LED, ≤43W, 1x4 or 2X4 product replacing 1- or 2-lamp T8 or T12 troffer
A218: NL3111: LED, ≤55W, 2X4 product replacing 3- or 4-lamp T8 or T12 troffer
A219: NL3400: 2X2 LED, ≤39W, replacing Fixture with 2 or more T8 or T12 Lamps
A220: NL3401: 2X2 LED, ≤85W, replacing Fixture with 2 or more 2G11 base Lamps
A221: NL10281: 1’ to 3’ LED Linear Ambient Fixture, Interior
A222: NL10282: 4' LED Linear Ambient Fixture, Interior
A223: NL10283: 8' LED Linear Ambient Fixture, Interior
A224: NL10028: LED Downlight Fixtures replacing or instead of Incandescent, CFL, or HID fixture
A225: NL4813: LED Track/Mono/Accent fixtures replacing incandescent, CFL, or HID fixture
A226: NL5460: ≤ 85W LED High Bay/Low Bay, replacing 4 Lamp 4' or 2 Lamp 8' T8 or T12
A227: NL3393: ≤ 180W LED High Bay/Low Bay, replacing or instead of 6L T8 or 4L T5HO
A228: NL4347: ≤ 250W LED High Bay/Low Bay, replacing or instead of 8L T8 or 6L T5HO
... 161 more rows

Sheet Table3 (hidden)
A1: Existing Exterior Fixture List
A2: Outdoor Pole/Arm-mounted Area & Roadway Luminaires
A3: Outdoor Wall-mounted Area Luminaires
A4: Other Outdoor LED Fixtures

Sheet Lookups (hidden)
A2: Unit of Measure lookup | B2: Program Name Lookup | C2: Short | D2: Incentive Codes to Use
A3: # of Rooms | B3: Agribusiness | C3: AG | D3: Ag
A4: Boiler Capacity (MBh) | B4: Agribusiness-NC | C4: BNC | D4: Ag
A5: Boiler hp | B5: B&I | C5: BI | D5: Business
A6: Bushels/Hr | B6: B&I-NC | C6: BNC | D6: NewConstruction
A7: Capacity (input MBh) | B7: Large Industrial | C7: BI | D7: Business
A8: CFM | B8: Large Industrial-NC | C8: BNC | D8: NewConstruction
A9: Compressor HP | B9: Schools & Government | C9: BI | D9: Business
A10: Computers | B10: Schools & Government-NC | C10: BNC | D10: NewConstruction
A11: Cu Ft | B11: Ag-Propane | C11: AGP | D11: Ag
A12: Fan Diameter (Inches)
A13: Fan Motors Controlled
A14: Fixtures Controlled
A15: HP | B15: Measure Labels | D15: Incentive Code Types
A16: HP of Load Shifted | B16: Use Numbers | D16: Business
A17: Hrs/Yr | B17: Use Letters | D17: Ag
A18: kW Controlled | D18: NewConstruction
A19: kW of Exist. Heater Bands
A20: Linear Feet | B20: Cost Types | E20: Start Row on Criteria Tab
A21: MBh | B21: Invoice | E21: Business | F21: $4
A22: Sq Ft | B22: Ind Std Cost | E22: Ag | F22: $265
A23: Million BTU/HR | B23: TRM | E23: Ag Propane | F23: $410
A24: Tons | B24: Prorate by Qty/Cap
B25: Other | E25: Last Row on Criteria Tab | F25: $454
B27: True/False Questions
B28: Yes
B29: No
A31: Letter to Number Conversion
A32: 1 | B32: A
A33: 2 | B33: B
A34: 3 | B34: C
A35: 4 | B35: D
A36: 5 | B36: E
A37: 6 | B37: F
A38: 7 | B38: G
A39: 8 | B39: H
A40: 9 | B40: I
A41: 10 | B41: J
A42: 11 | B42: K
A43: 12 | B43: L
A44: 13 | B44: M
A45: 14 | B45: N
A46: 15 | B46: O
A47: 16 | B47: P
A48: 17 | B48: Q
A49: 18 | B49: R
A50: 19 | B50: S
A51: 20 | B51: T
A52: 21 | B52: U
A53: 22 | B53: V
A54: 23 | B54: W
A55: 24 | B55: X
A56: 25 | B56: Y
A60: These lists are used to populate the "Browse by Incentive Catalog" dropdown on the Review Sheet tab and translate each item to a named range on the measure list tab. Update as needed.
A61: B&I, LI, and S&G APPLICATION LIST | D61: AGRIBUSINESS APPLICATION LIST | G61: NEW CONSTRUCTION APPLICATION LIST | J61: Unique UOM Question - UOM Lookup
A62: Incentive Application | B62: Named Range | D62: Incentive Application | E62: Named Range | G62: Incentive Application | H62: Named Range | J62: Measure Master ID | K62: Measure Master Name | L62: Unit of Measure Question | M62: Quantity Description
A63: Special Offers B&I | B63: SpecialOffersBI | D63: Agribusiness Catalog: Milking Equipment | E63: AgCatalogMilkingEquipAG | G63: Lighting Catalog: LED Fixtures | H63: LightingCatalogLEDFixturesBNC | J63: 3909 | K63: A/C Split System, Condensing Unit Only, High Efficiency | L63: Enter Unit Total Incentive | M63: Enter # of Condensing Units
A64: Lighting Catalog: LED Fixtures | B64: LightingCatalogLEDFixturesBI | D64: Agribusiness Catalog: Specialty Equipment | E64: AgCatalogSpecialtyEquipAG | G64: Lighting Catalog: Other Lighting Solutions | H64: LightingCatalogOtherLightingSolutionsBNC | J64: 4368 | K64: A/C Split or Packaged System, High Efficiency, ≥ 5.42 to < 11.25 tons | L64: Enter Unit Total Incentive | M64: Enter # of Split Systems or RTUs
A65: Lighting Catalog: LED Lamps | B65: LightingCatalogLEDLampsBI | D65: Agribusiness Catalog: Lighting | E65: AgCatalogLightingAG | G65: HVAC Catalog: Heating Systems | H65: HvacCatalogHeatingSystemsBNC | J65: 4369 | K65: A/C Split or Packaged System, High Efficiency, ≥ 11.25 to < 20.00 tons | L65: Enter Unit Total Incentive | M65: Enter # of Split Systems or RTUs
A66: Lighting Catalog: Controls | B66: LightingCatalogControlsBI | D66: Agribusiness Catalog: Ventilation Equipment | E66: AgCatalogVentilationAG | G66: HVAC Catalog: Cooling Systems | H66: HvacCatalogCoolingSystemsBNC | J66: 4370 | K66: A/C Split or Packaged System, High Efficiency, ≥ 20.00 to < 63.33 tons | L66: Enter Unit Total Incentive | M66: Enter # of Split Systems or RTUs
A67: Lighting Catalog: Other Lighting Solutions | B67: LightingCatalogOtherLightingSolutionsBI | D67: Agribusiness Catalog: VFD and Compressed Air | E67: AgCatalogVFDandCompressedAirAG | G67: HVAC Catalog: Ventilation and Controls | H67: HvacCatalogVentilationControlsBNC | J67: 4371 | K67: A/C Split or Packaged System, High Efficiency, ≥ 63.33 tons | L67: Enter Unit Total Incentive | M67: Enter # of Split Systems or RTUs
A68: HVAC Catalog: Heating Systems | B68: HvacCatalogHeatingSystemsBI | D68: Agribusiness Catalog: Cooling and Space Heating Equipment | E68: AgCatalogCoolingSpaceHeatingAG | G68: HVAC Catalog: Plumbing | H68: HvacCatalogPlumbingBNC | J68: 10025 | K68: Commercial Air Source Heat Pumps, ≥ 5.42 to < 11.25 tons | L68: Enter Unit Total Incentive | M68: Enter # of Split Systems or RTUs
A69: HVAC Catalog: Cooling Systems | B69: HvacCatalogCoolingSystemsBI | D69: Agribusiness Catalog: Water Heating Equipment | E69: AgCatalogWaterHeatingAG | G69: HVAC Catalog: Building Envelope | H69: HvacCatalogBuildingEnvelopeBNC | J69: 10026 | K69: Commercial Air Source Heat Pumps, ≥ 11.25 to < 20.00 tons | L69: Enter Unit Total Incentive | M69: Enter # of Split Systems or RTUs
A70: HVAC Catalog: Ventilation and Controls | B70: HvacCatalogVentilationControlsBI | D70: Ag-Propane Catalog: Specialty Equipment | E70: AgPropCatalogSpecialtyEquipAGP | G70: Commercial Refrig Catalog: Non Self-Contained | H70: RefrigerationCatalogNonSelfContainBNC | J70: 10027 | K70: Commercial Air Source Heat Pumps, ≥ 20.00 to < 63.33 tons, | L70: Enter Unit Total Incentive | M70: Enter # of Split Systems or RTUs
A71: HVAC Catalog: Building Envelope | B71: HvacCatalogBuildingEnvelopeBI | D71: Ag-Propane Catalog: VFDs and Compressed Air | E71: AgPropCatalogVfdCompAirAGP | G71: Commercial Refrig Catalog: Controls | H71: RefrigerationCatalogControlsBNC | J71: 4712 | K71: Chiller, Air-Cooled <150 tons, Path A | L71: Enter Incentive Per Ton | M71: Enter total chiller tons (tons each x qty)
A72: Commercial Refrig Catalog: Non Self-Contained | B72: RefrigerationCatalogNonSelfContainBI | D72: Ag-Propane Catalog: Water Heating Equipment | E72: AgPropCatalogWaterHeatingAGP | G72: Process Systems Catalog: Compressed Air | H72: ProcessCatalogCompressedAirBNC | J72: 4713 | K72: Chiller, Air-Cooled ≥150 tons, Path A | L72: Enter Incentive Per Ton | M72: Enter total chiller tons (tons each x qty)
A73: Commercial Refrig Catalog: Controls | B73: RefrigerationCatalogControlsBI | D73: Ag-Propane Catalog: Space Heating Equipment | E73: AgPropCatalogSpaceHeatingAGP | G73: Process Systems Catalog: Steam Systems | H73: ProcessCatalogSteamSystemsBNC | J73: 4714 | K73: Chiller, Air-Cooled <150 tons, Path B | L73: Enter Incentive Per Ton | M73: Enter total chiller tons (tons each x qty)
A74: Process Systems Catalog: Compressed Air | B74: ProcessCatalogCompressedAirBI | D74: Lighting Catalog: LED Fixtures | E74: LightingCatalogLEDFixturesAG | G74: Process Systems Catalog: VFDs | H74: ProcessCatalogVFDsBNC | J74: 4715 | K74: Chiller, Air-Cooled ≥150 tons, Path B | L74: Enter Incentive Per Ton | M74: Enter total chiller tons (tons each x qty)
A75: Process Systems Catalog: Steam Systems | B75: ProcessCatalogSteamSystemsBI | D75: Lighting Catalog: LED Lamps | E75: LightingCatalogLEDLampsAG | G75: Process Systems Catalog: Process Specialty Equip | H75: ProcessCatalogProcessSpecialtyEquipBNC | J75: 4716 | K75: Chiller, Positive Displacement, Water-Cooled <75 tons, Path A | L75: Enter Incentive Per Ton | M75: Enter total chiller tons (tons each x qty)
A76: Process Systems Catalog: VFDs | B76: ProcessCatalogVFDsBI | D76: Lighting Catalog: Controls | E76: LightingCatalogControlsAG | J76: 4721 | K76: Chiller, Positive Displacement, Water-Cooled <75 tons, Path B | L76: Enter Incentive Per Ton | M76: Enter total chiller tons (tons each x qty)
A77: Process Systems Catalog: Data Center and Telecom Facilities | B77: ProcessCatalogDataCenterTelecomBI | D77: Lighting Catalog: Other Lighting Solutions | E77: LightingCatalogOtherLightingSolutionsAG | J77: 4722 | K77: Chiller, Positive Displacement, Water-Cooled ≥75 and <150 tons, Path B | L77: Enter Incentive Per Ton | M77: Enter total chiller tons (tons each x qty)
A78: Process Systems Catalog: Process Specialty Equip | B78: ProcessCatalogProcessSpecialtyEquipBI | D78: HVAC Catalog: Heating Systems | E78: HvacCatalogHeatingSystemsAG | J78: 4723 | K78: Chiller, Positive Displacement, Water-Cooled ≥150 and <300 tons, Path B | L78: Enter Incentive Per Ton | M78: Enter total chiller tons (tons each x qty)
A79: Special Offers LI | B79: SpecialOffersLI | D79: HVAC Catalog: Cooling Systems | E79: HvacCatalogCoolingSystemsAG | J79: 4724 | K79: Chiller, Positive Displacement, Water-Cooled ≥300 and <600 tons, Path B | L79: Enter Incentive Per Ton | M79: Enter total chiller tons (tons each x qty)
A80: Special Offers S&G | B80: SpecialOffersSG | D80: HVAC Catalog: Ventilation and Controls | E80: HvacCatalogVentilationControlsAG | G80: Process Catalog VFDs not listed as they are all eligible under B&I. Above items are for equipment eligible under BNC. | J80: 4725 | K80: Chiller, Positive Displacement, Water-Cooled ≥600, Path B | L80: Enter Incentive Per Ton | M80: Enter total chiller tons (tons each x qty)
D81: HVAC Catalog: Plumbing | E81: HvacCatalogPlumbingAG | J81: 4726 | K81: Chiller, Centrifugal, Water-Cooled <150 tons, Path A | L81: Enter Incentive Per Ton | M81: Enter total chiller tons (tons each x qty)
D82: HVAC Catalog: Building Envelope | E82: HvacCatalogBuildingEnvelopeAG | J82: 4730 | K82: Chiller, Centrifugal, Water-Cooled ≥600, Path A | L82: Enter Incentive Per Ton | M82: Enter total chiller tons (tons each x qty)
D83: Commercial Refrig Catalog: Non Self-Contained | E83: RefrigerationCatalogNonSelfContainAG | J83: 4731 | K83: Chiller, Centrifugal, Water-Cooled <150 tons, Path B | L83: Enter Incentive Per Ton | M83: Enter total chiller tons (tons each x qty)
D84: Commercial Refrig Catalog: Controls | E84: RefrigerationCatalogControlsAG | J84: 4732 | K84: Chiller, Centrifugal, Water-Cooled ≥150 and <300 tons, Path B | L84: Enter Incentive Per Ton | M84: Enter total chiller tons (tons each x qty)
D85: Process Systems Catalog: Compressed Air | E85: ProcessCatalogCompressedAirAG | J85: 4733 | K85: Chiller, Centrifugal, Water-Cooled ≥300 and <400 tons, Path B | L85: Enter Incentive Per Ton | M85: Enter total chiller tons (tons each x qty)
D86: Process Systems Catalog: Steam Systems | E86: ProcessCatalogSteamSystemsAG | J86: 4734 | K86: Chiller, Centrifugal, Water-Cooled ≥400 and <600 tons, Path B | L86: Enter Incentive Per Ton | M86: Enter total chiller tons (tons each x qty)
D87: Process Systems Catalog: VFDs | E87: ProcessCatalogVFDsAG | J87: 4735 | K87: Chiller, Centrifugal, Water-Cooled ≥600, Path B | L87: Enter Incentive Per Ton | M87: Enter total chiller tons (tons each x qty)
D88: Process Systems Catalog: Data Center and Telecom Facilities | E88: ProcessCatalogDataCenterTelecomAG
D89: Process Systems Catalog: Process Specialty Equip | E89: ProcessCatalogProcessSpecialtyEquipAG | J89: Regular UOM & Qty Description: | K89: ** This is the UOM & Qty that appear on the application **
D90: Special Offers Ag | E90: SpecialOffersAG | J90: SPECTRUM UOM & Qty Description: | K90: ** This is the Unit of Measure and Qty that get entered in SPECTRUM **

Sheet Criteria (hidden)
A1: This tab is the main lookup table to find incentives, units of measure, new construction eligibility, and key requirements for each measure. Update Instructions: need to manually go thru each catalog and copy in measure codes, measure descriptions, and Criteria. Some criteria may need to be combined or shortened to fit in allocated # of Critera columns. Inserting rows before the end or after the start of a section is the best way, as it keeps the new row in the intended Named Range. When done, verify that the "Criteria_Array" named range (columns E thru J, all rows but not headings) is still accurate and covers all rows. After measure list here is complete, also need to update Measure List tab. Measure List tab should contain all eligible measure codes and measure names in separate columns for Business / LI / S&G, AgV2, and New Construction (i.e., columns A, B, C of this tab, but with the "Not Eligible" rows removed). Also, check the Vlookup functions on the Review Sheet tab to ensure they cover the last row of this tab. Do a find and replace to fix as there are 100's of references to the measure list on this tab. | G1: Agribusiness
A2: 1 | B2: 2 | C2: 3 | D2: 4 | E2: 5 | F2: 6 | G2: 7 | H2: 8 | I2: 9 | J2: 10 | K2: =J2+1 -> 11 | L2: =K2+1 -> 12 | M2: 13 | N2: 14 | O2: 15 | P2: 16 | Q2: 17 | R2: 18 | S2: 19 | T2: 20 | U2: 21 | V2: 22 | W2: 23 | X2: 24 | Y2: 25 | Z2: 26 | AA2: 27 | AB2: 28 | AC2: 29 | AD2: 30 | AE2: 31 | AF2: 32 | AG2: 33 | AH2: 34 | AI2: 35 | AJ2: 36 | AK2: 37 | AL2: 38 | AM2: 39 | AN2: 40 | AO2: 41 | AP2: 42 | AQ2: 43 | AR2: 44 | AS2: 45
A3: Business Catalog Code | B3: Agribusiness Catalog Code | C3: New Construction Catalog Code | D3: Measure Text | E3: Measure Code & Name | F3: Criteria 1 | G3: Criteria 2 | H3: Criteria 3 | I3: Criteria 4 | J3: Criteria 5 | K3: Criteria 6 | L3: Criteria 7 | M3: Criteria 8 | N3: Criteria 9 | O3: Interpretations and Clarifications | P3: PI Guidance-Photos | Q3: PI Guidance 1 | R3: PI Guidance 2 | S3: PI Guidance 3 | T3: PI Guidance 4 | U3: PI Guidance 5 | V3: B&I Incentive | W3: B&I Incentive per… | X3: Ag Incentive | Y3: Ag Incentive per… | Z3: NC Incentive | AA3: NC Incentive Per | AB3: B&I MMID | AC3: Ag MMID | AD3: NC MMID | AE3: B&I NC Eligible | AF3: Ag NC Eligible | AG3: BNC Eligible | AH3: B&I % of Project Cost Limit | AI3: Ag % of Project Cost Limit | AJ3: Business NC % of Project Cost Limit | AK3: Requires Unique SPECTRUM Data Entry for UOM & Qty | AL3: Measure Text for Hybrid Calc & Tech Review Pivot Table | AM3: Hybrid Calc required | AN3: Tech Review Required | AO3: Unit of Measure for Savings | AP3: Unit of Measure Range Minimum | AQ3: Unit of Measure Range Maximum | AR3: Catalog Name | AS3: Page No.
D4: ----------------------LIGHTING CATALOG: LED FIXTURES---------------------------- | E4: =IF(ISBLANK(A4),"",IF(FOEPrgm=IncentCodeTypeNC,C4,IF(FOEIncentCodeType=IncentCodeTypeAg,B4,A4))&": ") &D4 -> ----------------------LIGHTING CATALOG: LED FIXTURES---------------------------- | AL4: =IF(ISBLANK(A4),"",IF(A4<>"Not Eligible",A4,IF(B4<>"Not Eligible",B4,C4))&": ") &D4 -> ----------------------LIGHTING CATALOG: LED FIXTURES---------------------------- | AP4: =IFERROR(_xlfn.IFNA(VLOOKUP(IF(OR($AR4="Agribusiness", $AR4="Ag",$AR4="Propane", $AR4="Ag Propane", $AR4="Ag-Propane"),$AC4, $AB4),'[4]UOM Range'!$A$4:$I$500,7,FALSE), ""),"") ->  | AQ4: =IFERROR(_xlfn.IFNA(VLOOKUP(IF(OR($AR4="Agribusiness", $AR4="Ag",$AR4="Propane", $AR4="Ag Propane", $AR4="Ag-Propane"),$AC4, $AB4),'[4]UOM Range'!$A$4:$I$500,8,FALSE), ""),"") ->  | AR4: Lighting
A5: L5459 | B5: L5459 | C5: N-L5459 | D5: LED, ≤43W, 1x4 or 2X4 product replacing 1- or 2-lamp T8 or T12 troffer | E5: =IF(ISBLANK(A5),"",IF(FOEIncentCodeType=IncentCodeTypeNC,C5,IF(FOEIncentCodeType=IncentCodeTypeAg,B5,A5))&": ") &D5 -> L5459: LED, ≤43W, 1x4 or 2X4 product replacing 1- or 2-lamp T8 or T12 troffer | F5: For 1-for-1 replacement of T12 or standard T8 fluorescent fixtures | G5: Must be DLC TRT V5.0 or higher listed in the "Troffer" general application. | H5: New fixture must consume ≤ 43W. | I5: Other LED configurations may qualify for a custom incentive. | O5: Other LED configurations may qualify for custom incentive. | P5: Provide clear photo(s) of: fixture layout and (if possible) fixture packaging label. | Q5: Verify fixture size by comparing to grid ceiling as reference. | V5: $10.00 | W5: Fixture | X5: =V5 -> $10.00 | Y5: Fixture | Z5: $7.00 | AA5: =W5 -> Fixture | AB5: 5459 | AC5: =AB5 -> 5459 | AD5: 5459 | AE5: Yes | AF5: =AE5 -> Yes | AG5: Yes | AH5: 100.0% | AI5: 100.0% | AJ5: 100.0% | AK5: No | AL5: =IF(ISBLANK(A5),"",IF(A5<>"Not Eligible",A5,IF(B5<>"Not Eligible",B5,C5))&": ") &D5 -> L5459: LED, ≤43W, 1x4 or 2X4 product replacing 1- or 2-lamp T8 or T12 troffer | AM5: No | AN5: No | AP5: =IFERROR(_xlfn.IFNA(VLOOKUP(IF(OR($AR5="Agribusiness", $AR5="Ag",$AR5="Propane", $AR5="Ag Propane", $AR5="Ag-Propane"),$AC5, $AB5),'[4]UOM Range'!$A$4:$I$500,7,FALSE), ""),"") ->  | AQ5: =IFERROR(_xlfn.IFNA(VLOOKUP(IF(OR($AR5="Agribusiness", $AR5="Ag",$AR5="Propane", $AR5="Ag Propane", $AR5="Ag-Propane"),$AC5, $AB5),'[4]UOM Range'!$A$4:$I$500,8,FALSE), ""),"") ->  | AR5: Lighting | AS5: 11
A6: L3111 | B6: L3111 | C6: N-L3111 | D6: LED, ≤55W, 2X4 product replacing 3- or 4-lamp T8 or T12 troffer | E6: L3111: LED, ≤55W, 2X4 product replacing 3- or 4-lamp T8 or T12 troffer | F6: For 1-for-1 replacement of T12 or standard T8 fluorescent fixtures | G6: Must be DLC TRT V5.0 or higher listed in the "Troffer" general application. | H6: New fixture must consume ≤ 55W | I6: Other LED configurations may qualify for a custom incentive. | O6: Work paper is based on 3 and 4 lamp fixtures only. | P6: Provide clear photo(s) of: fixture layout and (if possible) fixture packaging label. | Q6: Verify fixture size by comparing to grid ceiling as reference. | V6: $25.00 | W6: Fixture | X6: $25.00 | Y6: Fixture | Z6: $20.00 | AA6: Fixture | AB6: 3111 | AC6: 3111 | AD6: 3111 | AE6: Yes | AF6: Yes | AG6: Yes | AH6: 100.0% | AI6: 100.0% | AJ6: 100.0% | AK6: No | AL6: L3111: LED, ≤55W, 2X4 product replacing 3- or 4-lamp T8 or T12 troffer | AM6: No | AN6: No | AP6: =IFERROR(_xlfn.IFNA(VLOOKUP(IF(OR($AR6="Agribusiness", $AR6="Ag",$AR6="Propane", $AR6="Ag Propane", $AR6="Ag-Propane"),$AC6, $AB6),'[4]UOM Range'!$A$4:$I$500,7,FALSE), ""),"") ->  | AQ6: =IFERROR(_xlfn.IFNA(VLOOKUP(IF(OR($AR6="Agribusiness", $AR6="Ag",$AR6="Propane", $AR6="Ag Propane", $AR6="Ag-Propane"),$AC6, $AB6),'[4]UOM Range'!$A$4:$I$500,8,FALSE), ""),"") ->  | AR6: Lighting | AS6: 11
A7: L3400 | B7: L3400 | C7: N-L3400 | D7: 2X2 LED, ≤39W, replacing Fixture with 2 or more T8 or T12 Lamps | E7: L3400: 2X2 LED, ≤39W, replacing Fixture with 2 or more T8 or T12 Lamps | F7: For 1-for-1 replacement of T12 or standard T8 fluorescent fixtures | G7: Must be DLC TRT V5.0 or higher listed in the "Troffer" general application. | H7: New fixture must consume ≤ 39W. | I7: Other LED configurations may qualify for a custom incentive. | P7: Provide clear photo(s) of: fixture layout and (if possible) fixture packaging label. | Q7: Verify fixture size by comparing to grid ceiling as reference. | V7: $15.00 | W7: Fixture | X7: $15.00 | Y7: Fixture | Z7: $10.00 | AA7: Fixture | AB7: 3400 | AC7: 3400 | AD7: 3400 | AE7: Yes | AF7: Yes | AG7: Yes | AH7: 100.0% | AI7: 100.0% | AJ7: 100.0% | AK7: No | AL7: L3400: 2X2 LED, ≤39W, replacing Fixture with 2 or more T8 or T12 Lamps | AM7: No | AN7: No | AP7: =IFERROR(_xlfn.IFNA(VLOOKUP(IF(OR($AR7="Agribusiness", $AR7="Ag",$AR7="Propane", $AR7="Ag Propane", $AR7="Ag-Propane"),$AC7, $AB7),'[4]UOM Range'!$A$4:$I$500,7,FALSE), ""),"") ->  | AQ7: =IFERROR(_xlfn.IFNA(VLOOKUP(IF(OR($AR7="Agribusiness", $AR7="Ag",$AR7="Propane", $AR7="Ag Propane", $AR7="Ag-Propane"),$AC7, $AB7),'[4]UOM Range'!$A$4:$I$500,8,FALSE), ""),"") ->  | AR7: Lighting | AS7: 11
A8: L3401 | B8: L3401 | C8: N-L3401 | D8: 2X2 LED, ≤85W, replacing Fixture with 2 or more 2G11 base Lamps | E8: L3401: 2X2 LED, ≤85W, replacing Fixture with 2 or more 2G11 base Lamps | F8: For 1-for-1 replacement of T12 or standard T8 fluorescent fixtures | G8: Must be DLC TRT V5.0 or higher listed in the "Troffer" general application. | H8: New fixture must consume ≤ 85W. | I8: 2G11 base lamps replaced must have a nominal lamp wattage between 40-55 watts. | J8: Other LED configurations may qualify for a custom incentive. | P8: Provide clear photo(s) of: fixture layout and (if possible) fixture packaging label. | Q8: Verify fixture size by comparing to grid ceiling as reference. | V8: $30.00 | W8: Fixture | X8: $30.00 | Y8: Fixture | Z8: $20.00 | AA8: Fixture | AB8: 3401 | AC8: 3401 | AD8: 3401 | AE8: Yes | AF8: Yes | AG8: Yes | AH8: 100.0% | AI8: 100.0% | AJ8: 100.0% | AK8: No | AL8: L3401: 2X2 LED, ≤85W, replacing Fixture with 2 or more 2G11 base Lamps | AM8: No | AN8: No | AP8: =IFERROR(_xlfn.IFNA(VLOOKUP(IF(OR($AR8="Agribusiness", $AR8="Ag",$AR8="Propane", $AR8="Ag Propane", $AR8="Ag-Propane"),$AC8, $AB8),'[4]UOM Range'!$A$4:$I$500,7,FALSE), ""),"") ->  | AQ8: =IFERROR(_xlfn.IFNA(VLOOKUP(IF(OR($AR8="Agribusiness", $AR8="Ag",$AR8="Propane", $AR8="Ag Propane", $AR8="Ag-Propane"),$AC8, $AB8),'[4]UOM Range'!$A$4:$I$500,8,FALSE), ""),"") ->  | AR8: Lighting | AS8: 11
A9: L10281 | B9: L10281 | C9: N-L10281 | D9: 1’ to 3’ LED Linear Ambient Fixture, Interior | E9: L10281: 1’ to 3’ LED Linear Ambient Fixture, Interior | F9: Must be DLC SSL QPL listed (TRT V5.0 or higher) in the "Linear Ambient" general application. | G9: Fixtures that are DLC SSL QPL listed (TRT V5.0 or higher listed) in the Low-Bay General Application or the “Stairwell & Passageway Luminaires” primary use category are also eligible, if they have a linear profile. | H9: Stairwell & Passageway Luminaires may also apply for bi-level occupancy controls. | I9: Unique length fixtures not offered, such as 6', may combine or mix'n'match multiple Linear Ambient measures to equal total length. | P9: Provide clear photo(s) of: fixture and/or example linear run, fixture packaging label (if possible) . | Q9: Verify fixture size by comparing to grid ceiling/ under cabinet/ structure as reference. | V9: $6.00 | W9: Fixture | X9: $6.00 | Y9: Fixture | Z9: $4.00 | AA9: Fixture | AB9: 10281 | AC9: 10281 | AD9: =AB9 -> 10281 | AE9: Yes | AF9: Yes | AG9: Yes | AH9: 100.0% | AI9: 100.0% | AJ9: 100.0% | AK9: No | AL9: L10281: 1’ to 3’ LED Linear Ambient Fixture, Interior | AM9: No | AN9: No | AP9: =IFERROR(_xlfn.IFNA(VLOOKUP(IF(OR($AR9="Agribusiness", $AR9="Ag",$AR9="Propane", $AR9="Ag Propane", $AR9="Ag-Propane"),$AC9, $AB9),'[4]UOM Range'!$A$4:$I$500,7,FALSE), ""),"") ->  | AQ9: =IFERROR(_xlfn.IFNA(VLOOKUP(IF(OR($AR9="Agribusiness", $AR9="Ag",$AR9="Propane", $AR9="Ag Propane", $AR9="Ag-Propane"),$AC9, $AB9),'[4]UOM Range'!$A$4:$I$500,8,FALSE), ""),"") ->  | AR9: Lighting | AS9: 11
A10: L10282 | B10: L10282 | C10: N-L10282 | D10: 4' LED Linear Ambient Fixture, Interior | E10: L10282: 4' LED Linear Ambient Fixture, Interior | F10: Must be DLC SSL QPL listed (TRT V5.0 or higher) in the "Linear Ambient" general application. | G10: Fixtures that are DLC SSL QPL listed (TRT V5.0 or higher listed) in the Low-Bay General Application or the “Stairwell & Passageway Luminaires” primary use category are also eligible, if they have a linear profile. | H10: Stairwell & Passageway Luminaires may also apply for bi-level occupancy controls. | I10: Unique length fixtures not offered, such as 6', may combine or mix'n'match multiple Linear Ambient measures to equal total length. | P10: Provide clear photo(s) of: fixture and/or example linear run, fixture packaging label (if possible) . | Q10: Verify fixture size by comparing to grid ceiling/ under cabinet/ structure as reference. | V10: $12.00 | W10: Fixture | X10: $12.00 | Y10: Fixture | Z10: $8.00 | AA10: Fixture | AB10: 10282 | AC10: 10282 | AD10: =AB10 -> 10282 | AE10: Yes | AF10: Yes | AG10: Yes | AH10: 100.0% | AI10: 100.0% | AJ10: 100.0% | AK10: No | AL10: L10282: 4' LED Linear Ambient Fixture, Interior | AM10: No | AN10: No | AP10: =IFERROR(_xlfn.IFNA(VLOOKUP(IF(OR($AR10="Agribusiness", $AR10="Ag",$AR10="Propane", $AR10="Ag Propane", $AR10="Ag-Propane"),$AC10, $AB10),'[4]UOM Range'!$A$4:$I$500,7,FALSE), ""),"") ->  | AQ10: =IFERROR(_xlfn.IFNA(VLOOKUP(IF(OR($AR10="Agribusiness", $AR10="Ag",$AR10="Propane", $AR10="Ag Propane", $AR10="Ag-Propane"),$AC10, $AB10),'[4]UOM Range'!$A$4:$I$500,8,FALSE), ""),"") ->  | AR10: Lighting | AS10: 11
A11: L10283 | B11: L10283 | C11: N-L10283 | D11: 8' LED Linear Ambient Fixture, Interior | E11: L10283: 8' LED Linear Ambient Fixture, Interior | F11: Must be DLC SSL QPL listed (TRT V5.0 or higher) in the "Linear Ambient" general application. | G11: Fixtures that are DLC SSL QPL listed (TRT V5.0 or higher listed) in the Low-Bay General Application or the “Stairwell & Passageway Luminaires” primary use category are also eligible, if they have a linear profile. | H11: Stairwell & Passageway Luminaires may also apply for bi-level occupancy controls. | I11: Unique length fixtures not offered, such as 6', may combine or mix'n'match multiple Linear Ambient measures to equal total length. | P11: Provide clear photo(s) of: fixture and/or example linear run, fixture packaging label (if possible) . | Q11: Verify fixture size by comparing to grid ceiling/ under cabinet/ structure as reference. | V11: $24.00 | W11: Fixture | X11: $24.00 | Y11: Fixture | Z11: $16.00 | AA11: Fixture | AB11: 10283 | AC11: 10283 | AD11: 10283 | AE11: Yes | AF11: Yes | AG11: Yes | AH11: 100.0% | AI11: 100.0% | AJ11: 100.0% | AK11: No | AL11: L10283: 8' LED Linear Ambient Fixture, Interior | AM11: No | AN11: No | AP11: =IFERROR(_xlfn.IFNA(VLOOKUP(IF(OR($AR11="Agribusiness", $AR11="Ag",$AR11="Propane", $AR11="Ag Propane", $AR11="Ag-Propane"),$AC11, $AB11),'[4]UOM Range'!$A$4:$I$500,7,FALSE), ""),"") ->  | AQ11: =IFERROR(_xlfn.IFNA(VLOOKUP(IF(OR($AR11="Agribusiness", $AR11="Ag",$AR11="Propane", $AR11="Ag Propane", $AR11="Ag-Propane"),$AC11, $AB11),'[4]UOM Range'!$A$4:$I$500,8,FALSE), ""),"") ->  | AR11: Lighting | AS11: 11
A12: L10284 | B12: L10284 | C12: N-L10284 | D12: 1’ to 3’ LED Linear Ambient Fixture, Exterior | E12: L10284: 1’ to 3’ LED Linear Ambient Fixture, Exterior | F12: Must be DLC SSL QPL listed (TRT V5.0 or higher) in the "Linear Ambient" general application. | G12: Fixtures that are DLC SSL QPL listed (TRT V5.0 or higher listed) in the Low-Bay General Application or the “Stairwell & Passageway Luminaires” primary use category are also eligible, if they have a linear profile. | H12: Stairwell & Passageway Luminaires may also apply for bi-level occupancy controls. | I12: Unique length fixtures not offered, such as 6', may combine or mix'n'match multiple Linear Ambient measures to equal total length. | P12: Provide clear photo(s) of: fixture and/or example linear run, fixture packaging label (if possible) . | Q12: Verify fixture size by comparing to grid ceiling/ under cabinet/ structure as reference. | V12: $6.00 | W12: Fixture | X12: $6.00 | Y12: Fixture | Z12: $4.00 | AA12: Fixture | AB12: 10284 | AC12: 10284 | AD12: 10284 | AE12: Yes | AF12: Yes | AG12: Yes | AH12: 100.0% | AI12: 100.0% | AJ12: 100.0% | AK12: No | AL12: L10284: 1’ to 3’ LED Linear Ambient Fixture, Exterior | AM12: No | AN12: No | AP12: =IFERROR(_xlfn.IFNA(VLOOKUP(IF(OR($AR12="Agribusiness", $AR12="Ag",$AR12="Propane", $AR12="Ag Propane", $AR12="Ag-Propane"),$AC12, $AB12),'[4]UOM Range'!$A$4:$I$500,7,FALSE), ""),"") ->  | AQ12: =IFERROR(_xlfn.IFNA(VLOOKUP(IF(OR($AR12="Agribusiness", $AR12="Ag",$AR12="Propane", $AR12="Ag Propane", $AR12="Ag-Propane"),$AC12, $AB12),'[4]UOM Range'!$A$4:$I$500,8,FALSE), ""),"") ->  | AR12: Lighting | AS12: 11
A13: L10285 | B13: L10285 | C13: N-L10285 | D13: 4' LED Linear Ambient Fixture, Exterior | E13: L10285: 4' LED Linear Ambient Fixture, Exterior | F13: Must be DLC SSL QPL listed (TRT V5.0 or higher) in the "Linear Ambient" general application. | G13: Fixtures that are DLC SSL QPL listed (TRT V5.0 or higher listed) in the Low-Bay General Application or the “Stairwell & Passageway Luminaires” primary use category are also eligible, if they have a linear profile. | H13: Stairwell & Passageway Luminaires may also apply for bi-level occupancy controls. | I13: Unique length fixtures not offered, such as 6', may combine or mix'n'match multiple Linear Ambient measures to equal total length. | P13: Provide clear photo(s) of: fixture and/or example linear run, fixture packaging label (if possible) . | Q13: Verify fixture size by comparing to grid ceiling/ under cabinet/ structure as reference. | V13: $12.00 | W13: Fixture | X13: $12.00 | Y13: Fixture | Z13: $8.00 | AA13: Fixture | AB13: 10285 | AC13: 10285 | AD13: 10285 | AE13: Yes | AF13: Yes | AG13: Yes | AH13: 100.0% | AI13: 100.0% | AJ13: 100.0% | AK13: No | AL13: L10285: 4' LED Linear Ambient Fixture, Exterior | AM13: No | AN13: No | AP13: =IFERROR(_xlfn.IFNA(VLOOKUP(IF(OR($AR13="Agribusiness", $AR13="Ag",$AR13="Propane", $AR13="Ag Propane", $AR13="Ag-Propane"),$AC13, $AB13),'[4]UOM Range'!$A$4:$I$500,7,FALSE), ""),"") ->  | AQ13: =IFERROR(_xlfn.IFNA(VLOOKUP(IF(OR($AR13="Agribusiness", $AR13="Ag",$AR13="Propane", $AR13="Ag Propane", $AR13="Ag-Propane"),$AC13, $AB13),'[4]UOM Range'!$A$4:$I$500,8,FALSE), ""),"") ->  | AR13: Lighting | AS13: 11
A14: L10286 | B14: L10286 | C14: N-L10286 | D14: 8' LED Linear Ambient Fixture, Exterior | E14: L10286: 8' LED Linear Ambient Fixture, Exterior | F14: Must be DLC SSL QPL listed (TRT V5.0 or higher) in the "Linear Ambient" general application. | G14: Fixtures that are DLC SSL QPL listed (TRT V5.0 or higher listed) in the Low-Bay General Application or the “Stairwell & Passageway Luminaires” primary use category are also eligible, if they have a linear profile. | H14: Stairwell & Passageway Luminaires may also apply for bi-level occupancy controls. | I14: Unique length fixtures not offered, such as 6', may combine or mix'n'match multiple Linear Ambient measures to equal total length. | P14: Provide clear photo(s) of: fixture and/or example linear run, fixture packaging label (if possible) . | Q14: Verify fixture size by comparing to grid ceiling/ under cabinet/ structure as reference. | V14: $24.00 | W14: Fixture | X14: $24.00 | Y14: Fixture | Z14: $16.00 | AA14: Fixture | AB14: 10286 | AC14: 10286 | AD14: 10286 | AE14: Yes | AF14: Yes | AG14: Yes | AH14: 100.0% | AI14: 100.0% | AJ14: 100.0% | AK14: No | AL14: L10286: 8' LED Linear Ambient Fixture, Exterior | AM14: No | AN14: No | AP14: =IFERROR(_xlfn.IFNA(VLOOKUP(IF(OR($AR14="Agribusiness", $AR14="Ag",$AR14="Propane", $AR14="Ag Propane", $AR14="Ag-Propane"),$AC14, $AB14),'[4]UOM Range'!$A$4:$I$500,7,FALSE), ""),"") ->  | AQ14: =IFERROR(_xlfn.IFNA(VLOOKUP(IF(OR($AR14="Agribusiness", $AR14="Ag",$AR14="Propane", $AR14="Ag Propane", $AR14="Ag-Propane"),$AC14, $AB14),'[4]UOM Range'!$A$4:$I$500,8,FALSE), ""),"") ->  | AR14: Lighting | AS14: 11
A15: L10028 | B15: L10028 | C15: N-L10028 | D15: LED Downlight Fixtures replacing or instead of Incandescent, CFL, or HID fixture | E15: =IF(ISBLANK(A15),"",IF(FOEIncentCodeType=IncentCodeTypeNC,C15,IF(FOEIncentCodeType=IncentCodeTypeAg,B15,A15))&": ") &D15 -> L10028: LED Downlight Fixtures replacing or instead of Incandescent, CFL, or HID fixture | F15: Fixture must be listed on ENERGY STAR as a “Downlight Recessed,” “Downlight Solid State Retrofit,” “Downlight Surface Mount,” "Ceiling Mount," or "LED Surface Mount Ceiling Retrofit" fixture type and be intended for commercial use. | G15: Fixtures that are intended for residential use may be used in multifamily buildings. | H15: For replacement of incandescent, CFL or HID fixtures in interior applications. | I15: Low voltage or decorative LED fixtures that do not meet the criteria below may be eligible for custom incentives. | V15: $13.00 | W15: Fixture | X15: $13.00 | Y15: Fixture | Z15: $7.00 | AA15: =W15 -> Fixture | AB15: 10028 | AC15: =AB15 -> 10028 | AD15: 10028 | AE15: Yes | AF15: =AE15 -> Yes | AG15: Yes | AH15: 100.0% | AI15: 100.0% | AJ15: 100.0% | AK15: No | AL15: =IF(ISBLANK(A15),"",IF(A15<>"Not Eligible",A15,IF(B15<>"Not Eligible",B15,C15))&": ") &D15 -> L10028: LED Downlight Fixtures replacing or instead of Incandescent, CFL, or HID fixture | AM15: No | AN15: No | AP15: =IFERROR(_xlfn.IFNA(VLOOKUP(IF(OR($AR15="Agribusiness", $AR15="Ag",$AR15="Propane", $AR15="Ag Propane", $AR15="Ag-Propane"),$AC15, $AB15),'[4]UOM Range'!$A$4:$I$500,7,FALSE), ""),"") ->  | AQ15: =IFERROR(_xlfn.IFNA(VLOOKUP(IF(OR($AR15="Agribusiness", $AR15="Ag",$AR15="Propane", $AR15="Ag Propane", $AR15="Ag-Propane"),$AC15, $AB15),'[4]UOM Range'!$A$4:$I$500,8,FALSE), ""),"") ->  | AR15: Lighting | AS15: 12
A16: L10029 | B16: L10029 | C16: N-L10029 | D16: LED Downlight Fixtures replacing or instead of Incandescent, CFL or HID fixture, Exterior | E16: =IF(ISBLANK(A16),"",IF(FOEIncentCodeType=IncentCodeTypeNC,C16,IF(FOEIncentCodeType=IncentCodeTypeAg,B16,A16))&": ") &D16 -> L10029: LED Downlight Fixtures replacing or instead of Incandescent, CFL or HID fixture, Exterior | F16: For businesses, fixture must be listed on ENERGY STAR as a Downlight Recessed, Downlight Solid State Retrofit, … | G16: ... or Downlight Surface Mount fixture type and be intended for commercial use. | H16: For multifamily buildings, must be listed on ENERGY STAR as a Downlight Recessed, Downlight Solid State Retrofit, or Downlight Surface Mount fixture type and be intended for commercial and/or residential use. | I16: For replacement of incandescent, CFL or HID fixtures in exterior applications. | V16: $20.00 | W16: Fixture | X16: $20.00 | Y16: Fixture | Z16: $10.00 | AA16: =W16 -> Fixture | AB16: 10029 | AC16: =AB16 -> 10029 | AD16: 10029 | AE16: Yes | AF16: Yes | AG16: Yes | AH16: 100.0% | AI16: 100.0% | AJ16: 100.0% | AK16: No | AL16: =IF(ISBLANK(A16),"",IF(A16<>"Not Eligible",A16,IF(B16<>"Not Eligible",B16,C16))&": ") &D16 -> L10029: LED Downlight Fixtures replacing or instead of Incandescent, CFL or HID fixture, Exterior | AM16: No | AN16: No | AP16: =IFERROR(_xlfn.IFNA(VLOOKUP(IF(OR($AR16="Agribusiness", $AR16="Ag",$AR16="Propane", $AR16="Ag Propane", $AR16="Ag-Propane"),$AC16, $AB16),'[4]UOM Range'!$A$4:$I$500,7,FALSE), ""),"") ->  | AQ16: =IFERROR(_xlfn.IFNA(VLOOKUP(IF(OR($AR16="Agribusiness", $AR16="Ag",$AR16="Propane", $AR16="Ag Propane", $AR16="Ag-Propane"),$AC16, $AB16),'[4]UOM Range'!$A$4:$I$500,8,FALSE), ""),"") ->  | AR16: Lighting | AS16: 12
A17: L4813 | B17: L4813 | C17: N-L4813 | D17: LED Track/Mono/Accent fixtures replacing incandescent, CFL, or HID fixture | E17: =IF(ISBLANK(A17),"",IF(FOEIncentCodeType=IncentCodeTypeNC,C17,IF(FOEIncentCodeType=IncentCodeTypeAg,B17,A17))&": ") &D17 -> L4813: LED Track/Mono/Accent fixtures replacing incandescent, CFL, or HID fixture | F17: Complete Table A of the "Lighting Incentive Catalog Supplemental Data Sheet" for these measures. | G17: Watts reduced calculation uses system wattage table on page 10 of Lighting Catalog for baseline inputs. | H17: Fixture may be listed on ENERGY STAR and in a category not defined by linear ambient (pg. 10) or downlight (pg. 13) measures. | I17: Eligible fixtures may also be DLC TRT V5.0 or higher listed in either the "Track or Mono-point Luminaires, or "Wall-wash Luminaires" primary use categories. Fixtures must be intended for commercial use. | J17: Must be permanently wired fixtures and include housing, lens, heat sink, driver and light source. | V17: $0.30 | W17: Watt Reduced | X17: $0.30 | Y17: Watt Reduced | Z17: $0.20 | AA17: =W17 -> Watt Reduced | AB17: 4813 | AC17: =AB17 -> 4813 | AD17: 4813 | AE17: Yes | AF17: =AE17 -> Yes | AG17: Yes | AH17: 100.0% | AI17: 100.0% | AJ17: 100.0% | AK17: No | AL17: =IF(ISBLANK(A17),"",IF(A17<>"Not Eligible",A17,IF(B17<>"Not Eligible",B17,C17))&": ") &D17 -> L4813: LED Track/Mono/Accent fixtures replacing incandescent, CFL, or HID fixture | AM17: No | AN17: Optional (yes if baseline watts not from input wattage table in lighting catalog) | AO17: Watts Reduced | AP17: =IFERROR(_xlfn.IFNA(VLOOKUP(IF(OR($AR17="Agribusiness", $AR17="Ag",$AR17="Propane", $AR17="Ag Propane", $AR17="Ag-Propane"),$AC17, $AB17),'[4]UOM Range'!$A$4:$I$500,7,FALSE), ""),"") -> 1.00 | AQ17: =IFERROR(_xlfn.IFNA(VLOOKUP(IF(OR($AR17="Agribusiness", $AR17="Ag",$AR17="Propane", $AR17="Ag Propane", $AR17="Ag-Propane"),$AC17, $AB17),'[4]UOM Range'!$A$4:$I$500,8,FALSE), ""),"") -> 200.00 | AR17: Lighting | AS17: 12
A18: L3903 | B18: L3903 | C18: Not Eligible | D18: Interior LED Signage | E18: =IF(ISBLANK(A18),"",IF(FOEIncentCodeType=IncentCodeTypeNC,C18,IF(FOEIncentCodeType=IncentCodeTypeAg,B18,A18))&": ") &D18 -> L3903: Interior LED Signage | F18: Applications include, but are not limited to, channel lettering, backlit displays and menu boards. | G18: Signs illuminated by screw-in or pin-based lamps, track lights, or flood lights should refer to the corresponding incentive. | P18: Provide clear photo(s) of: fixture, fixture packaging label (if possible). | Q18: Verify sign is installed in interior application. | R18: Verify whether retrofit is dedicated LED system or simply screw-in or pin-based replacement lamps. | V18: $0.50 | W18: Watt Installed | X18: =V18 -> $0.50 | Y18: Watt Installed | Z18: N/a | AA18: Watt Installed | AB18: 3903 | AC18: =AB18 -> 3903 | AD18: 3903 | AE18: No | AF18: =AE18 -> No | AG18: No | AH18: 100.0% | AI18: 100.0% | AJ18: 100.0% | AK18: No | AL18: =IF(ISBLANK(A18),"",IF(A18<>"Not Eligible",A18,IF(B18<>"Not Eligible",B18,C18))&": ") &D18 -> L3903: Interior LED Signage | AM18: No | AN18: Optional (if applied wattage does not match invoice) | AP18: =IFERROR(_xlfn.IFNA(VLOOKUP(IF(OR($AR18="Agribusiness", $AR18="Ag",$AR18="Propane", $AR18="Ag Propane", $AR18="Ag-Propane"),$AC18, $AB18),'[4]UOM Range'!$A$4:$I$500,7,FALSE), ""),"") ->  | AQ18: =IFERROR(_xlfn.IFNA(VLOOKUP(IF(OR($AR18="Agribusiness", $AR18="Ag",$AR18="Propane", $AR18="Ag Propane", $AR18="Ag-Propane"),$AC18, $AB18),'[4]UOM Range'!$A$4:$I$500,8,FALSE), ""),"") ->  | AR18: Lighting | AS18: 12
A19: L3904 | B19: L3904 | C19: Not Eligible | D19: Exterior LED Signage | E19: =IF(ISBLANK(A19),"",IF(FOEIncentCodeType=IncentCodeTypeNC,C19,IF(FOEIncentCodeType=IncentCodeTypeAg,B19,A19))&": ") &D19 -> L3904: Exterior LED Signage | F19: Applications include, but are not limited to, channel lettering, backlit displays and menu boards. | G19: Signs illuminated by screw-in or pin-based lamps, track lights, or flood lights should refer to the corresponding incentive. | P19: Provide photo(s) of: fixture, fixture packaging label (if possible). | Q19: Verify sign is installed in exterior application. | R19: Verify whether retrofit is dedicated LED system or simply screw-in or pin-based replacement lamps. | V19: $0.50 | W19: Watt Installed | X19: =V19 -> $0.50 | Y19: Watt Installed | Z19: N/A | AA19: Watt Installed | AB19: 3904 | AC19: =AB19 -> 3904 | AD19: 3904 | AE19: No | AF19: No | AG19: No | AH19: 100.0% | AI19: 100.0% | AJ19: 100.0% | AK19: No | AL19: L3904: Exterior LED Signage | AM19: No | AN19: Optional (if applied wattage does not match invoice) | AP19: =IFERROR(_xlfn.IFNA(VLOOKUP(IF(OR($AR19="Agribusiness", $AR19="Ag",$AR19="Propane", $AR19="Ag Propane", $AR19="Ag-Propane"),$AC19, $AB19),'[4]UOM Range'!$A$4:$I$500,7,FALSE), ""),"") ->  | AQ19: =IFERROR(_xlfn.IFNA(VLOOKUP(IF(OR($AR19="Agribusiness", $AR19="Ag",$AR19="Propane", $AR19="Ag Propane", $AR19="Ag-Propane"),$AC19, $AB19),'[4]UOM Range'!$A$4:$I$500,8,FALSE), ""),"") ->  | AR19: Lighting | AS19: 12
A20: L3091 | B20: L3091 | C20: Not Eligible | D20: ≤ 155W LED High Bay/Low Bay, replacing or instead of 250W HID | E20: L3091: ≤ 155W LED High Bay/Low Bay, replacing or instead of 250W HID | F20: Retrofit products must be listed on the DLC TRT V5.0 or higher qualified product list under the High-Bay or Low-Bay General Application and be permanently wired or applicable cord and plug. | G20: New fixtures must be DLC TRT V5.0 or higher listed under the High-Bay or Low-Bay General Application. | H20: Fixture must consume ≤ 155W | I20: Integral ballast screw-based retrofit products are not eligible. Refer to page 18 for High/Low-Bay Mogul Screw-base (E39) LED lamps. | J20: Fixtures for low-bay applications may use products that are DLC SSL QPL listed (TRT V5.0 or higher) in the "Linear Ambient" general category,... | K20: "Fuel Pump Canopy Luminaires", or "Parking Garage Luminaires" PUD, if they provide sufficient lighting and meet wattage requirements. | O20: Long-Day Lighting fixtures for dairy applications are eligible for this incentive. Agriculture customers eligible for MMID AG4695. | P20: Provide clear photo(s) of: fixture, sensor (if applicable), fixture packaging label (if possible). | Q20: Verify fixture is dedicated LED and not a replacement, screw-in lamp. | V20: $65.00 | W20: Fixture | X20: $65.00 | Y20: Fixture | Z20: N/A | AA20: Fixture | AB20: 3091 | AC20: 3091 | AD20: 3091 | AE20: No | AF20: No | AG20: No | AH20: 100.0% | AI20: 100.0% | AJ20: 100.0% | AK20: No | AL20: L3091: ≤ 155W LED High Bay/Low Bay, replacing or instead of 250W HID | AM20: No | AN20: No | AP20: =IFERROR(_xlfn.IFNA(VLOOKUP(IF(OR($AR20="Agribusiness", $AR20="Ag",$AR20="Propane", $AR20="Ag Propane", $AR20="Ag-Propane"),$AC20, $AB20),'[4]UOM Range'!$A$4:$I$500,7,FALSE), ""),"") ->  | AQ20: =IFERROR(_xlfn.IFNA(VLOOKUP(IF(OR($AR20="Agribusiness", $AR20="Ag",$AR20="Propane", $AR20="Ag Propane", $AR20="Ag-Propane"),$AC20, $AB20),'[4]UOM Range'!$A$4:$I$500,8,FALSE), ""),"") ->  | AR20: Lighting | AS20: 13
A21: L3092 | B21: L3092 | C21: Not Eligible | D21: ≤ 250W LED High Bay/Low Bay, instead of 320-399W HID | E21: L3092: ≤ 250W LED High Bay/Low Bay, instead of 320-399W HID | F21: Retrofit products must be listed on the DLC TRT V5.0 or higher qualified product list under the High-Bay or Low-Bay General Application and be permanently wired or applicable cord and plug. | G21: New fixtures must be DLC TRT V5.0 or higher listed under the High-Bay or Low-Bay General Application. | H21: Fixture must consume ≤ 250W | I21: Integral ballast screw-based retrofit products are not eligible. Refer to page 18 for High/Low-Bay Mogul Screw-base (E39) LED lamps. | J21: Fixtures for low-bay applications may use products that are DLC SSL QPL listed (TRT V5.0 or higher) in the "Linear Ambient" general category,... | K21: "Fuel Pump Canopy Luminaires", or "Parking Garage Luminaires" PUD, if they provide sufficient lighting and meet wattage requirements. | O21: Long-Day Lighting fixtures for dairy applications are eligible for this incentive. Agriculture customers eligible for MMID AG4696. | P21: Provide clear photo(s) of: fixture, sensor (if applicable), fixture packaging label (if possible). | Q21: Verify fixture is dedicated LED and not a replacement, screw-in lamp. | V21: $75.00 | W21: Fixture | X21: $75.00 | Y21: Fixture | Z21: N/A | AA21: Fixture | AB21: 3092 | AC21: 3092 | AD21: 3092 | AE21: No | AF21: No | AG21: No | AH21: 100.0% | AI21: 100.0% | AJ21: 100.0% | AK21: No | AL21: L3092: ≤ 250W LED High Bay/Low Bay, instead of 320-399W HID | AM21: No | AN21: No | AP21: =IFERROR(_xlfn.IFNA(VLOOKUP(IF(OR($AR21="Agribusiness", $AR21="Ag",$AR21="Propane", $AR21="Ag Propane", $AR21="Ag-Propane"),$AC21, $AB21),'[4]UOM Range'!$A$4:$I$500,7,FALSE), ""),"") ->  | AQ21: =IFERROR(_xlfn.IFNA(VLOOKUP(IF(OR($AR21="Agribusiness", $AR21="Ag",$AR21="Propane", $AR21="Ag Propane", $AR21="Ag-Propane"),$AC21, $AB21),'[4]UOM Range'!$A$4:$I$500,8,FALSE), ""),"") ->  | AR21: Lighting | AS21: 13
A22: L3093 | B22: L3093 | C22: Not Eligible | D22: ≤ 250W LED High Bay/Low Bay, replacing 400W HID | E22: L3093: ≤ 250W LED High Bay/Low Bay, replacing 400W HID | F22: Retrofit products must be listed on the DLC TRT V5.0 or higher qualified product list under the High-Bay or Low-Bay General Application and be permanently wired or applicable cord and plug. | G22: New fixtures must be DLC TRT V5.0 or higher listed under the High-Bay or Low-Bay General Application. | H22: Fixture must consume ≤ 250W | I22: Integral ballast screw-based retrofit products are not eligible. Refer to page 18 for High/Low-Bay Mogul Screw-base (E39) LED lamps. | J22: Fixtures for low-bay applications may use products that are DLC SSL QPL listed (TRT V5.0 or higher) in the "Linear Ambient" general category,... | K22: "Fuel Pump Canopy Luminaires", or "Parking Garage Luminaires" PUD, if they provide sufficient lighting and meet wattage requirements. | O22: Long-Day Lighting fixtures for dairy applications are eligible for this incentive. Agriculture customers eligible for MMID AG4697. | P22: Provide clear photo(s) of: fixture, sensor (if applicable), fixture packaging label (if possible). | Q22: Verify fixture is dedicated LED and not a replacement, screw-in lamp. | V22: $100.00 | W22: Fixture | X22: $100.00 | Y22: Fixture | Z22: N/A | AA22: Fixture | AB22: 3093 | AC22: 3093 | AD22: 3093 | AE22: No | AF22: No | AG22: No | AH22: 100.0% | AI22: 100.0% | AJ22: 100.0% | AK22: No | AL22: L3093: ≤ 250W LED High Bay/Low Bay, replacing 400W HID | AM22: No | AN22: No | AP22: =IFERROR(_xlfn.IFNA(VLOOKUP(IF(OR($AR22="Agribusiness", $AR22="Ag",$AR22="Propane", $AR22="Ag Propane", $AR22="Ag-Propane"),$AC22, $AB22),'[4]UOM Range'!$A$4:$I$500,7,FALSE), ""),"") ->  | AQ22: =IFERROR(_xlfn.IFNA(VLOOKUP(IF(OR($AR22="Agribusiness", $AR22="Ag",$AR22="Propane", $AR22="Ag Propane", $AR22="Ag-Propane"),$AC22, $AB22),'[4]UOM Range'!$A$4:$I$500,8,FALSE), ""),"") ->  | AR22: Lighting | AS22: 13
A23: L3094 | B23: L3094 | C23: Not Eligible | D23: ≤ 365W LED High Bay/Low Bay, replacing 400W HID | E23: L3094: ≤ 365W LED High Bay/Low Bay, replacing 400W HID | F23: Retrofit products must be listed on the DLC TRT V5.0 or higher qualified product list under the High-Bay or Low-Bay General Application and be permanently wired or applicable cord and plug. | G23: New fixtures must be DLC TRT V5.0 or higher listed under the High-Bay or Low-Bay General Application. | H23: Fixture must consume ≤ 365W | I23: Integral ballast screw-based retrofit products are not eligible. Refer to page 18 for High/Low-Bay Mogul Screw-base (E39) LED lamps. | J23: Fixtures for low-bay applications may use products that are DLC SSL QPL listed (TRT V5.0 or higher) in the "Linear Ambient" general category,... | K23: "Fuel Pump Canopy Luminaires", or "Parking Garage Luminaires" PUD, if they provide sufficient lighting and meet wattage requirements. | O23: Long-Day Lighting fixtures for dairy applications are eligible for this incentive. Agriculture customers eligible for MMID AG4698. | P23: Provide clear photo(s) of: fixture, sensor (if applicable), fixture packaging label (if possible). | Q23: Verify fixture is dedicated LED and not a replacement, screw-in lamp. | V23: $65.00 | W23: Fixture | X23: $65.00 | Y23: Fixture | Z23: N/A | AA23: Fixture | AB23: 3094 | AC23: 3094 | AD23: 3094 | AE23: No | AF23: No | AG23: No | AH23: 100.0% | AI23: 100.0% | AJ23: 100.0% | AK23: No | AL23: L3094: ≤ 365W LED High Bay/Low Bay, replacing 400W HID | AM23: No | AN23: No | AP23: =IFERROR(_xlfn.IFNA(VLOOKUP(IF(OR($AR23="Agribusiness", $AR23="Ag",$AR23="Propane", $AR23="Ag Propane", $AR23="Ag-Propane"),$AC23, $AB23),'[4]UOM Range'!$A$4:$I$500,7,FALSE), ""),"") ->  | AQ23: =IFERROR(_xlfn.IFNA(VLOOKUP(IF(OR($AR23="Agribusiness", $AR23="Ag",$AR23="Propane", $AR23="Ag Propane", $AR23="Ag-Propane"),$AC23, $AB23),'[4]UOM Range'!$A$4:$I$500,8,FALSE), ""),"") ->  | AR23: Lighting | AS23: 13
A24: L3095 | B24: L3095 | C24: Not Eligible | D24: ≤ 500W LED High Bay/Low Bay, replacing or instead of 1000W HID | E24: L3095: ≤ 500W LED High Bay/Low Bay, replacing or instead of 1000W HID | F24: Retrofit products must be listed on the DLC TRT V5.0 or higher qualified product list under the High-Bay or Low-Bay General Application and be permanently wired or applicable cord and plug. | G24: New fixtures must be DLC TRT V5.0 or higher listed under the High-Bay or Low-Bay General Application. | H24: ≤500W refers to LED total system watts and may consist of up to two fixtures replacing a single HID fixture. | I24: Integral ballast screw-based retrofit products are not eligible. Refer to page 18 for High/Low-Bay Mogul Screw-base (E39) LED lamps. | J24: Fixtures for low-bay applications may use products that are DLC SSL QPL listed (TRT V5.0 or higher) in the "Linear Ambient" general category,... | K24: "Fuel Pump Canopy Luminaires", or "Parking Garage Luminaires" PUD, if they provide sufficient lighting and meet wattage requirements. | O24: Long-Day Lighting fixtures for dairy applications are eligible for this incentive. Agriculture customers eligible for MMID AG4699. | P24: Provide clear photo(s) of: fixture, sensor (if applicable), fixture packaging label (if possible). | Q24: Verify fixture is dedicated LED and not a replacement, screw-in lamp. | V24: $175.00 | W24: Fixture | X24: $175.00 | Y24: Fixture | Z24: N/A | AA24: Fixture | AB24: 3095 | AC24: 3095 | AD24: 3095 | AE24: No | AF24: No | AG24: No | AH24: 100.0% | AI24: 100.0% | AJ24: 100.0% | AK24: No | AL24: L3095: ≤ 500W LED High Bay/Low Bay, replacing or instead of 1000W HID | AM24: No | AN24: No | AP24: =IFERROR(_xlfn.IFNA(VLOOKUP(IF(OR($AR24="Agribusiness", $AR24="Ag",$AR24="Propane", $AR24="Ag Propane", $AR24="Ag-Propane"),$AC24, $AB24),'[4]UOM Range'!$A$4:$I$500,7,FALSE), ""),"") ->  | AQ24: =IFERROR(_xlfn.IFNA(VLOOKUP(IF(OR($AR24="Agribusiness", $AR24="Ag",$AR24="Propane", $AR24="Ag Propane", $AR24="Ag-Propane"),$AC24, $AB24),'[4]UOM Range'!$A$4:$I$500,8,FALSE), ""),"") ->  | AR24: Lighting | AS24: 13
A25: L3096 | B25: L3096 | C25: Not Eligible | D25: ≤ 800W LED High Bay/Low Bay, replacing or instead of 1000W HID | E25: L3096: ≤ 800W LED High Bay/Low Bay, replacing or instead of 1000W HID | F25: Retrofit products must be listed on the DLC TRT V5.0 or higher qualified product list under the High-Bay or Low-Bay General Application and be permanently wired or applicable cord and plug. | G25: New fixtures must be DLC TRT V5.0 or higher listed under the High-Bay or Low-Bay General Application. | H25: ≤800W refers to LED total system watts and may consist of up to two fixtures replacing a single HID fixture. | I25: Integral ballast screw-based retrofit products are not eligible. Refer to page 18 for High/Low-Bay Mogul Screw-base (E39) LED lamps. | J25: Fixtures for low-bay applications may use products that are DLC SSL QPL listed (TRT V5.0 or higher) in the "Linear Ambient" general category,... | K25: "Fuel Pump Canopy Luminaires", or "Parking Garage Luminaires" PUD, if they provide sufficient lighting and meet wattage requirements. | O25: Long-Day Lighting fixtures for dairy applications are eligible for this incentive. Agriculture customers eligible for MMID AG4700. | P25: Provide clear photo(s) of: fixture, sensor (if applicable), fixture packaging label (if possible). | Q25: Verify fixture is dedicated LED and not a replacement, screw-in lamp. | V25: $125.00 | W25: Fixture | X25: $125.00 | Y25: Fixture | Z25: N/A | AA25: Fixture | AB25: 3096 | AC25: 3096 | AD25: 3096 | AE25: No | AF25: No | AG25: No | AH25: 100.0% | AI25: 100.0% | AJ25: 100.0% | AK25: No | AL25: L3096: ≤ 800W LED High Bay/Low Bay, replacing or instead of 1000W HID | AM25: No | AN25: No | AP25: =IFERROR(_xlfn.IFNA(VLOOKUP(IF(OR($AR25="Agribusiness", $AR25="Ag",$AR25="Propane", $AR25="Ag Propane", $AR25="Ag-Propane"),$AC25, $AB25),'[4]UOM Range'!$A$4:$I$500,7,FALSE), ""),"") ->  | AQ25: =IFERROR(_xlfn.IFNA(VLOOKUP(IF(OR($AR25="Agribusiness", $AR25="Ag",$AR25="Propane", $AR25="Ag Propane", $AR25="Ag-Propane"),$AC25, $AB25),'[4]UOM Range'!$A$4:$I$500,8,FALSE), ""),"") ->  | AR25: Lighting | AS25: 13
A26: L5460 | B26: L5460 | C26: N-L5460 | D26: ≤ 85W LED High Bay/Low Bay, replacing 4 Lamp 4' or 2 Lamp 8' T8 or T12 | E26: =IF(ISBLANK(A26),"",IF(FOEIncentCodeType=IncentCodeTypeNC,C26,IF(FOEIncentCodeType=IncentCodeTypeAg,B26,A26))&": ") &D26 -> L5460: ≤ 85W LED High Bay/Low Bay, replacing 4 Lamp 4' or 2 Lamp 8' T8 or T12 | F26: Retrofit products must be listed on the DLC TRT V5.0 or higher qualified product list under the High-Bay or Low-Bay General Application and be permanently wired or applicable cord and plug. | G26: New fixtures must be DLC TRT V5.0 or higher listed under the High-Bay or Low-Bay General Application. | H26: Fixture must consume ≤ 85W | I26: Integral ballast screw-based retrofit products are not eligible. Refer to page 18 for High/Low-Bay Mogul Screw-base (E39) LED lamps. | J26: Fixtures for low-bay applications may use products that are DLC SSL QPL listed (TRT V5.0 or higher) in the "Linear Ambient" general category,... | K26: "Fuel Pump Canopy Luminaires", or "Parking Garage Luminaires" PUD, if they provide sufficient lighting and meet wattage requirements. | P26: Provide clear photo(s) of: fixture, sensor (if applicable), fixture packaging label (if possible). | Q26: Verify fixture is dedicated LED and not a replacement, screw-in lamp. | V26: $20.00 | W26: Fixture | X26: =V26 -> $20.00 | Y26: =W26 -> Fixture | Z26: $13.00 | AA26: Fixture | AB26: 5460 | AC26: =AB26 -> 5460 | AD26: 5460 | AE26: Yes | AF26: =AE26 -> Yes | AG26: Yes | AH26: 100.0% | AI26: 100.0% | AJ26: 100.0% | AK26: No | AL26: =IF(ISBLANK(A26),"",IF(A26<>"Not Eligible",A26,IF(B26<>"Not Eligible",B26,C26))&": ") &D26 -> L5460: ≤ 85W LED High Bay/Low Bay, replacing 4 Lamp 4' or 2 Lamp 8' T8 or T12 | AM26: No | AN26: No | AP26: =IFERROR(_xlfn.IFNA(VLOOKUP(IF(OR($AR26="Agribusiness", $AR26="Ag",$AR26="Propane", $AR26="Ag Propane", $AR26="Ag-Propane"),$AC26, $AB26),'[4]UOM Range'!$A$4:$I$500,7,FALSE), ""),"") ->  | AQ26: =IFERROR(_xlfn.IFNA(VLOOKUP(IF(OR($AR26="Agribusiness", $AR26="Ag",$AR26="Propane", $AR26="Ag Propane", $AR26="Ag-Propane"),$AC26, $AB26),'[4]UOM Range'!$A$4:$I$500,8,FALSE), ""),"") ->  | AR26: Lighting | AS26: 13
A27: L5461 | B27: L5461 | C27: Not Eligible | D27: ≤ 125W LED High Bay/Low Bay, replacing 4 Lamp 4' or 2 Lamp 8' T12HO | E27: =IF(ISBLANK(A27),"",IF(FOEIncentCodeType=IncentCodeTypeNC,C27,IF(FOEIncentCodeType=IncentCodeTypeAg,B27,A27))&": ") &D27 -> L5461: ≤ 125W LED High Bay/Low Bay, replacing 4 Lamp 4' or 2 Lamp 8' T12HO | F27: Retrofit products must be listed on the DLC TRT V5.0 or higher qualified product list under the High-Bay or Low-Bay General Application and be permanently wired or applicable cord and plug. | G27: New fixtures must be DLC TRT V5.0 or higher listed under the High-Bay or Low-Bay General Application. | H27: Fixture must consume ≤ 125W | I27: Integral ballast screw-based retrofit products are not eligible. Refer to page 18 for High/Low-Bay Mogul Screw-base (E39) LED lamps. | J27: Fixtures for low-bay applications may use products that are DLC SSL QPL listed (TRT V5.0 or higher) in the "Linear Ambient" general category,... | K27: "Fuel Pump Canopy Luminaires", or "Parking Garage Luminaires" PUD, if they provide sufficient lighting and meet wattage requirements. | P27: Provide clear photo(s) of: fixture, sensor (if applicable), fixture packaging label (if possible). | Q27: Verify fixture is dedicated LED and not a replacement, screw-in lamp. | V27: $50.00 | W27: Fixture | X27: =V27 -> $50.00 | Y27: =W27 -> Fixture | Z27: N/A | AA27: Fixture | AB27: 5461 | AC27: =AB27 -> 5461 | AD27: 5461 | AE27: No | AF27: =AE27 -> No | AG27: =AF27 -> No | AH27: 100.0% | AI27: 100.0% | AJ27: 100.0% | AK27: No | AL27: =IF(ISBLANK(A27),"",IF(A27<>"Not Eligible",A27,IF(B27<>"Not Eligible",B27,C27))&": ") &D27 -> L5461: ≤ 125W LED High Bay/Low Bay, replacing 4 Lamp 4' or 2 Lamp 8' T12HO | AM27: No | AN27: No | AP27: =IFERROR(_xlfn.IFNA(VLOOKUP(IF(OR($AR27="Agribusiness", $AR27="Ag",$AR27="Propane", $AR27="Ag Propane", $AR27="Ag-Propane"),$AC27, $AB27),'[4]UOM Range'!$A$4:$I$500,7,FALSE), ""),"") ->  | AQ27: =IFERROR(_xlfn.IFNA(VLOOKUP(IF(OR($AR27="Agribusiness", $AR27="Ag",$AR27="Propane", $AR27="Ag Propane", $AR27="Ag-Propane"),$AC27, $AB27),'[4]UOM Range'!$A$4:$I$500,8,FALSE), ""),"") ->  | AR27: Lighting | AS27: 13
A28: L3393 | B28: L3393 | C28: N-L3393 | D28: ≤ 180W LED High Bay/Low Bay, replacing or instead of 6L T8 or 4L T5HO | E28: L3393: ≤ 180W LED High Bay/Low Bay, replacing or instead of 6L T8 or 4L T5HO | F28: Retrofit products must be listed on the DLC TRT V5.0 or higher qualified product list under the High-Bay or Low-Bay General Application and be permanently wired or applicable cord and plug. | G28: New fixtures must be DLC TRT V5.0 or higher listed under the High-Bay or Low-Bay General Application. | H28: Fixture must consume ≤ 180W. | I28: Integral ballast screw-based retrofit products are not eligible. Refer to page 18 for High/Low-Bay Mogul Screw-base (E39) LED lamps. | J28: Fixtures for low-bay applications may use products that are DLC SSL QPL listed (TRT V5.0 or higher) in the "Linear Ambient" general category,... | K28: "Fuel Pump Canopy Luminaires", or "Parking Garage Luminaires" PUD, if they provide sufficient lighting and meet wattage requirements. | O28: Long-Day Lighting fixtures for dairy applications are eligible for this incentive. Agriculture customers eligible for MMID AG4701. | P28: Provide clear photo(s) of: fixture, sensor (if applicable), fixture packaging label (if possible). | Q28: Verify fixture is dedicated LED and not a replacement, screw-in lamp. | V28: $50.00 | W28: Fixture | X28: $50.00 | Y28: Fixture | Z28: $30.00 | AA28: Fixture | AB28: 3393 | AC28: 3393 | AD28: 3393 | AE28: Yes | AF28: =AE28 -> Yes | AG28: Yes | AH28: 100.0% | AI28: 100.0% | AJ28: 100.0% | AK28: No | AL28: L3393: ≤ 180W LED High Bay/Low Bay, replacing or instead of 6L T8 or 4L T5HO | AM28: No | AN28: No | AP28: =IFERROR(_xlfn.IFNA(VLOOKUP(IF(OR($AR28="Agribusiness", $AR28="Ag",$AR28="Propane", $AR28="Ag Propane", $AR28="Ag-Propane"),$AC28, $AB28),'[4]UOM Range'!$A$4:$I$500,7,FALSE), ""),"") ->  | AQ28: =IFERROR(_xlfn.IFNA(VLOOKUP(IF(OR($AR28="Agribusiness", $AR28="Ag",$AR28="Propane", $AR28="Ag Propane", $AR28="Ag-Propane"),$AC28, $AB28),'[4]UOM Range'!$A$4:$I$500,8,FALSE), ""),"") ->  | AR28: Lighting | AS28: 13
A29: L4347 | B29: L4347 | C29: N-L4347 | D29: ≤ 250W LED High Bay/Low Bay, replacing or instead of 8L T8 or 6L T5HO | E29: L4347: ≤ 250W LED High Bay/Low Bay, replacing or instead of 8L T8 or 6L T5HO | F29: Retrofit products must be listed on the DLC TRT V5.0 or higher qualified product list under the High-Bay or Low-Bay General Application and be permanently wired or applicable cord and plug. | G29: New fixtures must be DLC TRT V5.0 or higher listed under the High-Bay or Low-Bay General Application. | H29: Fixture must consume ≤ 250W | I29: Integral ballast screw-based retrofit products are not eligible. Refer to page 18 for High/Low-Bay Mogul Screw-base (E39) LED lamps. | J29: Fixtures for low-bay applications may use products that are DLC SSL QPL listed (TRT V5.0 or higher) in the "Linear Ambient" general category,... | K29: "Fuel Pump Canopy Luminaires", or "Parking Garage Luminaires" PUD, if they provide sufficient lighting and meet wattage requirements. | O29: Long-Day Lighting fixtures for dairy applications are eligible for this incentive. Agriculture customers eligible for MMID AG4702. | P29: Provide clear photo(s) of: fixture, sensor (if applicable), fixture packaging label (if possible). | Q29: Verify fixture is dedicated LED and not a replacement, screw-in lamp. | V29: $75.00 | W29: Fixture | X29: $75.00 | Y29: Fixture | Z29: $50.00 | AA29: Fixture | AB29: 4347 | AC29: 4347 | AD29: 4347 | AE29: Yes | AF29: Yes | AG29: Yes | AH29: 100.0% | AI29: 100.0% | AJ29: 100.0% | AK29: No | AL29: L4347: ≤ 250W LED High Bay/Low Bay, replacing or instead of 8L T8 or 6L T5HO | AM29: No | AN29: No | AP29: =IFERROR(_xlfn.IFNA(VLOOKUP(IF(OR($AR29="Agribusiness", $AR29="Ag",$AR29="Propane", $AR29="Ag Propane", $AR29="Ag-Propane"),$AC29, $AB29),'[4]UOM Range'!$A$4:$I$500,7,FALSE), ""),"") ->  | AQ29: =IFERROR(_xlfn.IFNA(VLOOKUP(IF(OR($AR29="Agribusiness", $AR29="Ag",$AR29="Propane", $AR29="Ag Propane", $AR29="Ag-Propane"),$AC29, $AB29),'[4]UOM Range'!$A$4:$I$500,8,FALSE), ""),"") ->  | AR29: Lighting | AS29: 13
A30: L4795 | B30: L4795 | C30: N-L4795 | D30: ≤ 300W LED High Bay/Low Bay, replacing or instead of 10L T8 or 8L T5HO | E30: L4795: ≤ 300W LED High Bay/Low Bay, replacing or instead of 10L T8 or 8L T5HO | F30: Retrofit products must be listed on the DLC TRT V5.0 or higher qualified product list under the High-Bay or Low-Bay General Application and be permanently wired or applicable cord and plug. | G30: New fixtures must be DLC TRT V5.0 or higher listed under the High-Bay or Low-Bay General Application. | H30: Fixture must consume ≤ 300W | I30: Integral ballast screw-based retrofit products are not eligible. Refer to page 18 for High/Low-Bay Mogul Screw-base (E39) LED lamps. | J30: Fixtures for low-bay applications may use products that are DLC SSL QPL listed (TRT V5.0 or higher) in the "Linear Ambient" general category,... | K30: "Fuel Pump Canopy Luminaires", or "Parking Garage Luminaires" PUD, if they provide sufficient lighting and meet wattage requirements. | O30: Long-Day Lighting fixtures for dairy applications are eligible for this incentive. | P30: Provide clear photo(s) of: fixture, sensor (if applicable), fixture packaging label (if possible). | Q30: Verify fixture is dedicated LED and not a replacement, screw-in lamp. | V30: $120.00 | W30: Fixture | X30: $120.00 | Y30: Fixture | Z30: $65.00 | AA30: Fixture | AB30: 4795 | AC30: 4795 | AD30: 4795 | AE30: Yes | AF30: Yes | AG30: Yes | AH30: 100.0% | AI30: 100.0% | AJ30: 100.0% | AK30: No | AL30: L4795: ≤ 300W LED High Bay/Low Bay, replacing or instead of 10L T8 or 8L T5HO | AM30: No | AN30: No | AP30: =IFERROR(_xlfn.IFNA(VLOOKUP(IF(OR($AR30="Agribusiness", $AR30="Ag",$AR30="Propane", $AR30="Ag Propane", $AR30="Ag-Propane"),$AC30, $AB30),'[4]UOM Range'!$A$4:$I$500,7,FALSE), ""),"") ->  | AQ30: =IFERROR(_xlfn.IFNA(VLOOKUP(IF(OR($AR30="Agribusiness", $AR30="Ag",$AR30="Propane", $AR30="Ag Propane", $AR30="Ag-Propane"),$AC30, $AB30),'[4]UOM Range'!$A$4:$I$500,8,FALSE), ""),"") ->  | AR30: Lighting | AS30: 13
A31: L4796 | B31: L4796 | C31: N-L4796 | D31: ≤ 350W LED High Bay/Low Bay, replacing or instead of 12L T8 or 10L T5HO | E31: L4796: ≤ 350W LED High Bay/Low Bay, replacing or instead of 12L T8 or 10L T5HO | F31: Retrofit products must be listed on the DLC TRT V5.0 or higher qualified product list under the High-Bay or Low-Bay General Application and be permanently wired or applicable cord and plug. | G31: New fixtures must be DLC TRT V5.0 or higher listed under the High-Bay or Low-Bay General Application. | H31: Fixture must consume ≤ 350W | I31: Integral ballast screw-based retrofit products are not eligible. Refer to page 18 for High/Low-Bay Mogul Screw-base (E39) LED lamps. | J31: Fixtures for low-bay applications may use products that are DLC SSL QPL listed (TRT V5.0 or higher) in the "Linear Ambient" general category,... | K31: "Fuel Pump Canopy Luminaires", or "Parking Garage Luminaires" PUD, if they provide sufficient lighting and meet wattage requirements. | O31: Long-Day Lighting fixtures for dairy applications are eligible for this incentive. | P31: Provide clear photo(s) of: fixture, sensor (if applicable), fixture packaging label (if possible). | Q31: Verify fixture is dedicated LED and not a replacement, screw-in lamp. | V31: $170.00 | W31: Fixture | X31: $170.00 | Y31: Fixture | Z31: $90.00 | AA31: Fixture | AB31: 4796 | AC31: 4796 | AD31: 4796 | AE31: Yes | AF31: Yes | AG31: Yes | AH31: 100.0% | AI31: 100.0% | AJ31: 100.0% | AK31: No | AL31: L4796: ≤ 350W LED High Bay/Low Bay, replacing or instead of 12L T8 or 10L T5HO | AM31: No | AN31: No | AP31: =IFERROR(_xlfn.IFNA(VLOOKUP(IF(OR($AR31="Agribusiness", $AR31="Ag",$AR31="Propane", $AR31="Ag Propane", $AR31="Ag-Propane"),$AC31, $AB31),'[4]UOM Range'!$A$4:$I$500,7,FALSE), ""),"") ->  | AQ31: =IFERROR(_xlfn.IFNA(VLOOKUP(IF(OR($AR31="Agribusiness", $AR31="Ag",$AR31="Propane", $AR31="Ag Propane", $AR31="Ag-Propane"),$AC31, $AB31),'[4]UOM Range'!$A$4:$I$500,8,FALSE), ""),"") ->  | AR31: Lighting | AS31: 13
A32: L4280 | B32: L4280 | C32: N-L4280 | D32: Outdoor LED Fixture or Retrofit Kit – Low Output ≤4,999 lumens | E32: =IF(ISBLANK(A32),"",IF(FOEIncentCodeType=IncentCodeTypeNC,C32,IF(FOEIncentCodeType=IncentCodeTypeAg,B32,A32))&": ") &D32 -> L4280: Outdoor LED Fixture or Retrofit Kit – Low Output ≤4,999 lumens | F32: Must be DLC SSL QPL listed (TRT V5.0 or higher) in an “Outdoor” General Application Category. | G32: Must be permanently wired. Integral ballast screw-based lamp retrofit products of any technology are not eligible. | H32: Stadium lighting is not eligible for prescriptive incentives. Contact your Energy Advisor to determine eligibility for a custom incentive. | I32: Customers applying for municipal roadway lighting MUST submit a copy of utililty bill verifying customer is on a utility rate for customer owned street lights. Utility owned street lights are not eligible for incentives. | J32: For interior stairwell/passageway fixtures, see Linear Ambient fixtures and combine with Bi-Level Controls. | K32: **Ignore lumen levels in measure name. Use DLC category to qualify equipment** | L32: Fixtures equipped with light shields are eligible if the equivalent shieldless fixture is DLC listed. | V32: $30.00 | W32: Fixture | X32: =V32 -> $30.00 | Y32: Fixture | Z32: $20.00 | AA32: =W32 -> Fixture | AB32: 4280 | AC32: =AB32 -> 4280 | AD32: 4280 | AE32: Yes | AF32: Yes | AG32: Yes | AH32: 100.0% | AI32: 100.0% | AJ32: 100.0% | AK32: No | AL32: =IF(ISBLANK(A32),"",IF(A32<>"Not Eligible",A32,IF(B32<>"Not Eligible",B32,C32))&": ") &D32 -> L4280: Outdoor LED Fixture or Retrofit Kit – Low Output ≤4,999 lumens | AM32: No | AN32: No | AP32: =IFERROR(_xlfn.IFNA(VLOOKUP(IF(OR($AR32="Agribusiness", $AR32="Ag",$AR32="Propane", $AR32="Ag Propane", $AR32="Ag-Propane"),$AC32, $AB32),'[4]UOM Range'!$A$4:$I$500,7,FALSE), ""),"") ->  | AQ32: =IFERROR(_xlfn.IFNA(VLOOKUP(IF(OR($AR32="Agribusiness", $AR32="Ag",$AR32="Propane", $AR32="Ag Propane", $AR32="Ag-Propane"),$AC32, $AB32),'[4]UOM Range'!$A$4:$I$500,8,FALSE), ""),"") ->  | AR32: Lighting | AS32: 14
A33: L4281 | B33: L4281 | C33: N-L4281 | D33: Outdoor LED Fixture or Retrofit Kit – Mid Output 5,000 – 9,999 lumens | E33: L4281: Outdoor LED Fixture or Retrofit Kit – Mid Output 5,000 – 9,999 lumens | F33: Must be DLC SSL QPL listed (TRT V5.0 or higher) in an “Outdoor” General Application Category. | G33: Must be permanently wired. Integral ballast screw-based lamp retrofit products of any technology are not eligible. | H33: Stadium lighting is not eligible for prescriptive incentives. Contact your Energy Advisor to determine eligibility for a custom incentive. | I33: Customers applying for municipal roadway lighting MUST submit a copy of utililty bill verifying customer is on a utility rate for customer owned street lights. Utility owned street lights are not eligible for incentives. | J33: For interior stairwell/passageway fixtures, see Linear Ambient fixtures and combine with Bi-Level Controls. | K33: **Ignore lumen levels in measure name. Use DLC category to qualify equipment** | L33: Fixtures equipped with light shields are eligible if the equivalent shieldless fixture is DLC listed. | V33: $55.00 | W33: Fixture | X33: $55.00 | Y33: Fixture | Z33: $35.00 | AA33: =W33 -> Fixture | AB33: 4281 | AC33: =AB33 -> 4281 | AD33: 4281 | AE33: Yes | AF33: Yes | AG33: Yes | AH33: 100.0% | AI33: 100.0% | AJ33: 100.0% | AK33: No | AL33: =IF(ISBLANK(A33),"",IF(A33<>"Not Eligible",A33,IF(B33<>"Not Eligible",B33,C33))&": ") &D33 -> L4281: Outdoor LED Fixture or Retrofit Kit – Mid Output 5,000 – 9,999 lumens | AM33: No | AN33: No | AP33: =IFERROR(_xlfn.IFNA(VLOOKUP(IF(OR($AR33="Agribusiness", $AR33="Ag",$AR33="Propane", $AR33="Ag Propane", $AR33="Ag-Propane"),$AC33, $AB33),'[4]UOM Range'!$A$4:$I$500,7,FALSE), ""),"") ->  | AQ33: =IFERROR(_xlfn.IFNA(VLOOKUP(IF(OR($AR33="Agribusiness", $AR33="Ag",$AR33="Propane", $AR33="Ag Propane", $AR33="Ag-Propane"),$AC33, $AB33),'[4]UOM Range'!$A$4:$I$500,8,FALSE), ""),"") ->  | AR33: Lighting | AS33: 14
A34: L4282 | B34: L4282 | C34: N-L4282 | D34: Outdoor LED Fixture or Retrofit Kit – High Output 10,000 – 29,999 lumens | E34: L4282: Outdoor LED Fixture or Retrofit Kit – High Output 10,000 – 29,999 lumens | F34: Must be DLC SSL QPL listed (TRT V5.0 or higher) in an “Outdoor” General Application Category. | G34: Must be permanently wired. Integral ballast screw-based lamp retrofit products of any technology are not eligible. | H34: Stadium lighting is not eligible for prescriptive incentives. Contact your Energy Advisor to determine eligibility for a custom incentive. | I34: Customers applying for municipal roadway lighting MUST submit a copy of utililty bill verifying customer is on a utility rate for customer owned street lights. Utility owned street lights are not eligible for incentives. | J34: For interior stairwell/passageway fixtures, see Linear Ambient fixtures and combine with Bi-Level Controls. | K34: **Ignore lumen levels in measure name. Use DLC category to qualify equipment** | L34: Fixtures equipped with light shields are eligible if the equivalent shieldless fixture is DLC listed. | V34: $100.00 | W34: Fixture | X34: $100.00 | Y34: Fixture | Z34: $90.00 | AA34: =W34 -> Fixture | AB34: 4282 | AC34: =AB34 -> 4282 | AD34: 4282 | AE34: Yes | AF34: Yes | AG34: Yes | AH34: 100.0% | AI34: 100.0% | AJ34: 100.0% | AK34: No | AL34: =IF(ISBLANK(A34),"",IF(A34<>"Not Eligible",A34,IF(B34<>"Not Eligible",B34,C34))&": ") &D34 -> L4282: Outdoor LED Fixture or Retrofit Kit – High Output 10,000 – 29,999 lumens | AM34: No | AN34: No | AP34: =IFERROR(_xlfn.IFNA(VLOOKUP(IF(OR($AR34="Agribusiness", $AR34="Ag",$AR34="Propane", $AR34="Ag Propane", $AR34="Ag-Propane"),$AC34, $AB34),'[4]UOM Range'!$A$4:$I$500,7,FALSE), ""),"") ->  | AQ34: =IFERROR(_xlfn.IFNA(VLOOKUP(IF(OR($AR34="Agribusiness", $AR34="Ag",$AR34="Propane", $AR34="Ag Propane", $AR34="Ag-Propane"),$AC34, $AB34),'[4]UOM Range'!$A$4:$I$500,8,FALSE), ""),"") ->  | AR34: Lighting | AS34: 14
A35: L4283 | B35: L4283 | C35: N-L4283 | D35: Outdoor LED Fixture or Retrofit Kit – Very High Output ≥30,000 lumens | E35: L4283: Outdoor LED Fixture or Retrofit Kit – Very High Output ≥30,000 lumens | F35: Must be DLC SSL QPL listed (TRT V5.0 or higher) in an “Outdoor” General Application Category. | G35: Must be permanently wired. Integral ballast screw-based lamp retrofit products of any technology are not eligible. | H35: Stadium lighting is not eligible for prescriptive incentives. Contact your Energy Advisor to determine eligibility for a custom incentive. | I35: Customers applying for municipal roadway lighting MUST submit a copy of utililty bill verifying customer is on a utility rate for customer owned street lights. Utility owned street lights are not eligible for incentives. | J35: For interior stairwell/passageway fixtures, see Linear Ambient fixtures and combine with Bi-Level Controls. | K35: **Ignore lumen levels in measure name. Use DLC category to qualify equipment** | L35: Fixtures equipped with light shields are eligible if the equivalent shieldless fixture is DLC listed. | V35: $250.00 | W35: Fixture | X35: $250.00 | Y35: Fixture | Z35: $200.00 | AA35: =W35 -> Fixture | AB35: 4283 | AC35: =AB35 -> 4283 | AD35: 4283 | AE35: Yes | AF35: Yes | AG35: Yes | AH35: 100.0% | AI35: 100.0% | AJ35: 100.0% | AK35: No | AL35: =IF(ISBLANK(A35),"",IF(A35<>"Not Eligible",A35,IF(B35<>"Not Eligible",B35,C35))&": ") &D35 -> L4283: Outdoor LED Fixture or Retrofit Kit – Very High Output ≥30,000 lumens | AM35: No | AN35: No | AP35: =IFERROR(_xlfn.IFNA(VLOOKUP(IF(OR($AR35="Agribusiness", $AR35="Ag",$AR35="Propane", $AR35="Ag Propane", $AR35="Ag-Propane"),$AC35, $AB35),'[4]UOM Range'!$A$4:$I$500,7,FALSE), ""),"") ->  | AQ35: =IFERROR(_xlfn.IFNA(VLOOKUP(IF(OR($AR35="Agribusiness", $AR35="Ag",$AR35="Propane", $AR35="Ag Propane", $AR35="Ag-Propane"),$AC35, $AB35),'[4]UOM Range'!$A$4:$I$500,8,FALSE), ""),"") ->  | AR35: Lighting | AS35: 14
D36: ----------------------LIGHTING CATALOG: LED LAMPS---------------------------- | E36: ----------------------LIGHTING CATALOG: LED LAMPS---------------------------- | AL36: =IF(ISBLANK(A36),"",IF(A36<>"Not Eligible",A36,IF(B36<>"Not Eligible",B36,C36))&": ") &D36 -> ----------------------LIGHTING CATALOG: LED LAMPS---------------------------- | AP36: =IFERROR(_xlfn.IFNA(VLOOKUP(IF(OR($AR36="Agribusiness", $AR36="Ag",$AR36="Propane", $AR36="Ag Propane", $AR36="Ag-Propane"),$AC36, $AB36),'[4]UOM Range'!$A$4:$I$500,7,FALSE), ""),"") ->  | AQ36: =IFERROR(_xlfn.IFNA(VLOOKUP(IF(OR($AR36="Agribusiness", $AR36="Ag",$AR36="Propane", $AR36="Ag Propane", $AR36="Ag-Propane"),$AC36, $AB36),'[4]UOM Range'!$A$4:$I$500,8,FALSE), ""),"") -> 
A37: L10042 | B37: L10042 | C37: Not Eligible | D37: DLC listed, Mogul Screw-Base (E39) LED lamp replacing HID | E37: =IF(ISBLANK(A37),"",IF(FOEIncentCodeType=IncentCodeTypeNC,C37,IF(FOEIncentCodeType=IncentCodeTypeAg,B37,A37))&": ") &D37 -> L10042: DLC listed, Mogul Screw-Base (E39) LED lamp replacing HID | F37: Must be DLC TRT V5.0 or higher in the "Mogul (E39) Screw-Base Reaplcements for HID Lamps" category. | G37: Interior medium screw-base (E26) lamps may be eligible if E39 option is DLC listed. Contact Focus on Energy for assistance. | H37: Limited to 50% of the retail product cost (cost excluding incentive, shipping, and sales tax) | P37: lighting layout, close-up of lamp, lamp model number (if available) | Q37: Provide clear photo(s) of: lamp(s) and lamp packaging label (if possible). | R37: Verify lamp is installed in high/low-bay fixture. | V37: $30.00 | W37: Lamp | X37: =V37 -> $30.00 | Y37: Lamp | Z37: N/A | AA37: =W37 -> Lamp | AB37: 10042 | AC37: =AB37 -> 10042 | AD37: 10042 | AE37: No | AF37: =AE37 -> No | AG37: No | AH37: 50.0% | AI37: 50.0% | AJ37: 50.0% | AK37: No | AL37: L10042: DLC listed, Mogul Screw-Base (E39) LED lamp replacing HID | AM37: No | AN37: No | AP37: =IFERROR(_xlfn.IFNA(VLOOKUP(IF(OR($AR37="Agribusiness", $AR37="Ag",$AR37="Propane", $AR37="Ag Propane", $AR37="Ag-Propane"),$AC37, $AB37),'[4]UOM Range'!$A$4:$I$500,7,FALSE), ""),"") ->  | AQ37: =IFERROR(_xlfn.IFNA(VLOOKUP(IF(OR($AR37="Agribusiness", $AR37="Ag",$AR37="Propane", $AR37="Ag Propane", $AR37="Ag-Propane"),$AC37, $AB37),'[4]UOM Range'!$A$4:$I$500,8,FALSE), ""),"") ->  | AR37: Lighting | AS37: 15
A38: L10043 | B38: L10043 | C38: Not Eligible | D38: DLC listed, Mogul Screw-Base (E39) lamp replacing HID, Exterior | E38: L10043: DLC listed, Mogul Screw-Base (E39) lamp replacing HID, Exterior | F38: Must be DLC TRT V5.0 or higher in the "Mogul (E39) Screw-Base Reaplcements for HID Lamps" category. | G38: Interior medium screw-base (E26) lamps may be eligible if E39 option is DLC listed. Contact Focus on Energy for assistance. | H38: Limited to 50% of the retail product cost (cost excluding incentive, shipping, and sales tax) | P38: Provide photo(s) of: lamp, lamp packaging label (if possible). | Q38: Verify lamp is installed in DLC-listed application. | V38: $30.00 | W38: Lamp | X38: $30.00 | Y38: Lamp | Z38: N/A | AA38: Lamp | AB38: 10043 | AC38: 10043 | AD38: 10043 | AE38: No | AF38: No | AG38: No | AH38: 50.0% | AI38: 50.0% | AJ38: 50.0% | AK38: No | AL38: L10043: DLC listed, Mogul Screw-Base (E39) lamp replacing HID, Exterior | AM38: No | AN38: No | AP38: =IFERROR(_xlfn.IFNA(VLOOKUP(IF(OR($AR38="Agribusiness", $AR38="Ag",$AR38="Propane", $AR38="Ag Propane", $AR38="Ag-Propane"),$AC38, $AB38),'[4]UOM Range'!$A$4:$I$500,7,FALSE), ""),"") ->  | AQ38: =IFERROR(_xlfn.IFNA(VLOOKUP(IF(OR($AR38="Agribusiness", $AR38="Ag",$AR38="Propane", $AR38="Ag Propane", $AR38="Ag-Propane"),$AC38, $AB38),'[4]UOM Range'!$A$4:$I$500,8,FALSE), ""),"") ->  | AR38: Lighting | AS38: 15
A39: L10039 | B39: L10039 | C39: Not Eligible | D39: Four-pin base LED Lamp Replacing CFL | E39: L10039: Four-pin base LED Lamp Replacing CFL | F39: Must be DLC TRT V5.0 or higher in the "Four Pin-Base Replacement Lamps for CFLs" category. | G39: Limited to 50% of the retail product cost (cost excluding incentive, shipping, and sales tax) | P39: lighting layout, close-up of lamp, lamp model number (if available) | Q39: Provide clear photo(s) of: lamp(s) and lamp packaging label (if possible). | V39: $5.00 | W39: Lamp | X39: $5.00 | Y39: Lamp | Z39: N/A | AA39: Lamp | AB39: 10039 | AC39: 10039 | AD39: 10039 | AE39: No | AF39: =AE39 -> No | AG39: No | AH39: 50.0% | AI39: 50.0% | AJ39: 50.0% | AK39: No | AL39: L10039: Four-pin base LED Lamp Replacing CFL | AM39: No | AN39: No | AP39: =IFERROR(_xlfn.IFNA(VLOOKUP(IF(OR($AR39="Agribusiness", $AR39="Ag",$AR39="Propane", $AR39="Ag Propane", $AR39="Ag-Propane"),$AC39, $AB39),'[4]UOM Range'!$A$4:$I$500,7,FALSE), ""),"") ->  | AQ39: =IFERROR(_xlfn.IFNA(VLOOKUP(IF(OR($AR39="Agribusiness", $AR39="Ag",$AR39="Propane", $AR39="Ag Propane", $AR39="Ag-Propane"),$AC39, $AB39),'[4]UOM Range'!$A$4:$I$500,8,FALSE), ""),"") ->  | AR39: Lighting | AS39: 15
A40: L10040 | B40: L10040 | C40: Not Eligible | D40: Four-pin base LED Lamp Replacing CFL, Exterior | E40: L10040: Four-pin base LED Lamp Replacing CFL, Exterior | F40: Must be DLC TRT V5.0 or higher in the "Four Pin-Base Replacement Lamps for CFLs" category. | G40: Limited to 50% of the retail product cost (cost excluding incentive, shipping, and sales tax) | P40: lighting layout, close-up of lamp, lamp model number (if available) | Q40: Provide clear photo(s) of: lamp(s) and lamp packaging label (if possible). | V40: $5.00 | W40: Lamp | X40: $5.00 | Y40: Lamp | Z40: N/A | AA40: Lamp | AB40: 10040 | AC40: 10040 | AD40: 10040 | AE40: No | AF40: =AE40 -> No | AG40: No | AH40: 50.0% | AI40: 50.0% | AJ40: 50.0% | AK40: No | AL40: L10040: Four-pin base LED Lamp Replacing CFL, Exterior | AM40: No | AN40: No | AP40: =IFERROR(_xlfn.IFNA(VLOOKUP(IF(OR($AR40="Agribusiness", $AR40="Ag",$AR40="Propane", $AR40="Ag Propane", $AR40="Ag-Propane"),$AC40, $AB40),'[4]UOM Range'!$A$4:$I$500,7,FALSE), ""),"") ->  | AQ40: =IFERROR(_xlfn.IFNA(VLOOKUP(IF(OR($AR40="Agribusiness", $AR40="Ag",$AR40="Propane", $AR40="Ag Propane", $AR40="Ag-Propane"),$AC40, $AB40),'[4]UOM Range'!$A$4:$I$500,8,FALSE), ""),"") ->  | AR40: Lighting | AS40: 15
A41: L5451 | B41: L5451 | C41: Not Eligible | D41: 4' or U-Bend TLED, ≤24W, replacing 4' or U-Bend T5, T8, or T12 Lamp | E41: L5451: 4' or U-Bend TLED, ≤24W, replacing 4' or U-Bend T5, T8, or T12 Lamp | F41: Must be DLC TRT V5.0 or higher listed in the respective "Linear Replacement Lamps" category. | G41: Measures MAY NOT be combined with fixture incentives. | H41: Measures are not intended for refrigerated display case applications | I41: Limited to 50% of the retail product cost (cost excluding incentive, shipping, and sales tax) | J41: Measures can be used for 8' retrofit products. Apply for the corresponding quantity installed. | P41: Provide clear photo(s): of lamp, lamp packaging label (if possible). | Q41: Verify lamp is 4ft in length or is a U-Bend | S41: Verify lamp installed matches spec sheets, invoicing, and QPL provided. | V41: $3.25 | W41: Lamp | X41: $1.50 | Y41: Lamp | Z41: N/A | AA41: Lamp | AB41: 5451 | AC41: 5451 | AD41: 5451 | AE41: No | AF41: =AE41 -> No | AG41: No | AH41: 50.0% | AI41: 50.0% | AJ41: 50.0% | AK41: No | AL41: L5451: 4' or U-Bend TLED, ≤24W, replacing 4' or U-Bend T5, T8, or T12 Lamp | AM41: No | AN41: No | AP41: =IFERROR(_xlfn.IFNA(VLOOKUP(IF(OR($AR41="Agribusiness", $AR41="Ag",$AR41="Propane", $AR41="Ag Propane", $AR41="Ag-Propane"),$AC41, $AB41),'[4]UOM Range'!$A$4:$I$500,7,FALSE), ""),"") ->  | AQ41: =IFERROR(_xlfn.IFNA(VLOOKUP(IF(OR($AR41="Agribusiness", $AR41="Ag",$AR41="Propane", $AR41="Ag Propane", $AR41="Ag-Propane"),$AC41, $AB41),'[4]UOM Range'!$A$4:$I$500,8,FALSE), ""),"") ->  | AR41: Lighting | AS41: 15
A42: L5452 | B42: L5452 | C42: Not Eligible | D42: 4' TLED, replacing 4' T5HO Lamp | E42: L5452: 4' TLED, replacing 4' T5HO Lamp | F42: Must be DLC TRT V5.0 or higher listed in the respective "Linear Replacement Lamps" category. | G42: Measures MAY NOT be combined with fixture incentives. | H42: Measures are not intended for refrigerated display case applications | I42: Limited to 50% of the retail product cost (cost excluding incentive, shipping, and sales tax) | J42: Measures can be used for 8' retrofit products. Apply for the corresponding quantity installed. | P42: Provide clear photo(s): of lamp, lamp packaging label (if possible). | V42: $7.00 | W42: Lamp | X42: $3.00 | Y42: Lamp | Z42: N/A | AA42: Lamp | AB42: 5452 | AC42: 5452 | AD42: 5452 | AE42: No | AF42: =AE42 -> No | AG42: No | AH42: 50.0% | AI42: 50.0% | AJ42: 50.0% | AK42: No | AL42: L5452: 4' TLED, replacing 4' T5HO Lamp | AM42: No | AN42: No | AP42: =IFERROR(_xlfn.IFNA(VLOOKUP(IF(OR($AR42="Agribusiness", $AR42="Ag",$AR42="Propane", $AR42="Ag Propane", $AR42="Ag-Propane"),$AC42, $AB42),'[4]UOM Range'!$A$4:$I$500,7,FALSE), ""),"") ->  | AQ42: =IFERROR(_xlfn.IFNA(VLOOKUP(IF(OR($AR42="Agribusiness", $AR42="Ag",$AR42="Propane", $AR42="Ag Propane", $AR42="Ag-Propane"),$AC42, $AB42),'[4]UOM Range'!$A$4:$I$500,8,FALSE), ""),"") ->  | AR42: Lighting | AS42: 15
A43: L5453 | B43: L4797 | C43: Not Eligible | D43: 2' or 3' TLED, replacing 2' or 3' T8 or T12 Lamp | E43: L4797: 2' or 3' TLED, replacing 2' or 3' T8 or T12 Lamp | F43: Must be DLC TRT V5.0 or higher listed in the respective "Linear Replacement Lamps" category. | G43: Measures MAY NOT be combined with fixture incentives. | H43: Measures are not intended for refrigerated display case applications | I43: Limited to 50% of the retail product cost (cost excluding incentive, shipping, and sales tax) | P43: Provide clear photo(s): of lamp, lamp packaging label (if possible). | Q43: Verify lamp is 2ft in length. | V43: $2.75 | W43: Lamp | X43: $1.25 | Y43: Lamp | Z43: N/A | AA43: Lamp | AB43: 5453 | AC43: 5453 | AD43: 5453 | AE43: No | AF43: =AE43 -> No | AG43: No | AH43: 50.0% | AI43: 50.0% | AJ43: 50.0% | AK43: No | AL43: L5453: 2' or 3' TLED, replacing 2' or 3' T8 or T12 Lamp | AM43: No | AN43: No | AP43: =IFERROR(_xlfn.IFNA(VLOOKUP(IF(OR($AR43="Agribusiness", $AR43="Ag",$AR43="Propane", $AR43="Ag Propane", $AR43="Ag-Propane"),$AC43, $AB43),'[4]UOM Range'!$A$4:$I$500,7,FALSE), ""),"") ->  | AQ43: =IFERROR(_xlfn.IFNA(VLOOKUP(IF(OR($AR43="Agribusiness", $AR43="Ag",$AR43="Propane", $AR43="Ag Propane", $AR43="Ag-Propane"),$AC43, $AB43),'[4]UOM Range'!$A$4:$I$500,8,FALSE), ""),"") ->  | AR43: Lighting | AS43: 15
A44: L5454 | B44: L4809 | C44: Not Eligible | D44: 8' TLED, replacing 8' T8 or T12 Lamp | E44: L4809: 8' TLED, replacing 8' T8 or T12 Lamp | F44: Must be DLC TRT V5.0 or higher listed in the respective "Linear Replacement Lamps" category. | G44: Measures MAY NOT be combined with fixture incentives. | H44: Measures are not intended for refrigerated display case applications | I44: Limited to 50% of the retail product cost (cost excluding incentive, shipping, and sales tax) | P44: Provide clear photo(s): of lamp, lamp packaging label (if possible). | Q44: Verify lamp is 8ft in length. | V44: $7.00 | W44: Lamp | X44: $3.00 | Y44: Lamp | Z44: N/A | AA44: Lamp | AB44: 5454 | AC44: 5454 | AD44: 5454 | AE44: No | AF44: =AE44 -> No | AG44: No | AH44: 50.0% | AI44: 50.0% | AJ44: 50.0% | AK44: No | AL44: L5454: 8' TLED, replacing 8' T8 or T12 Lamp | AM44: No | AN44: No | AP44: =IFERROR(_xlfn.IFNA(VLOOKUP(IF(OR($AR44="Agribusiness", $AR44="Ag",$AR44="Propane", $AR44="Ag Propane", $AR44="Ag-Propane"),$AC44, $AB44),'[4]UOM Range'!$A$4:$I$500,7,FALSE), ""),"") ->  | AQ44: =IFERROR(_xlfn.IFNA(VLOOKUP(IF(OR($AR44="Agribusiness", $AR44="Ag",$AR44="Propane", $AR44="Ag Propane", $AR44="Ag-Propane"),$AC44, $AB44),'[4]UOM Range'!$A$4:$I$500,8,FALSE), ""),"") ->  | AR44: Lighting | AS44: 15
A45: L5456 | B45: L5456 | C45: Not Eligible | D45: 4' or U-Bend TLED ≤24W, replacing 4' or U-Bend T5, T8 or T12 Lamp, Dusk to Dawn, Exterior | E45: L5456: 4' or U-Bend TLED ≤24W, replacing 4' or U-Bend T5, T8 or T12 Lamp, Dusk to Dawn, Exterior | F45: Must be DLC TRT V5.0 or higher listed in the respective "Linear Replacement Lamps" category. | G45: Measures MAY NOT be combined with fixture incentives. | H45: Measures are not intended for refrigerated display case applications | I45: Limited to 50% of the retail product cost (cost excluding incentive, shipping, and sales tax) | J45: Measures can be used for 8' retrofit products. Apply for the corresponding quantity installed. | P45: Provide clear photo(s): of lamp, lamp packaging label (if possible). | V45: $3.25 | W45: Lamp | X45: =V45 -> $3.25 | Y45: Lamp | Z45: N/A | AA45: Lamp | AB45: 5456 | AC45: 5456 | AD45: 5456 | AE45: No | AF45: No | AG45: No | AH45: 50.0% | AI45: 50.0% | AJ45: 50.0% | AK45: No | AL45: L5456: 4' or U-Bend TLED ≤24W, replacing 4' or U-Bend T5, T8 or T12 Lamp, Dusk to Dawn, Exterior | AM45: No | AN45: No | AP45: =IFERROR(_xlfn.IFNA(VLOOKUP(IF(OR($AR45="Agribusiness", $AR45="Ag",$AR45="Propane", $AR45="Ag Propane", $AR45="Ag-Propane"),$AC45, $AB45),'[4]UOM Range'!$A$4:$I$500,7,FALSE), ""),"") ->  | AQ45: =IFERROR(_xlfn.IFNA(VLOOKUP(IF(OR($AR45="Agribusiness", $AR45="Ag",$AR45="Propane", $AR45="Ag Propane", $AR45="Ag-Propane"),$AC45, $AB45),'[4]UOM Range'!$A$4:$I$500,8,FALSE), ""),"") ->  | AR45: Lighting | AS45: 15
A46: L5458 | B46: L5458 | C46: Not Eligible | D46: 8' TLED, replacing 8' T8 or T12 Lamp, Dusk to Dawn, Exterior | E46: L5458: 8' TLED, replacing 8' T8 or T12 Lamp, Dusk to Dawn, Exterior | F46: Must be DLC TRT V5.0 or higher listed in the respective "Linear Replacement Lamps" category. | G46: Measures MAY NOT be combined with fixture incentives. | H46: Measures are not intended for refrigerated display case applications | I46: Limited to 50% of the retail product cost (cost excluding incentive, shipping, and sales tax) | P46: Provide clear photo(s): of lamp, lamp packaging label (if possible). | V46: $7.00 | W46: Lamp | X46: =V46 -> $7.00 | Y46: Lamp | Z46: N/A | AA46: Lamp | AB46: 5458 | AC46: 5458 | AD46: 5458 | AE46: No | AF46: No | AG46: No | AH46: 50.0% | AI46: 50.0% | AJ46: 50.0% | AK46: No | AL46: L5458: 8' TLED, replacing 8' T8 or T12 Lamp, Dusk to Dawn, Exterior | AM46: No | AN46: No | AP46: =IFERROR(_xlfn.IFNA(VLOOKUP(IF(OR($AR46="Agribusiness", $AR46="Ag",$AR46="Propane", $AR46="Ag Propane", $AR46="Ag-Propane"),$AC46, $AB46),'[4]UOM Range'!$A$4:$I$500,7,FALSE), ""),"") ->  | AQ46: =IFERROR(_xlfn.IFNA(VLOOKUP(IF(OR($AR46="Agribusiness", $AR46="Ag",$AR46="Propane", $AR46="Ag Propane", $AR46="Ag-Propane"),$AC46, $AB46),'[4]UOM Range'!$A$4:$I$500,8,FALSE), ""),"") ->  | AR46: Lighting | AS46: 15
D47: ----------------------LIGHTING CATALOG: CONTROLS---------------------------- | E47: =IF(ISBLANK(A47),"",IF(FOEIncentCodeType=IncentCodeTypeNC,C47,IF(FOEIncentCodeType=IncentCodeTypeAg,B47,A47))&": ") &D47 -> ----------------------LIGHTING CATALOG: CONTROLS---------------------------- | AE47: No | AF47: No | AG47: No | AL47: ----------------------LIGHTING CATALOG: CONTROLS---------------------------- | AP47: =IFERROR(_xlfn.IFNA(VLOOKUP(IF(OR($AR47="Agribusiness", $AR47="Ag",$AR47="Propane", $AR47="Ag Propane", $AR47="Ag-Propane"),$AC47, $AB47),'[4]UOM Range'!$A$4:$I$500,7,FALSE), ""),"") ->  | AQ47: =IFERROR(_xlfn.IFNA(VLOOKUP(IF(OR($AR47="Agribusiness", $AR47="Ag",$AR47="Propane", $AR47="Ag Propane", $AR47="Ag-Propane"),$AC47, $AB47),'[4]UOM Range'!$A$4:$I$500,8,FALSE), ""),"") ->  | AR47: Lighting
A48: L10223 | B48: L10223 | C48: N-L10223 | D48: Advanced Lighting Controls, Interior | E48: L10223: Advanced Lighting Controls, Interior | F48: Installation of NLC or LLLC not otherwise specified in catalog. | G48: NLC systems must be DLC NLC QPL (NLC5 or higher) with the following capabilities setup and operational for individual fixturesL | H48: Occupancy sensing, zoning, and individual addressability | I48: Measure cannot be commbined with other controls meaures. | J48: Complete Table B of the "Lighting Incentive Catalog Supplemental Data Sheet" for these measures. | K48: Control costs should be itemized separately on invoice | P48: Provide clear photo of sensor(s) and controller (if possible). | Q48: If customer is comfortable with software, may be able to demonstrate functionalities. | V48: $15.00 | W48: Fixture Controlled | X48: $15.00 | Y48: Fixture Controlled | Z48: $10.00 | AA48: Fixture Controlled | AB48: 10223 | AC48: =AB48 -> 10223 | AD48: 10223 | AE48: Yes | AF48: Yes | AG48: Yes | AH48: 100.0% | AI48: 100.0% | AJ48: 100.0% | AK48: No | AL48: L10223: Advanced Lighting Controls, Interior | AM48: No | AN48: Yes | AO48: Watt Controlled | AP48: =IFERROR(_xlfn.IFNA(VLOOKUP(IF(OR($AR48="Agribusiness", $AR48="Ag",$AR48="Propane", $AR48="Ag Propane", $AR48="Ag-Propane"),$AC48, $AB48),'[4]UOM Range'!$A$4:$I$500,7,FALSE), ""),"") -> 5.00 | AQ48: =IFERROR(_xlfn.IFNA(VLOOKUP(IF(OR($AR48="Agribusiness", $AR48="Ag",$AR48="Propane", $AR48="Ag Propane", $AR48="Ag-Propane"),$AC48, $AB48),'[4]UOM Range'!$A$4:$I$500,8,FALSE), ""),"") -> 50,000.00 | AR48: Lighting | AS48: 16
A49: L10224 | B49: L10224 | C49: N-L10224 | D49: Advanced Lighting Controls, Exterior | E49: L10224: Advanced Lighting Controls, Exterior | F49: Installation of NLC or LLLC not otherwise specified in catalog. | G49: NLC systems must be DLC NLC QPL (NLC5 or higher) with the following capabilities setup and operational for individual fixturesL | H49: Occupancy sensing, zoning, and individual addressability | I49: Measure cannot be commbined with other controls meaures. | J49: Complete Table B of the "Lighting Incentive Catalog Supplemental Data Sheet" for these measures. | K49: Control costs should be itemized separately on invoice | P49: Provide clear photo of sensor(s) and controller (if possible). | Q49: If customer is comfortable with software, may be able to demonstrate functionalities. | V49: $15.00 | W49: Fixture Controlled | X49: $15.00 | Y49: Fixture Controlled | Z49: $10.00 | AA49: Fixture Controlled | AB49: 10224 | AC49: 10224 | AD49: 10224 | AE49: Yes | AF49: Yes | AG49: Yes | AH49: 100.0% | AI49: 100.0% | AJ49: 100.0% | AK49: No | AL49: L10224: Advanced Lighting Controls, Exterior | AM49: No | AN49: Yes | AO49: Watt Controlled | AP49: =IFERROR(_xlfn.IFNA(VLOOKUP(IF(OR($AR49="Agribusiness", $AR49="Ag",$AR49="Propane", $AR49="Ag Propane", $AR49="Ag-Propane"),$AC49, $AB49),'[4]UOM Range'!$A$4:$I$500,7,FALSE), ""),"") -> 5.00 | AQ49: =IFERROR(_xlfn.IFNA(VLOOKUP(IF(OR($AR49="Agribusiness", $AR49="Ag",$AR49="Propane", $AR49="Ag Propane", $AR49="Ag-Propane"),$AC49, $AB49),'[4]UOM Range'!$A$4:$I$500,8,FALSE), ""),"") -> 50,000.00 | AR49: Lighting | AS49: 16
A50: L10432 | B50: L10432 | C50: N-L10432 | D50: ANSI Controls System Configuration Report | E50: =IF(ISBLANK(A50),"",IF(FOEIncentCodeType=IncentCodeTypeNC,C50,IF(FOEIncentCodeType=IncentCodeTypeAg,B50,A50))&": ") &D50 -> L10432: ANSI Controls System Configuration Report | F50: Must be submitted along with Advanced Lighting Controls measures. | P50: Provide clear photo of sensor(s) and controller (if possible). | Q50: If customer is comfortable with software, may be able to demonstrate functionalities. | V50: $500.00 | W50: Report | X50: $500.00 | Y50: Report | Z50: $500.00 | AA50: Report | AB50: 10225 | AC50: 10225 | AD50: 10225 | AE50: Yes | AF50: Yes | AG50: Yes | AH50: 100.0% | AI50: 100.0% | AJ50: 100.0% | AK50: No | AL50: L10432: ANSI Controls System Configuration Report | AM50: No | AN50: Yes | AP50: =IFERROR(_xlfn.IFNA(VLOOKUP(IF(OR($AR50="Agribusiness", $AR50="Ag",$AR50="Propane", $AR50="Ag Propane", $AR50="Ag-Propane"),$AC50, $AB50),'[4]UOM Range'!$A$4:$I$500,7,FALSE), ""),"") ->  | AQ50: =IFERROR(_xlfn.IFNA(VLOOKUP(IF(OR($AR50="Agribusiness", $AR50="Ag",$AR50="Propane", $AR50="Ag Propane", $AR50="Ag-Propane"),$AC50, $AB50),'[4]UOM Range'!$A$4:$I$500,8,FALSE), ""),"") ->  | AR50: Lighting | AS50: 16
A51: L10431 | B51: L10431 | C51: Not Eligible | D51: Standard Lighting Controls, Interior | E51: L10431: Standard Lighting Controls, Interior | F51: For Occupancy and Interior Bi-level Controls: Must be ultrasonic, infrared, microwave, or dual technology. Socket-based DNQ. | G51: For Daylighting Controls: Must be step dimmed with at least one level in addition to full power and off or continuous dimming. | H51: Controls using both Occupancy and Daylighting should apply for L10223. | I51: For retrofit situations where spec sheets aren't available for existing fixtures, program default wattages will be used for calculating incentives. Reference Default Wattage Table or contact Tech Lead to obtain a system not listed. | J51: Complete Table B of the "Lighting Incentive Catalog Supplemental Data Sheet" for these measures. | K51: Control costs should be itemized separately on invoice | P51: Provide clear photo of sensor(s) (if possible). | Q51: Verify timers are NOT being used for prescriptive measures. | V51: $5.00 | W51: Fixture Controlled | X51: =V51 -> $5.00 | Y51: Fixture Controlled | Z51: N/A | AA51: =W51 -> Fixture Controlled | AB51: 10431 | AC51: 10431 | AD51: 10431 | AE51: No | AF51: No | AG51: No | AH51: 100.0% | AI51: 100.0% | AJ51: 100.0% | AK51: No | AL51: L10431: Standard Lighting Controls, Interior | AM51: No | AN51: Yes | AO51: Watt Controlled | AP51: =IFERROR(_xlfn.IFNA(VLOOKUP(IF(OR($AR51="Agribusiness", $AR51="Ag",$AR51="Propane", $AR51="Ag Propane", $AR51="Ag-Propane"),$AC51, $AB51),'[4]UOM Range'!$A$4:$I$500,7,FALSE), ""),"") -> 5.00 | AQ51: =IFERROR(_xlfn.IFNA(VLOOKUP(IF(OR($AR51="Agribusiness", $AR51="Ag",$AR51="Propane", $AR51="Ag Propane", $AR51="Ag-Propane"),$AC51, $AB51),'[4]UOM Range'!$A$4:$I$500,8,FALSE), ""),"") -> 50,000.00 | AR51: Lighting | AS51: 16
A52: L10430 | B52: L10430 | C52: Not Eligible | D52: Standard Lighting Controls, Exterior | E52: L10430: Standard Lighting Controls, Exterior | F52: Eligible for parking garage or stairwells. High quantities in non-parking garages sould be reviewed thoroughly. | G52: If PIR and/or ultrasonic technology are used, must fail in "on" position. | H52: Fixtures must operate in low-standy light levels during low occupancy periods; cannot exceed 50% during unoccupied. | I52: For retrofit situations where spec sheets aren't available for existing fixtures, program default wattages will be used for calculating incentives. Reference Default Wattage Table or contact Tech Lead to obtain a system not listed. | J52: Complete Table B of the "Lighting Incentive Catalog Supplemental Data Sheet" for these measures. | K52: Control costs should be itemized separately on invoice | P52: Provide clear photo of sensor(s) (if possible). | Q52: Verify timers are NOT being used for prescriptive measures. | V52: $5.00 | W52: Fixture Controlled | X52: $5.00 | Y52: Fixture Controlled | Z52: N/A | AA52: Fixture Controlled | AB52: 10430 | AC52: 10430 | AD52: 10430 | AE52: No | AF52: No | AG52: No | AH52: 100.0% | AI52: 100.0% | AJ52: 100.0% | AK52: No | AL52: L10430: Standard Lighting Controls, Exterior | AM52: No | AN52: Yes | AO52: Watt Controlled | AP52: =IFERROR(_xlfn.IFNA(VLOOKUP(IF(OR($AR52="Agribusiness", $AR52="Ag",$AR52="Propane", $AR52="Ag Propane", $AR52="Ag-Propane"),$AC52, $AB52),'[4]UOM Range'!$A$4:$I$500,7,FALSE), ""),"") -> 5.00 | AQ52: =IFERROR(_xlfn.IFNA(VLOOKUP(IF(OR($AR52="Agribusiness", $AR52="Ag",$AR52="Propane", $AR52="Ag Propane", $AR52="Ag-Propane"),$AC52, $AB52),'[4]UOM Range'!$A$4:$I$500,8,FALSE), ""),"") -> 50,000.00 | AR52: Lighting | AS52: 16
D53: ----------------------LIGHTING CATALOG: OTHER LIGHTING SOLUTIONS---------------------------- | E53: =IF(ISBLANK(A53),"",IF(FOEIncentCodeType=IncentCodeTypeNC,C53,IF(FOEIncentCodeType=IncentCodeTypeAg,B53,A53))&": ") &D53 -> ----------------------LIGHTING CATALOG: OTHER LIGHTING SOLUTIONS---------------------------- | AL53: ----------------------LIGHTING CATALOG: OTHER LIGHTING SOLUTIONS---------------------------- | AP53: =IFERROR(_xlfn.IFNA(VLOOKUP(IF(OR($AR53="Agribusiness", $AR53="Ag",$AR53="Propane", $AR53="Ag Propane", $AR53="Ag-Propane"),$AC53, $AB53),'[4]UOM Range'!$A$4:$I$500,7,FALSE), ""),"") ->  | AQ53: =IFERROR(_xlfn.IFNA(VLOOKUP(IF(OR($AR53="Agribusiness", $AR53="Ag",$AR53="Propane", $AR53="Ag Propane", $AR53="Ag-Propane"),$AC53, $AB53),'[4]UOM Range'!$A$4:$I$500,8,FALSE), ""),"") ->  | AR53: Lighting
A54: Eligible under NC | B54: Eligible under NC | C54: N-L4948 | D54: Lighting Power Density (LPD) better than code requirements | E54: =IF(ISBLANK(A54),"",IF(FOEIncentCodeType=IncentCodeTypeNC,C54,IF(FOEIncentCodeType=IncentCodeTypeAg,B54,A54))&": ") &D54 -> Eligible under NC: Lighting Power Density (LPD) better than code requirements | F54: Complete LPD workbook submitted. | G54: Incentives are based on current Wisconsin Energy Code (IECC 2021 with WI Amendments found in SPS Chapter 363) LPD requirements. | H54: Lighting levels should meet the current IESNA recommendations for delivered light level and uniformity. | I54: Incentive is for interior lighting only. | J54: Upon completion, must include documentation to verify total connected wattage as-built (COMcheck or professional lighting layout indicating where fixtures are installed PLUS fixture cut sheets for all installed fixtures) | K54: Ok to reference spec sheet, DLC (reported or tested), or ES wattage. | L54: Ok to include exit light wattage if already part of COMcheck - don't need to pull it out and recalculate LPD. Do not include exit lights if creating COMcheck/workbook. | M54: Wisconsin Adendums references IECC 2015 requirements | P54: Verify COMcheck/layout/others are accurate as-built. Ask if anything differs from submitted documents. | V54: N/A | W54: kWh Reduced | X54: N/A | Y54: =W54 -> kWh Reduced | Z54: $0.05 | AA54: =W54 -> kWh Reduced | AB54: 4948 | AC54: =AB54 -> 4948 | AD54: 4948 | AE54: Yes | AF54: Yes | AG54: Yes | AH54: 100.0% | AI54: 100.0% | AJ54: 100.0% | AK54: No | AL54: Eligible under NC: Lighting Power Density (LPD) better than code requirements | AM54: Yes | AN54: Yes | AO54: kWh below code | AP54: =IFERROR(_xlfn.IFNA(VLOOKUP(IF(OR($AR54="Agribusiness", $AR54="Ag",$AR54="Propane", $AR54="Ag Propane", $AR54="Ag-Propane"),$AC54, $AB54),'[4]UOM Range'!$A$4:$I$500,7,FALSE), ""),"") -> 1,000.00 | AQ54: =IFERROR(_xlfn.IFNA(VLOOKUP(IF(OR($AR54="Agribusiness", $AR54="Ag",$AR54="Propane", $AR54="Ag Propane", $AR54="Ag-Propane"),$AC54, $AB54),'[4]UOM Range'!$A$4:$I$500,8,FALSE), ""),"") -> 10,000,000.00 | AR54: Lighting | AS54: 17
A55: R5235 | B55: R5235 | C55: N-R5235 | D55: Refrigeration Savings for Lighting Upgrades in Freezers | E55: R5235: Refrigeration Savings for Lighting Upgrades in Freezers | F55: Complete Table A of the "Lighting Incentive Catalog Supplemental Data Sheet" for these measures. | G55: For refrigerated warehouse spaces only. Walk-in coolers and freezers are not eligible. | H55: Only heat load reduction due to lighting upgrade from HID or fluorescent fixtures to LED fixtures are eligible. Lighting upgrade limited to fixtures that are eligible for the high and low bay measures on page 12 and the linear ambient measures on page 11. | I55: Refrigeration savings measure must be submitted at the same time the incentive application for the lighting upgrade is submitted | J55: Lamp only lighting upgrades are not eligible. | K55: Freezer space is defined as having evaporator temperatures from -25 to 15°F. | L55: Not for standard air-conditioned spaces or refrigerated spaces with evaporator temperatures above 35°F. | M55: Watts reduced is fixture wattage reduction only; do not include additional wattage reduction for occupancy sensors (if installed). | N55: For new construction, baseline determined by multiplying installed fixture wattage 2x. | P55: Verify quantities of respective 1-for-1 measures. | V55: $0.20 | W55: Watt Reduced | X55: =V55 -> $0.20 | Y55: =W55 -> Watt Reduced | Z55: $0.15 | AA55: =W55 -> Watt Reduced | AB55: 5235 | AC55: 5235 | AD55: 5235 | AE55: Yes | AF55: =AE55 -> Yes | AG55: Yes | AH55: 100.0% | AI55: 100.0% | AJ55: 100.0% | AK55: No | AL55: =IF(ISBLANK(A55),"",IF(A55<>"Not Eligible",A55,IF(B55<>"Not Eligible",B55,C55))&": ") &D55 -> R5235: Refrigeration Savings for Lighting Upgrades in Freezers | AM55: No | AN55: Yes | AO55: Watt Reduced | AP55: =IFERROR(_xlfn.IFNA(VLOOKUP(IF(OR($AR55="Agribusiness", $AR55="Ag",$AR55="Propane", $AR55="Ag Propane", $AR55="Ag-Propane"),$AC55, $AB55),'[4]UOM Range'!$A$4:$I$500,7,FALSE), ""),"") -> 5.00 | AQ55: =IFERROR(_xlfn.IFNA(VLOOKUP(IF(OR($AR55="Agribusiness", $AR55="Ag",$AR55="Propane", $AR55="Ag Propane", $AR55="Ag-Propane"),$AC55, $AB55),'[4]UOM Range'!$A$4:$I$500,8,FALSE), ""),"") -> 60,000.00 | AR55: Lighting | AS55: 18
A56: R5236 | B56: R5236 | C56: N-R5236 | D56: Refrigeration Savings for Lighting Upgrades in Coolers | E56: R5236: Refrigeration Savings for Lighting Upgrades in Coolers | F56: Complete Table A of the "Lighting Incentive Catalog Supplemental Data Sheet" for these measures. | G56: For refrigerated warehouse spaces only. Walk-in coolers and freezers are not eligible. | H56: Only heat load reduction due to lighting upgrade from HID or fluorescent fixtures to LED fixtures are eligible. Lighting upgrade limited to fixtures that are eligible for the high and low bay measures on page 12 and the linear ambient measures on page 11 | I56: Refrigeration savings measure must be submitted at the same time the incentive application for the lighting upgrade is submitted | J56: Lamp only lighting upgrades are not eligible. | K56: Cooler space is defined as having evaporator temperatures from 10 to 35°F. | L56: Not for standard air-conditioned spaces or refrigerated spaces with evaporator temperatures above 35°F. | M56: Watts reduced is fixture wattage reduction only; do not include additional wattage reduction for occupancy sensors (if installed). | N56: For new construction, baseline determined by multiplying installed fixture wattage 2x. | P56: Verify quantities of respective 1-for-1 measures. | V56: $0.20 | W56: Watt Reduced | X56: =V56 -> $0.20 | Y56: =W56 -> Watt Reduced | Z56: $0.15 | AA56: =W56 -> Watt Reduced | AB56: 5236 | AC56: 5236 | AD56: 5236 | AE56: Yes | AF56: Yes | AG56: Yes | AH56: 100.0% | AI56: 100.0% | AJ56: 100.0% | AK56: No | AL56: =IF(ISBLANK(A56),"",IF(A56<>"Not Eligible",A56,IF(B56<>"Not Eligible",B56,C56))&": ") &D56 -> R5236: Refrigeration Savings for Lighting Upgrades in Coolers | AM56: No | AN56: Yes | AO56: Watt Reduced | AP56: =IFERROR(_xlfn.IFNA(VLOOKUP(IF(OR($AR56="Agribusiness", $AR56="Ag",$AR56="Propane", $AR56="Ag Propane", $AR56="Ag-Propane"),$AC56, $AB56),'[4]UOM Range'!$A$4:$I$500,7,FALSE), ""),"") -> 5.00 | AQ56: =IFERROR(_xlfn.IFNA(VLOOKUP(IF(OR($AR56="Agribusiness", $AR56="Ag",$AR56="Propane", $AR56="Ag Propane", $AR56="Ag-Propane"),$AC56, $AB56),'[4]UOM Range'!$A$4:$I$500,8,FALSE), ""),"") -> 60,000.00 | AR56: Lighting | AS56: 18
A57: L10287 | B57: L10287 | C57: Not Eligible | D57: General Wattage Reduction, ≥1,500 Hours, Interior | E57: L10287: General Wattage Reduction, ≥1,500 Hours, Interior | F57: Complete Table A of the "Lighting Incentive Catalog Supplemental Data Sheet" for these measures. | G57: Intended for LED to LED upgrades, products installed outside of their intended end-use and/or products not ES or DLC listed. | H57: Must operate at least 1,500 hours annually. | I57: Pre-approval required if requesting >$10k of incentives. | J57: Rebates limited to 50% of the retail product cost (cost to customer); excludes credit, shipping, and tax. | K57: If project/area results in other prescriptive 1-for-1 fixtures, ok to treat measure as fixture elimination. Ensure incentives (this and 1-for-1 measure) do not exceed project cost. | L57: If Measure Cost cannot be determined; ok to assume same value as incentive as long as condition above is met. | M57: Omnidirectional, directional, or decorative lamps are not eligible. | V57: $0.20 | W57: Watt Reduced | X57: =V57 -> $0.20 | Y57: Watt Reduced | Z57: N/A | AA57: =W57 -> Watt Reduced | AB57: 10287 | AC57: 10287 | AD57: 10287 | AE57: No | AF57: No | AG57: No | AH57: 100.0% | AI57: 100.0% | AJ57: 100.0% | AK57: No | AL57: =IF(ISBLANK(A57),"",IF(A57<>"Not Eligible",A57,IF(B57<>"Not Eligible",B57,C57))&": ") &D57 -> L10287: General Wattage Reduction, ≥1,500 Hours, Interior | AM57: No | AN57: Optional | AO57: Watt Reduced | AP57: 5.00 | AQ57: =IFERROR(_xlfn.IFNA(VLOOKUP(IF(OR($AR57="Agribusiness", $AR57="Ag",$AR57="Propane", $AR57="Ag Propane", $AR57="Ag-Propane"),$AC57, $AB57),'[4]UOM Range'!$A$4:$I$500,8,FALSE), ""),"") -> 50,000.00 | AR57: Lighting | AS57: 18
A58: L10433 | B58: L10433 | C58: Not Eligible | D58: General Wattage Reduction, <1,500 Hours, Interior | E58: L10433: General Wattage Reduction, <1,500 Hours, Interior | F58: Complete Table A of the "Lighting Incentive Catalog Supplemental Data Sheet" for these measures. | G58: Intended for LED to LED upgrades, products installed outside of their intended end-use and/or products not ES or DLC listed. | H58: Must operate less than 1,500 hours annually. | I58: Pre-approval required if requesting >$10k of incentives. | J58: Rebates limited to 50% of the retail product cost (cost to customer); excludes credit, shipping, and tax. | K58: If project/area results in other prescriptive 1-for-1 fixtures, ok to treat measure as fixture elimination. Ensure incentives (this and 1-for-1 measure) do not exceed project cost. | L58: If Measure Cost cannot be determined; ok to assume same value as incentive as long as condition above is met. | M58: Omnidirectional, directional, or decorative lamps are not eligible. | V58: $0.05 | W58: Watt Reduced | X58: $0.05 | Y58: Watt Reduced | Z58: N/A | AA58: Watt Reduced | AB58: 10433 | AC58: 10433 | AD58: 10433 | AE58: No | AF58: No | AG58: No | AH58: 100.0% | AI58: 100.0% | AJ58: 100.0% | AK58: No | AL58: L10433: General Wattage Reduction, <1,500 Hours, Interior | AM58: No | AN58: Optional | AO58: Watt Reduced | AP58: 5.00 | AQ58: =IFERROR(_xlfn.IFNA(VLOOKUP(IF(OR($AR58="Agribusiness", $AR58="Ag",$AR58="Propane", $AR58="Ag Propane", $AR58="Ag-Propane"),$AC58, $AB58),'[4]UOM Range'!$A$4:$I$500,8,FALSE), ""),"") -> 50,000.00 | AR58: Lighting | AS58: 18
A59: L10288 | B59: L10288 | C59: Not Eligible | D59: General Wattage Reduction, ≥1,500 Hours, Exterior | E59: =IF(ISBLANK(A59),"",IF(FOEIncentCodeType=IncentCodeTypeNC,C59,IF(FOEIncentCodeType=IncentCodeTypeAg,B59,A59))&": ") &D59 -> L10288: General Wattage Reduction, ≥1,500 Hours, Exterior | F59: Complete Table A of the "Lighting Incentive Catalog Supplemental Data Sheet" for these measures. | G59: Intended for LED to LED upgrades, products installed outside of their intended end-use and/or products not ES or DLC listed. | H59: Must operate at least 1,500 hours annually. | I59: Pre-approval required if requesting >$10k of incentives. | J59: Rebates limited to 50% of the retail product cost (cost to customer); excludes credit, shipping, and tax. | K59: If project/area results in other prescriptive 1-for-1 fixtures, ok to treat measure as fixture elimination. Ensure incentives (this and 1-for-1 measure) do not exceed project cost. | L59: If Measure Cost cannot be determined; ok to assume same value as incentive as long as condition above is met. | M59: Omnidirectional, directional, or decorative lamps are not eligible. | V59: $0.20 | W59: Watt Reduced | X59: $0.20 | Y59: Watt Reduced | Z59: N/A | AA59: Watt Reduced | AB59: 10288 | AC59: 10288 | AD59: 10288 | AE59: No | AF59: No | AG59: No | AH59: 100.0% | AI59: 100.0% | AJ59: 100.0% | AK59: No | AL59: L10288: General Wattage Reduction, ≥1,500 Hours, Exterior | AM59: No | AN59: Optional | AO59: Watt Reduced | AP59: =IFERROR(_xlfn.IFNA(VLOOKUP(IF(OR($AR59="Agribusiness", $AR59="Ag",$AR59="Propane", $AR59="Ag Propane", $AR59="Ag-Propane"),$AC59, $AB59),'[4]UOM Range'!$A$4:$I$500,7,FALSE), ""),"") -> 5.00 | AQ59: =IFERROR(_xlfn.IFNA(VLOOKUP(IF(OR($AR59="Agribusiness", $AR59="Ag",$AR59="Propane", $AR59="Ag Propane", $AR59="Ag-Propane"),$AC59, $AB59),'[4]UOM Range'!$A$4:$I$500,8,FALSE), ""),"") -> 50,000.00 | AR59: Lighting | AS59: 18
A60: L10437 | B60: L10437 | C60: Not Eligible | D60: General Wattage Reduction, <1,500 Hours, Exterior | E60: L10437: General Wattage Reduction, <1,500 Hours, Exterior | F60: Complete Table A of the "Lighting Incentive Catalog Supplemental Data Sheet" for these measures. | G60: Intended for LED to LED upgrades, products installed outside of their intended end-use and/or products not ES or DLC listed. | H60: Must operate less than 1,500 hours annually. | I60: Pre-approval required if requesting >$10k of incentives. | J60: Rebates limited to 50% of the retail product cost (cost to customer); excludes credit, shipping, and tax. | K60: If project/area results in other prescriptive 1-for-1 fixtures, ok to treat measure as fixture elimination. Ensure incentives (this and 1-for-1 measure) do not exceed project cost. | L60: If Measure Cost cannot be determined; ok to assume same value as incentive as long as condition above is met. | M60: Omnidirectional, directional, or decorative lamps are not eligible. | V60: $0.05 | W60: Watt Reduced | X60: $0.05 | Y60: Watt Reduced | Z60: N/A | AA60: Watt Reduced | AB60: 10437 | AC60: 10437 | AD60: 10437 | AE60: No | AF60: No | AG60: No | AH60: 100.0% | AI60: 100.0% | AJ60: 100.0% | AK60: No | AL60: L10437: General Wattage Reduction, <1,500 Hours, Exterior | AM60: No | AN60: Optional | AO60: Watt Reduced | AP60: =IFERROR(_xlfn.IFNA(VLOOKUP(IF(OR($AR60="Agribusiness", $AR60="Ag",$AR60="Propane", $AR60="Ag Propane", $AR60="Ag-Propane"),$AC60, $AB60),'[4]UOM Range'!$A$4:$I$500,7,FALSE), ""),"") -> 5.00 | AQ60: =IFERROR(_xlfn.IFNA(VLOOKUP(IF(OR($AR60="Agribusiness", $AR60="Ag",$AR60="Propane", $AR60="Ag Propane", $AR60="Ag-Propane"),$AC60, $AB60),'[4]UOM Range'!$A$4:$I$500,8,FALSE), ""),"") -> 50,000.00 | AR60: Lighting | AS60: 18
D61: ----------------------HVAC CATALOG: HEATING SYSTEMS---------------------------- | E61: ----------------------HVAC CATALOG: HEATING SYSTEMS---------------------------- | AL61: ----------------------HVAC CATALOG: HEATING SYSTEMS---------------------------- | AP61: =IFERROR(_xlfn.IFNA(VLOOKUP(IF(OR($AR61="Agribusiness", $AR61="Ag",$AR61="Propane", $AR61="Ag Propane", $AR61="Ag-Propane"),$AC61, $AB61),'[4]UOM Range'!$A$4:$I$500,7,FALSE), ""),"") ->  | AQ61: =IFERROR(_xlfn.IFNA(VLOOKUP(IF(OR($AR61="Agribusiness", $AR61="Ag",$AR61="Propane", $AR61="Ag Propane", $AR61="Ag-Propane"),$AC61, $AB61),'[4]UOM Range'!$A$4:$I$500,8,FALSE), ""),"") ->  | AR61: HVAC
A62: H10222 | B62: H10222 | C62: N-H10222 | D62: Hot Water Boilers, ≥300 MBh input, 90%-94% thermal efficiency | E62: H10222: Hot Water Boilers, ≥300 MBh input, 90%-94% thermal efficiency | F62: Must be ≥ 90 and <95% thermal efficiency and be ≥300 MBh | G62: Boilers must be capable of capacity modulation | H62: See AHRIdirectory.org to confirm efficiency %. Must provide mfg. spec sheet with boiler input and output ratings and either AFUE or thermal efficiency as appropriate for boiler size. | I62: Space heat only. Boilers for indirect domestic water heating only or for process loads DNQ. | J62: Natural gas boilers only. Redundant or backup boilers do not qualify. | K62: Steam boilers do not meet the efficiency requirements and aren't eligible (but may qualify for a custom incentive). Hot water boiler >=90% TE replacing a steam boiler is eligible. | L62: Do not round AHRI capacity to a whole number. | O62: See AHRIdirectory.org to confirm efficiency % - although not technically a requirement. | P62: equipment, location, equipment nameplate (if possible) | V62: $7.00 | W62: MBh | X62: =V62 -> $7.00 | Y62: MBh | Z62: $7.00 | AA62: =W62 -> MBh | AB62: 10222 | AC62: =AB62 -> 10222 | AD62: 10222 | AE62: Yes | AF62: Yes | AG62: Yes | AH62: 100.0% | AI62: 100.0% | AJ62: 100.0% | AK62: No | AL62: H10222: Hot Water Boilers, ≥300 MBh input, 90%-94% thermal efficiency | AM62: No | AN62: No | AO62: MBh | AP62: =IFERROR(_xlfn.IFNA(VLOOKUP(IF(OR($AR62="Agribusiness", $AR62="Ag",$AR62="Propane", $AR62="Ag Propane", $AR62="Ag-Propane"),$AC62, $AB62),'[4]UOM Range'!$A$4:$I$500,7,FALSE), ""),"") -> 300.00 | AQ62: =IFERROR(_xlfn.IFNA(VLOOKUP(IF(OR($AR62="Agribusiness", $AR62="Ag",$AR62="Propane", $AR62="Ag Propane", $AR62="Ag-Propane"),$AC62, $AB62),'[4]UOM Range'!$A$4:$I$500,8,FALSE), ""),"") -> 6,000.00 | AR62: HVAC | AS62: 12
A63: H10207 | B63: H10207 | C63: N-H10207 | D63: Hot Water Boilers, ≥300 MBh input, ≥95% thermal efficiency | E63: H10207: Hot Water Boilers, ≥300 MBh input, ≥95% thermal efficiency | F63: Must be ≥ 95% thermal efficiency and be ≥300 MBh | G63: Boilers must be capable of capacity modulation | H63: See AHRIdirectory.org to confirm efficiency %. Must provide mfg. spec sheet with boiler input and output ratings and either AFUE or thermal efficiency as appropriate for boiler size. | I63: Space heat only. Boilers for indirect domestic water heating only or for process loads DNQ. | J63: Natural gas boilers only. Redundant or backup boilers do not qualify. | K63: Steam boilers do not meet the efficiency requirements and aren't eligible (but may qualify for a custom incentive). Hot water boiler >=90% TE replacing a steam boiler is eligible. | L63: Do not round AHRI capacity to a whole number. | O63: See AHRIdirectory.org to confirm efficiency % - although not technically a requirement. | P63: equipment, location, equipment nameplate (if possible) | V63: $8.00 | W63: MBh | X63: $8.00 | Y63: MBh | Z63: $8.00 | AA63: MBh | AB63: 10207 | AC63: 10207 | AD63: 10207 | AE63: Yes | AF63: Yes | AG63: Yes | AH63: 100.0% | AI63: 100.0% | AJ63: 100.0% | AK63: No | AL63: H10207: Hot Water Boilers, ≥300 MBh input, ≥95% thermal efficiency | AM63: No | AN63: No | AO63: MBh | AP63: =IFERROR(_xlfn.IFNA(VLOOKUP(IF(OR($AR63="Agribusiness", $AR63="Ag",$AR63="Propane", $AR63="Ag Propane", $AR63="Ag-Propane"),$AC63, $AB63),'[4]UOM Range'!$A$4:$I$500,7,FALSE), ""),"") -> 300.00 | AQ63: =IFERROR(_xlfn.IFNA(VLOOKUP(IF(OR($AR63="Agribusiness", $AR63="Ag",$AR63="Propane", $AR63="Ag Propane", $AR63="Ag-Propane"),$AC63, $AB63),'[4]UOM Range'!$A$4:$I$500,8,FALSE), ""),"") -> 6,000.00 | AR63: HVAC | AS63: 12
A64: H2221 | B64: H2221 | C64: Not Eligible | D64: Outdoor Air Reset/Cutout Controls | E64: H2221: Outdoor Air Reset/Cutout Controls | F64: OA temp. boiler reset & cutout control incentives are for retrofit projects only. New boilers equipped w/ these controls DNQ. | G64: System must have an outdoor temperature sensor installed in a shaded location on the north side of the building. | H64: Min temp must be <10°F above boiler mfg's recommended min return temp unless unusual circumstances require higher setting | I64: If multiple boilers, controls must stage lag boiler(s) only after 1st boiler fails to maintain water temp called for by reset control. | J64: Provide input capacity of boilers (in MBh) controlled w/OA reset & cutoff controls per the example given. | K64: Natural gas equipment only. | P64: Controller, screenshot or control system readout (displaying data being sensed), equipment being controlled, equipment capacity | V64: $100.00 | W64: Control | X64: $100.00 | Y64: Control | Z64: N/A | AA64: Control | AB64: 2221 | AC64: 2221 | AD64: 2221 | AE64: No | AF64: No | AG64: No | AH64: 100.0% | AI64: 100.0% | AJ64: 100.0% | AK64: No | AL64: H2221: Outdoor Air Reset/Cutout Controls | AM64: No | AN64: Yes | AO64: MBh | AP64: =IFERROR(_xlfn.IFNA(VLOOKUP(IF(OR($AR64="Agribusiness", $AR64="Ag",$AR64="Propane", $AR64="Ag Propane", $AR64="Ag-Propane"),$AC64, $AB64),'[4]UOM Range'!$A$4:$I$500,7,FALSE), ""),"") -> 15.00 | AQ64: =IFERROR(_xlfn.IFNA(VLOOKUP(IF(OR($AR64="Agribusiness", $AR64="Ag",$AR64="Propane", $AR64="Ag Propane", $AR64="Ag-Propane"),$AC64, $AB64),'[4]UOM Range'!$A$4:$I$500,8,FALSE), ""),"") -> 6,300.00 | AR64: HVAC | AS64: 13
A65: H2205 | B65: H2205 | C65: Not Eligible | D65: Linkageless Controls, HVAC Boilers | E65: H2205: Linkageless Controls, HVAC Boilers | F65: Boiler must be natural gas-fired, forced-draft boiler used for space heating that operates a minimum of 4,000 hours per year | G65: Installation on redundant or backup boilers does not qualify for an incentive | H65: Boiler input capacity must be entered in boiler horsepower (BHP). To convert use 1 BHP=33.476 MBh. | I65: Incentive capped @ 50% of project cost, including equip and external labor (internal labor eligible for schools and gov customers). | P65: Front of boiler (including burner), burner nameplate | V65: $35.00 | W65: BHP | X65: $35.00 | Y65: BHP | Z65: N/A | AA65: BHP | AB65: 2205 | AC65: 2205 | AD65: 2205 | AE65: No | AF65: No | AG65: No | AH65: 50.0% | AI65: 50.0% | AJ65: 50.0% | AK65: No | AL65: H2205: Linkageless Controls, HVAC Boilers | AM65: No | AN65: Yes | AO65: BHP | AP65: =IFERROR(_xlfn.IFNA(VLOOKUP(IF(OR($AR65="Agribusiness", $AR65="Ag",$AR65="Propane", $AR65="Ag Propane", $AR65="Ag-Propane"),$AC65, $AB65),'[4]UOM Range'!$A$4:$I$500,7,FALSE), ""),"") -> 15.00 | AQ65: =IFERROR(_xlfn.IFNA(VLOOKUP(IF(OR($AR65="Agribusiness", $AR65="Ag",$AR65="Propane", $AR65="Ag Propane", $AR65="Ag-Propane"),$AC65, $AB65),'[4]UOM Range'!$A$4:$I$500,8,FALSE), ""),"") -> 1,000.00 | AR65: HVAC | AS65: 13
A66: H2206 | B66: H2206 | C66: N-H2206 | D66: O₂ Trim Controls, HVAC Boilers | E66: H2206: O₂ Trim Controls, HVAC Boilers | F66: Boiler must be natural gas-fired, forced-draft boiler used for space heating that operates a minimum of 4,000 hours per year | G66: Installation on redundant or backup boilers does not qualify for an incentive | H66: Boiler input capacity must be entered in boiler horsepower (BHP). To convert use 1 BHP=33.476 MBh. | I66: Incentive capped @ 50% of project cost, including equip and external labor (internal labor eligible for schools and gov customers). | P66: Front of boiler (including burner), burner nameplate, oxygen sensor location (if visible), screen shot of boiler control system (if available) | V66: $10.00 | W66: BHP | X66: $10.00 | Y66: BHP | Z66: $10.00 | AA66: BHP | AB66: 2206 | AC66: 2206 | AD66: 2206 | AE66: Yes | AF66: Yes | AG66: Yes | AH66: 50.0% | AI66: 50.0% | AJ66: 50.0% | AK66: No | AL66: H2206: O₂ Trim Controls, HVAC Boilers | AM66: No | AN66: Yes | AO66: BHP | AP66: =IFERROR(_xlfn.IFNA(VLOOKUP(IF(OR($AR66="Agribusiness", $AR66="Ag",$AR66="Propane", $AR66="Ag Propane", $AR66="Ag-Propane"),$AC66, $AB66),'[4]UOM Range'!$A$4:$I$500,7,FALSE), ""),"") -> 15.00 | AQ66: =IFERROR(_xlfn.IFNA(VLOOKUP(IF(OR($AR66="Agribusiness", $AR66="Ag",$AR66="Propane", $AR66="Ag Propane", $AR66="Ag-Propane"),$AC66, $AB66),'[4]UOM Range'!$A$4:$I$500,8,FALSE), ""),"") -> 1,000.00 | AR66: HVAC | AS66: 13
A67: H2203 | B67: H2203 | C67: Not Eligible | D67: High Turndown Burner, Retrofit on Existing Boiler | E67: H2203: High Turndown Burner, Retrofit on Existing Boiler | F67: Boiler must be natural gas-fired, forced-draft boiler used for space heating that operates a minimum of 4,000 hours per year | G67: Installation on redundant or backup boilers does not qualify for an incentive. | H67: Boiler input capacity must be entered in boiler horsepower (BHP). To convert use 1 BHP=33.476 MBh. | I67: Burners must have a minimum 10:1 firing rate. | J67: Incentive capped @ 50% of project cost, including equip and external labor (internal labor eligible for schools and gov customers). | K67: For retrofitting an existing boiler only. | P67: Front of boiler (including burner), burner nameplate | V67: $20.00 | W67: BHP | X67: $20.00 | Y67: BHP | Z67: N/A | AA67: BHP | AB67: 2203 | AC67: 2203 | AD67: 2203 | AE67: No | AF67: No | AG67: No | AH67: 50.0% | AI67: 50.0% | AJ67: 50.0% | AK67: No | AL67: H2203: High Turndown Burner, Retrofit on Existing Boiler | AM67: No | AN67: Yes | AO67: BHP | AP67: =IFERROR(_xlfn.IFNA(VLOOKUP(IF(OR($AR67="Agribusiness", $AR67="Ag",$AR67="Propane", $AR67="Ag Propane", $AR67="Ag-Propane"),$AC67, $AB67),'[4]UOM Range'!$A$4:$I$500,7,FALSE), ""),"") -> 15.00 | AQ67: =IFERROR(_xlfn.IFNA(VLOOKUP(IF(OR($AR67="Agribusiness", $AR67="Ag",$AR67="Propane", $AR67="Ag Propane", $AR67="Ag-Propane"),$AC67, $AB67),'[4]UOM Range'!$A$4:$I$500,8,FALSE), ""),"") -> 1,000.00 | AR67: HVAC | AS67: 13
A68: H5237 | B68: H5237 | C68: N-H5237 | D68: High Turndown Burner, New Boiler Replacement | E68: H5237: High Turndown Burner, New Boiler Replacement | F68: Boiler must be natural gas-fired, forced-draft boiler used for space heating that operates a minimum of 4,000 hours per year | G68: Installation on redundant or backup boilers does not qualify for an incentive. | H68: Boiler input capacity must be entered in boiler horsepower (BHP). To convert use 1 BHP=33.476 MBh. | I68: Burners must have a minimum 10:1 firing rate. | J68: Incentive capped @ 50% of project cost, including equip and external labor (internal labor eligible for schools and gov customers). | K68: For new boiler upgrades only. | P68: Front of boiler (including burner), burner nameplate | V68: $20.00 | W68: BHP | X68: $20.00 | Y68: BHP | Z68: $20.00 | AA68: BHP | AB68: 5237 | AC68: 5237 | AD68: 5237 | AE68: Yes | AF68: Yes | AG68: Yes | AH68: 50.0% | AI68: 50.0% | AJ68: 50.0% | AK68: No | AL68: H5237: High Turndown Burner, New Boiler Replacement | AM68: No | AN68: Yes | AO68: BHP | AP68: =IFERROR(_xlfn.IFNA(VLOOKUP(IF(OR($AR68="Agribusiness", $AR68="Ag",$AR68="Propane", $AR68="Ag Propane", $AR68="Ag-Propane"),$AC68, $AB68),'[4]UOM Range'!$A$4:$I$500,7,FALSE), ""),"") -> 15.00 | AQ68: =IFERROR(_xlfn.IFNA(VLOOKUP(IF(OR($AR68="Agribusiness", $AR68="Ag",$AR68="Propane", $AR68="Ag Propane", $AR68="Ag-Propane"),$AC68, $AB68),'[4]UOM Range'!$A$4:$I$500,8,FALSE), ""),"") -> 1,000.00 | AR68: HVAC | AS68: 13
A69: H2225 | B69: H2225 | C69: Not Eligible | D69: Steam Trap Survey (HVAC) | E69: H2225: Steam Trap Survey (HVAC) | F69: Survey log must include all necessary fields. Note that 2225 is now only for HVAC steam traps. Process steam trap survey = 4041. | G69: Only systems with steam produced by natural gas equipment are eligible. Municipal steam systems DNQ. | H69: Customer must repair or replace one trap for every five traps surveyed. If less than one trap per every five traps survayed is identified as failed, then all failed traps must be repaired or replaced. | I69: If all identified failed traps must be repaired/replaced, customer may provide written explanation for a trap that can't be repaired or replaced & may still qualify. | J69: Survey incentive only available once per year per steam system | K69: Survey cost must be shown on the invoice | L69: For projects that don't complete a steam trap survey, provide the nominal steam pressure (psig) on the application or in other supporting documentation | M69: Steam trap survey and repair work must be recorded in a log sheet and attached to the application in order to be eligible for the survey incentive | O69: If survey incentive is being paid before repairs are complete, add a note in SPECTRUM with explaination and connect the two apps once repair measures are processed. | P69: Close-up of steam trap (with tag number in sight) | V69: $8.00 | W69: Steam Trap | X69: $8.00 | Y69: Steam Trap | Z69: N/A | AA69: Steam Trap | AB69: 2225 | AC69: 2225 | AD69: 2225 | AE69: No | AF69: No | AG69: No | AH69: 100.0% | AI69: 100.0% | AJ69: 100.0% | AK69: No | AL69: H2225: Steam Trap Survey (HVAC) | AM69: No | AN69: Yes | AP69: =IFERROR(_xlfn.IFNA(VLOOKUP(IF(OR($AR69="Agribusiness", $AR69="Ag",$AR69="Propane", $AR69="Ag Propane", $AR69="Ag-Propane"),$AC69, $AB69),'[4]UOM Range'!$A$4:$I$500,7,FALSE), ""),"") ->  | AQ69: =IFERROR(_xlfn.IFNA(VLOOKUP(IF(OR($AR69="Agribusiness", $AR69="Ag",$AR69="Propane", $AR69="Ag Propane", $AR69="Ag-Propane"),$AC69, $AB69),'[4]UOM Range'!$A$4:$I$500,8,FALSE), ""),"") ->  | AR69: HVAC | AS69: 14
A70: H10425 | B70: H10425 | C70: Not Eligible | D70: Steam Trap Repair, <10 psig General Heating | E70: H10425: Steam Trap Repair, <10 psig General Heating | F70: Only leaking traps are eligible; failed closed or plugged traps aren't eligible. HVAC traps only; use separate measures for process traps. | G70: Only natural gas based steam systems are eligible. Municipal steam systems DNQ. | H70: For mass replacement of steam traps, incentive is only available for 20% of repaired traps | I70: Repairs do not need to be made at one time, but only one repair incentive per trap can be applied for in a year. | J70: Confirm, if possible, that the actual system steam pressure is < 10 PSI. Do not use rated PSI of the steam trap. | L70: Customer must repair or replace one trap for every five traps surveyed. If less than one trap per every five traps survayed is identified as failed, then all failed traps must be repaired or replaced. | M70: If all identified failed traps must be repaired/replaced, customer may provide written explanation for a trap that can't be repaired or replaced & may still qualify. | O70: Surveys are optional | P70: Close-up of steam trap (with tag number in sight) | V70: $60.00 | W70: Steam Trap | X70: $60.00 | Y70: Steam Trap | Z70: N/A | AA70: Steam Trap | AB70: 10425 | AC70: 10425 | AD70: 10425 | AE70: No | AF70: No | AG70: No | AH70: 100.0% | AI70: 100.0% | AJ70: 100.0% | AK70: No | AL70: H10425: Steam Trap Repair, <10 psig General Heating | AM70: No | AN70: Yes | AP70: =IFERROR(_xlfn.IFNA(VLOOKUP(IF(OR($AR70="Agribusiness", $AR70="Ag",$AR70="Propane", $AR70="Ag Propane", $AR70="Ag-Propane"),$AC70, $AB70),'[4]UOM Range'!$A$4:$I$500,7,FALSE), ""),"") ->  | AQ70: =IFERROR(_xlfn.IFNA(VLOOKUP(IF(OR($AR70="Agribusiness", $AR70="Ag",$AR70="Propane", $AR70="Ag Propane", $AR70="Ag-Propane"),$AC70, $AB70),'[4]UOM Range'!$A$4:$I$500,8,FALSE), ""),"") ->  | AR70: HVAC | AS70: 14
A71: H10427 | B71: H10427 | C71: Not Eligible | D71: Steam Trap Repair, 10-49 psig General Heating | E71: H10427: Steam Trap Repair, 10-49 psig General Heating | F71: Only leaking traps are eligible; failed closed or plugged traps aren't eligible. HVAC traps only; use separate measures for process traps. | G71: Only natural gas based steam systems are eligible. Municipal steam systems DNQ. | H71: For mass replacement of steam traps, incentive is only available for 20% of repaired traps | I71: Repairs do not need to be made at one time, but only one repair incentive per trap can be applied for in a year. | J71: Confirm, that UOM in SPECTRUM is the actual system steam pressure + 14.7 PSI. Do not use rated PSI of the steam trap as steam pressure. | L71: Customer must repair or replace one trap for every five traps surveyed. If less than one trap per every five traps survayed is identified as failed, then all failed traps must be repaired or replaced. | M71: If all identified failed traps must be repaired/replaced, customer may provide written explanation for a trap that can't be repaired or replaced & may still qualify. | O71: Surveys are optional | P71: Close-up of steam trap (with tag number in sight) | V71: $100.00 | W71: Steam Trap | X71: $100.00 | Y71: Steam Trap | Z71: N/A | AA71: Steam Trap | AB71: 10427 | AC71: 10427 | AD71: 10427 | AE71: No | AF71: No | AG71: No | AH71: 100.0% | AI71: 100.0% | AJ71: 100.0% | AK71: No | AL71: H10427: Steam Trap Repair, 10-49 psig General Heating | AM71: No | AN71: Yes | AO71: PSIA (PSIG + 14.7) | AP71: =IFERROR(_xlfn.IFNA(VLOOKUP(IF(OR($AR71="Agribusiness", $AR71="Ag",$AR71="Propane", $AR71="Ag Propane", $AR71="Ag-Propane"),$AC71, $AB71),'[4]UOM Range'!$A$4:$I$500,7,FALSE), ""),"") ->  | AQ71: =IFERROR(_xlfn.IFNA(VLOOKUP(IF(OR($AR71="Agribusiness", $AR71="Ag",$AR71="Propane", $AR71="Ag Propane", $AR71="Ag-Propane"),$AC71, $AB71),'[4]UOM Range'!$A$4:$I$500,8,FALSE), ""),"") ->  | AR71: HVAC | AS71: 14
A72: H10428 | B72: H10428 | C72: Not Eligible | D72: Steam Trap Repair, 50-124 psig General Heating | E72: H10428: Steam Trap Repair, 50-124 psig General Heating | F72: Only leaking traps are eligible; failed closed or plugged traps aren't eligible. HVAC traps only; use separate measures for process traps. | G72: Only natural gas based steam systems are eligible. Municipal steam systems DNQ. | H72: For mass replacement of steam traps, incentive is only available for 20% of repaired traps | I72: Repairs do not need to be made at one time, but only one repair incentive per trap can be applied for in a year. | J72: Confirm, that UOM in SPECTRUM is the actual system steam pressure + 14.7 PSI. Do not use rated PSI of the steam trap as steam pressure. | L72: Customer must repair or replace one trap for every five traps surveyed. If less than one trap per every five traps survayed is identified as failed, then all failed traps must be repaired or replaced. | M72: If all identified failed traps must be repaired/replaced, customer may provide written explanation for a trap that can't be repaired or replaced & may still qualify. | O72: Surveys are optional | P72: Close-up of steam trap (with tag number in sight) | V72: $150.00 | W72: Steam Trap | X72: $150.00 | Y72: Steam Trap | Z72: N/A | AA72: Steam Trap | AB72: 10428 | AC72: 10428 | AD72: 10428 | AE72: No | AF72: No | AG72: No | AH72: 100.0% | AI72: 100.0% | AJ72: 100.0% | AK72: No | AL72: H10428: Steam Trap Repair, 50-124 psig General Heating | AM72: No | AN72: Yes | AO72: PSIA (PSIG + 14.7) | AP72: =IFERROR(_xlfn.IFNA(VLOOKUP(IF(OR($AR72="Agribusiness", $AR72="Ag",$AR72="Propane", $AR72="Ag Propane", $AR72="Ag-Propane"),$AC72, $AB72),'[4]UOM Range'!$A$4:$I$500,7,FALSE), ""),"") ->  | AQ72: =IFERROR(_xlfn.IFNA(VLOOKUP(IF(OR($AR72="Agribusiness", $AR72="Ag",$AR72="Propane", $AR72="Ag Propane", $AR72="Ag-Propane"),$AC72, $AB72),'[4]UOM Range'!$A$4:$I$500,8,FALSE), ""),"") ->  | AR72: HVAC | AS72: 14
A73: H10426 | B73: H10426 | C73: Not Eligible | D73: Steam Trap Repair, ≥125 psig General Heating | E73: H10426: Steam Trap Repair, ≥125 psig General Heating | F73: Only leaking traps are eligible; failed closed or plugged traps aren't eligible. HVAC traps only; use separate measures for process traps. | G73: Only natural gas based steam systems are eligible. Municipal steam systems DNQ. | H73: For mass replacement of steam traps, incentive is only available for 20% of repaired traps | I73: Repairs do not need to be made at one time, but only one repair incentive per trap can be applied for in a year. | J73: Confirm, that UOM in SPECTRUM is the actual system steam pressure + 14.7 PSI. Do not use rated PSI of the steam trap as steam pressure. | L73: Customer must repair or replace one trap for every five traps surveyed. If less than one trap per every five traps survayed is identified as failed, then all failed traps must be repaired or replaced. | M73: If all identified failed traps must be repaired/replaced, customer may provide written explanation for a trap that can't be repaired or replaced & may still qualify. | O73: Surveys are optional | P73: Close-up of steam trap (with tag number in sight) | V73: $250.00 | W73: Steam Trap | X73: $250.00 | Y73: Steam Trap | Z73: N/A | AA73: Steam Trap | AB73: 10426 | AC73: 10426 | AD73: 10426 | AE73: No | AF73: No | AG73: No | AH73: 100.0% | AI73: 100.0% | AJ73: 100.0% | AK73: No | AL73: H10426: Steam Trap Repair, ≥125 psig General Heating | AM73: No | AN73: Yes | AO73: PSIA (PSIG + 14.7) | AP73: =IFERROR(_xlfn.IFNA(VLOOKUP(IF(OR($AR73="Agribusiness", $AR73="Ag",$AR73="Propane", $AR73="Ag Propane", $AR73="Ag-Propane"),$AC73, $AB73),'[4]UOM Range'!$A$4:$I$500,7,FALSE), ""),"") ->  | AQ73: =IFERROR(_xlfn.IFNA(VLOOKUP(IF(OR($AR73="Agribusiness", $AR73="Ag",$AR73="Propane", $AR73="Ag Propane", $AR73="Ag-Propane"),$AC73, $AB73),'[4]UOM Range'!$A$4:$I$500,8,FALSE), ""),"") ->  | AR73: HVAC | AS73: 14
A74: H2429 | B74: H2429 | C74: Not Eligible | D74: Insulation for Steam Fittings, Natural Gas | E74: H2429: Insulation for Steam Fittings, Natural Gas | F74: Incentive is for adding insulation to uninsulated steam piping and fittings (including traps). For natural gas generated steam only. | G74: Insulation for fittings must be removable and reusable. | H74: For businesses: Insulation must be ≥1.5 inches for pipes <1.5 inches in diameter and ≥3 inches for pipes >1.5 inches in diameter | I74: Steam system being insulated must be used for space heating applications. Industrial process applications may be eligible for a custom incentive. | P74: Close-up of insulation (showing thickness if possible); wide shot of piping layout; photo of boiler if possible. | V74: $20.00 | W74: Fitting | X74: $20.00 | Y74: Fitting | Z74: N/A | AA74: Fitting | AB74: 2429 | AC74: 2429 | AD74: 2429 | AE74: No | AF74: No | AG74: No | AH74: 100.0% | AI74: 100.0% | AJ74: 100.0% | AK74: No | AL74: H2429: Insulation for Steam Fittings, Natural Gas | AM74: No | AN74: No | AP74: =IFERROR(_xlfn.IFNA(VLOOKUP(IF(OR($AR74="Agribusiness", $AR74="Ag",$AR74="Propane", $AR74="Ag Propane", $AR74="Ag-Propane"),$AC74, $AB74),'[4]UOM Range'!$A$4:$I$500,7,FALSE), ""),"") ->  | AQ74: =IFERROR(_xlfn.IFNA(VLOOKUP(IF(OR($AR74="Agribusiness", $AR74="Ag",$AR74="Propane", $AR74="Ag Propane", $AR74="Ag-Propane"),$AC74, $AB74),'[4]UOM Range'!$A$4:$I$500,8,FALSE), ""),"") ->  | AR74: HVAC | AS74: 14
A75: H2430 | B75: H2430 | C75: Not Eligible | D75: Insulation for Steam Pipe, Natural Gas | E75: H2430: Insulation for Steam Pipe, Natural Gas | F75: Incentive is for adding insulation to uninsulated steam piping and fittings. For natural gas generated steam only. | G75: For businesses: Insulation must be ≥1.5 inches for pipes <1.5 inches in diameter and ≥3 inches for pipes >1.5 inches in diameter | H75: Steam system being insulated must be used for space heating applications. Industrial process applications may be eligible for a custom incentive. | P75: Close-up of insulation (showing thickness if possible); wide shot of piping layout; photo of boiler if possible. | V75: $10.00 | W75: Ft of Pipe | X75: $10.00 | Y75: Ft of Pipe | Z75: N/A | AA75: Ft of Pipe | AB75: 2430 | AC75: 2430 | AD75: 2430 | AE75: No | AF75: No | AG75: No | AH75: 100.0% | AI75: 100.0% | AJ75: 100.0% | AK75: No | AL75: H2430: Insulation for Steam Pipe, Natural Gas | AM75: No | AN75: No | AP75: =IFERROR(_xlfn.IFNA(VLOOKUP(IF(OR($AR75="Agribusiness", $AR75="Ag",$AR75="Propane", $AR75="Ag Propane", $AR75="Ag-Propane"),$AC75, $AB75),'[4]UOM Range'!$A$4:$I$500,7,FALSE), ""),"") ->  | AQ75: =IFERROR(_xlfn.IFNA(VLOOKUP(IF(OR($AR75="Agribusiness", $AR75="Ag",$AR75="Propane", $AR75="Ag Propane", $AR75="Ag-Propane"),$AC75, $AB75),'[4]UOM Range'!$A$4:$I$500,8,FALSE), ""),"") ->  | AR75: HVAC | AS75: 14
A76: H2422 | B76: H2422 | C76: N-H2422 | D76: Infrared Heater | E76: H2422: Infrared Heater | F76: Low-intensity and high-intensity units are eligible | G76: Must have electronic ignition | H76: Outdoor patio heating applications not eligible | I76: For existing buildings, replacement of existing infrared heater DNQ | J76: Propane customers should refer to the Propane and Electric Incentive Catalog for eligible measures. | K76: Must be vented per manufacturer's requirements | L76: Low-intensity heaters must use outside non-conditioned combustion air | P76: equipment, location, equipment nameplate (if possible) | V76: $7.50 | W76: MBh | X76: $7.50 | Y76: MBh | Z76: $6.00 | AA76: MBh | AB76: 2422 | AC76: 2422 | AD76: 2422 | AE76: Yes | AF76: Yes | AG76: Yes | AH76: 100.0% | AI76: 100.0% | AJ76: 100.0% | AK76: No | AL76: H2422: Infrared Heater | AM76: No | AN76: No | AO76: MBh | AP76: =IFERROR(_xlfn.IFNA(VLOOKUP(IF(OR($AR76="Agribusiness", $AR76="Ag",$AR76="Propane", $AR76="Ag Propane", $AR76="Ag-Propane"),$AC76, $AB76),'[4]UOM Range'!$A$4:$I$500,7,FALSE), ""),"") -> 15.00 | AQ76: =IFERROR(_xlfn.IFNA(VLOOKUP(IF(OR($AR76="Agribusiness", $AR76="Ag",$AR76="Propane", $AR76="Ag Propane", $AR76="Ag-Propane"),$AC76, $AB76),'[4]UOM Range'!$A$4:$I$500,8,FALSE), ""),"") -> 300.00 | AR76: HVAC | AS76: 14
A77: H5436 | B77: H5436 | C77: N-H5436 | D77: Unit Heater, ≥ 90% Thermal Efficiency | E77: H5436: Unit Heater, ≥ 90% Thermal Efficiency | F77: Must be ≥ 90% thermal efficiency, replacing or instead of standard efficiency unit heater (typically 80%-84% Thermal Efficiency) | G77: Direct-fired RTUs / MUA units not eligible | H77: Must provide a mfg's spec sheet to document efficiency level | I77: Equipment serving process or other loads DNQ. | J77: Must be natural gas fired only. Steam or hot water coils/systems are not eligible. Propane customers should refer to the Propane and Electric Incentive Catalog for eligible measures. | K77: Must replace existing non-condensing unit heater or be installed instead of a non-condensing unit heater. | L77: Must be vented and condensate drained per manufacturer specifications | P77: equipment, location, equipment nameplate (if possible) | V77: $4.00 | W77: MBh | X77: $4.00 | Y77: MBh | Z77: $2.75 | AA77: MBh | AB77: 5436 | AC77: 5436 | AD77: 5436 | AE77: Yes | AF77: Yes | AG77: Yes | AH77: 100.0% | AI77: 100.0% | AJ77: 100.0% | AK77: No | AL77: H5436: Unit Heater, ≥ 90% Thermal Efficiency | AM77: No | AN77: No | AO77: MBh | AP77: =IFERROR(_xlfn.IFNA(VLOOKUP(IF(OR($AR77="Agribusiness", $AR77="Ag",$AR77="Propane", $AR77="Ag Propane", $AR77="Ag-Propane"),$AC77, $AB77),'[4]UOM Range'!$A$4:$I$500,7,FALSE), ""),"") -> 50.00 | AQ77: =IFERROR(_xlfn.IFNA(VLOOKUP(IF(OR($AR77="Agribusiness", $AR77="Ag",$AR77="Propane", $AR77="Ag Propane", $AR77="Ag-Propane"),$AC77, $AB77),'[4]UOM Range'!$A$4:$I$500,8,FALSE), ""),"") -> 400.00 | AR77: HVAC | AS77: 15
A78: H2699 | B78: H2699 | C78: N-H2699 | D78: PTHP <8,000 BTUh, ≥10.7 EER and ≥3.1 COP (NC = ≥12.7 EER and ≥3.1 COP) | E78: H2699: PTHP <8,000 BTUh, ≥10.7 EER and ≥3.1 COP (NC = ≥12.7 EER and ≥3.1 COP) | F78: Must replace or be instead of a Packaged Terminal Air Conditioner (PTAC). For existing buildings, replacement of existing PTHP DNQ. | G78: Unit must be AHRI listed as a Commercial PTHP. Window and through-the-wall air conditioners/heat pumps DNQ. | H78: The equipment size category (BTUh) is the cooling capacity value of the unit. | I78: Must meet both heating and cooling specifications for the equipment size category. | J78: Verify efficiency ratings using AHRIdirectory.org | K78: Eligibility for PTHP measures is based on customer having an eligible electric provider. | P78: equipment, location, equipment nameplate (if possible) | V78: $120.00 | W78: PTHP | X78: =V78 -> $120.00 | Y78: PTHP | Z78: $110.00 | AA78: PTHP | AB78: 2699 | AC78: 2699 | AD78: 2699 | AE78: Yes | AF78: Yes | AG78: Yes | AH78: 100.0% | AI78: 100.0% | AJ78: 100.0% | AK78: No | AL78: H2699: PTHP <8,000 BTUh, ≥10.7 EER and ≥3.1 COP (NC = ≥12.7 EER and ≥3.1 COP) | AM78: No | AN78: No | AP78: =IFERROR(_xlfn.IFNA(VLOOKUP(IF(OR($AR78="Agribusiness", $AR78="Ag",$AR78="Propane", $AR78="Ag Propane", $AR78="Ag-Propane"),$AC78, $AB78),'[4]UOM Range'!$A$4:$I$500,7,FALSE), ""),"") ->  | AQ78: =IFERROR(_xlfn.IFNA(VLOOKUP(IF(OR($AR78="Agribusiness", $AR78="Ag",$AR78="Propane", $AR78="Ag Propane", $AR78="Ag-Propane"),$AC78, $AB78),'[4]UOM Range'!$A$4:$I$500,8,FALSE), ""),"") ->  | AR78: HVAC | AS78: 15
A79: H2702 | B79: H2702 | C79: N-H2702 | D79: PTHP 8,000-9,999 BTUh, ≥10.4 EER and ≥3.0 COP (NC = ≥12.1 EER and ≥3.0 COP) | E79: H2702: PTHP 8,000-9,999 BTUh, ≥10.4 EER and ≥3.0 COP (NC = ≥12.1 EER and ≥3.0 COP) | F79: Must replace or be instead of a Packaged Terminal Air Conditioner (PTAC). For existing buildings, replacement of existing PTHP DNQ. | G79: Unit must be AHRI listed as a Commercial PTHP. Window and through-the-wall air conditioners/heat pumps DNQ. | H79: The equipment size category (BTUh) is the cooling capacity value of the unit. | I79: Must meet both heating and cooling specifications for the equipment size category. | J79: Verify efficiency ratings using AHRIdirectory.org | K79: Eligibility for PTHP measures is based on customer having an eligible electric provider. | P79: equipment, location, equipment nameplate (if possible) | V79: $120.00 | W79: PTHP | X79: $120.00 | Y79: PTHP | Z79: $110.00 | AA79: PTHP | AB79: 2702 | AC79: 2702 | AD79: 2702 | AE79: Yes | AF79: Yes | AG79: Yes | AH79: 100.0% | AI79: 100.0% | AJ79: 100.0% | AK79: No | AL79: H2702: PTHP 8,000-9,999 BTUh, ≥10.4 EER and ≥3.0 COP (NC = ≥12.1 EER and ≥3.0 COP) | AM79: No | AN79: No | AP79: =IFERROR(_xlfn.IFNA(VLOOKUP(IF(OR($AR79="Agribusiness", $AR79="Ag",$AR79="Propane", $AR79="Ag Propane", $AR79="Ag-Propane"),$AC79, $AB79),'[4]UOM Range'!$A$4:$I$500,7,FALSE), ""),"") ->  | AQ79: =IFERROR(_xlfn.IFNA(VLOOKUP(IF(OR($AR79="Agribusiness", $AR79="Ag",$AR79="Propane", $AR79="Ag Propane", $AR79="Ag-Propane"),$AC79, $AB79),'[4]UOM Range'!$A$4:$I$500,8,FALSE), ""),"") ->  | AR79: HVAC | AS79: 15
A80: H2701 | B80: H2701 | C80: N-H2701 | D80: PTHP 10,000-12,999 BTUh, ≥9.9 EER and ≥2.9 COP (NC = ≥10.9 EER and ≥2.9 COP) | E80: H2701: PTHP 10,000-12,999 BTUh, ≥9.9 EER and ≥2.9 COP (NC = ≥10.9 EER and ≥2.9 COP) | F80: Must replace or be instead of a Packaged Terminal Air Conditioner (PTAC). For existing buildings, replacement of existing PTHP DNQ. | G80: Unit must be AHRI listed as a Commercial PTHP. Window and through-the-wall air conditioners/heat pumps DNQ. | H80: The equipment size category (BTUh) is the cooling capacity value of the unit. | I80: Must meet both heating and cooling specifications for the equipment size category. | J80: Verify efficiency ratings using AHRIdirectory.org | K80: Eligibility for PTHP measures is based on customer having an eligible electric provider. | P80: equipment, location, equipment nameplate (if possible) | V80: $120.00 | W80: PTHP | X80: $120.00 | Y80: PTHP | Z80: $110.00 | AA80: PTHP | AB80: 2701 | AC80: 2701 | AD80: 2701 | AE80: Yes | AF80: Yes | AG80: Yes | AH80: 100.0% | AI80: 100.0% | AJ80: 100.0% | AK80: No | AL80: H2701: PTHP 10,000-12,999 BTUh, ≥9.9 EER and ≥2.9 COP (NC = ≥10.9 EER and ≥2.9 COP) | AM80: No | AN80: No | AP80: =IFERROR(_xlfn.IFNA(VLOOKUP(IF(OR($AR80="Agribusiness", $AR80="Ag",$AR80="Propane", $AR80="Ag Propane", $AR80="Ag-Propane"),$AC80, $AB80),'[4]UOM Range'!$A$4:$I$500,7,FALSE), ""),"") ->  | AQ80: =IFERROR(_xlfn.IFNA(VLOOKUP(IF(OR($AR80="Agribusiness", $AR80="Ag",$AR80="Propane", $AR80="Ag Propane", $AR80="Ag-Propane"),$AC80, $AB80),'[4]UOM Range'!$A$4:$I$500,8,FALSE), ""),"") ->  | AR80: HVAC | AS80: 15
A81: H2700 | B81: H2700 | C81: N-H2700 | D81: PTHP ≥13,000 BTUh, ≥9.3 EER and ≥2.9 COP (NC = ≥10.3 EER and ≥2.9 COP) | E81: H2700: PTHP ≥13,000 BTUh, ≥9.3 EER and ≥2.9 COP (NC = ≥10.3 EER and ≥2.9 COP) | F81: Must replace or be instead of a Packaged Terminal Air Conditioner (PTAC). For existing buildings, replacement of existing PTHP DNQ. | G81: Unit must be AHRI listed as a Commercial PTHP. Window and through-the-wall air conditioners/heat pumps DNQ. | H81: The equipment size category (BTUh) is the cooling capacity value of the unit. | I81: Must meet both heating and cooling specifications for the equipment size category. | J81: Verify efficiency ratings using AHRIdirectory.org | K81: Eligibility for PTHP measures is based on customer having an eligible electric provider. | P81: equipment, location, equipment nameplate (if possible) | V81: $120.00 | W81: PTHP | X81: $120.00 | Y81: PTHP | Z81: $110.00 | AA81: PTHP | AB81: 2700 | AC81: 2700 | AD81: 2700 | AE81: Yes | AF81: Yes | AG81: Yes | AH81: 100.0% | AI81: 100.0% | AJ81: 100.0% | AK81: No | AL81: H2700: PTHP ≥13,000 BTUh, ≥9.3 EER and ≥2.9 COP (NC = ≥10.3 EER and ≥2.9 COP) | AM81: No | AN81: No | AP81: =IFERROR(_xlfn.IFNA(VLOOKUP(IF(OR($AR81="Agribusiness", $AR81="Ag",$AR81="Propane", $AR81="Ag Propane", $AR81="Ag-Propane"),$AC81, $AB81),'[4]UOM Range'!$A$4:$I$500,7,FALSE), ""),"") ->  | AQ81: =IFERROR(_xlfn.IFNA(VLOOKUP(IF(OR($AR81="Agribusiness", $AR81="Ag",$AR81="Propane", $AR81="Ag Propane", $AR81="Ag-Propane"),$AC81, $AB81),'[4]UOM Range'!$A$4:$I$500,8,FALSE), ""),"") ->  | AR81: HVAC | AS81: 15
A82: H5081 | B82: H5081 | C82: N-H5081 | D82: Direct Fired Make-up Air Unit, Constant Volume | E82: H5081: Direct Fired Make-up Air Unit, Constant Volume | F82: Complete Table A1 of the "HVAC/Plumbing Incentive Catalog Supplemental Data Sheet" for this measure. Or Table J of the “Propane and Electric Incentive Catalog Supplemental Data Sheet” | G82: For upgrading (or installing instead of) indirect fired make-up air units or rooftop units, which are ~80% efficient. | H82: Replacement of an existing direct-fired make-up air unit is not eligible. | I82: Replacement of electric or hydronically heated make-up air unit is not eligible. | J82: Intended for spaces with high ventilation or exhaust loads. | K82: Installation and operation must follow all applicable building code requirements. | L82: Must serve an occupied space for at least 500 hours per year. | P82: equipment, location, equipment nameplate (if possible) | V82: $0.40 | W82: CFM | X82: $0.40 | Y82: CFM | Z82: $0.30 | AA82: CFM | AB82: 5081 | AC82: 5081 | AD82: 5081 | AE82: Yes | AF82: Yes | AG82: Yes | AH82: 100.0% | AI82: 100.0% | AJ82: 100.0% | AK82: No | AL82: H5081: Direct Fired Make-up Air Unit, Constant Volume | AM82: Yes | AN82: Yes | AO82: CFM | AP82: =IFERROR(_xlfn.IFNA(VLOOKUP(IF(OR($AR82="Agribusiness", $AR82="Ag",$AR82="Propane", $AR82="Ag Propane", $AR82="Ag-Propane"),$AC82, $AB82),'[4]UOM Range'!$A$4:$I$500,7,FALSE), ""),"") -> 100.00 | AQ82: =IFERROR(_xlfn.IFNA(VLOOKUP(IF(OR($AR82="Agribusiness", $AR82="Ag",$AR82="Propane", $AR82="Ag Propane", $AR82="Ag-Propane"),$AC82, $AB82),'[4]UOM Range'!$A$4:$I$500,8,FALSE), ""),"") -> 50,000.00 | AR82: HVAC | AS82: 15
A83: H10030 | B83: H10030 | C83: N-H10030 | D83: Direct Fired Make-up Air Unit, Variable Air Volume | E83: =IF(ISBLANK(A83),"",IF(FOEIncentCodeType=IncentCodeTypeNC,C83,IF(FOEIncentCodeType=IncentCodeTypeAg,B83,A83))&": ") &D83 -> H10030: Direct Fired Make-up Air Unit, Variable Air Volume | F83: Complete Table A2 of the "HVAC/Plumbing Incentive Catalog Supplemental Data Sheet" for this measure. Or Table J of the “Propane and Electric Incentive Catalog Supplemental Data Sheet” | G83: For upgrading (or installing instead of) indirect fired make-up air units or rooftop units, which are ~80% efficient. | H83: Replacement of an existing direct-fired make-up air unit is not eligible. | I83: Replacement of electric or hydronically heated make-up air unit is not eligible. | J83: Intended for spaces with high ventilation or exhaust loads. | K83: Installation and operation must follow all applicable building code requirements. | L83: Must serve an occupied space for at least 500 hours per year. | M83: Cannot be combined with VFD incentives. | P83: equipment, location, equipment nameplate (if possible) | V83: $0.65 | W83: CFM | X83: $0.65 | Y83: CFM | Z83: $0.40 | AA83: CFM | AB83: 10030 | AC83: 10030 | AD83: 10030 | AE83: Yes | AF83: Yes | AG83: Yes | AH83: 100.0% | AI83: 100.0% | AJ83: 100.0% | AK83: No | AL83: H10030: Direct Fired Make-up Air Unit, Variable Air Volume | AM83: Yes | AN83: Yes | AO83: CFM | AP83: =IFERROR(_xlfn.IFNA(VLOOKUP(IF(OR($AR83="Agribusiness", $AR83="Ag",$AR83="Propane", $AR83="Ag Propane", $AR83="Ag-Propane"),$AC83, $AB83),'[4]UOM Range'!$A$4:$I$500,7,FALSE), ""),"") -> 800.00 | AQ83: =IFERROR(_xlfn.IFNA(VLOOKUP(IF(OR($AR83="Agribusiness", $AR83="Ag",$AR83="Propane", $AR83="Ag Propane", $AR83="Ag-Propane"),$AC83, $AB83),'[4]UOM Range'!$A$4:$I$500,8,FALSE), ""),"") -> 50,000.00 | AR83: HVAC | AS83: 15
A84: H10445 | B84: H10445 | C84: N-H10445 | D84: Direct Fired Make-up Air Unit, Variable Air Volume instead of Constant Volume | E84: H10445: Direct Fired Make-up Air Unit, Variable Air Volume instead of Constant Volume | F84: Complete Table A2 of the "HVAC/Plumbing Incentive Catalog Supplemental Data Sheet" for this measure. Or Table J of the “Propane and Electric Incentive Catalog Supplemental Data Sheet” | G84: For upgrading (or installing instead of) indirect fired make-up air units or rooftop units, which are ~80% efficient. | H84: Replacement of electric or hydronically heated make-up air unit is not eligible. | I84: Intended for spaces with high ventilation or exhaust loads. | J84: Installation and operation must follow all applicable building code requirements. | K84: Must serve an occupied space for at least 500 hours per year. | L84: Cannot be combined with VFD incentives. | P84: equipment, location, equipment nameplate (if possible) | V84: $0.20 | W84: CFM | X84: $0.20 | Y84: CFM | Z84: $0.20 | AA84: CFM | AB84: 10445 | AC84: 10445 | AD84: 10445 | AE84: Yes | AF84: Yes | AG84: Yes | AH84: 100.0% | AI84: 100.0% | AJ84: 100.0% | AK84: No | AL84: H10445: Direct Fired Make-up Air Unit, Variable Air Volume instead of Constant Volume | AM84: Yes | AN84: Yes | AO84: CFM | AP84: 100.00 | AQ84: 50,000.00 | AR84: HVAC | AS84: 15
D85: ----------------------HVAC CATALOG: COOLING SYSTEMS---------------------------- | E85: ----------------------HVAC CATALOG: COOLING SYSTEMS---------------------------- | P85: equipment, location, equipment nameplate (if possible) | AL85: ----------------------HVAC CATALOG: COOLING SYSTEMS---------------------------- | AP85: =IFERROR(_xlfn.IFNA(VLOOKUP(IF(OR($AR85="Agribusiness", $AR85="Ag",$AR85="Propane", $AR85="Ag Propane", $AR85="Ag-Propane"),$AC85, $AB85),'[4]UOM Range'!$A$4:$I$500,7,FALSE), ""),"") ->  | AQ85: =IFERROR(_xlfn.IFNA(VLOOKUP(IF(OR($AR85="Agribusiness", $AR85="Ag",$AR85="Propane", $AR85="Ag Propane", $AR85="Ag-Propane"),$AC85, $AB85),'[4]UOM Range'!$A$4:$I$500,8,FALSE), ""),"") ->  | AR85: HVAC
A86: H5423 | B86: H5423 | C86: N-H5423 | D86: 16 SEER2 A/C Split System or Single Package, < 5.42 tons | E86: H5423: 16 SEER2 A/C Split System or Single Package, < 5.42 tons | F86: Must be ≥ 16 SEER2 and < 65 MBH (5.42 ton) | G86: AHRI verified cooling capacity and SEER2 will be used to calculate the incentive. | H86: Systems qualified in the following AHRI Directories are eligible: 'Air Conditioners and Air Conditioner Coils', 'Heat Pumps', ‘Variable-Speed Mini-Split and Multi-Split Heat Pumps’ and 'Variable-Speed Mini-Split and Multi-Split Air Conditioners' (see ahridirectory.org) | I86: Incentives are for standard HVAC applications only. Rooftop units and split sytem A/C used for industrial process cooling, ice rinks and refrigerated warehouses may qualify for a custom incentive | J86: Unit of Measure question asks for # of Tons. Qty will be number of A/C units. | K86: When used in data centers, rooftop units and split system air conditioners < 5.42 tons are eligible if they are AHRI listed. | O86: AHRI will list the cooling capacity in Btuh. Need to divide by 12,000 to convert to tons. SHOW THIS CONVERSION RIGHT ON THE AHRI CERT. Do NOT round. If system wasn't tested as complete condensing unit and coil, EA/TR should request a model of the combined system at AHRI conditions to verify min efficiency requirements are met. | P86: equipment, location, equipment nameplate (if possible) | V86: $75.00 | W86: A/C Unit | X86: =V86 -> $75.00 | Y86: A/C Unit | Z86: $50.00 | AA86: =W86 -> A/C Unit | AB86: 5423 | AC86: 5423 | AD86: 5423 | AE86: Yes | AF86: Yes | AG86: Yes | AH86: 100.0% | AI86: 100.0% | AJ86: 100.0% | AK86: No | AL86: H5423: 16 SEER2 A/C Split System or Single Package, < 5.42 tons | AM86: No | AN86: Yes | AO86: Tons | AP86: =IFERROR(_xlfn.IFNA(VLOOKUP(IF(OR($AR86="Agribusiness", $AR86="Ag",$AR86="Propane", $AR86="Ag Propane", $AR86="Ag-Propane"),$AC86, $AB86),'[4]UOM Range'!$A$4:$I$500,7,FALSE), ""),"") -> 0.50 | AQ86: =IFERROR(_xlfn.IFNA(VLOOKUP(IF(OR($AR86="Agribusiness", $AR86="Ag",$AR86="Propane", $AR86="Ag Propane", $AR86="Ag-Propane"),$AC86, $AB86),'[4]UOM Range'!$A$4:$I$500,8,FALSE), ""),"") -> 5.42 | AR86: HVAC | AS86: 16
A87: H5424 | B87: H5424 | C87: N-H5424 | D87: 17 SEER2 A/C Split System or Single Package, < 5.42 tons | E87: H5424: 17 SEER2 A/C Split System or Single Package, < 5.42 tons | F87: Must be ≥ 17 SEER2 and < 65 MBH (5.42 ton) | G87: AHRI verified cooling capacity and SEER2 will be used to calculate the incentive. | H87: Systems qualified in the following AHRI Directories are eligible: 'Air Conditioners and Air Conditioner Coils', 'Heat Pumps', ‘Variable-Speed Mini-Split and Multi-Split Heat Pumps’ and 'Variable-Speed Mini-Split and Multi-Split Air Conditioners' (see ahridirectory.org) | I87: Incentives are for standard HVAC applications only. Rooftop units and split sytem A/C used for industrial process cooling, ice rinks and refrigerated warehouses may qualify for a custom incentive | J87: Unit of Measure question asks for # of Tons. Qty will be number of A/C units. | K87: When used in data centers, rooftop units and split system air conditioners < 5.42 tons are eligible if they are AHRI listed. | O87: AHRI will list the cooling capacity in Btuh. Need to divide by 12,000 to convert to tons. SHOW THIS CONVERSION RIGHT ON THE AHRI CERT. Do NOT round. If system wasn't tested as complete condensing unit and coil, EA/TR should request a model of the combined system at AHRI conditions to verify min efficiency requirements are met. | P87: equipment, location, equipment nameplate (if possible) | V87: $100.00 | W87: A/C Unit | X87: $100.00 | Y87: A/C Unit | Z87: $75.00 | AA87: A/C Unit | AB87: 5424 | AC87: 5424 | AD87: 5424 | AE87: Yes | AF87: Yes | AG87: Yes | AH87: 100.0% | AI87: 100.0% | AJ87: 100.0% | AK87: No | AL87: H5424: 17 SEER2 A/C Split System or Single Package, < 5.42 tons | AM87: No | AN87: Yes | AO87: Tons | AP87: =IFERROR(_xlfn.IFNA(VLOOKUP(IF(OR($AR87="Agribusiness", $AR87="Ag",$AR87="Propane", $AR87="Ag Propane", $AR87="Ag-Propane"),$AC87, $AB87),'[4]UOM Range'!$A$4:$I$500,7,FALSE), ""),"") -> 0.50 | AQ87: =IFERROR(_xlfn.IFNA(VLOOKUP(IF(OR($AR87="Agribusiness", $AR87="Ag",$AR87="Propane", $AR87="Ag Propane", $AR87="Ag-Propane"),$AC87, $AB87),'[4]UOM Range'!$A$4:$I$500,8,FALSE), ""),"") -> 5.42 | AR87: HVAC | AS87: 16
A88: H5425 | B88: H5425 | C88: N-H5425 | D88: 18 SEER2 A/C Split System or Single Package, < 5.42 tons | E88: H5425: 18 SEER2 A/C Split System or Single Package, < 5.42 tons | F88: Must be ≥ 18 SEER2 and < 65 MBH (5.42 ton) | G88: AHRI verified cooling capacity and SEER2 will be used to calculate the incentive. | H88: Systems qualified in the following AHRI Directories are eligible: 'Air Conditioners and Air Conditioner Coils', 'Heat Pumps', ‘Variable-Speed Mini-Split and Multi-Split Heat Pumps’ and 'Variable-Speed Mini-Split and Multi-Split Air Conditioners' (see ahridirectory.org) | I88: Incentives are for standard HVAC applications only. Rooftop units and split sytem A/C used for industrial process cooling, ice rinks and refrigerated warehouses may qualify for a custom incentive | J88: Unit of Measure question asks for # of Tons. Qty will be number of A/C units. | K88: When used in data centers, rooftop units and split system air conditioners < 5.42 tons are eligible if they are AHRI listed. | O88: AHRI will list the cooling capacity in Btuh. Need to divide by 12,000 to convert to tons. SHOW THIS CONVERSION RIGHT ON THE AHRI CERT. Do NOT round. If system wasn't tested as complete condensing unit and coil, EA/TR should request a model of the combined system at AHRI conditions to verify min efficiency requirements are met. | P88: equipment, location, equipment nameplate (if possible) | V88: $125.00 | W88: A/C Unit | X88: $125.00 | Y88: A/C Unit | Z88: $100.00 | AA88: A/C Unit | AB88: 5425 | AC88: 5425 | AD88: 5425 | AE88: Yes | AF88: Yes | AG88: Yes | AH88: 100.0% | AI88: 100.0% | AJ88: 100.0% | AK88: No | AL88: H5425: 18 SEER2 A/C Split System or Single Package, < 5.42 tons | AM88: No | AN88: Yes | AO88: Tons | AP88: =IFERROR(_xlfn.IFNA(VLOOKUP(IF(OR($AR88="Agribusiness", $AR88="Ag",$AR88="Propane", $AR88="Ag Propane", $AR88="Ag-Propane"),$AC88, $AB88),'[4]UOM Range'!$A$4:$I$500,7,FALSE), ""),"") -> 0.50 | AQ88: =IFERROR(_xlfn.IFNA(VLOOKUP(IF(OR($AR88="Agribusiness", $AR88="Ag",$AR88="Propane", $AR88="Ag Propane", $AR88="Ag-Propane"),$AC88, $AB88),'[4]UOM Range'!$A$4:$I$500,8,FALSE), ""),"") -> 5.42 | AR88: HVAC | AS88: 16
A89: H5426 | B89: H5426 | C89: N-H5426 | D89: 19 SEER2 A/C Split System or Single Package, < 5.42 tons | E89: H5426: 19 SEER2 A/C Split System or Single Package, < 5.42 tons | F89: Must be ≥ 19 SEER2 and < 65 MBH (5.42 ton) | G89: AHRI verified cooling capacity and SEER2 will be used to calculate the incentive. | H89: Systems qualified in the following AHRI Directories are eligible: 'Air Conditioners and Air Conditioner Coils', 'Heat Pumps', ‘Variable-Speed Mini-Split and Multi-Split Heat Pumps’ and 'Variable-Speed Mini-Split and Multi-Split Air Conditioners' (see ahridirectory.org) | I89: Incentives are for standard HVAC applications only. Rooftop units and split sytem A/C used for industrial process cooling, ice rinks and refrigerated warehouses may qualify for a custom incentive | J89: Unit of Measure question asks for # of Tons. Qty will be number of A/C units. | K89: When used in data centers, rooftop units and split system air conditioners < 5.42 tons are eligible if they are AHRI listed. | O89: AHRI will list the cooling capacity in Btuh. Need to divide by 12,000 to convert to tons. SHOW THIS CONVERSION RIGHT ON THE AHRI CERT. Do NOT round. If system wasn't tested as complete condensing unit and coil, EA/TR should request a model of the combined system at AHRI conditions to verify min efficiency requirements are met. | P89: equipment, location, equipment nameplate (if possible) | V89: $175.00 | W89: A/C Unit | X89: $175.00 | Y89: A/C Unit | Z89: $125.00 | AA89: A/C Unit | AB89: 5426 | AC89: 5426 | AD89: 5426 | AE89: Yes | AF89: Yes | AG89: Yes | AH89: 100.0% | AI89: 100.0% | AJ89: 100.0% | AK89: No | AL89: H5426: 19 SEER2 A/C Split System or Single Package, < 5.42 tons | AM89: No | AN89: Yes | AO89: Tons | AP89: =IFERROR(_xlfn.IFNA(VLOOKUP(IF(OR($AR89="Agribusiness", $AR89="Ag",$AR89="Propane", $AR89="Ag Propane", $AR89="Ag-Propane"),$AC89, $AB89),'[4]UOM Range'!$A$4:$I$500,7,FALSE), ""),"") -> 0.50 | AQ89: =IFERROR(_xlfn.IFNA(VLOOKUP(IF(OR($AR89="Agribusiness", $AR89="Ag",$AR89="Propane", $AR89="Ag Propane", $AR89="Ag-Propane"),$AC89, $AB89),'[4]UOM Range'!$A$4:$I$500,8,FALSE), ""),"") -> 5.42 | AR89: HVAC | AS89: 16
A90: H5427 | B90: H5427 | C90: N-H5427 | D90: 20 SEER2 A/C Split System or Single Package, < 5.42 tons | E90: H5427: 20 SEER2 A/C Split System or Single Package, < 5.42 tons | F90: Must be ≥ 20 SEER2 and < 65 MBH (5.42 ton) | G90: AHRI verified cooling capacity and SEER2 will be used to calculate the incentive. | H90: Systems qualified in the following AHRI Directories are eligible: 'Air Conditioners and Air Conditioner Coils', 'Heat Pumps', ‘Variable-Speed Mini-Split and Multi-Split Heat Pumps’ and 'Variable-Speed Mini-Split and Multi-Split Air Conditioners' (see ahridirectory.org) | I90: Incentives are for standard HVAC applications only. Rooftop units and split sytem A/C used for industrial process cooling, ice rinks and refrigerated warehouses may qualify for a custom incentive | J90: Unit of Measure question asks for # of Tons. Qty will be number of A/C units. | K90: When used in data centers, rooftop units and split system air conditioners < 5.42 tons are eligible if they are AHRI listed. | O90: AHRI will list the cooling capacity in Btuh. Need to divide by 12,000 to convert to tons. SHOW THIS CONVERSION RIGHT ON THE AHRI CERT. Do NOT round. If system wasn't tested as complete condensing unit and coil, EA/TR should request a model of the combined system at AHRI conditions to verify min efficiency requirements are met. | P90: equipment, location, equipment nameplate (if possible) | V90: $200.00 | W90: A/C Unit | X90: $200.00 | Y90: A/C Unit | Z90: $150.00 | AA90: A/C Unit | AB90: 5427 | AC90: 5427 | AD90: 5427 | AE90: Yes | AF90: Yes | AG90: Yes | AH90: 100.0% | AI90: 100.0% | AJ90: 100.0% | AK90: No | AL90: H5427: 20 SEER2 A/C Split System or Single Package, < 5.42 tons | AM90: No | AN90: Yes | AO90: Tons | AP90: =IFERROR(_xlfn.IFNA(VLOOKUP(IF(OR($AR90="Agribusiness", $AR90="Ag",$AR90="Propane", $AR90="Ag Propane", $AR90="Ag-Propane"),$AC90, $AB90),'[4]UOM Range'!$A$4:$I$500,7,FALSE), ""),"") -> 0.50 | AQ90: =IFERROR(_xlfn.IFNA(VLOOKUP(IF(OR($AR90="Agribusiness", $AR90="Ag",$AR90="Propane", $AR90="Ag Propane", $AR90="Ag-Propane"),$AC90, $AB90),'[4]UOM Range'!$A$4:$I$500,8,FALSE), ""),"") -> 5.42 | AR90: HVAC | AS90: 16
A91: H2820 | B91: H2820 | C91: N-H2820 | D91: Ground Source Heat Pump w/ Electric Back-Up | E91: H2820: Ground Source Heat Pump w/ Electric Back-Up | F91: Systems must be AHRI or ENERGY STAR listed in a geothermal category. | G91: Primarily provides heating and cooling. Ice/Snow melting, DHW, or non-HVAC main uses DNQ. | H91: Enter Heating Capacity (MBh). If unknown, 1 MBh cooling capacity = 0.7628 MBh heating capacity. | P91: equipment, location, equipment nameplate (if possible) | V91: $750.00 | W91: System | X91: $750.00 | Y91: System | Z91: $750.00 | AA91: System | AB91: 2820 | AC91: 2820 | AD91: 2820 | AE91: Yes | AF91: Yes | AG91: Yes | AH91: 100.0% | AI91: 100.0% | AJ91: 100.0% | AK91: No | AL91: H2820: Ground Source Heat Pump w/ Electric Back-Up | AM91: No | AN91: Yes | AO91: Heating MBh | AP91: =IFERROR(_xlfn.IFNA(VLOOKUP(IF(OR($AR91="Agribusiness", $AR91="Ag",$AR91="Propane", $AR91="Ag Propane", $AR91="Ag-Propane"),$AC91, $AB91),'[4]UOM Range'!$A$4:$I$500,7,FALSE), ""),"") ->  | AQ91: 50.00 | AR91: HVAC | AS91: 16
A92: H2821 | B92: H2821 | C92: N-H2821 | D92: Ground Source Heat Pump w/ Natural Gas Back-Up | E92: H2821: Ground Source Heat Pump w/ Natural Gas Back-Up | F92: Systems must be AHRI or ENERGY STAR listed in a geothermal category. | G92: Primarily provides heating and cooling. Ice/Snow melting, DHW, or non-HVAC main uses DNQ. | H92: Enter Heating Capacity (MBh). If unknown, 1 MBh cooling capacity = 0.7628 MBh heating capacity. | I92: Confirm eligible Gas Account | P92: equipment, location, equipment nameplate (if possible) | V92: $1,000.00 | W92: System | X92: $1,000.00 | Y92: System | Z92: $1,000.00 | AA92: System | AB92: 2821 | AC92: 2821 | AD92: 2821 | AE92: Yes | AF92: Yes | AG92: Yes | AH92: 100.0% | AI92: 100.0% | AJ92: 100.0% | AK92: No | AL92: H2821: Ground Source Heat Pump w/ Natural Gas Back-Up | AM92: No | AN92: Yes | AO92: Heating MBh | AP92: =IFERROR(_xlfn.IFNA(VLOOKUP(IF(OR($AR92="Agribusiness", $AR92="Ag",$AR92="Propane", $AR92="Ag Propane", $AR92="Ag-Propane"),$AC92, $AB92),'[4]UOM Range'!$A$4:$I$500,7,FALSE), ""),"") ->  | AQ92: 50.00 | AR92: HVAC | AS92: 16
A93: H4368 | B93: H4368 | C93: N-H4368 | D93: DX Cooling ≥ 5.42 to < 11.25 tons, Min. Eff. = 16.1 IEER (additional incentive on IEER) | E93: H4368: DX Cooling ≥ 5.42 to < 11.25 tons, Min. Eff. = 16.1 IEER (additional incentive on IEER) | F93: Complete Table B1 of the "HVAC/Plumbing Incentive Catalog Supplemental Data Sheet" for this measure. | G93: Must be ≥ 16.1 IEER (no EER minimum). Incentive = $25/ton (existing building) or $20/ton (new construction) + $5/ton (existing building) or $3/ton (new construction) for each 1.0 IEER over 13.8. | H93: Provide capacity and performance values to two decimal places. Standard HVAC applications only (no process cooling) | I93: Use AHRIdirectory.org to confirm efficiency and capacity. Use AHRI capacity for incentive calc. | J93: If split system, must be perf. Data for "matched air handler" or "complete system", NOT "condensing unit only"… | K93: …and both condenser and evap. Must have coil and condenser model #'s. Coil must be replaced for retrofit projects. | L93: SPECTRUM Unit of Measure Question = Enter Unit Total Incentive | M93: **Ag, S&G, and BNC Programs: ENTER A PLACE HOLDER OF 1.000 for unit of measure question and QTY from Section 7. Tech Team will enter/verify values after completing hybrid calc** | N93: Complete Cooling Eligibility Screening Tool. | O93: AHRI will list the cooling capacity in Btuh. Need to divide by 12,000 to convert to tons. SHOW THIS CONVERSION RIGHT ON THE AHRI CERT. Do NOT round. If system wasn't tested as complete condensing unit and coil, EA/TR should request a model of the combined system at AHRI conditions to verify min efficiency requirements are met. **ENTER TONNAGE IN SPECTRUM UNDER EQUIPMENT INFORMATION>ACTUAL CAPACITY** | P93: equipment, location, equipment nameplate (if possible) | V93: $30+$5/1.0 IEER > Min | W93: Ton | X93: $30+$5/1.0 IEER > Min | Y93: Ton | Z93: $25+$3/1.0 IEER > Min | AA93: Ton | AB93: 4368 | AC93: 4368 | AD93: 4368 | AE93: Yes | AF93: Yes | AG93: Yes | AH93: 100.0% | AI93: 100.0% | AJ93: 100.0% | AK93: Yes | AL93: H4368: DX Cooling ≥ 5.42 to < 11.25 tons, Min. Eff. = 16.1 IEER (additional incentive on IEER) | AM93: Yes | AN93: Yes | AO93: Tons | AP93: =IFERROR(_xlfn.IFNA(VLOOKUP(IF(OR($AR93="Agribusiness", $AR93="Ag",$AR93="Propane", $AR93="Ag Propane", $AR93="Ag-Propane"),$AC93, $AB93),'[4]UOM Range'!$A$4:$I$500,7,FALSE), ""),"") ->  | AQ93: =IFERROR(_xlfn.IFNA(VLOOKUP(IF(OR($AR93="Agribusiness", $AR93="Ag",$AR93="Propane", $AR93="Ag Propane", $AR93="Ag-Propane"),$AC93, $AB93),'[4]UOM Range'!$A$4:$I$500,8,FALSE), ""),"") ->  | AR93: HVAC | AS93: 17
A94: H4369 | B94: H4369 | C94: N-H4369 | D94: DX Cooling ≥ 11.25 to < 20.00 tons, Min. Eff. = 15.4 IEER (additional incentive on IEER) | E94: =IF(ISBLANK(A94),"",IF(FOEIncentCodeType=IncentCodeTypeNC,C94,IF(FOEIncentCodeType=IncentCodeTypeAg,B94,A94))&": ") &D94 -> H4369: DX Cooling ≥ 11.25 to < 20.00 tons, Min. Eff. = 15.4 IEER (additional incentive on IEER) | F94: Complete Table B1 of the "HVAC/Plumbing Incentive Catalog Supplemental Data Sheet" for this measure. | G94: Must be ≥ 15.4 IEER (no EER minimum). Incentive = $25/ton (existing building) or $20/ton (new construction) + $5/ton (existing building) or $3/ton (new construction) for each 1.0 IEER over 13.0. | H94: Provide capacity and performance values to two decimal places. Standard HVAC applications only (no process cooling) | I94: Use AHRIdirectory.org to confirm efficiency and capacity. Use AHRI capacity for incentive calc. | J94: If split system, must be perf. Data for "matched air handler" or "complete system", NOT "condensing unit only"… | K94: …and both condenser and evap. Must have coil and condenser model #'s. Coil must be replaced for retrofit projects. | L94: SPECTRUM Unit of Measure Question = Enter Unit Total Incentive | M94: **Ag, S&G, and BNC Programs: ENTER A PLACE HOLDER OF 1.000 for unit of measure question and QTY from Section 7. Tech Team will enter/verify values after completing hybrid calc** | N94: Complete Cooling Eligibility Screening Tool. | O94: AHRI will list the cooling capacity in Btuh. Need to divide by 12,000 to convert to tons. SHOW THIS CONVERSION RIGHT ON THE AHRI CERT. Do NOT round. If system wasn't tested as complete condensing unit and coil, EA/TR should request a model of the combined system at AHRI conditions to verify min efficiency requirements are met. **ENTER TONNAGE IN SPECTRUM UNDER EQUIPMENT INFORMATION>ACTUAL CAPACITY** | P94: equipment, location, equipment nameplate (if possible) | V94: $30+$5/1.0 IEER > Min | W94: Ton | X94: $30+$5/1.0 IEER > Min | Y94: Ton | Z94: $25+$3/1.0 IEER > Min | AA94: Ton | AB94: 4369 | AC94: 4369 | AD94: 4369 | AE94: Yes | AF94: Yes | AG94: Yes | AH94: 100.0% | AI94: 100.0% | AJ94: 100.0% | AK94: Yes | AL94: H4369: DX Cooling ≥ 11.25 to < 20.00 tons, Min. Eff. = 15.4 IEER (additional incentive on IEER) | AM94: Yes | AN94: Yes | AO94: Tons | AP94: =IFERROR(_xlfn.IFNA(VLOOKUP(IF(OR($AR94="Agribusiness", $AR94="Ag",$AR94="Propane", $AR94="Ag Propane", $AR94="Ag-Propane"),$AC94, $AB94),'[4]UOM Range'!$A$4:$I$500,7,FALSE), ""),"") ->  | AQ94: =IFERROR(_xlfn.IFNA(VLOOKUP(IF(OR($AR94="Agribusiness", $AR94="Ag",$AR94="Propane", $AR94="Ag Propane", $AR94="Ag-Propane"),$AC94, $AB94),'[4]UOM Range'!$A$4:$I$500,8,FALSE), ""),"") ->  | AR94: HVAC | AS94: 17
A95: H4370 | B95: H4370 | C95: N-H4370 | D95: DX Cooling ≥ 20.00 to < 63.33 tons, Min. Eff. = 14.3 IEER (additional incentive on IEER) | E95: H4370: DX Cooling ≥ 20.00 to < 63.33 tons, Min. Eff. = 14.3 IEER (additional incentive on IEER) | F95: Complete Table B1 of the "HVAC/Plumbing Incentive Catalog Supplemental Data Sheet" for this measure. | G95: Must be ≥ 14.3 IEER (no EER minimum). Incentive = $25/ton (existing building) or $20/ton (new construction) + $5/ton (existing building) or $3/ton (new construction) for each 1.0 IEER over 12.1. | H95: Provide capacity and performance values to two decimal places. Standard HVAC applications only (no process cooling) | I95: Use AHRIdirectory.org to confirm efficiency and capacity. Use AHRI capacity for incentive calc. | J95: If split system, must be perf. Data for "matched air handler" or "complete system", NOT "condensing unit only"… | K95: …and both condenser and evap. Must have coil and condenser model #'s. Coil must be replaced for retrofit projects. | L95: SPECTRUM Unit of Measure Question = Enter Unit Total Incentive | M95: **Ag, S&G, and BNC Programs: ENTER A PLACE HOLDER OF 1.000 for unit of measure question and QTY from Section 7. Tech Team will enter/verify values after completing hybrid calc** | N95: Complete Cooling Eligibility Screening Tool. | O95: AHRI will list the cooling capacity in Btuh. Need to divide by 12,000 to convert to tons. SHOW THIS CONVERSION RIGHT ON THE AHRI CERT. Do NOT round. If system wasn't tested as complete condensing unit and coil, EA/TR should request a model of the combined system at AHRI conditions to verify min efficiency requirements are met. **ENTER TONNAGE IN SPECTRUM UNDER EQUIPMENT INFORMATION>ACTUAL CAPACITY** | P95: equipment, location, equipment nameplate (if possible) | V95: $30+$5/1.0 IEER > Min | W95: Ton | X95: $30+$5/1.0 IEER > Min | Y95: Ton | Z95: $25+$3/1.0 IEER > Min | AA95: Ton | AB95: 4370 | AC95: 4370 | AD95: 4370 | AE95: Yes | AF95: Yes | AG95: Yes | AH95: 100.0% | AI95: 100.0% | AJ95: 100.0% | AK95: Yes | AL95: H4370: DX Cooling ≥ 20.00 to < 63.33 tons, Min. Eff. = 14.3 IEER (additional incentive on IEER) | AM95: Yes | AN95: Yes | AO95: Tons | AP95: =IFERROR(_xlfn.IFNA(VLOOKUP(IF(OR($AR95="Agribusiness", $AR95="Ag",$AR95="Propane", $AR95="Ag Propane", $AR95="Ag-Propane"),$AC95, $AB95),'[4]UOM Range'!$A$4:$I$500,7,FALSE), ""),"") ->  | AQ95: =IFERROR(_xlfn.IFNA(VLOOKUP(IF(OR($AR95="Agribusiness", $AR95="Ag",$AR95="Propane", $AR95="Ag Propane", $AR95="Ag-Propane"),$AC95, $AB95),'[4]UOM Range'!$A$4:$I$500,8,FALSE), ""),"") ->  | AR95: HVAC | AS95: 17
A96: H4371 | B96: H4371 | C96: N-H4371 | D96: DX Cooling ≥ 63.33 tons, Min. Eff. = 9.7 EER and 13.6 IEER (additional incentive on IEER) | E96: H4371: DX Cooling ≥ 63.33 tons, Min. Eff. = 9.7 EER and 13.6 IEER (additional incentive on IEER) | F96: Complete Table B1 of the "HVAC/Plumbing Incentive Catalog Supplemental Data Sheet" for this measure. | G96: Must be ≥ 9.7 EER and 13.6 IEER. Incentive = $25/ton (existing building) or $20/ton (new construction) + $5/ton (existing building) or $3/ton (new construction) for each 1.0 IEER over 11.4. | H96: Provide capacity and performance values to two decimal places. Standard HVAC applications only (no process cooling) | I96: Use AHRIdirectory.org to confirm efficiency and capacity. Use AHRI capacity for incentive calc. | J96: If split system, must be perf. Data for "matched air handler" or "complete system", NOT "condensing unit only"… | K96: …and both condenser and evap. Must have coil and condenser model #'s. Coil must be replaced for retrofit projects. | L96: SPECTRUM Unit of Measure Question = Enter Unit Total Incentive | M96: **Ag, S&G, and BNC Programs: ENTER A PLACE HOLDER OF 1.000 for unit of measure question and QTY from Section 7. Tech Team will enter/verify values after completing hybrid calc** | N96: Complete Cooling Eligibility Screening Tool. | O96: AHRI will list the cooling capacity in Btuh. Need to divide by 12,000 to convert to tons. SHOW THIS CONVERSION RIGHT ON THE AHRI CERT. Do NOT round. If system wasn't tested as complete condensing unit and coil, EA/TR should request a model of the combined system at AHRI conditions to verify min efficiency requirements are met. **ENTER TONNAGE IN SPECTRUM UNDER EQUIPMENT INFORMATION>ACTUAL CAPACITY** | P96: equipment, location, equipment nameplate (if possible) | V96: $30+$5/1.0 IEER > Min | W96: Ton | X96: $30+$5/1.0 IEER > Min | Y96: Ton | Z96: $25+$3/1.0 IEER > Min | AA96: Ton | AB96: 4371 | AC96: 4371 | AD96: 4371 | AE96: Yes | AF96: Yes | AG96: Yes | AH96: 100.0% | AI96: 100.0% | AJ96: 100.0% | AK96: Yes | AL96: H4371: DX Cooling ≥ 63.33 tons, Min. Eff. = 9.7 EER and 13.6 IEER (additional incentive on IEER) | AM96: Yes | AN96: Yes | AO96: Tons | AP96: =IFERROR(_xlfn.IFNA(VLOOKUP(IF(OR($AR96="Agribusiness", $AR96="Ag",$AR96="Propane", $AR96="Ag Propane", $AR96="Ag-Propane"),$AC96, $AB96),'[4]UOM Range'!$A$4:$I$500,7,FALSE), ""),"") ->  | AQ96: =IFERROR(_xlfn.IFNA(VLOOKUP(IF(OR($AR96="Agribusiness", $AR96="Ag",$AR96="Propane", $AR96="Ag Propane", $AR96="Ag-Propane"),$AC96, $AB96),'[4]UOM Range'!$A$4:$I$500,8,FALSE), ""),"") ->  | AR96: HVAC | AS96: 17
